Workbook

Sheet Introduction
C4: Joint Monitoring Programme for Water Supply, Sanitation and Hygiene
C6: Estimates on household water, sanitation and hygiene by wealth quintile and sub-national region in
C7: =+Water!B5 -> Iraq
C9: Updated May 2021
C11: Follow the links below to find the following information:
C13: JMP Estimates
C14: WASH status and trends by wealth quintile (customized quintiles made without water and sanitation assets)
C15: Water
C16: Sanitation
C17: Hygiene
C19: Data inputs
C20: customized wealth quintiles and subnational data:
C21: =IF(INDIRECT(CONCATENATE("Water","!B105"))=0,"",INDIRECT(CONCATENATE("Water","!B105"))) -> MICS00
C22: =IF(INDIRECT(CONCATENATE("Water","!B106"))=0,"",INDIRECT(CONCATENATE("Water","!B106"))) -> MICS06
C23: =IF(INDIRECT(CONCATENATE("Water","!B107"))=0,"",INDIRECT(CONCATENATE("Water","!B107"))) -> MICS11
C24: =IF(INDIRECT(CONCATENATE("Water","!B108"))=0,"",INDIRECT(CONCATENATE("Water","!B108"))) -> MICS18
C25: =IF(INDIRECT(CONCATENATE("Water","!B109"))=0,"",INDIRECT(CONCATENATE("Water","!B109"))) -> 
C26: =IF(INDIRECT(CONCATENATE("Water","!B110"))=0,"",INDIRECT(CONCATENATE("Water","!B110"))) -> 
C27: =IF(INDIRECT(CONCATENATE("Water","!B111"))=0,"",INDIRECT(CONCATENATE("Water","!B111"))) -> 
C28: =IF(INDIRECT(CONCATENATE("Water","!B112"))=0,"",INDIRECT(CONCATENATE("Water","!B112"))) -> 
C29: =IF(INDIRECT(CONCATENATE("Water","!B113"))=0,"",INDIRECT(CONCATENATE("Water","!B113"))) -> 
C30: =IF(INDIRECT(CONCATENATE("Water","!B114"))=0,"",INDIRECT(CONCATENATE("Water","!B114"))) -> 
C31: =IF(INDIRECT(CONCATENATE("Water","!B115"))=0,"",INDIRECT(CONCATENATE("Water","!B115"))) -> 
C32: =IF(INDIRECT(CONCATENATE("Water","!B116"))=0,"",INDIRECT(CONCATENATE("Water","!B116"))) -> 
L55: =+IF(ISNUMBER(M48), "", "Insufficient data to estimate safely managed sanitation services at national level") -> Insufficient data to estimate safely managed sanitation services at national level

Sheet Water
A1: BGD
B4: Summary of trends in use of drinking water by wealth quintile (%)
B5: =IF(ISERROR(INDIRECT(CONCATENATE($B105,"!A2"))),"",INDIRECT(CONCATENATE($B105,"!A2"))) -> Iraq
B7: =B118 -> National use of drinking water sources, 2000–2020 | J7: =B218 -> Urban use of drinking water sources, 2000–2020 | R7: =B318 -> Rural use of drinking water sources, 2000–2020
B31: =IF(ISERROR(INDIRECT(CONCATENATE($B105,"!A2"))),"",INDIRECT(CONCATENATE($B105,"!A2"))) -> Iraq | F31: Poorest | J31: Poor | N31: Middle | R31: Rich | V31: Richest
F32: Basic | G32: Limited | H32: Unimproved | I32: Surface water | J32: Basic | K32: Limited | L32: Unimproved | M32: Surface water | N32: Basic | O32: Limited | P32: Unimproved | Q32: Surface water | R32: Basic | S32: Limited | T32: Unimproved | U32: Surface water | V32: Basic | W32: Limited | X32: Unimproved | Y32: Surface water
B33: NATIONAL | D33: Estimate | E33: =C99 -> 2000 | F33: =E99 -> 79.84672766 | G33: =F99 -> 2.090701882 | H33: 9.099553398 | I33: 8.963017065 | J33: =J99 -> 74.43931431 | K33: =K99 -> 0.9431075324 | L33: 21.45597459 | M33: 3.161603571 | N33: =O99 -> 69.96522812 | O33: =P99 -> 0.884746101 | P33: 27.09363549 | Q33: 2.056390296 | R33: =T99 -> 93.30983205 | S33: =U99 -> 0.2376220694 | T33: 4.951040372 | U33: 1.501505506 | V33: =Y99 -> 94.83497034 | W33: =Z99 -> 0.1004224148 | X33: 4.739365353 | Y33: 0.3252418902
E34: =C100 -> 2020 | F34: =E100 -> 90.65388481 | G34: 2.373675831 | H34: 0.3558542843 | I34: 6.616585072 | J34: =J100 -> 96.11051466 | K34: 1.217670409 | L34: 0 | M34: 2.671814934 | N34: =O100 -> 97.50618735 | O34: 1.233015619 | P34: 0 | Q34: 1.260797033 | R34: =T100 -> 98.16002509 | S34: 0.2499735321 | T34: 0.7706152091 | U34: 0.8193861676 | V34: =Y100 -> 99.46704629 | W34: 0.1053274013 | X34: 0.3295180592 | Y34: 0.09810825239
B36: URBAN | D36: Estimate | E36: =C199 -> 2000 | F36: =E199 -> 96.00185861 | G36: =F199 -> 0.580274535 | H36: 3.172509039 | I36: 0.2453578184 | J36: =J199 -> 94.5216204 | K36: =K199 -> 0.2527829063 | L36: 5.101323916 | M36: 0.124272773 | N36: =O199 -> 95.6101965 | O36: =P199 -> 0.2184112092 | P36: 4.125412917 | Q36: 0.04597937065 | R36: =T199 -> 96.78040415 | S36: =U199 -> 0.02522638201 | T36: 3.121399684 | U36: 0.07296978487 | V36: =Y199 -> 95.98644516 | W36: =Z199 -> 0.1209819094 | X36: 3.879101038 | Y36: 0.0134718949
E37: =C200 -> 2020 | F37: =E200 -> 99.23037155 | G37: 0.5997889889 | H37: 0.04986437531 | I37: 0.1199750876 | J37: =J200 -> 99.41188606 | K37: 0.2658611371 | L37: 0.003662723094 | M37: 0.318590079 | N37: =O200 -> 99.24459592 | O37: 0.2267136038 | P37: 0.3839358767 | Q37: 0.1447545981 | R37: =T200 -> 98.99480477 | S37: 0.02580357857 | T37: 0.8180578551 | U37: 0.1613337972 | V37: =Y200 -> 99.17563284 | W37: 0.1250015813 | X37: 0.6968302779 | Y37: 0.002535301254
B39: RURAL | D39: Estimate | E39: =C299 -> 2000 | F39: =E299 -> 43.40098029 | G39: =F299 -> 3.015747666 | H39: 38.18325574 | I39: 15.40001631 | J39: =J299 -> 52.98929019 | K39: =K299 -> 1.804418106 | L39: 36.29013198 | M39: 8.916159727 | N39: =O299 -> 60.47222769 | O39: =P299 -> 1.621039959 | P39: 30.67851526 | Q39: 7.228217087 | R39: =T299 -> 60.16213279 | S39: =U299 -> 1.263711663 | T39: 31.92223663 | U39: 6.651918919 | V39: =Y299 -> 59.36272582 | W39: =Z299 -> 0.8568653365 | X39: 34.2652042 | Y39: 5.515204648
E40: =C300 -> 2020 | F40: =E300 -> 81.9750663 | G40: 5.696095186 | H40: 0 | I40: 12.32883851 | J40: =J300 -> 90.76569273 | K40: 3.090799269 | L40: 0 | M40: 6.143508001 | N40: =O300 -> 91.87661327 | O40: 2.462877044 | P40: 0 | Q40: 5.660509689 | R40: =T300 -> 93.58922077 | S40: 1.965851015 | T40: 0 | U40: 4.444928218 | V40: =Y300 -> 95.48911235 | W40: 1.378328054 | X40: 0 | Y40: 3.132559596
A97: NATIONAL | D97: Poorest | I97: Poor | N97: Middle | S97: Rich | X97: Richest
D98: Improved | E98: Basic | F98: Limited | G98: Unimproved | H98: Surface water | I98: Improved | J98: Basic | K98: Limited | L98: Unimproved | M98: Surface water | N98: Improved | O98: Basic | P98: Limited | Q98: Unimproved | R98: Surface water | S98: Improved | T98: Basic | U98: Limited | V98: Unimproved | W98: Surface water | X98: Improved | Y98: Basic | Z98: Limited | AA98: Unimproved | AB98: Surface water
A99: Forecast period: | C99: 2000 | D99: =IF((D101+H101)>100,D101*100/(D101+H101),D101) -> 81.93742954 | E99: =D99*AVERAGEIF(E105:E116,">0")/100 -> 79.84672766 | F99: =D99*(100-AVERAGEIF(E105:E116,">0"))/100 -> 2.090701882 | G99: =100-(E99+F99+H99) -> 9.099553398 | H99: =IF((D101+H101)>100,H101*100/(D101+H101),H101) -> 8.963017065 | I99: =IF((I101+M101)>100,I101*100/(I101+M101),I101) -> 75.38242184 | J99: =I99*AVERAGEIF(J105:J116,">0")/100 -> 74.43931431 | K99: =I99*(100-AVERAGEIF(J105:J116,">0"))/100 -> 0.9431075324 | L99: =100-(J99+K99+M99) -> 21.45597459 | M99: =IF((I101+M101)>100,M101*100/(I101+M101),M101) -> 3.161603571 | N99: =IF((N101+R101)>100,N101*100/(N101+R101),N101) -> 70.84997422 | O99: =N99*AVERAGEIF(O105:O116,">0")/100 -> 69.96522812 | P99: =N99*(100-AVERAGEIF(O105:O116,">0"))/100 -> 0.884746101 | Q99: =100-(O99+P99+R99) -> 27.09363549 | R99: =IF((N101+R101)>100,R101*100/(N101+R101),R101) -> 2.056390296 | S99: =IF((S101+W101)>100,S101*100/(S101+W101),S101) -> 93.54745412 | T99: =S99*AVERAGEIF(T105:T116,">0")/100 -> 93.30983205 | U99: =S99*(100-AVERAGEIF(T105:T116,">0"))/100 -> 0.2376220694 | V99: =100-(T99+U99+W99) -> 4.951040372 | W99: =IF((S101+W101)>100,W101*100/(S101+W101),W101) -> 1.501505506 | X99: =IF((X101+AB101)>100,X101*100/(X101+AB101),X101) -> 94.93539276 | Y99: =X99*AVERAGEIF(Y105:Y116,">0")/100 -> 94.83497034 | Z99: =X99*(100-AVERAGEIF(Y105:Y116,">0"))/100 -> 0.1004224148 | AA99: =100-(Y99+Z99+AB99) -> 4.739365353 | AB99: =IF((X101+AB101)>100,AB101*100/(X101+AB101),AB101) -> 0.3252418902
C100: 2020 | D100: =IF((D102+H102)>100,D102*100/(D102+H102),D102) -> 93.02756064 | E100: =D100*AVERAGEIF(E105:E116,">0")/100 -> 90.65388481 | F100: =D100*(100-AVERAGEIF(E105:E116,">0"))/100 -> 2.373675831 | G100: =100-(E100+F100+H100) -> 0.3558542843 | H100: =IF((D102+H102)>100,H102*100/(D102+H102),H102) -> 6.616585072 | I100: =IF((I102+M102)>100,I102*100/(I102+M102),I102) -> 97.32818507 | J100: =I100*AVERAGEIF(J105:J116,">0")/100 -> 96.11051466 | K100: =I100*(100-AVERAGEIF(J105:J116,">0"))/100 -> 1.217670409 | L100: =100-(J100+K100+M100) -> 0 | M100: =IF((I102+M102)>100,M102*100/(I102+M102),M102) -> 2.671814934 | N100: =IF((N102+R102)>100,N102*100/(N102+R102),N102) -> 98.73920297 | O100: =N100*AVERAGEIF(O105:O116,">0")/100 -> 97.50618735 | P100: =N100*(100-AVERAGEIF(O105:O116,">0"))/100 -> 1.233015619 | Q100: =100-(O100+P100+R100) -> 0 | R100: =IF((N102+R102)>100,R102*100/(N102+R102),R102) -> 1.260797033 | S100: =IF((S102+W102)>100,S102*100/(S102+W102),S102) -> 98.40999862 | T100: =S100*AVERAGEIF(T105:T116,">0")/100 -> 98.16002509 | U100: =S100*(100-AVERAGEIF(T105:T116,">0"))/100 -> 0.2499735321 | V100: =100-(T100+U100+W100) -> 0.7706152091 | W100: =IF((S102+W102)>100,W102*100/(S102+W102),W102) -> 0.8193861676 | X100: =IF((X102+AB102)>100,X102*100/(X102+AB102),X102) -> 99.57237369 | Y100: =X100*AVERAGEIF(Y105:Y116,">0")/100 -> 99.46704629 | Z100: =X100*(100-AVERAGEIF(Y105:Y116,">0"))/100 -> 0.1053274013 | AA100: =100-(Y100+Z100+AB100) -> 0.3295180592 | AB100: =IF((X102+AB102)>100,AB102*100/(X102+AB102),AB102) -> 0.09810825239
A101: Regression period: | C101: =MinRegYear(C99,C105:C116) -> 2000 | D101: =IF(MAX(C105:C116)-MIN(C105:C116)<5,AVERAGEIF(C105:C116,">0",D105:D116), IF(FORECAST($C101,D$105:D$116,$C$105:$C$116)<0,0, IF(FORECAST($C101,D$105:D$116,$C$105:$C$116)>100,100, FORECAST($C101,D$105:D$116,$C$105:$C$116)))) -> 81.93742954 | H101: =IF(MAX(C105:C116)-MIN(C105:C116)<5,AVERAGEIF(C105:C116,">0",H105:H116), IF(FORECAST($C101,H$105:H$116,$C$105:$C$116)<0,0, IF(FORECAST($C101,H$105:H$116,$C$105:$C$116)>100,100, FORECAST($C101,H$105:H$116,$C$105:$C$116)))) -> 8.963017065 | I101: =IF(MAX(C105:C116)-MIN(C105:C116)<5,AVERAGEIF(C105:C116,">0",I105:I116), IF(FORECAST($C101,I$105:I$116,$C$105:$C$116)<0,0, IF(FORECAST($C101,I$105:I$116,$C$105:$C$116)>100,100, FORECAST($C101,I$105:I$116,$C$105:$C$116)))) -> 75.38242184 | M101: =IF(MAX(C105:C116)-MIN(C105:C116)<5,AVERAGEIF(C105:C116,">0",M105:M116), IF(FORECAST($C101,M$105:M$116,$C$105:$C$116)<0,0, IF(FORECAST($C101,M$105:M$116,$C$105:$C$116)>100,100, FORECAST($C101,M$105:M$116,$C$105:$C$116)))) -> 3.161603571 | N101: =IF(MAX(C105:C116)-MIN(C105:C116)<5,AVERAGEIF(C105:C116,">0",N105:N116), IF(FORECAST($C101,N$105:N$116,$C$105:$C$116)<0,0, IF(FORECAST($C101,N$105:N$116,$C$105:$C$116)>100,100, FORECAST($C101,N$105:N$116,$C$105:$C$116)))) -> 70.84997422 | R101: =IF(MAX(C105:C116)-MIN(C105:C116)<5,AVERAGEIF(C105:C116,">0",R105:R116), IF(FORECAST($C101,R$105:R$116,$C$105:$C$116)<0,0, IF(FORECAST($C101,R$105:R$116,$C$105:$C$116)>100,100, FORECAST($C101,R$105:R$116,$C$105:$C$116)))) -> 2.056390296 | S101: =IF(MAX(C105:C116)-MIN(C105:C116)<5,AVERAGEIF(C105:C116,">0",S105:S116), IF(FORECAST($C101,S$105:S$116,$C$105:$C$116)<0,0, IF(FORECAST($C101,S$105:S$116,$C$105:$C$116)>100,100, FORECAST($C101,S$105:S$116,$C$105:$C$116)))) -> 93.54745412 | W101: =IF(MAX(C105:C116)-MIN(C105:C116)<5,AVERAGEIF(C105:C116,">0",W105:W116), IF(FORECAST($C101,W$105:W$116,$C$105:$C$116)<0,0, IF(FORECAST($C101,W$105:W$116,$C$105:$C$116)>100,100, FORECAST($C101,W$105:W$116,$C$105:$C$116)))) -> 1.501505506 | X101: =IF(MAX(C105:C116)-MIN(C105:C116)<5,AVERAGEIF(C105:C116,">0",X105:X116), IF(FORECAST($C101,X$105:X$116,$C$105:$C$116)<0,0, IF(FORECAST($C101,X$105:X$116,$C$105:$C$116)>100,100, FORECAST($C101,X$105:X$116,$C$105:$C$116)))) -> 94.93539276 | AB101: =IF(MAX(C105:C116)-MIN(C105:C116)<5,AVERAGEIF(C105:C116,">0",AB105:AB116), IF(FORECAST($C101,AB$105:AB$116,$C$105:$C$116)<0,0, IF(FORECAST($C101,AB$105:AB$116,$C$105:$C$116)>100,100, FORECAST($C101,AB$105:AB$116,$C$105:$C$116)))) -> 0.3252418902
C102: =MaxRegYear(C100,C105:C116) -> 2020 | D102: =IF(MAX(C105:C116)-MIN(C105:C116)<5,AVERAGEIF(C105:C116,">0",D105:D116), IF(FORECAST($C102,D$105:D$116,$C$105:$C$116)<0,0, IF(FORECAST($C102,D$105:D$116,$C$105:$C$116)>100,100, FORECAST($C102,D$105:D$116,$C$105:$C$116)))) -> 93.02756064 | H102: =IF(MAX(C105:C116)-MIN(C105:C116)<5,AVERAGEIF(C105:C116,">0",H105:H116), IF(FORECAST($C102,H$105:H$116,$C$105:$C$116)<0,0, IF(FORECAST($C102,H$105:H$116,$C$105:$C$116)>100,100, FORECAST($C102,H$105:H$116,$C$105:$C$116)))) -> 6.616585072 | I102: =IF(MAX(C105:C116)-MIN(C105:C116)<5,AVERAGEIF(C105:C116,">0",I105:I116), IF(FORECAST($C102,I$105:I$116,$C$105:$C$116)<0,0, IF(FORECAST($C102,I$105:I$116,$C$105:$C$116)>100,100, FORECAST($C102,I$105:I$116,$C$105:$C$116)))) -> 100 | M102: =IF(MAX(C105:C116)-MIN(C105:C116)<5,AVERAGEIF(C105:C116,">0",M105:M116), IF(FORECAST($C102,M$105:M$116,$C$105:$C$116)<0,0, IF(FORECAST($C102,M$105:M$116,$C$105:$C$116)>100,100, FORECAST($C102,M$105:M$116,$C$105:$C$116)))) -> 2.745160543 | N102: =IF(MAX(C105:C116)-MIN(C105:C116)<5,AVERAGEIF(C105:C116,">0",N105:N116), IF(FORECAST($C102,N$105:N$116,$C$105:$C$116)<0,0, IF(FORECAST($C102,N$105:N$116,$C$105:$C$116)>100,100, FORECAST($C102,N$105:N$116,$C$105:$C$116)))) -> 100 | R102: =IF(MAX(C105:C116)-MIN(C105:C116)<5,AVERAGEIF(C105:C116,">0",R105:R116), IF(FORECAST($C102,R$105:R$116,$C$105:$C$116)<0,0, IF(FORECAST($C102,R$105:R$116,$C$105:$C$116)>100,100, FORECAST($C102,R$105:R$116,$C$105:$C$116)))) -> 1.276896101 | S102: =IF(MAX(C105:C116)-MIN(C105:C116)<5,AVERAGEIF(C105:C116,">0",S105:S116), IF(FORECAST($C102,S$105:S$116,$C$105:$C$116)<0,0, IF(FORECAST($C102,S$105:S$116,$C$105:$C$116)>100,100, FORECAST($C102,S$105:S$116,$C$105:$C$116)))) -> 98.40999862 | W102: =IF(MAX(C105:C116)-MIN(C105:C116)<5,AVERAGEIF(C105:C116,">0",W105:W116), IF(FORECAST($C102,W$105:W$116,$C$105:$C$116)<0,0, IF(FORECAST($C102,W$105:W$116,$C$105:$C$116)>100,100, FORECAST($C102,W$105:W$116,$C$105:$C$116)))) -> 0.8193861676 | X102: =IF(MAX(C105:C116)-MIN(C105:C116)<5,AVERAGEIF(C105:C116,">0",X105:X116), IF(FORECAST($C102,X$105:X$116,$C$105:$C$116)<0,0, IF(FORECAST($C102,X$105:X$116,$C$105:$C$116)>100,100, FORECAST($C102,X$105:X$116,$C$105:$C$116)))) -> 99.57237369 | AB102: =IF(MAX(C105:C116)-MIN(C105:C116)<5,AVERAGEIF(C105:C116,">0",AB105:AB116), IF(FORECAST($C102,AB$105:AB$116,$C$105:$C$116)<0,0, IF(FORECAST($C102,AB$105:AB$116,$C$105:$C$116)>100,100, FORECAST($C102,AB$105:AB$116,$C$105:$C$116)))) -> 0.09810825239
B104: Survey | C104: Year | D104: Improved | E104: % Improved < = 30min | H104: Surface water | I104: Improved | J104: % Improved < = 30min | M104: Surface water | N104: Improved | O104: % Improved < = 30min | R104: Surface water | S104: Improved | T104: % Improved < = 30min | W104: Surface water | X104: Improved | Y104: % Improved < = 30min | AB104: Surface water
B105: MICS00 | C105: 2000 | D105: =IF(ISERROR(INDIRECT(CONCATENATE($B105,"!C16"))),"",INDIRECT(CONCATENATE($B105,"!C16"))) -> 96.13051778 | E105: =IF(ISERROR(INDIRECT(CONCATENATE($B105,"!C23"))),"",INDIRECT(CONCATENATE($B105,"!C23"))) -> 99.09258189 | H105: =IF(ISERROR(INDIRECT(CONCATENATE($B105,"!C21"))),"",INDIRECT(CONCATENATE($B105,"!C21"))) -> 0 | I105: =IF(ISERROR(INDIRECT(CONCATENATE($B105,"!D16"))),"",INDIRECT(CONCATENATE($B105,"!D16"))) -> 74.62999899 | J105: =IF(ISERROR(INDIRECT(CONCATENATE($B105,"!D23"))),"",INDIRECT(CONCATENATE($B105,"!D23"))) -> 97.83846583 | M105: =IF(ISERROR(INDIRECT(CONCATENATE($B105,"!D21"))),"",INDIRECT(CONCATENATE($B105,"!D21"))) -> 0 | N105: =IF(ISERROR(INDIRECT(CONCATENATE($B105,"!E16"))),"",INDIRECT(CONCATENATE($B105,"!E16"))) -> 67.18034914 | O105: =IF(ISERROR(INDIRECT(CONCATENATE($B105,"!E23"))),"",INDIRECT(CONCATENATE($B105,"!E23"))) -> 96.6627132 | R105: =IF(ISERROR(INDIRECT(CONCATENATE($B105,"!E21"))),"",INDIRECT(CONCATENATE($B105,"!E21"))) -> 0 | S105: =IF(ISERROR(INDIRECT(CONCATENATE($B105,"!F16"))),"",INDIRECT(CONCATENATE($B105,"!F16"))) -> 98.88182859 | T105: =IF(ISERROR(INDIRECT(CONCATENATE($B105,"!F23"))),"",INDIRECT(CONCATENATE($B105,"!F23"))) -> 99.47046141 | W105: =IF(ISERROR(INDIRECT(CONCATENATE($B105,"!F21"))),"",INDIRECT(CONCATENATE($B105,"!F21"))) -> 0 | X105: =IF(ISERROR(INDIRECT(CONCATENATE($B105,"!G16"))),"",INDIRECT(CONCATENATE($B105,"!G16"))) -> 98.51499021 | Y105: =IF(ISERROR(INDIRECT(CONCATENATE($B105,"!G23"))),"",INDIRECT(CONCATENATE($B105,"!G23"))) -> 99.70254693 | AB105: =IF(ISERROR(INDIRECT(CONCATENATE($B105,"!G221"))),"",INDIRECT(CONCATENATE($B105,"!G21"))) -> 0
B106: MICS06 | C106: 2006 | D106: 62.18808747 | E106: 97.41775047 | H106: 20.81255942 | I106: 82.817639 | J106: 99.12484613 | M106: 6.748069299 | N106: 83.52308316 | O106: 99.65126478 | R106: 4.748267433 | S106: 85.55907036 | T106: 99.80904128 | W106: 3.564492888 | X106: 89.54876802 | Y106: 99.93719611 | AB106: 0.8034836946
B107: MICS11 | C107: 2011 | D107: 91.1 | E107: 94.8 | H107: 9.2 | I107: 95.3 | J107: 98.4 | M107: 4.7 | N107: 98 | O107: 98.8 | R107: 1.9 | S107: 98.7 | T107: 99.8 | W107: 1.1 | X107: 99.9 | Y107: 100 | AB107: 0.1
B108: MICS18 | C108: 2018 | D108: 97.73884234 | E108: 98.48333389 | H108: 1.733252851 | I108: 99.3093746 | J108: 99.63229838 | M108: 0.4695696878 | N108: 99.54611742 | O108: 99.89098223 | R108: 0.21317891 | S108: 99.55837041 | T108: 99.90444799 | W108: 0.1478202943 | X108: 99.89252943 | Y108: 99.93713799 | AB108: 0
D111: =IF(ISERROR(INDIRECT(CONCATENATE($B111,"!C16"))),"",INDIRECT(CONCATENATE($B111,"!C16"))) ->  | E111: =IF(ISERROR(INDIRECT(CONCATENATE($B111,"!C23"))),"",INDIRECT(CONCATENATE($B111,"!C23"))) ->  | H111: =IF(ISERROR(INDIRECT(CONCATENATE($B111,"!C21"))),"",INDIRECT(CONCATENATE($B111,"!C21"))) ->  | I111: =IF(ISERROR(INDIRECT(CONCATENATE($B111,"!D16"))),"",INDIRECT(CONCATENATE($B111,"!D16"))) ->  | J111: =IF(ISERROR(INDIRECT(CONCATENATE($B111,"!D23"))),"",INDIRECT(CONCATENATE($B111,"!D23"))) ->  | M111: =IF(ISERROR(INDIRECT(CONCATENATE($B111,"!D21"))),"",INDIRECT(CONCATENATE($B111,"!D21"))) ->  | N111: =IF(ISERROR(INDIRECT(CONCATENATE($B111,"!E16"))),"",INDIRECT(CONCATENATE($B111,"!E16"))) ->  | O111: =IF(ISERROR(INDIRECT(CONCATENATE($B111,"!E23"))),"",INDIRECT(CONCATENATE($B111,"!E23"))) ->  | R111: =IF(ISERROR(INDIRECT(CONCATENATE($B111,"!E21"))),"",INDIRECT(CONCATENATE($B111,"!E21"))) ->  | S111: =IF(ISERROR(INDIRECT(CONCATENATE($B111,"!F16"))),"",INDIRECT(CONCATENATE($B111,"!F16"))) ->  | T111: =IF(ISERROR(INDIRECT(CONCATENATE($B111,"!F23"))),"",INDIRECT(CONCATENATE($B111,"!F23"))) ->  | W111: =IF(ISERROR(INDIRECT(CONCATENATE($B111,"!F21"))),"",INDIRECT(CONCATENATE($B111,"!F21"))) ->  | X111: =IF(ISERROR(INDIRECT(CONCATENATE($B111,"!G16"))),"",INDIRECT(CONCATENATE($B111,"!G16"))) ->  | Y111: =IF(ISERROR(INDIRECT(CONCATENATE($B111,"!G23"))),"",INDIRECT(CONCATENATE($B111,"!G23"))) ->  | AB111: =IF(ISERROR(INDIRECT(CONCATENATE($B111,"!G221"))),"",INDIRECT(CONCATENATE($B111,"!G21"))) -> 
D112: =IF(ISERROR(INDIRECT(CONCATENATE($B112,"!C16"))),"",INDIRECT(CONCATENATE($B112,"!C16"))) ->  | E112: =IF(ISERROR(INDIRECT(CONCATENATE($B112,"!C23"))),"",INDIRECT(CONCATENATE($B112,"!C23"))) ->  | H112: =IF(ISERROR(INDIRECT(CONCATENATE($B112,"!C21"))),"",INDIRECT(CONCATENATE($B112,"!C21"))) ->  | I112: =IF(ISERROR(INDIRECT(CONCATENATE($B112,"!D16"))),"",INDIRECT(CONCATENATE($B112,"!D16"))) ->  | J112: =IF(ISERROR(INDIRECT(CONCATENATE($B112,"!D23"))),"",INDIRECT(CONCATENATE($B112,"!D23"))) ->  | M112: =IF(ISERROR(INDIRECT(CONCATENATE($B112,"!D21"))),"",INDIRECT(CONCATENATE($B112,"!D21"))) ->  | N112: =IF(ISERROR(INDIRECT(CONCATENATE($B112,"!E16"))),"",INDIRECT(CONCATENATE($B112,"!E16"))) ->  | O112: =IF(ISERROR(INDIRECT(CONCATENATE($B112,"!E23"))),"",INDIRECT(CONCATENATE($B112,"!E23"))) ->  | R112: =IF(ISERROR(INDIRECT(CONCATENATE($B112,"!E21"))),"",INDIRECT(CONCATENATE($B112,"!E21"))) ->  | S112: =IF(ISERROR(INDIRECT(CONCATENATE($B112,"!F16"))),"",INDIRECT(CONCATENATE($B112,"!F16"))) ->  | T112: =IF(ISERROR(INDIRECT(CONCATENATE($B112,"!F23"))),"",INDIRECT(CONCATENATE($B112,"!F23"))) ->  | W112: =IF(ISERROR(INDIRECT(CONCATENATE($B112,"!F21"))),"",INDIRECT(CONCATENATE($B112,"!F21"))) ->  | X112: =IF(ISERROR(INDIRECT(CONCATENATE($B112,"!G16"))),"",INDIRECT(CONCATENATE($B112,"!G16"))) ->  | Y112: =IF(ISERROR(INDIRECT(CONCATENATE($B112,"!G23"))),"",INDIRECT(CONCATENATE($B112,"!G23"))) ->  | AB112: =IF(ISERROR(INDIRECT(CONCATENATE($B112,"!G221"))),"",INDIRECT(CONCATENATE($B112,"!G21"))) -> 
B118: =CONCATENATE("National use of drinking water sources, ",C99,"–",C100) -> National use of drinking water sources, 2000–2020 | S118: Data points used for regression
E153: =IF(ISERROR(INDIRECT(CONCATENATE($B153,"!M18"))),"",INDIRECT(CONCATENATE($B153,"!M18"))) ->  | F153: =IF(ISERROR(INDIRECT(CONCATENATE($B153,"!M19"))),"",INDIRECT(CONCATENATE($B153,"!M19"))) ->  | G153: =IF(ISERROR(INDIRECT(CONCATENATE($B153,"!M20"))),"",INDIRECT(CONCATENATE($B153,"!M20"))) ->  | H153: =IF(ISERROR(INDIRECT(CONCATENATE($B153,"!M21"))),"",INDIRECT(CONCATENATE($B153,"!M21"))) ->  | J153: =IF(ISERROR(INDIRECT(CONCATENATE($B153,"!N18"))),"",INDIRECT(CONCATENATE($B153,"!N18"))) ->  | K153: =IF(ISERROR(INDIRECT(CONCATENATE($B153,"!N19"))),"",INDIRECT(CONCATENATE($B153,"!N19"))) ->  | L153: =IF(ISERROR(INDIRECT(CONCATENATE($B153,"!N20"))),"",INDIRECT(CONCATENATE($B153,"!N20"))) ->  | M153: =IF(ISERROR(INDIRECT(CONCATENATE($B153,"!N21"))),"",INDIRECT(CONCATENATE($B153,"!N21"))) ->  | O153: =IF(ISERROR(INDIRECT(CONCATENATE($B153,"!O18"))),"",INDIRECT(CONCATENATE($B153,"!O18"))) ->  | P153: =IF(ISERROR(INDIRECT(CONCATENATE($B153,"!O19"))),"",INDIRECT(CONCATENATE($B153,"!O19"))) ->  | Q153: =IF(ISERROR(INDIRECT(CONCATENATE($B153,"!O20"))),"",INDIRECT(CONCATENATE($B153,"!O20"))) ->  | R153: =IF(ISERROR(INDIRECT(CONCATENATE($B153,"!O21"))),"",INDIRECT(CONCATENATE($B153,"!O21"))) ->  | T153: =IF(ISERROR(INDIRECT(CONCATENATE($B153,"!P18"))),"",INDIRECT(CONCATENATE($B153,"!P18"))) ->  | U153: =IF(ISERROR(INDIRECT(CONCATENATE($B153,"!P19"))),"",INDIRECT(CONCATENATE($B153,"!P19"))) ->  | V153: =IF(ISERROR(INDIRECT(CONCATENATE($B153,"!P20"))),"",INDIRECT(CONCATENATE($B153,"!P20"))) ->  | W153: =IF(ISERROR(INDIRECT(CONCATENATE($B153,"!P21"))),"",INDIRECT(CONCATENATE($B153,"!P21"))) ->  | Y153: =IF(ISERROR(INDIRECT(CONCATENATE($B153,"!Q18"))),"",INDIRECT(CONCATENATE($B153,"!Q18"))) ->  | Z153: =IF(ISERROR(INDIRECT(CONCATENATE($B153,"!Q19"))),"",INDIRECT(CONCATENATE($B153,"!Q19"))) ->  | AA153: =IF(ISERROR(INDIRECT(CONCATENATE($B153,"!Q20"))),"",INDIRECT(CONCATENATE($B153,"!Q20"))) ->  | AB153: =IF(ISERROR(INDIRECT(CONCATENATE($B153,"!Q21"))),"",INDIRECT(CONCATENATE($B153,"!Q1"))) -> 
A197: URBAN | D197: Poorest | I197: Poor | N197: Middle | S197: Rich | X197: Richest
D198: Improved | E198: Basic | F198: Limited | G198: Unimproved | H198: Surface water | I198: Improved | J198: Basic | K198: Limited | L198: Unimproved | M198: Surface water | N198: Improved | O198: Basic | P198: Limited | Q198: Unimproved | R198: Surface water | S198: Improved | T198: Basic | U198: Limited | V198: Unimproved | W198: Surface water | X198: Improved | Y198: Basic | Z198: Limited | AA198: Unimproved | AB198: Surface water
A199: Forecast period: | C199: 2000 | D199: =IF((D201+H201)>100,D201*100/(D201+H201),D201) -> 96.58213314 | E199: =D199*AVERAGEIF(E205:E216,">0")/100 -> 96.00185861 | F199: =D199*(100-AVERAGEIF(E205:E216,">0"))/100 -> 0.580274535 | G199: =100-(E199+F199+H199) -> 3.172509039 | H199: =IF((D201+H201)>100,H201*100/(D201+H201),H201) -> 0.2453578184 | I199: =IF((I201+M201)>100,I201*100/(I201+M201),I201) -> 94.77440331 | J199: =I199*AVERAGEIF(J205:J216,">0")/100 -> 94.5216204 | K199: =I199*(100-AVERAGEIF(J205:J216,">0"))/100 -> 0.2527829063 | L199: =100-(J199+K199+M199) -> 5.101323916 | M199: =IF((I201+M201)>100,M201*100/(I201+M201),M201) -> 0.124272773 | N199: =IF((N201+R201)>100,N201*100/(N201+R201),N201) -> 95.82860771 | O199: =N199*AVERAGEIF(O205:O216,">0")/100 -> 95.6101965 | P199: =N199*(100-AVERAGEIF(O205:O216,">0"))/100 -> 0.2184112092 | Q199: =100-(O199+P199+R199) -> 4.125412917 | R199: =IF((N201+R201)>100,R201*100/(N201+R201),R201) -> 0.04597937065 | S199: =IF((S201+W201)>100,S201*100/(S201+W201),S201) -> 96.80563053 | T199: =S199*AVERAGEIF(T205:T216,">0")/100 -> 96.78040415 | U199: =S199*(100-AVERAGEIF(T205:T216,">0"))/100 -> 0.02522638201 | V199: =100-(T199+U199+W199) -> 3.121399684 | W199: =IF((S201+W201)>100,W201*100/(S201+W201),W201) -> 0.07296978487 | X199: =IF((X201+AB201)>100,X201*100/(X201+AB201),X201) -> 96.10742707 | Y199: =X199*AVERAGEIF(Y205:Y216,">0")/100 -> 95.98644516 | Z199: =X199*(100-AVERAGEIF(Y205:Y216,">0"))/100 -> 0.1209819094 | AA199: =100-(Y199+Z199+AB199) -> 3.879101038 | AB199: =IF((X201+AB201)>100,AB201*100/(X201+AB201),AB201) -> 0.0134718949
C200: 2020 | D200: =IF((D202+H202)>100,D202*100/(D202+H202),D202) -> 99.83016054 | E200: =D200*AVERAGEIF(E205:E216,">0")/100 -> 99.23037155 | F200: =D200*(100-AVERAGEIF(E205:E216,">0"))/100 -> 0.5997889889 | G200: =100-(E200+F200+H200) -> 0.04986437531 | H200: =IF((D202+H202)>100,H202*100/(D202+H202),H202) -> 0.1199750876 | I200: =IF((I202+M202)>100,I202*100/(I202+M202),I202) -> 99.6777472 | J200: =I200*AVERAGEIF(J205:J216,">0")/100 -> 99.41188606 | K200: =I200*(100-AVERAGEIF(J205:J216,">0"))/100 -> 0.2658611371 | L200: =100-(J200+K200+M200) -> 0.003662723094 | M200: =IF((I202+M202)>100,M202*100/(I202+M202),M202) -> 0.318590079 | N200: =IF((N202+R202)>100,N202*100/(N202+R202),N202) -> 99.47130953 | O200: =N200*AVERAGEIF(O205:O216,">0")/100 -> 99.24459592 | P200: =N200*(100-AVERAGEIF(O205:O216,">0"))/100 -> 0.2267136038 | Q200: =100-(O200+P200+R200) -> 0.3839358767 | R200: =IF((N202+R202)>100,R202*100/(N202+R202),R202) -> 0.1447545981 | S200: =IF((S202+W202)>100,S202*100/(S202+W202),S202) -> 99.02060835 | T200: =S200*AVERAGEIF(T205:T216,">0")/100 -> 98.99480477 | U200: =S200*(100-AVERAGEIF(T205:T216,">0"))/100 -> 0.02580357857 | V200: =100-(T200+U200+W200) -> 0.8180578551 | W200: =IF((S202+W202)>100,W202*100/(S202+W202),W202) -> 0.1613337972 | X200: =IF((X202+AB202)>100,X202*100/(X202+AB202),X202) -> 99.30063442 | Y200: =X200*AVERAGEIF(Y205:Y216,">0")/100 -> 99.17563284 | Z200: =X200*(100-AVERAGEIF(Y205:Y216,">0"))/100 -> 0.1250015813 | AA200: =100-(Y200+Z200+AB200) -> 0.6968302779 | AB200: =IF((X202+AB202)>100,AB202*100/(X202+AB202),AB202) -> 0.002535301254
A201: Regression period: | C201: =MinRegYear(C199,C205:C216) -> 2000 | D201: =IF(MAX(C205:C216)-MIN(C205:C216)<5,AVERAGEIF(C205:C216,">0",D205:D216), IF(FORECAST($C201,D$205:D$216,$C$205:$C$216)<0,0, IF(FORECAST($C201,D$205:D$216,$C$205:$C$216)>100,100, FORECAST($C201,D$205:D$216,$C$205:$C$216)))) -> 96.58213314 | H201: =IF(MAX(C205:C216)-MIN(C205:C216)<5,AVERAGEIF(C205:C216,">0",H205:H216), IF(FORECAST($C201,H$205:H$216,$C$205:$C$216)<0,0, IF(FORECAST($C201,H$205:H$216,$C$205:$C$216)>100,100, FORECAST($C201,H$205:H$216,$C$205:$C$216)))) -> 0.2453578184 | I201: =IF(MAX(C205:C216)-MIN(C205:C216)<5,AVERAGEIF(C205:C216,">0",I205:I216), IF(FORECAST($C201,I$205:I$216,$C$205:$C$216)<0,0, IF(FORECAST($C201,I$205:I$216,$C$205:$C$216)>100,100, FORECAST($C201,I$205:I$216,$C$205:$C$216)))) -> 94.77440331 | M201: =IF(MAX(C205:C216)-MIN(C205:C216)<5,AVERAGEIF(C205:C216,">0",M205:M216), IF(FORECAST($C201,M$205:M$216,$C$205:$C$216)<0,0, IF(FORECAST($C201,M$205:M$216,$C$205:$C$216)>100,100, FORECAST($C201,M$205:M$216,$C$205:$C$216)))) -> 0.124272773 | N201: =IF(MAX(C205:C216)-MIN(C205:C216)<5,AVERAGEIF(C205:C216,">0",N205:N216), IF(FORECAST($C201,N$205:N$216,$C$205:$C$216)<0,0, IF(FORECAST($C201,N$205:N$216,$C$205:$C$216)>100,100, FORECAST($C201,N$205:N$216,$C$205:$C$216)))) -> 95.82860771 | R201: =IF(MAX(C205:C216)-MIN(C205:C216)<5,AVERAGEIF(C205:C216,">0",R205:R216), IF(FORECAST($C201,R$205:R$216,$C$205:$C$216)<0,0, IF(FORECAST($C201,R$205:R$216,$C$205:$C$216)>100,100, FORECAST($C201,R$205:R$216,$C$205:$C$216)))) -> 0.04597937065 | S201: =IF(MAX(C205:C216)-MIN(C205:C216)<5,AVERAGEIF(C205:C216,">0",S205:S216), IF(FORECAST($C201,S$205:S$216,$C$205:$C$216)<0,0, IF(FORECAST($C201,S$205:S$216,$C$205:$C$216)>100,100, FORECAST($C201,S$205:S$216,$C$205:$C$216)))) -> 96.80563053 | W201: =IF(MAX(C205:C216)-MIN(C205:C216)<5,AVERAGEIF(C205:C216,">0",W205:W216), IF(FORECAST($C201,W$205:W$216,$C$205:$C$216)<0,0, IF(FORECAST($C201,W$205:W$216,$C$205:$C$216)>100,100, FORECAST($C201,W$205:W$216,$C$205:$C$216)))) -> 0.07296978487 | X201: =IF(MAX(C205:C216)-MIN(C205:C216)<5,AVERAGEIF(C205:C216,">0",X205:X216), IF(FORECAST($C201,X$205:X$216,$C$205:$C$216)<0,0, IF(FORECAST($C201,X$205:X$216,$C$205:$C$216)>100,100, FORECAST($C201,X$205:X$216,$C$205:$C$216)))) -> 96.10742707 | AB201: =IF(MAX(C205:C216)-MIN(C205:C216)<5,AVERAGEIF(C205:C216,">0",AB205:AB216), IF(FORECAST($C201,AB$205:AB$216,$C$205:$C$216)<0,0, IF(FORECAST($C201,AB$205:AB$216,$C$205:$C$216)>100,100, FORECAST($C201,AB$205:AB$216,$C$205:$C$216)))) -> 0.0134718949
C202: =MaxRegYear(C200,C205:C216) -> 2020 | D202: =IF(MAX(C205:C216)-MIN(C205:C216)<5,AVERAGEIF(C205:C216,">0",D205:D216), IF(FORECAST($C202,D$205:D$216,$C$205:$C$216)<0,0, IF(FORECAST($C202,D$205:D$216,$C$205:$C$216)>100,100, FORECAST($C202,D$205:D$216,$C$205:$C$216)))) -> 99.83016054 | H202: =IF(MAX(C205:C216)-MIN(C205:C216)<5,AVERAGEIF(C205:C216,">0",H205:H216), IF(FORECAST($C202,H$205:H$216,$C$205:$C$216)<0,0, IF(FORECAST($C202,H$205:H$216,$C$205:$C$216)>100,100, FORECAST($C202,H$205:H$216,$C$205:$C$216)))) -> 0.1199750876 | I202: =IF(MAX(C205:C216)-MIN(C205:C216)<5,AVERAGEIF(C205:C216,">0",I205:I216), IF(FORECAST($C202,I$205:I$216,$C$205:$C$216)<0,0, IF(FORECAST($C202,I$205:I$216,$C$205:$C$216)>100,100, FORECAST($C202,I$205:I$216,$C$205:$C$216)))) -> 99.6777472 | M202: =IF(MAX(C205:C216)-MIN(C205:C216)<5,AVERAGEIF(C205:C216,">0",M205:M216), IF(FORECAST($C202,M$205:M$216,$C$205:$C$216)<0,0, IF(FORECAST($C202,M$205:M$216,$C$205:$C$216)>100,100, FORECAST($C202,M$205:M$216,$C$205:$C$216)))) -> 0.318590079 | N202: =IF(MAX(C205:C216)-MIN(C205:C216)<5,AVERAGEIF(C205:C216,">0",N205:N216), IF(FORECAST($C202,N$205:N$216,$C$205:$C$216)<0,0, IF(FORECAST($C202,N$205:N$216,$C$205:$C$216)>100,100, FORECAST($C202,N$205:N$216,$C$205:$C$216)))) -> 99.47130953 | R202: =IF(MAX(C205:C216)-MIN(C205:C216)<5,AVERAGEIF(C205:C216,">0",R205:R216), IF(FORECAST($C202,R$205:R$216,$C$205:$C$216)<0,0, IF(FORECAST($C202,R$205:R$216,$C$205:$C$216)>100,100, FORECAST($C202,R$205:R$216,$C$205:$C$216)))) -> 0.1447545981 | S202: =IF(MAX(C205:C216)-MIN(C205:C216)<5,AVERAGEIF(C205:C216,">0",S205:S216), IF(FORECAST($C202,S$205:S$216,$C$205:$C$216)<0,0, IF(FORECAST($C202,S$205:S$216,$C$205:$C$216)>100,100, FORECAST($C202,S$205:S$216,$C$205:$C$216)))) -> 99.02060835 | W202: =IF(MAX(C205:C216)-MIN(C205:C216)<5,AVERAGEIF(C205:C216,">0",W205:W216), IF(FORECAST($C202,W$205:W$216,$C$205:$C$216)<0,0, IF(FORECAST($C202,W$205:W$216,$C$205:$C$216)>100,100, FORECAST($C202,W$205:W$216,$C$205:$C$216)))) -> 0.1613337972 | X202: =IF(MAX(C205:C216)-MIN(C205:C216)<5,AVERAGEIF(C205:C216,">0",X205:X216), IF(FORECAST($C202,X$205:X$216,$C$205:$C$216)<0,0, IF(FORECAST($C202,X$205:X$216,$C$205:$C$216)>100,100, FORECAST($C202,X$205:X$216,$C$205:$C$216)))) -> 99.30063442 | AB202: =IF(MAX(C205:C216)-MIN(C205:C216)<5,AVERAGEIF(C205:C216,">0",AB205:AB216), IF(FORECAST($C202,AB$205:AB$216,$C$205:$C$216)<0,0, IF(FORECAST($C202,AB$205:AB$216,$C$205:$C$216)>100,100, FORECAST($C202,AB$205:AB$216,$C$205:$C$216)))) -> 0.002535301254
B204: Survey | C204: Year | D204: Improved | E204: % Improved < = 30min | H204: Surface water | I204: Improved | J204: % Improved < = 30min | M204: Surface water | N204: Improved | O204: % Improved < = 30min | R204: Surface water | S204: Improved | T204: % Improved < = 30min | W204: Surface water | X204: Improved | Y204: % Improved < = 30min | AB204: Surface water
B205: MICS00 | C205: 2000 | D205: =IF(ISERROR(INDIRECT(CONCATENATE($B205,"!H16"))),"",INDIRECT(CONCATENATE($B205,"!H16"))) -> 98.27045502 | E205: =IF(ISERROR(INDIRECT(CONCATENATE($B205,"!H23"))),"",INDIRECT(CONCATENATE($B205,"!H23"))) -> 99.04082681 | H205: =IF(ISERROR(INDIRECT(CONCATENATE($B205,"!H21"))),"",INDIRECT(CONCATENATE($B205,"!H21"))) -> 0 | I205: =IF(ISERROR(INDIRECT(CONCATENATE($B205,"!I16"))),"",INDIRECT(CONCATENATE($B205,"!I16"))) -> 97.23578481 | J205: =IF(ISERROR(INDIRECT(CONCATENATE($B205,"!I23"))),"",INDIRECT(CONCATENATE($B205,"!I23"))) -> 99.17669317 | M205: =IF(ISERROR(INDIRECT(CONCATENATE($B205,"!I21"))),"",INDIRECT(CONCATENATE($B205,"!I21"))) -> 0 | N205: =IF(ISERROR(INDIRECT(CONCATENATE($B205,"!J16"))),"",INDIRECT(CONCATENATE($B205,"!J16"))) -> 98.80002239 | O205: =IF(ISERROR(INDIRECT(CONCATENATE($B205,"!J23"))),"",INDIRECT(CONCATENATE($B205,"!J23"))) -> 99.25791881 | R205: =IF(ISERROR(INDIRECT(CONCATENATE($B205,"!J21"))),"",INDIRECT(CONCATENATE($B205,"!J21"))) -> 0 | S205: =IF(ISERROR(INDIRECT(CONCATENATE($B205,"!K16"))),"",INDIRECT(CONCATENATE($B205,"!K16"))) -> 99.60727837 | T205: =IF(ISERROR(INDIRECT(CONCATENATE($B205,"!K23"))),"",INDIRECT(CONCATENATE($B205,"!K23"))) -> 99.89576482 | W205: =IF(ISERROR(INDIRECT(CONCATENATE($B205,"!K21"))),"",INDIRECT(CONCATENATE($B205,"!K21"))) -> 0 | X205: =IF(ISERROR(INDIRECT(CONCATENATE($B205,"!L16"))),"",INDIRECT(CONCATENATE($B205,"!L16"))) -> 99.66885644 | Y205: =IF(ISERROR(INDIRECT(CONCATENATE($B205,"!L23"))),"",INDIRECT(CONCATENATE($B205,"!L23"))) -> 99.68483362 | AB205: =IF(ISERROR(INDIRECT(CONCATENATE($B205,"!L221"))),"",INDIRECT(CONCATENATE($B205,"!L21"))) -> 0
B206: MICS06 | C206: 2006 | D206: 94.30571166 | E206: 99.86745313 | H206: 0.5620114946 | I206: 91.66155898 | J206: 99.97705303 | M206: 0.03714637751 | N206: 91.43301757 | O206: 99.9746315 | R206: 0.02809267991 | S206: 92.46490864 | T206: 100 | W206: 0.04651616098 | X206: 90.47706503 | Y206: 99.90227287 | AB206: 0.03474854072
B207: MICS11 | C207: 2011 | D207: 99.6 | E207: 98.7 | H207: 0.2 | I207: 99 | J207: 99.8 | M207: 0.8 | N207: 99.6 | O207: 99.9 | R207: 0.3 | S207: 99.4 | T207: 100 | W207: 0.4 | X207: 100 | Y207: 100 | AB207: 0
B208: MICS18 | C208: 2018 | D208: 99.83641382 | E208: 99.98848246 | H208: 0 | I208: 99.78112125 | J208: 99.97937119 | M208: 0 | N208: 99.85611906 | O208: 99.95577534 | R208: 0.02868145081 | S208: 99.62654629 | T208: 100 | W208: 0 | X208: 99.87189967 | Y208: 99.90936569 | AB208: 0
B218: =CONCATENATE("Urban use of drinking water sources, ",C199,"–",C200) -> Urban use of drinking water sources, 2000–2020 | S218: Data points used for regression
E253: =IF(ISERROR(INDIRECT(CONCATENATE($B253,"!M18"))),"",INDIRECT(CONCATENATE($B253,"!M18"))) ->  | F253: =IF(ISERROR(INDIRECT(CONCATENATE($B253,"!M19"))),"",INDIRECT(CONCATENATE($B253,"!M19"))) ->  | G253: =IF(ISERROR(INDIRECT(CONCATENATE($B253,"!M20"))),"",INDIRECT(CONCATENATE($B253,"!M20"))) ->  | H253: =IF(ISERROR(INDIRECT(CONCATENATE($B253,"!M21"))),"",INDIRECT(CONCATENATE($B253,"!M21"))) ->  | J253: =IF(ISERROR(INDIRECT(CONCATENATE($B253,"!N18"))),"",INDIRECT(CONCATENATE($B253,"!N18"))) ->  | K253: =IF(ISERROR(INDIRECT(CONCATENATE($B253,"!N19"))),"",INDIRECT(CONCATENATE($B253,"!N19"))) ->  | L253: =IF(ISERROR(INDIRECT(CONCATENATE($B253,"!N20"))),"",INDIRECT(CONCATENATE($B253,"!N20"))) ->  | M253: =IF(ISERROR(INDIRECT(CONCATENATE($B253,"!N21"))),"",INDIRECT(CONCATENATE($B253,"!N21"))) ->  | O253: =IF(ISERROR(INDIRECT(CONCATENATE($B253,"!O18"))),"",INDIRECT(CONCATENATE($B253,"!O18"))) ->  | P253: =IF(ISERROR(INDIRECT(CONCATENATE($B253,"!O19"))),"",INDIRECT(CONCATENATE($B253,"!O19"))) ->  | Q253: =IF(ISERROR(INDIRECT(CONCATENATE($B253,"!O20"))),"",INDIRECT(CONCATENATE($B253,"!O20"))) ->  | R253: =IF(ISERROR(INDIRECT(CONCATENATE($B253,"!O21"))),"",INDIRECT(CONCATENATE($B253,"!O21"))) ->  | T253: =IF(ISERROR(INDIRECT(CONCATENATE($B253,"!P18"))),"",INDIRECT(CONCATENATE($B253,"!P18"))) ->  | U253: =IF(ISERROR(INDIRECT(CONCATENATE($B253,"!P19"))),"",INDIRECT(CONCATENATE($B253,"!P19"))) ->  | V253: =IF(ISERROR(INDIRECT(CONCATENATE($B253,"!P20"))),"",INDIRECT(CONCATENATE($B253,"!P20"))) ->  | W253: =IF(ISERROR(INDIRECT(CONCATENATE($B253,"!P21"))),"",INDIRECT(CONCATENATE($B253,"!P21"))) ->  | Y253: =IF(ISERROR(INDIRECT(CONCATENATE($B253,"!Q18"))),"",INDIRECT(CONCATENATE($B253,"!Q18"))) ->  | Z253: =IF(ISERROR(INDIRECT(CONCATENATE($B253,"!Q19"))),"",INDIRECT(CONCATENATE($B253,"!Q19"))) ->  | AA253: =IF(ISERROR(INDIRECT(CONCATENATE($B253,"!Q20"))),"",INDIRECT(CONCATENATE($B253,"!Q20"))) ->  | AB253: =IF(ISERROR(INDIRECT(CONCATENATE($B253,"!Q21"))),"",INDIRECT(CONCATENATE($B253,"!Q1"))) -> 
E254: =IF(ISERROR(INDIRECT(CONCATENATE($B254,"!M18"))),"",INDIRECT(CONCATENATE($B254,"!M18"))) ->  | F254: =IF(ISERROR(INDIRECT(CONCATENATE($B254,"!M19"))),"",INDIRECT(CONCATENATE($B254,"!M19"))) ->  | G254: =IF(ISERROR(INDIRECT(CONCATENATE($B254,"!M20"))),"",INDIRECT(CONCATENATE($B254,"!M20"))) ->  | H254: =IF(ISERROR(INDIRECT(CONCATENATE($B254,"!M21"))),"",INDIRECT(CONCATENATE($B254,"!M21"))) ->  | J254: =IF(ISERROR(INDIRECT(CONCATENATE($B254,"!N18"))),"",INDIRECT(CONCATENATE($B254,"!N18"))) ->  | K254: =IF(ISERROR(INDIRECT(CONCATENATE($B254,"!N19"))),"",INDIRECT(CONCATENATE($B254,"!N19"))) ->  | L254: =IF(ISERROR(INDIRECT(CONCATENATE($B254,"!N20"))),"",INDIRECT(CONCATENATE($B254,"!N20"))) ->  | M254: =IF(ISERROR(INDIRECT(CONCATENATE($B254,"!N21"))),"",INDIRECT(CONCATENATE($B254,"!N21"))) ->  | O254: =IF(ISERROR(INDIRECT(CONCATENATE($B254,"!O18"))),"",INDIRECT(CONCATENATE($B254,"!O18"))) ->  | P254: =IF(ISERROR(INDIRECT(CONCATENATE($B254,"!O19"))),"",INDIRECT(CONCATENATE($B254,"!O19"))) ->  | Q254: =IF(ISERROR(INDIRECT(CONCATENATE($B254,"!O20"))),"",INDIRECT(CONCATENATE($B254,"!O20"))) ->  | R254: =IF(ISERROR(INDIRECT(CONCATENATE($B254,"!O21"))),"",INDIRECT(CONCATENATE($B254,"!O21"))) ->  | T254: =IF(ISERROR(INDIRECT(CONCATENATE($B254,"!P18"))),"",INDIRECT(CONCATENATE($B254,"!P18"))) ->  | U254: =IF(ISERROR(INDIRECT(CONCATENATE($B254,"!P19"))),"",INDIRECT(CONCATENATE($B254,"!P19"))) ->  | V254: =IF(ISERROR(INDIRECT(CONCATENATE($B254,"!P20"))),"",INDIRECT(CONCATENATE($B254,"!P20"))) ->  | W254: =IF(ISERROR(INDIRECT(CONCATENATE($B254,"!P21"))),"",INDIRECT(CONCATENATE($B254,"!P21"))) ->  | Y254: =IF(ISERROR(INDIRECT(CONCATENATE($B254,"!Q18"))),"",INDIRECT(CONCATENATE($B254,"!Q18"))) ->  | Z254: =IF(ISERROR(INDIRECT(CONCATENATE($B254,"!Q19"))),"",INDIRECT(CONCATENATE($B254,"!Q19"))) ->  | AA254: =IF(ISERROR(INDIRECT(CONCATENATE($B254,"!Q20"))),"",INDIRECT(CONCATENATE($B254,"!Q20"))) ->  | AB254: =IF(ISERROR(INDIRECT(CONCATENATE($B254,"!Q21"))),"",INDIRECT(CONCATENATE($B254,"!Q1"))) -> 
E255: =IF(ISERROR(INDIRECT(CONCATENATE($B255,"!M18"))),"",INDIRECT(CONCATENATE($B255,"!M18"))) ->  | F255: =IF(ISERROR(INDIRECT(CONCATENATE($B255,"!M19"))),"",INDIRECT(CONCATENATE($B255,"!M19"))) ->  | G255: =IF(ISERROR(INDIRECT(CONCATENATE($B255,"!M20"))),"",INDIRECT(CONCATENATE($B255,"!M20"))) ->  | H255: =IF(ISERROR(INDIRECT(CONCATENATE($B255,"!M21"))),"",INDIRECT(CONCATENATE($B255,"!M21"))) ->  | J255: =IF(ISERROR(INDIRECT(CONCATENATE($B255,"!N18"))),"",INDIRECT(CONCATENATE($B255,"!N18"))) ->  | K255: =IF(ISERROR(INDIRECT(CONCATENATE($B255,"!N19"))),"",INDIRECT(CONCATENATE($B255,"!N19"))) ->  | L255: =IF(ISERROR(INDIRECT(CONCATENATE($B255,"!N20"))),"",INDIRECT(CONCATENATE($B255,"!N20"))) ->  | M255: =IF(ISERROR(INDIRECT(CONCATENATE($B255,"!N21"))),"",INDIRECT(CONCATENATE($B255,"!N21"))) ->  | O255: =IF(ISERROR(INDIRECT(CONCATENATE($B255,"!O18"))),"",INDIRECT(CONCATENATE($B255,"!O18"))) ->  | P255: =IF(ISERROR(INDIRECT(CONCATENATE($B255,"!O19"))),"",INDIRECT(CONCATENATE($B255,"!O19"))) ->  | Q255: =IF(ISERROR(INDIRECT(CONCATENATE($B255,"!O20"))),"",INDIRECT(CONCATENATE($B255,"!O20"))) ->  | R255: =IF(ISERROR(INDIRECT(CONCATENATE($B255,"!O21"))),"",INDIRECT(CONCATENATE($B255,"!O21"))) ->  | T255: =IF(ISERROR(INDIRECT(CONCATENATE($B255,"!P18"))),"",INDIRECT(CONCATENATE($B255,"!P18"))) ->  | U255: =IF(ISERROR(INDIRECT(CONCATENATE($B255,"!P19"))),"",INDIRECT(CONCATENATE($B255,"!P19"))) ->  | V255: =IF(ISERROR(INDIRECT(CONCATENATE($B255,"!P20"))),"",INDIRECT(CONCATENATE($B255,"!P20"))) ->  | W255: =IF(ISERROR(INDIRECT(CONCATENATE($B255,"!P21"))),"",INDIRECT(CONCATENATE($B255,"!P21"))) ->  | Y255: =IF(ISERROR(INDIRECT(CONCATENATE($B255,"!Q18"))),"",INDIRECT(CONCATENATE($B255,"!Q18"))) ->  | Z255: =IF(ISERROR(INDIRECT(CONCATENATE($B255,"!Q19"))),"",INDIRECT(CONCATENATE($B255,"!Q19"))) ->  | AA255: =IF(ISERROR(INDIRECT(CONCATENATE($B255,"!Q20"))),"",INDIRECT(CONCATENATE($B255,"!Q20"))) ->  | AB255: =IF(ISERROR(INDIRECT(CONCATENATE($B255,"!Q21"))),"",INDIRECT(CONCATENATE($B255,"!Q1"))) -> 
E256: =IF(ISERROR(INDIRECT(CONCATENATE($B256,"!M18"))),"",INDIRECT(CONCATENATE($B256,"!M18"))) ->  | F256: =IF(ISERROR(INDIRECT(CONCATENATE($B256,"!M19"))),"",INDIRECT(CONCATENATE($B256,"!M19"))) ->  | G256: =IF(ISERROR(INDIRECT(CONCATENATE($B256,"!M20"))),"",INDIRECT(CONCATENATE($B256,"!M20"))) ->  | H256: =IF(ISERROR(INDIRECT(CONCATENATE($B256,"!M21"))),"",INDIRECT(CONCATENATE($B256,"!M21"))) ->  | J256: =IF(ISERROR(INDIRECT(CONCATENATE($B256,"!N18"))),"",INDIRECT(CONCATENATE($B256,"!N18"))) ->  | K256: =IF(ISERROR(INDIRECT(CONCATENATE($B256,"!N19"))),"",INDIRECT(CONCATENATE($B256,"!N19"))) ->  | L256: =IF(ISERROR(INDIRECT(CONCATENATE($B256,"!N20"))),"",INDIRECT(CONCATENATE($B256,"!N20"))) ->  | M256: =IF(ISERROR(INDIRECT(CONCATENATE($B256,"!N21"))),"",INDIRECT(CONCATENATE($B256,"!N21"))) ->  | O256: =IF(ISERROR(INDIRECT(CONCATENATE($B256,"!O18"))),"",INDIRECT(CONCATENATE($B256,"!O18"))) ->  | P256: =IF(ISERROR(INDIRECT(CONCATENATE($B256,"!O19"))),"",INDIRECT(CONCATENATE($B256,"!O19"))) ->  | Q256: =IF(ISERROR(INDIRECT(CONCATENATE($B256,"!O20"))),"",INDIRECT(CONCATENATE($B256,"!O20"))) ->  | R256: =IF(ISERROR(INDIRECT(CONCATENATE($B256,"!O21"))),"",INDIRECT(CONCATENATE($B256,"!O21"))) ->  | T256: =IF(ISERROR(INDIRECT(CONCATENATE($B256,"!P18"))),"",INDIRECT(CONCATENATE($B256,"!P18"))) ->  | U256: =IF(ISERROR(INDIRECT(CONCATENATE($B256,"!P19"))),"",INDIRECT(CONCATENATE($B256,"!P19"))) ->  | V256: =IF(ISERROR(INDIRECT(CONCATENATE($B256,"!P20"))),"",INDIRECT(CONCATENATE($B256,"!P20"))) ->  | W256: =IF(ISERROR(INDIRECT(CONCATENATE($B256,"!P21"))),"",INDIRECT(CONCATENATE($B256,"!P21"))) ->  | Y256: =IF(ISERROR(INDIRECT(CONCATENATE($B256,"!Q18"))),"",INDIRECT(CONCATENATE($B256,"!Q18"))) ->  | Z256: =IF(ISERROR(INDIRECT(CONCATENATE($B256,"!Q19"))),"",INDIRECT(CONCATENATE($B256,"!Q19"))) ->  | AA256: =IF(ISERROR(INDIRECT(CONCATENATE($B256,"!Q20"))),"",INDIRECT(CONCATENATE($B256,"!Q20"))) ->  | AB256: =IF(ISERROR(INDIRECT(CONCATENATE($B256,"!Q21"))),"",INDIRECT(CONCATENATE($B256,"!Q1"))) -> 
E257: =IF(ISERROR(INDIRECT(CONCATENATE($B257,"!M18"))),"",INDIRECT(CONCATENATE($B257,"!M18"))) ->  | F257: =IF(ISERROR(INDIRECT(CONCATENATE($B257,"!M19"))),"",INDIRECT(CONCATENATE($B257,"!M19"))) ->  | G257: =IF(ISERROR(INDIRECT(CONCATENATE($B257,"!M20"))),"",INDIRECT(CONCATENATE($B257,"!M20"))) ->  | H257: =IF(ISERROR(INDIRECT(CONCATENATE($B257,"!M21"))),"",INDIRECT(CONCATENATE($B257,"!M21"))) ->  | J257: =IF(ISERROR(INDIRECT(CONCATENATE($B257,"!N18"))),"",INDIRECT(CONCATENATE($B257,"!N18"))) ->  | K257: =IF(ISERROR(INDIRECT(CONCATENATE($B257,"!N19"))),"",INDIRECT(CONCATENATE($B257,"!N19"))) ->  | L257: =IF(ISERROR(INDIRECT(CONCATENATE($B257,"!N20"))),"",INDIRECT(CONCATENATE($B257,"!N20"))) ->  | M257: =IF(ISERROR(INDIRECT(CONCATENATE($B257,"!N21"))),"",INDIRECT(CONCATENATE($B257,"!N21"))) ->  | O257: =IF(ISERROR(INDIRECT(CONCATENATE($B257,"!O18"))),"",INDIRECT(CONCATENATE($B257,"!O18"))) ->  | P257: =IF(ISERROR(INDIRECT(CONCATENATE($B257,"!O19"))),"",INDIRECT(CONCATENATE($B257,"!O19"))) ->  | Q257: =IF(ISERROR(INDIRECT(CONCATENATE($B257,"!O20"))),"",INDIRECT(CONCATENATE($B257,"!O20"))) ->  | R257: =IF(ISERROR(INDIRECT(CONCATENATE($B257,"!O21"))),"",INDIRECT(CONCATENATE($B257,"!O21"))) ->  | T257: =IF(ISERROR(INDIRECT(CONCATENATE($B257,"!P18"))),"",INDIRECT(CONCATENATE($B257,"!P18"))) ->  | U257: =IF(ISERROR(INDIRECT(CONCATENATE($B257,"!P19"))),"",INDIRECT(CONCATENATE($B257,"!P19"))) ->  | V257: =IF(ISERROR(INDIRECT(CONCATENATE($B257,"!P20"))),"",INDIRECT(CONCATENATE($B257,"!P20"))) ->  | W257: =IF(ISERROR(INDIRECT(CONCATENATE($B257,"!P21"))),"",INDIRECT(CONCATENATE($B257,"!P21"))) ->  | Y257: =IF(ISERROR(INDIRECT(CONCATENATE($B257,"!Q18"))),"",INDIRECT(CONCATENATE($B257,"!Q18"))) ->  | Z257: =IF(ISERROR(INDIRECT(CONCATENATE($B257,"!Q19"))),"",INDIRECT(CONCATENATE($B257,"!Q19"))) ->  | AA257: =IF(ISERROR(INDIRECT(CONCATENATE($B257,"!Q20"))),"",INDIRECT(CONCATENATE($B257,"!Q20"))) ->  | AB257: =IF(ISERROR(INDIRECT(CONCATENATE($B257,"!Q21"))),"",INDIRECT(CONCATENATE($B257,"!Q1"))) -> 
A297: RURAL | D297: Poorest | I297: Poor | N297: Middle | S297: Rich | X297: Richest
D298: Improved | E298: Basic | F298: Limited | G298: Unimproved | H298: Surface water | I298: Improved | J298: Basic | K298: Limited | L298: Unimproved | M298: Surface water | N298: Improved | O298: Basic | P298: Limited | Q298: Unimproved | R298: Surface water | S298: Improved | T298: Basic | U298: Limited | V298: Unimproved | W298: Surface water | X298: Improved | Y298: Basic | Z298: Limited | AA298: Unimproved | AB298: Surface water
A299: Forecast period: | C299: 2000 | D299: =IF((D301+H301)>100,D301*100/(D301+H301),D301) -> 46.41672795 | E299: =D299*AVERAGEIF(E305:E316,">0")/100 -> 43.40098029 | F299: =D299*(100-AVERAGEIF(E305:E316,">0"))/100 -> 3.015747666 | G299: =100-(E299+F299+H299) -> 38.18325574 | H299: =IF((D301+H301)>100,H301*100/(D301+H301),H301) -> 15.40001631 | I299: =IF((I301+M301)>100,I301*100/(I301+M301),I301) -> 54.7937083 | J299: =I299*AVERAGEIF(J305:J316,">0")/100 -> 52.98929019 | K299: =I299*(100-AVERAGEIF(J305:J316,">0"))/100 -> 1.804418106 | L299: =100-(J299+K299+M299) -> 36.29013198 | M299: =IF((I301+M301)>100,M301*100/(I301+M301),M301) -> 8.916159727 | N299: =IF((N301+R301)>100,N301*100/(N301+R301),N301) -> 62.09326765 | O299: =N299*AVERAGEIF(O305:O316,">0")/100 -> 60.47222769 | P299: =N299*(100-AVERAGEIF(O305:O316,">0"))/100 -> 1.621039959 | Q299: =100-(O299+P299+R299) -> 30.67851526 | R299: =IF((N301+R301)>100,R301*100/(N301+R301),R301) -> 7.228217087 | S299: =IF((S301+W301)>100,S301*100/(S301+W301),S301) -> 61.42584445 | T299: =S299*AVERAGEIF(T305:T316,">0")/100 -> 60.16213279 | U299: =S299*(100-AVERAGEIF(T305:T316,">0"))/100 -> 1.263711663 | V299: =100-(T299+U299+W299) -> 31.92223663 | W299: =IF((S301+W301)>100,W301*100/(S301+W301),W301) -> 6.651918919 | X299: =IF((X301+AB301)>100,X301*100/(X301+AB301),X301) -> 60.21959115 | Y299: =X299*AVERAGEIF(Y305:Y316,">0")/100 -> 59.36272582 | Z299: =X299*(100-AVERAGEIF(Y305:Y316,">0"))/100 -> 0.8568653365 | AA299: =100-(Y299+Z299+AB299) -> 34.2652042 | AB299: =IF((X301+AB301)>100,AB301*100/(X301+AB301),AB301) -> 5.515204648
C300: 2020 | D300: =IF((D302+H302)>100,D302*100/(D302+H302),D302) -> 87.67116149 | E300: =D300*AVERAGEIF(E305:E316,">0")/100 -> 81.9750663 | F300: =D300*(100-AVERAGEIF(E305:E316,">0"))/100 -> 5.696095186 | G300: =100-(E300+F300+H300) -> 0 | H300: =IF((D302+H302)>100,H302*100/(D302+H302),H302) -> 12.32883851 | I300: =IF((I302+M302)>100,I302*100/(I302+M302),I302) -> 93.856492 | J300: =I300*AVERAGEIF(J305:J316,">0")/100 -> 90.76569273 | K300: =I300*(100-AVERAGEIF(J305:J316,">0"))/100 -> 3.090799269 | L300: =100-(J300+K300+M300) -> 0 | M300: =IF((I302+M302)>100,M302*100/(I302+M302),M302) -> 6.143508001 | N300: =IF((N302+R302)>100,N302*100/(N302+R302),N302) -> 94.33949031 | O300: =N300*AVERAGEIF(O305:O316,">0")/100 -> 91.87661327 | P300: =N300*(100-AVERAGEIF(O305:O316,">0"))/100 -> 2.462877044 | Q300: =100-(O300+P300+R300) -> 0 | R300: =IF((N302+R302)>100,R302*100/(N302+R302),R302) -> 5.660509689 | S300: =IF((S302+W302)>100,S302*100/(S302+W302),S302) -> 95.55507178 | T300: =S300*AVERAGEIF(T305:T316,">0")/100 -> 93.58922077 | U300: =S300*(100-AVERAGEIF(T305:T316,">0"))/100 -> 1.965851015 | V300: =100-(T300+U300+W300) -> 0 | W300: =IF((S302+W302)>100,W302*100/(S302+W302),W302) -> 4.444928218 | X300: =IF((X302+AB302)>100,X302*100/(X302+AB302),X302) -> 96.8674404 | Y300: =X300*AVERAGEIF(Y305:Y316,">0")/100 -> 95.48911235 | Z300: =X300*(100-AVERAGEIF(Y305:Y316,">0"))/100 -> 1.378328054 | AA300: =100-(Y300+Z300+AB300) -> 0 | AB300: =IF((X302+AB302)>100,AB302*100/(X302+AB302),AB302) -> 3.132559596
A301: Regression period: | C301: =MinRegYear(C299,C305:C316) -> 2000 | D301: =IF(MAX(C305:C316)-MIN(C305:C316)<5,AVERAGEIF(C305:C316,">0",D305:D316), IF(FORECAST($C301,D$305:D$316,$C$305:$C$316)<0,0, IF(FORECAST($C301,D$305:D$316,$C$305:$C$316)>100,100, FORECAST($C301,D$305:D$316,$C$305:$C$316)))) -> 46.41672795 | H301: =IF(MAX(C305:C316)-MIN(C305:C316)<5,AVERAGEIF(C305:C316,">0",H305:H316), IF(FORECAST($C301,H$305:H$316,$C$305:$C$316)<0,0, IF(FORECAST($C301,H$305:H$316,$C$305:$C$316)>100,100, FORECAST($C301,H$305:H$316,$C$305:$C$316)))) -> 15.40001631 | I301: =IF(MAX(C305:C316)-MIN(C305:C316)<5,AVERAGEIF(C305:C316,">0",I305:I316), IF(FORECAST($C301,I$305:I$316,$C$305:$C$316)<0,0, IF(FORECAST($C301,I$305:I$316,$C$305:$C$316)>100,100, FORECAST($C301,I$305:I$316,$C$305:$C$316)))) -> 54.7937083 | M301: =IF(MAX(C305:C316)-MIN(C305:C316)<5,AVERAGEIF(C305:C316,">0",M305:M316), IF(FORECAST($C301,M$305:M$316,$C$305:$C$316)<0,0, IF(FORECAST($C301,M$305:M$316,$C$305:$C$316)>100,100, FORECAST($C301,M$305:M$316,$C$305:$C$316)))) -> 8.916159727 | N301: =IF(MAX(C305:C316)-MIN(C305:C316)<5,AVERAGEIF(C305:C316,">0",N305:N316), IF(FORECAST($C301,N$305:N$316,$C$305:$C$316)<0,0, IF(FORECAST($C301,N$305:N$316,$C$305:$C$316)>100,100, FORECAST($C301,N$305:N$316,$C$305:$C$316)))) -> 62.09326765 | R301: =IF(MAX(C305:C316)-MIN(C305:C316)<5,AVERAGEIF(C305:C316,">0",R305:R316), IF(FORECAST($C301,R$305:R$316,$C$305:$C$316)<0,0, IF(FORECAST($C301,R$305:R$316,$C$305:$C$316)>100,100, FORECAST($C301,R$305:R$316,$C$305:$C$316)))) -> 7.228217087 | S301: =IF(MAX(C305:C316)-MIN(C305:C316)<5,AVERAGEIF(C305:C316,">0",S305:S316), IF(FORECAST($C301,S$305:S$316,$C$305:$C$316)<0,0, IF(FORECAST($C301,S$305:S$316,$C$305:$C$316)>100,100, FORECAST($C301,S$305:S$316,$C$305:$C$316)))) -> 61.42584445 | W301: =IF(MAX(C305:C316)-MIN(C305:C316)<5,AVERAGEIF(C305:C316,">0",W305:W316), IF(FORECAST($C301,W$305:W$316,$C$305:$C$316)<0,0, IF(FORECAST($C301,W$305:W$316,$C$305:$C$316)>100,100, FORECAST($C301,W$305:W$316,$C$305:$C$316)))) -> 6.651918919 | X301: =IF(MAX(C305:C316)-MIN(C305:C316)<5,AVERAGEIF(C305:C316,">0",X305:X316), IF(FORECAST($C301,X$305:X$316,$C$305:$C$316)<0,0, IF(FORECAST($C301,X$305:X$316,$C$305:$C$316)>100,100, FORECAST($C301,X$305:X$316,$C$305:$C$316)))) -> 60.21959115 | AB301: =IF(MAX(C305:C316)-MIN(C305:C316)<5,AVERAGEIF(C305:C316,">0",AB305:AB316), IF(FORECAST($C301,AB$305:AB$316,$C$305:$C$316)<0,0, IF(FORECAST($C301,AB$305:AB$316,$C$305:$C$316)>100,100, FORECAST($C301,AB$305:AB$316,$C$305:$C$316)))) -> 5.515204648
C302: =MaxRegYear(C300,C305:C316) -> 2020 | D302: =IF(MAX(C305:C316)-MIN(C305:C316)<5,AVERAGEIF(C305:C316,">0",D305:D316), IF(FORECAST($C302,D$305:D$316,$C$305:$C$316)<0,0, IF(FORECAST($C302,D$305:D$316,$C$305:$C$316)>100,100, FORECAST($C302,D$305:D$316,$C$305:$C$316)))) -> 97.50014593 | H302: =IF(MAX(C305:C316)-MIN(C305:C316)<5,AVERAGEIF(C305:C316,">0",H305:H316), IF(FORECAST($C302,H$305:H$316,$C$305:$C$316)<0,0, IF(FORECAST($C302,H$305:H$316,$C$305:$C$316)>100,100, FORECAST($C302,H$305:H$316,$C$305:$C$316)))) -> 13.71104858 | I302: =IF(MAX(C305:C316)-MIN(C305:C316)<5,AVERAGEIF(C305:C316,">0",I305:I316), IF(FORECAST($C302,I$305:I$316,$C$305:$C$316)<0,0, IF(FORECAST($C302,I$305:I$316,$C$305:$C$316)>100,100, FORECAST($C302,I$305:I$316,$C$305:$C$316)))) -> 100 | M302: =IF(MAX(C305:C316)-MIN(C305:C316)<5,AVERAGEIF(C305:C316,">0",M305:M316), IF(FORECAST($C302,M$305:M$316,$C$305:$C$316)<0,0, IF(FORECAST($C302,M$305:M$316,$C$305:$C$316)>100,100, FORECAST($C302,M$305:M$316,$C$305:$C$316)))) -> 6.545639913 | N302: =IF(MAX(C305:C316)-MIN(C305:C316)<5,AVERAGEIF(C305:C316,">0",N305:N316), IF(FORECAST($C302,N$305:N$316,$C$305:$C$316)<0,0, IF(FORECAST($C302,N$305:N$316,$C$305:$C$316)>100,100, FORECAST($C302,N$305:N$316,$C$305:$C$316)))) -> 100 | R302: =IF(MAX(C305:C316)-MIN(C305:C316)<5,AVERAGEIF(C305:C316,">0",R305:R316), IF(FORECAST($C302,R$305:R$316,$C$305:$C$316)<0,0, IF(FORECAST($C302,R$305:R$316,$C$305:$C$316)>100,100, FORECAST($C302,R$305:R$316,$C$305:$C$316)))) -> 6.000148686 | S302: =IF(MAX(C305:C316)-MIN(C305:C316)<5,AVERAGEIF(C305:C316,">0",S305:S316), IF(FORECAST($C302,S$305:S$316,$C$305:$C$316)<0,0, IF(FORECAST($C302,S$305:S$316,$C$305:$C$316)>100,100, FORECAST($C302,S$305:S$316,$C$305:$C$316)))) -> 100 | W302: =IF(MAX(C305:C316)-MIN(C305:C316)<5,AVERAGEIF(C305:C316,">0",W305:W316), IF(FORECAST($C302,W$305:W$316,$C$305:$C$316)<0,0, IF(FORECAST($C302,W$305:W$316,$C$305:$C$316)>100,100, FORECAST($C302,W$305:W$316,$C$305:$C$316)))) -> 4.651692616 | X302: =IF(MAX(C305:C316)-MIN(C305:C316)<5,AVERAGEIF(C305:C316,">0",X305:X316), IF(FORECAST($C302,X$305:X$316,$C$305:$C$316)<0,0, IF(FORECAST($C302,X$305:X$316,$C$305:$C$316)>100,100, FORECAST($C302,X$305:X$316,$C$305:$C$316)))) -> 100 | AB302: =IF(MAX(C305:C316)-MIN(C305:C316)<5,AVERAGEIF(C305:C316,">0",AB305:AB316), IF(FORECAST($C302,AB$305:AB$316,$C$305:$C$316)<0,0, IF(FORECAST($C302,AB$305:AB$316,$C$305:$C$316)>100,100, FORECAST($C302,AB$305:AB$316,$C$305:$C$316)))) -> 3.233862259
B304: Survey | C304: Year | D304: Improved | E304: % Improved < = 30min | H304: Surface water | I304: Improved | J304: % Improved < = 30min | M304: Surface water | N304: Improved | O304: % Improved < = 30min | R304: Surface water | S304: Improved | T304: % Improved < = 30min | W304: Surface water | X304: Improved | Y304: % Improved < = 30min | AB304: Surface water
B305: MICS00 | C305: 2000 | D305: =IF(ISERROR(INDIRECT(CONCATENATE($B305,"!M16"))),"",INDIRECT(CONCATENATE($B305,"!M16"))) -> 56.8775764 | E305: =IF(ISERROR(INDIRECT(CONCATENATE($B305,"!M23"))),"",INDIRECT(CONCATENATE($B305,"!M23"))) -> 92.96112452 | H305: =IF(ISERROR(INDIRECT(CONCATENATE($B305,"!M21"))),"",INDIRECT(CONCATENATE($B305,"!M21"))) -> 0 | I305: =IF(ISERROR(INDIRECT(CONCATENATE($B305,"!N16"))),"",INDIRECT(CONCATENATE($B305,"!N16"))) -> 57.85272603 | J305: =IF(ISERROR(INDIRECT(CONCATENATE($B305,"!N23"))),"",INDIRECT(CONCATENATE($B305,"!N23"))) -> 96.94892933 | M305: =IF(ISERROR(INDIRECT(CONCATENATE($B305,"!N21"))),"",INDIRECT(CONCATENATE($B305,"!N21"))) -> 0 | N305: =IF(ISERROR(INDIRECT(CONCATENATE($B305,"!O16"))),"",INDIRECT(CONCATENATE($B305,"!O16"))) -> 65.05242886 | O305: =IF(ISERROR(INDIRECT(CONCATENATE($B305,"!O23"))),"",INDIRECT(CONCATENATE($B305,"!O23"))) -> 96.32704884 | R305: =IF(ISERROR(INDIRECT(CONCATENATE($B305,"!O21"))),"",INDIRECT(CONCATENATE($B305,"!O21"))) -> 0 | S305: =IF(ISERROR(INDIRECT(CONCATENATE($B305,"!P16"))),"",INDIRECT(CONCATENATE($B305,"!P16"))) -> 63.01286489 | T305: =IF(ISERROR(INDIRECT(CONCATENATE($B305,"!P23"))),"",INDIRECT(CONCATENATE($B305,"!P23"))) -> 97.10511169 | W305: =IF(ISERROR(INDIRECT(CONCATENATE($B305,"!P21"))),"",INDIRECT(CONCATENATE($B305,"!P21"))) -> 0 | X305: =IF(ISERROR(INDIRECT(CONCATENATE($B305,"!Q16"))),"",INDIRECT(CONCATENATE($B305,"!Q16"))) -> 61.69994832 | Y305: =IF(ISERROR(INDIRECT(CONCATENATE($B305,"!Q23"))),"",INDIRECT(CONCATENATE($B305,"!Q23"))) -> 97.45061855 | AB305: =IF(ISERROR(INDIRECT(CONCATENATE($B305,"!Q221"))),"",INDIRECT(CONCATENATE($B305,"!Q21"))) -> 0
B306: MICS06 | C306: 2006 | D306: 42.38283526 | E306: 93.88805375 | H306: 35.17648282 | I306: 60.60572373 | J306: 97.19575283 | M306: 20.30312811 | N306: 67.15393764 | O306: 97.64726228 | R306: 15.57457689 | S306: 67.78541261 | T306: 98.68402952 | W306: 15.35994284 | X306: 66.67133426 | Y306: 99.11184014 | AB306: 13.0805476
B307: MICS11 | C307: 2011 | D307: 80.8 | E307: 90.3 | H307: 19.3 | I307: 89.9 | J307: 94.5 | M307: 9.8 | N307: 89.9 | O307: 96.8 | R307: 10.2 | S307: 93.1 | T307: 96.2 | W307: 6.7 | X307: 95.2 | Y307: 98.1 | AB307: 4.3
B308: MICS18 | C308: 2018 | D308: 95.00248162 | E308: 96.86236628 | H308: 4.167888888 | I308: 97.85845806 | J308: 98.1828704 | M308: 1.413101127 | N308: 98.76604895 | O308: 98.78307557 | R308: 0.9891717605 | S308: 98.52328562 | T308: 99.78167334 | W308: 1.047336809 | X308: 99.27055374 | Y308: 99.64593617 | AB308: 0.6879218129
B318: =CONCATENATE("Rural use of drinking water sources, ",C299,"–",C300) -> Rural use of drinking water sources, 2000–2020 | S318: Data points used for regression

Sheet Sanitation
B4: Summary of trends in use of sanitation facilities by wealth quintile (%)
B5: =IF(ISERROR(INDIRECT(CONCATENATE($B105,"!A2"))),"",INDIRECT(CONCATENATE($B105,"!A2"))) -> Iraq
B7: =B118 -> National use of sanitation facilities, 2000–2020 | J7: =B218 -> Urban use of sanitation facilities, 2000–2020 | R7: =B318 -> Rural use of sanitation facilities, 2000–2020
B31: =IF(ISERROR(INDIRECT(CONCATENATE($B105,"!A2"))),"",INDIRECT(CONCATENATE($B105,"!A2"))) -> Iraq | F31: Poorest | J31: Poor | N31: Middle | R31: Rich | V31: Richest
F32: Basic | G32: Limited | H32: Unimproved | I32: Open defecation | J32: Basic | K32: Limited | L32: Unimproved | M32: Open defecation | N32: Basic | O32: Limited | P32: Unimproved | Q32: Open defecation | R32: Basic | S32: Limited | T32: Unimproved | U32: Open defecation | V32: Basic | W32: Limited | X32: Unimproved | Y32: Open defecation
B33: NATIONAL | D33: Estimate | E33: =C99 -> 2000 | F33: =E99 -> 75.86999476 | G33: =F99 -> 8.732700785 | H33: 9.902754521 | I33: 5.494549937 | J33: =J99 -> 76.20517822 | K33: =K99 -> 8.312861632 | L33: 8.664951223 | M33: 6.817008926 | N33: =O99 -> 75.38063773 | O33: =P99 -> 7.61371332 | P33: 6.305981466 | Q33: 10.69966748 | R33: =T99 -> 91.63011659 | S33: =U99 -> 6.616435889 | T33: 1.530623809 | U33: 0.222823715 | V33: =Y99 -> 93.46984887 | W33: =Z99 -> 5.453694384 | X33: 0.5278967029 | Y33: 0.5485600422
E34: =C100 -> 2020 | F34: =E100 -> 83.62469425 | G34: 9.625273278 | H34: 4.748597854 | I34: 2.001434617 | J34: =J100 -> 90.16439372 | K34: 9.835606276 | L34: 0 | M34: 0 | N34: =O100 -> 90.82622706 | O34: 9.173772942 | P34: 0 | Q34: 0 | R34: =T100 -> 92.97081596 | S34: 6.713245233 | T34: 0.315938809 | U34: 0 | V34: =Y100 -> 94.4159392 | W34: 5.508896008 | X34: 0.07516479647 | Y34: 0
B36: URBAN | D36: Estimate | E36: =C199 -> 2000 | F36: =E199 -> 85.42149466 | G36: =F199 -> 11.27028898 | H36: 2.884809492 | I36: 0.4234068626 | J36: =J199 -> 88.06017058 | K36: =K199 -> 10.25010682 | L36: 1.4115264 | M36: 0.278196196 | N36: =O199 -> 89.62888135 | O36: =P199 -> 9.620084726 | P36: 0.7003330151 | Q36: 0.05070090653 | R36: =T199 -> 93.1313612 | S36: =U199 -> 6.204949916 | T36: 0.6383645492 | U36: 0.02532433895 | V36: =Y199 -> 94.36930444 | W36: =Z199 -> 5.123818988 | X36: 0.4461859413 | Y36: 0.06069063505
E37: =C200 -> 2020 | F37: =E200 -> 87.62933057 | G37: 11.56158509 | H37: 0.8090843376 | I37: 0 | J37: =J200 -> 89.18428662 | K37: 10.38095269 | L37: 0.4347606915 | M37: 0 | N37: =O200 -> 89.98877445 | O37: 9.658712923 | P37: 0.3525126223 | Q37: 0 | R37: =T200 -> 93.46613995 | S37: 6.227254813 | T37: 0.3066052405 | U37: 0 | V37: =Y200 -> 94.74004479 | W37: 5.143948484 | X37: 0.1160067217 | Y37: 0
B39: RURAL | D39: Estimate | E39: =C299 -> 2000 | F39: =E299 -> 37.83521063 | G39: =F299 -> 4.091457664 | H39: 31.13183313 | I39: 26.94149858 | J39: =J299 -> 63.92867629 | K39: =K299 -> 6.439053301 | L39: 15.5110286 | M39: 14.12124181 | N39: =O299 -> 69.61822421 | O39: =P299 -> 5.532758127 | P39: 13.36929567 | Q39: 11.47972199 | R39: =T299 -> 74.18906021 | S39: =U299 -> 5.444609439 | T39: 11.36544197 | U39: 9.000888382 | V39: =Y299 -> 75.99252726 | W39: =Z299 -> 3.879012821 | X39: 8.671310254 | Y39: 11.45714967
E40: =C300 -> 2020 | F40: =E300 -> 89.78527954 | G40: 9.709280429 | H40: 0.5054400286 | I40: 0 | J40: =J300 -> 90.84942297 | K40: 9.15057703 | L40: 0 | M40: 0 | N40: =O300 -> 92.63780997 | O40: 7.362190027 | P40: 0 | Q40: 0 | R40: =T300 -> 93.16293037 | S40: 6.837069625 | T40: 0 | U40: 0 | V40: =Y300 -> 95.14343555 | W40: 4.85656445 | X40: 0 | Y40: 0
A97: NATIONAL | D97: Poorest | I97: Poor | N97: Middle | S97: Rich | X97: Richest
D98: Improved | E98: Basic | F98: Limited | G98: Unimproved | H98: Open defecation | I98: Improved | J98: Basic | K98: Limited | L98: Unimproved | M98: Open defecation | N98: Improved | O98: Basic | P98: Limited | Q98: Unimproved | R98: Open defecation | S98: Improved | T98: Basic | U98: Limited | V98: Unimproved | W98: Open defecation | X98: Improved | Y98: Basic | Z98: Limited | AA98: Unimproved | AB98: Open defecation
A99: Forecast period: | C99: 2000 | D99: =IF((D101+H101)>100,D101*100/(D101+H101),D101) -> 84.60269554 | E99: =D99*AVERAGEIF(E105:E116,">0")/100 -> 75.86999476 | F99: =D99*(100-AVERAGEIF(E105:E116,">0"))/100 -> 8.732700785 | G99: =100-(E99+F99+H99) -> 9.902754521 | H99: =IF((D101+H101)>100,H101*100/(D101+H101),H101) -> 5.494549937 | I99: =IF((I101+M101)>100,I101*100/(I101+M101),I101) -> 84.51803985 | J99: =I99*AVERAGEIF(J105:J116,">0")/100 -> 76.20517822 | K99: =I99*(100-AVERAGEIF(J105:J116,">0"))/100 -> 8.312861632 | L99: =100-(J99+K99+M99) -> 8.664951223 | M99: =IF((I101+M101)>100,M101*100/(I101+M101),M101) -> 6.817008926 | N99: =IF((N101+R101)>100,N101*100/(N101+R101),N101) -> 82.99435105 | O99: =N99*AVERAGEIF(O105:O116,">0")/100 -> 75.38063773 | P99: =N99*(100-AVERAGEIF(O105:O116,">0"))/100 -> 7.61371332 | Q99: =100-(O99+P99+R99) -> 6.305981466 | R99: =IF((N101+R101)>100,R101*100/(N101+R101),R101) -> 10.69966748 | S99: =IF((S101+W101)>100,S101*100/(S101+W101),S101) -> 98.24655248 | T99: =S99*AVERAGEIF(T105:T116,">0")/100 -> 91.63011659 | U99: =S99*(100-AVERAGEIF(T105:T116,">0"))/100 -> 6.616435889 | V99: =100-(T99+U99+W99) -> 1.530623809 | W99: =IF((S101+W101)>100,W101*100/(S101+W101),W101) -> 0.222823715 | X99: =IF((X101+AB101)>100,X101*100/(X101+AB101),X101) -> 98.92354325 | Y99: =X99*AVERAGEIF(Y105:Y116,">0")/100 -> 93.46984887 | Z99: =X99*(100-AVERAGEIF(Y105:Y116,">0"))/100 -> 5.453694384 | AA99: =100-(Y99+Z99+AB99) -> 0.5278967029 | AB99: =IF((X101+AB101)>100,AB101*100/(X101+AB101),AB101) -> 0.5485600422
C100: 2020 | D100: =IF((D102+H102)>100,D102*100/(D102+H102),D102) -> 93.24996753 | E100: =D100*AVERAGEIF(E105:E116,">0")/100 -> 83.62469425 | F100: =D100*(100-AVERAGEIF(E105:E116,">0"))/100 -> 9.625273278 | G100: =100-(E100+F100+H100) -> 4.748597854 | H100: =IF((D102+H102)>100,H102*100/(D102+H102),H102) -> 2.001434617 | I100: =IF((I102+M102)>100,I102*100/(I102+M102),I102) -> 100 | J100: =I100*AVERAGEIF(J105:J116,">0")/100 -> 90.16439372 | K100: =I100*(100-AVERAGEIF(J105:J116,">0"))/100 -> 9.835606276 | L100: =100-(J100+K100+M100) -> 0 | M100: =IF((I102+M102)>100,M102*100/(I102+M102),M102) -> 0 | N100: =IF((N102+R102)>100,N102*100/(N102+R102),N102) -> 100 | O100: =N100*AVERAGEIF(O105:O116,">0")/100 -> 90.82622706 | P100: =N100*(100-AVERAGEIF(O105:O116,">0"))/100 -> 9.173772942 | Q100: =100-(O100+P100+R100) -> 0 | R100: =IF((N102+R102)>100,R102*100/(N102+R102),R102) -> 0 | S100: =IF((S102+W102)>100,S102*100/(S102+W102),S102) -> 99.68406119 | T100: =S100*AVERAGEIF(T105:T116,">0")/100 -> 92.97081596 | U100: =S100*(100-AVERAGEIF(T105:T116,">0"))/100 -> 6.713245233 | V100: =100-(T100+U100+W100) -> 0.315938809 | W100: =IF((S102+W102)>100,W102*100/(S102+W102),W102) -> 0 | X100: =IF((X102+AB102)>100,X102*100/(X102+AB102),X102) -> 99.9248352 | Y100: =X100*AVERAGEIF(Y105:Y116,">0")/100 -> 94.4159392 | Z100: =X100*(100-AVERAGEIF(Y105:Y116,">0"))/100 -> 5.508896008 | AA100: =100-(Y100+Z100+AB100) -> 0.07516479647 | AB100: =IF((X102+AB102)>100,AB102*100/(X102+AB102),AB102) -> 0
A101: Regression period: | C101: =MinRegYear(C99,C105:C116) -> 2000 | D101: =IF(MAX(C105:C116)-MIN(C105:C116)<5,AVERAGEIF(C105:C116,">0",D105:D116), IF(FORECAST($C101,D$105:D$116,$C$105:$C$116)<0,0, IF(FORECAST($C101,D$105:D$116,$C$105:$C$116)>100,100, FORECAST($C101,D$105:D$116,$C$105:$C$116)))) -> 84.60269554 | H101: =IF(MAX(C105:C116)-MIN(C105:C116)<5,AVERAGEIF(C105:C116,">0",H105:H116), IF(FORECAST($C101,H$105:H$116,$C$105:$C$116)<0,0, IF(FORECAST($C101,H$105:H$116,$C$105:$C$116)>100,100, FORECAST($C101,H$105:H$116,$C$105:$C$116)))) -> 5.494549937 | I101: =IF(MAX(C105:C116)-MIN(C105:C116)<5,AVERAGEIF(C105:C116,">0",I105:I116), IF(FORECAST($C101,I$105:I$116,$C$105:$C$116)<0,0, IF(FORECAST($C101,I$105:I$116,$C$105:$C$116)>100,100, FORECAST($C101,I$105:I$116,$C$105:$C$116)))) -> 84.51803985 | M101: =IF(MAX(C105:C116)-MIN(C105:C116)<5,AVERAGEIF(C105:C116,">0",M105:M116), IF(FORECAST($C101,M$105:M$116,$C$105:$C$116)<0,0, IF(FORECAST($C101,M$105:M$116,$C$105:$C$116)>100,100, FORECAST($C101,M$105:M$116,$C$105:$C$116)))) -> 6.817008926 | N101: =IF(MAX(C105:C116)-MIN(C105:C116)<5,AVERAGEIF(C105:C116,">0",N105:N116), IF(FORECAST($C101,N$105:N$116,$C$105:$C$116)<0,0, IF(FORECAST($C101,N$105:N$116,$C$105:$C$116)>100,100, FORECAST($C101,N$105:N$116,$C$105:$C$116)))) -> 82.99435105 | R101: =IF(MAX(C105:C116)-MIN(C105:C116)<5,AVERAGEIF(C105:C116,">0",R105:R116), IF(FORECAST($C101,R$105:R$116,$C$105:$C$116)<0,0, IF(FORECAST($C101,R$105:R$116,$C$105:$C$116)>100,100, FORECAST($C101,R$105:R$116,$C$105:$C$116)))) -> 10.69966748 | S101: =IF(MAX(C105:C116)-MIN(C105:C116)<5,AVERAGEIF(C105:C116,">0",S105:S116), IF(FORECAST($C101,S$105:S$116,$C$105:$C$116)<0,0, IF(FORECAST($C101,S$105:S$116,$C$105:$C$116)>100,100, FORECAST($C101,S$105:S$116,$C$105:$C$116)))) -> 98.24655248 | W101: =IF(MAX(C105:C116)-MIN(C105:C116)<5,AVERAGEIF(C105:C116,">0",W105:W116), IF(FORECAST($C101,W$105:W$116,$C$105:$C$116)<0,0, IF(FORECAST($C101,W$105:W$116,$C$105:$C$116)>100,100, FORECAST($C101,W$105:W$116,$C$105:$C$116)))) -> 0.222823715 | X101: =IF(MAX(C105:C116)-MIN(C105:C116)<5,AVERAGEIF(C105:C116,">0",X105:X116), IF(FORECAST($C101,X$105:X$116,$C$105:$C$116)<0,0, IF(FORECAST($C101,X$105:X$116,$C$105:$C$116)>100,100, FORECAST($C101,X$105:X$116,$C$105:$C$116)))) -> 98.92354325 | AB101: =IF(MAX(C105:C116)-MIN(C105:C116)<5,AVERAGEIF(C105:C116,">0",AB105:AB116), IF(FORECAST($C101,AB$105:AB$116,$C$105:$C$116)<0,0, IF(FORECAST($C101,AB$105:AB$116,$C$105:$C$116)>100,100, FORECAST($C101,AB$105:AB$116,$C$105:$C$116)))) -> 0.5485600422
C102: =MaxRegYear(C100,C105:C116) -> 2020 | D102: =IF(MAX(C105:C116)-MIN(C105:C116)<5,AVERAGEIF(C105:C116,">0",D105:D116), IF(FORECAST($C102,D$105:D$116,$C$105:$C$116)<0,0, IF(FORECAST($C102,D$105:D$116,$C$105:$C$116)>100,100, FORECAST($C102,D$105:D$116,$C$105:$C$116)))) -> 93.24996753 | H102: =IF(MAX(C105:C116)-MIN(C105:C116)<5,AVERAGEIF(C105:C116,">0",H105:H116), IF(FORECAST($C102,H$105:H$116,$C$105:$C$116)<0,0, IF(FORECAST($C102,H$105:H$116,$C$105:$C$116)>100,100, FORECAST($C102,H$105:H$116,$C$105:$C$116)))) -> 2.001434617 | I102: =IF(MAX(C105:C116)-MIN(C105:C116)<5,AVERAGEIF(C105:C116,">0",I105:I116), IF(FORECAST($C102,I$105:I$116,$C$105:$C$116)<0,0, IF(FORECAST($C102,I$105:I$116,$C$105:$C$116)>100,100, FORECAST($C102,I$105:I$116,$C$105:$C$116)))) -> 100 | M102: =IF(MAX(C105:C116)-MIN(C105:C116)<5,AVERAGEIF(C105:C116,">0",M105:M116), IF(FORECAST($C102,M$105:M$116,$C$105:$C$116)<0,0, IF(FORECAST($C102,M$105:M$116,$C$105:$C$116)>100,100, FORECAST($C102,M$105:M$116,$C$105:$C$116)))) -> 0 | N102: =IF(MAX(C105:C116)-MIN(C105:C116)<5,AVERAGEIF(C105:C116,">0",N105:N116), IF(FORECAST($C102,N$105:N$116,$C$105:$C$116)<0,0, IF(FORECAST($C102,N$105:N$116,$C$105:$C$116)>100,100, FORECAST($C102,N$105:N$116,$C$105:$C$116)))) -> 100 | R102: =IF(MAX(C105:C116)-MIN(C105:C116)<5,AVERAGEIF(C105:C116,">0",R105:R116), IF(FORECAST($C102,R$105:R$116,$C$105:$C$116)<0,0, IF(FORECAST($C102,R$105:R$116,$C$105:$C$116)>100,100, FORECAST($C102,R$105:R$116,$C$105:$C$116)))) -> 0 | S102: =IF(MAX(C105:C116)-MIN(C105:C116)<5,AVERAGEIF(C105:C116,">0",S105:S116), IF(FORECAST($C102,S$105:S$116,$C$105:$C$116)<0,0, IF(FORECAST($C102,S$105:S$116,$C$105:$C$116)>100,100, FORECAST($C102,S$105:S$116,$C$105:$C$116)))) -> 99.68406119 | W102: =IF(MAX(C105:C116)-MIN(C105:C116)<5,AVERAGEIF(C105:C116,">0",W105:W116), IF(FORECAST($C102,W$105:W$116,$C$105:$C$116)<0,0, IF(FORECAST($C102,W$105:W$116,$C$105:$C$116)>100,100, FORECAST($C102,W$105:W$116,$C$105:$C$116)))) -> 0 | X102: =IF(MAX(C105:C116)-MIN(C105:C116)<5,AVERAGEIF(C105:C116,">0",X105:X116), IF(FORECAST($C102,X$105:X$116,$C$105:$C$116)<0,0, IF(FORECAST($C102,X$105:X$116,$C$105:$C$116)>100,100, FORECAST($C102,X$105:X$116,$C$105:$C$116)))) -> 99.9248352 | AB102: =IF(MAX(C105:C116)-MIN(C105:C116)<5,AVERAGEIF(C105:C116,">0",AB105:AB116), IF(FORECAST($C102,AB$105:AB$116,$C$105:$C$116)<0,0, IF(FORECAST($C102,AB$105:AB$116,$C$105:$C$116)>100,100, FORECAST($C102,AB$105:AB$116,$C$105:$C$116)))) -> 0
B104: Survey | C104: Year | D104: Improved | E104: Not shared | H104: Open defecation | I104: Improved | J104: Not shared | M104: Open defecation | N104: Improved | O104: Not shared | R104: Open defecation | S104: Improved | T104: Not shared | W104: Open defecation | X104: Improved | Y104: Not shared | AB104: Open defecation
B105: MICS00 | C105: 2000 | D105: =IF(ISERROR(INDIRECT(CONCATENATE($B105,"!C122"))),"",INDIRECT(CONCATENATE($B105,"!C122"))) -> 91.01028637 | E105: =IF(ISERROR(INDIRECT(CONCATENATE($B105,"!C129"))),"",INDIRECT(CONCATENATE($B105,"!C129"))) -> N/A | H105: =IF(ISERROR(INDIRECT(CONCATENATE($B105,"!C127"))),"",INDIRECT(CONCATENATE($B105,"!C127"))) -> 1.713078924 | I105: =IF(ISERROR(INDIRECT(CONCATENATE($B105,"!D122"))),"",INDIRECT(CONCATENATE($B105,"!D122"))) -> 82.13192893 | J105: =IF(ISERROR(INDIRECT(CONCATENATE($B105,"!D129"))),"",INDIRECT(CONCATENATE($B105,"!D129"))) -> N/A | M105: =IF(ISERROR(INDIRECT(CONCATENATE($B105,"!D127"))),"",INDIRECT(CONCATENATE($B105,"!D127"))) -> 8.866364632 | N105: =IF(ISERROR(INDIRECT(CONCATENATE($B105,"!E122"))),"",INDIRECT(CONCATENATE($B105,"!E122"))) -> 77.76287962 | O105: =IF(ISERROR(INDIRECT(CONCATENATE($B105,"!E129"))),"",INDIRECT(CONCATENATE($B105,"!E129"))) -> N/A | R105: =IF(ISERROR(INDIRECT(CONCATENATE($B105,"!E127"))),"",INDIRECT(CONCATENATE($B105,"!E127"))) -> 15.20546967 | S105: =IF(ISERROR(INDIRECT(CONCATENATE($B105,"!F122"))),"",INDIRECT(CONCATENATE($B105,"!F122"))) -> 98.93949419 | T105: =IF(ISERROR(INDIRECT(CONCATENATE($B105,"!F129"))),"",INDIRECT(CONCATENATE($B105,"!F129"))) -> N/A | W105: =IF(ISERROR(INDIRECT(CONCATENATE($B105,"!F127"))),"",INDIRECT(CONCATENATE($B105,"!F127"))) -> 0.2678715035 | X105: =IF(ISERROR(INDIRECT(CONCATENATE($B105,"!G122"))),"",INDIRECT(CONCATENATE($B105,"!G122"))) -> 99.10657601 | Y105: =IF(ISERROR(INDIRECT(CONCATENATE($B105,"!G129"))),"",INDIRECT(CONCATENATE($B105,"!G129"))) -> N/A | AB105: =IF(ISERROR(INDIRECT(CONCATENATE($B105,"!G2127"))),"",INDIRECT(CONCATENATE($B105,"!G127"))) -> 0.7709419425
B106: MICS06 | C106: 2006 | D106: 77.46181746 | E106: 78.20145449 | H106: 10.07177845 | I106: 92.35941094 | J106: 78.42819518 | M106: 1.739648453 | N106: 95.83182451 | O106: 79.88624845 | R106: 0.6213041032 | S106: 97.33667523 | T106: 84.50887675 | W106: 0.09928997629 | X106: 98.73045771 | Y106: 86.12199513 | AB106: 0.04656972385
B107: MICS11 | C107: 2011 | D107: 89.57070674 | E107: 95.56547713 | H107: 3.653982365 | I107: 96.67985951 | J107: 96.63982386 | M107: 0.4103484313 | N107: 98.73874119 | O107: 96.42926874 | R107: 0 | S107: 99.5544119 | T107: 97.31715375 | W107: 0 | X107: 99.84955209 | Y107: 98.29876949 | AB107: 0
B108: MICS18 | C108: 2018 | D108: 95.50069757 | E108: 95.26703096 | H108: 0.4264082032 | I108: 98.91285126 | J108: 95.42516213 | M108: 0.07027066315 | N108: 99.59890813 | O108: 96.16316397 | R108: 0.02105205208 | S108: 99.67126883 | T108: 97.97040289 | W108: 0 | X108: 99.75984811 | Y108: 99.04011576 | AB108: 0
B118: =CONCATENATE("National use of sanitation facilities, ",C99,"–",C100) -> National use of sanitation facilities, 2000–2020 | S118: Data points used for regression
A197: URBAN | D197: Poorest | I197: Poor | N197: Middle | S197: Rich | X197: Richest
D198: Improved | E198: Basic | F198: Limited | G198: Unimproved | H198: Open defecation | I198: Improved | J198: Basic | K198: Limited | L198: Unimproved | M198: Open defecation | N198: Improved | O198: Basic | P198: Limited | Q198: Unimproved | R198: Open defecation | S198: Improved | T198: Basic | U198: Limited | V198: Unimproved | W198: Open defecation | X198: Improved | Y198: Basic | Z198: Limited | AA198: Unimproved | AB198: Open defecation
A199: Forecast period: | C199: 2000 | D199: =IF((D201+H201)>100,D201*100/(D201+H201),D201) -> 96.69178365 | E199: =D199*AVERAGEIF(E205:E216,">0")/100 -> 85.42149466 | F199: =D199*(100-AVERAGEIF(E205:E216,">0"))/100 -> 11.27028898 | G199: =100-(E199+F199+H199) -> 2.884809492 | H199: =IF((D201+H201)>100,H201*100/(D201+H201),H201) -> 0.4234068626 | I199: =IF((I201+M201)>100,I201*100/(I201+M201),I201) -> 98.3102774 | J199: =I199*AVERAGEIF(J205:J216,">0")/100 -> 88.06017058 | K199: =I199*(100-AVERAGEIF(J205:J216,">0"))/100 -> 10.25010682 | L199: =100-(J199+K199+M199) -> 1.4115264 | M199: =IF((I201+M201)>100,M201*100/(I201+M201),M201) -> 0.278196196 | N199: =IF((N201+R201)>100,N201*100/(N201+R201),N201) -> 99.24896608 | O199: =N199*AVERAGEIF(O205:O216,">0")/100 -> 89.62888135 | P199: =N199*(100-AVERAGEIF(O205:O216,">0"))/100 -> 9.620084726 | Q199: =100-(O199+P199+R199) -> 0.7003330151 | R199: =IF((N201+R201)>100,R201*100/(N201+R201),R201) -> 0.05070090653 | S199: =IF((S201+W201)>100,S201*100/(S201+W201),S201) -> 99.33631111 | T199: =S199*AVERAGEIF(T205:T216,">0")/100 -> 93.1313612 | U199: =S199*(100-AVERAGEIF(T205:T216,">0"))/100 -> 6.204949916 | V199: =100-(T199+U199+W199) -> 0.6383645492 | W199: =IF((S201+W201)>100,W201*100/(S201+W201),W201) -> 0.02532433895 | X199: =IF((X201+AB201)>100,X201*100/(X201+AB201),X201) -> 99.49312342 | Y199: =X199*AVERAGEIF(Y205:Y216,">0")/100 -> 94.36930444 | Z199: =X199*(100-AVERAGEIF(Y205:Y216,">0"))/100 -> 5.123818988 | AA199: =100-(Y199+Z199+AB199) -> 0.4461859413 | AB199: =IF((X201+AB201)>100,AB201*100/(X201+AB201),AB201) -> 0.06069063505
C200: 2020 | D200: =IF((D202+H202)>100,D202*100/(D202+H202),D202) -> 99.19091566 | E200: =D200*AVERAGEIF(E205:E216,">0")/100 -> 87.62933057 | F200: =D200*(100-AVERAGEIF(E205:E216,">0"))/100 -> 11.56158509 | G200: =100-(E200+F200+H200) -> 0.8090843376 | H200: =IF((D202+H202)>100,H202*100/(D202+H202),H202) -> 0 | I200: =IF((I202+M202)>100,I202*100/(I202+M202),I202) -> 99.56523931 | J200: =I200*AVERAGEIF(J205:J216,">0")/100 -> 89.18428662 | K200: =I200*(100-AVERAGEIF(J205:J216,">0"))/100 -> 10.38095269 | L200: =100-(J200+K200+M200) -> 0.4347606915 | M200: =IF((I202+M202)>100,M202*100/(I202+M202),M202) -> 0 | N200: =IF((N202+R202)>100,N202*100/(N202+R202),N202) -> 99.64748738 | O200: =N200*AVERAGEIF(O205:O216,">0")/100 -> 89.98877445 | P200: =N200*(100-AVERAGEIF(O205:O216,">0"))/100 -> 9.658712923 | Q200: =100-(O200+P200+R200) -> 0.3525126223 | R200: =IF((N202+R202)>100,R202*100/(N202+R202),R202) -> 0 | S200: =IF((S202+W202)>100,S202*100/(S202+W202),S202) -> 99.69339476 | T200: =S200*AVERAGEIF(T205:T216,">0")/100 -> 93.46613995 | U200: =S200*(100-AVERAGEIF(T205:T216,">0"))/100 -> 6.227254813 | V200: =100-(T200+U200+W200) -> 0.3066052405 | W200: =IF((S202+W202)>100,W202*100/(S202+W202),W202) -> 0 | X200: =IF((X202+AB202)>100,X202*100/(X202+AB202),X202) -> 99.88399328 | Y200: =X200*AVERAGEIF(Y205:Y216,">0")/100 -> 94.74004479 | Z200: =X200*(100-AVERAGEIF(Y205:Y216,">0"))/100 -> 5.143948484 | AA200: =100-(Y200+Z200+AB200) -> 0.1160067217 | AB200: =IF((X202+AB202)>100,AB202*100/(X202+AB202),AB202) -> 0
A201: Regression period: | C201: =MinRegYear(C199,C205:C216) -> 2000 | D201: =IF(MAX(C205:C216)-MIN(C205:C216)<5,AVERAGEIF(C205:C216,">0",D205:D216), IF(FORECAST($C201,D$205:D$216,$C$205:$C$216)<0,0, IF(FORECAST($C201,D$205:D$216,$C$205:$C$216)>100,100, FORECAST($C201,D$205:D$216,$C$205:$C$216)))) -> 96.69178365 | H201: =IF(MAX(C205:C216)-MIN(C205:C216)<5,AVERAGEIF(C205:C216,">0",H205:H216), IF(FORECAST($C201,H$205:H$216,$C$205:$C$216)<0,0, IF(FORECAST($C201,H$205:H$216,$C$205:$C$216)>100,100, FORECAST($C201,H$205:H$216,$C$205:$C$216)))) -> 0.4234068626 | I201: =IF(MAX(C205:C216)-MIN(C205:C216)<5,AVERAGEIF(C205:C216,">0",I205:I216), IF(FORECAST($C201,I$205:I$216,$C$205:$C$216)<0,0, IF(FORECAST($C201,I$205:I$216,$C$205:$C$216)>100,100, FORECAST($C201,I$205:I$216,$C$205:$C$216)))) -> 98.3102774 | M201: =IF(MAX(C205:C216)-MIN(C205:C216)<5,AVERAGEIF(C205:C216,">0",M205:M216), IF(FORECAST($C201,M$205:M$216,$C$205:$C$216)<0,0, IF(FORECAST($C201,M$205:M$216,$C$205:$C$216)>100,100, FORECAST($C201,M$205:M$216,$C$205:$C$216)))) -> 0.278196196 | N201: =IF(MAX(C205:C216)-MIN(C205:C216)<5,AVERAGEIF(C205:C216,">0",N205:N216), IF(FORECAST($C201,N$205:N$216,$C$205:$C$216)<0,0, IF(FORECAST($C201,N$205:N$216,$C$205:$C$216)>100,100, FORECAST($C201,N$205:N$216,$C$205:$C$216)))) -> 99.24896608 | R201: =IF(MAX(C205:C216)-MIN(C205:C216)<5,AVERAGEIF(C205:C216,">0",R205:R216), IF(FORECAST($C201,R$205:R$216,$C$205:$C$216)<0,0, IF(FORECAST($C201,R$205:R$216,$C$205:$C$216)>100,100, FORECAST($C201,R$205:R$216,$C$205:$C$216)))) -> 0.05070090653 | S201: =IF(MAX(C205:C216)-MIN(C205:C216)<5,AVERAGEIF(C205:C216,">0",S205:S216), IF(FORECAST($C201,S$205:S$216,$C$205:$C$216)<0,0, IF(FORECAST($C201,S$205:S$216,$C$205:$C$216)>100,100, FORECAST($C201,S$205:S$216,$C$205:$C$216)))) -> 99.33631111 | W201: =IF(MAX(C205:C216)-MIN(C205:C216)<5,AVERAGEIF(C205:C216,">0",W205:W216), IF(FORECAST($C201,W$205:W$216,$C$205:$C$216)<0,0, IF(FORECAST($C201,W$205:W$216,$C$205:$C$216)>100,100, FORECAST($C201,W$205:W$216,$C$205:$C$216)))) -> 0.02532433895 | X201: =IF(MAX(C205:C216)-MIN(C205:C216)<5,AVERAGEIF(C205:C216,">0",X205:X216), IF(FORECAST($C201,X$205:X$216,$C$205:$C$216)<0,0, IF(FORECAST($C201,X$205:X$216,$C$205:$C$216)>100,100, FORECAST($C201,X$205:X$216,$C$205:$C$216)))) -> 99.49312342 | AB201: =IF(MAX(C205:C216)-MIN(C205:C216)<5,AVERAGEIF(C205:C216,">0",AB205:AB216), IF(FORECAST($C201,AB$205:AB$216,$C$205:$C$216)<0,0, IF(FORECAST($C201,AB$205:AB$216,$C$205:$C$216)>100,100, FORECAST($C201,AB$205:AB$216,$C$205:$C$216)))) -> 0.06069063505
C202: =MaxRegYear(C200,C205:C216) -> 2020 | D202: =IF(MAX(C205:C216)-MIN(C205:C216)<5,AVERAGEIF(C205:C216,">0",D205:D216), IF(FORECAST($C202,D$205:D$216,$C$205:$C$216)<0,0, IF(FORECAST($C202,D$205:D$216,$C$205:$C$216)>100,100, FORECAST($C202,D$205:D$216,$C$205:$C$216)))) -> 99.19091566 | H202: =IF(MAX(C205:C216)-MIN(C205:C216)<5,AVERAGEIF(C205:C216,">0",H205:H216), IF(FORECAST($C202,H$205:H$216,$C$205:$C$216)<0,0, IF(FORECAST($C202,H$205:H$216,$C$205:$C$216)>100,100, FORECAST($C202,H$205:H$216,$C$205:$C$216)))) -> 0 | I202: =IF(MAX(C205:C216)-MIN(C205:C216)<5,AVERAGEIF(C205:C216,">0",I205:I216), IF(FORECAST($C202,I$205:I$216,$C$205:$C$216)<0,0, IF(FORECAST($C202,I$205:I$216,$C$205:$C$216)>100,100, FORECAST($C202,I$205:I$216,$C$205:$C$216)))) -> 99.56523931 | M202: =IF(MAX(C205:C216)-MIN(C205:C216)<5,AVERAGEIF(C205:C216,">0",M205:M216), IF(FORECAST($C202,M$205:M$216,$C$205:$C$216)<0,0, IF(FORECAST($C202,M$205:M$216,$C$205:$C$216)>100,100, FORECAST($C202,M$205:M$216,$C$205:$C$216)))) -> 0 | N202: =IF(MAX(C205:C216)-MIN(C205:C216)<5,AVERAGEIF(C205:C216,">0",N205:N216), IF(FORECAST($C202,N$205:N$216,$C$205:$C$216)<0,0, IF(FORECAST($C202,N$205:N$216,$C$205:$C$216)>100,100, FORECAST($C202,N$205:N$216,$C$205:$C$216)))) -> 99.64748738 | R202: =IF(MAX(C205:C216)-MIN(C205:C216)<5,AVERAGEIF(C205:C216,">0",R205:R216), IF(FORECAST($C202,R$205:R$216,$C$205:$C$216)<0,0, IF(FORECAST($C202,R$205:R$216,$C$205:$C$216)>100,100, FORECAST($C202,R$205:R$216,$C$205:$C$216)))) -> 0 | S202: =IF(MAX(C205:C216)-MIN(C205:C216)<5,AVERAGEIF(C205:C216,">0",S205:S216), IF(FORECAST($C202,S$205:S$216,$C$205:$C$216)<0,0, IF(FORECAST($C202,S$205:S$216,$C$205:$C$216)>100,100, FORECAST($C202,S$205:S$216,$C$205:$C$216)))) -> 99.69339476 | W202: =IF(MAX(C205:C216)-MIN(C205:C216)<5,AVERAGEIF(C205:C216,">0",W205:W216), IF(FORECAST($C202,W$205:W$216,$C$205:$C$216)<0,0, IF(FORECAST($C202,W$205:W$216,$C$205:$C$216)>100,100, FORECAST($C202,W$205:W$216,$C$205:$C$216)))) -> 0 | X202: =IF(MAX(C205:C216)-MIN(C205:C216)<5,AVERAGEIF(C205:C216,">0",X205:X216), IF(FORECAST($C202,X$205:X$216,$C$205:$C$216)<0,0, IF(FORECAST($C202,X$205:X$216,$C$205:$C$216)>100,100, FORECAST($C202,X$205:X$216,$C$205:$C$216)))) -> 99.88399328 | AB202: =IF(MAX(C205:C216)-MIN(C205:C216)<5,AVERAGEIF(C205:C216,">0",AB205:AB216), IF(FORECAST($C202,AB$205:AB$216,$C$205:$C$216)<0,0, IF(FORECAST($C202,AB$205:AB$216,$C$205:$C$216)>100,100, FORECAST($C202,AB$205:AB$216,$C$205:$C$216)))) -> 0
B204: Survey | C204: Year | D204: Improved | E204: Not shared | H204: Open defecation | I204: Improved | J204: Not shared | M204: Open defecation | N204: Improved | O204: Not shared | R204: Open defecation | S204: Improved | T204: Not shared | W204: Open defecation | X204: Improved | Y204: Not shared | AB204: Open defecation
B205: MICS00 | C205: 2000 | D205: =IF(ISERROR(INDIRECT(CONCATENATE($B205,"!H122"))),"",INDIRECT(CONCATENATE($B205,"!H122"))) -> 97.1848226 | E205: =IF(ISERROR(INDIRECT(CONCATENATE($B205,"!H129"))),"",INDIRECT(CONCATENATE($B205,"!H129"))) -> N/A | H205: =IF(ISERROR(INDIRECT(CONCATENATE($B205,"!H127"))),"",INDIRECT(CONCATENATE($B205,"!H127"))) -> 0.5686516628 | I205: =IF(ISERROR(INDIRECT(CONCATENATE($B205,"!I122"))),"",INDIRECT(CONCATENATE($B205,"!I122"))) -> 98.75826993 | J205: =IF(ISERROR(INDIRECT(CONCATENATE($B205,"!I129"))),"",INDIRECT(CONCATENATE($B205,"!I129"))) -> N/A | M205: =IF(ISERROR(INDIRECT(CONCATENATE($B205,"!I127"))),"",INDIRECT(CONCATENATE($B205,"!I127"))) -> 0.3494034092 | N205: =IF(ISERROR(INDIRECT(CONCATENATE($B205,"!J122"))),"",INDIRECT(CONCATENATE($B205,"!J122"))) -> 99.49188016 | O205: =IF(ISERROR(INDIRECT(CONCATENATE($B205,"!J129"))),"",INDIRECT(CONCATENATE($B205,"!J129"))) -> N/A | R205: =IF(ISERROR(INDIRECT(CONCATENATE($B205,"!J127"))),"",INDIRECT(CONCATENATE($B205,"!J127"))) -> 0.0677421105 | S205: =IF(ISERROR(INDIRECT(CONCATENATE($B205,"!K122"))),"",INDIRECT(CONCATENATE($B205,"!K122"))) -> 99.83419425 | T205: =IF(ISERROR(INDIRECT(CONCATENATE($B205,"!K129"))),"",INDIRECT(CONCATENATE($B205,"!K129"))) -> N/A | W205: =IF(ISERROR(INDIRECT(CONCATENATE($B205,"!K127"))),"",INDIRECT(CONCATENATE($B205,"!K127"))) -> 0.03680189798 | X205: =IF(ISERROR(INDIRECT(CONCATENATE($B205,"!L122"))),"",INDIRECT(CONCATENATE($B205,"!L122"))) -> 99.84697026 | Y205: =IF(ISERROR(INDIRECT(CONCATENATE($B205,"!L129"))),"",INDIRECT(CONCATENATE($B205,"!L129"))) -> N/A | AB205: =IF(ISERROR(INDIRECT(CONCATENATE($B205,"!L2127"))),"",INDIRECT(CONCATENATE($B205,"!L127"))) -> 0.08819699355
B206: MICS06 | C206: 2006 | D206: 96.85240813 | E206: 74.61230784 | H206: 0.06773180545 | I206: 98.03907104 | J206: 76.67047695 | M206: 0.02111099492 | N206: 98.90951143 | O206: 78.02269574 | R206: 0.01053866611 | S206: 98.65455569 | T206: 85.49230293 | W206: 0 | X206: 98.98719119 | Y206: 86.47238703 | AB206: 0
B207: MICS11 | C207: 2011 | D207: 97.80840344 | E207: 95.67963869 | H207: 0.04254820678 | I207: 98.95885984 | J207: 96.47693743 | M207: 0.2153648079 | N207: 99.63039266 | O207: 96.29398317 | R207: 0 | S207: 99.6048028 | T207: 97.48528587 | W207: 0 | X207: 99.86654116 | Y207: 98.83872857 | AB207: 0
B208: MICS18 | C208: 2018 | D208: 99.29498144 | E208: 94.74038024 | H208: 0 | I208: 99.68109214 | J208: 95.57373942 | M208: 0 | N208: 99.66149234 | O208: 96.60467643 | R208: 0 | S208: 99.8765881 | T208: 98.28319134 | W208: 0 | X208: 99.95581333 | Y208: 99.23911618 | AB208: 0
B218: =CONCATENATE("Urban use of sanitation facilities, ",C199,"–",C200) -> Urban use of sanitation facilities, 2000–2020 | S218: Data points used for regression
A297: RURAL | D297: Poorest | I297: Poor | N297: Middle | S297: Rich | X297: Richest
D298: Improved | E298: Basic | F298: Limited | G298: Unimproved | H298: Open defecation | I298: Improved | J298: Basic | K298: Limited | L298: Unimproved | M298: Open defecation | N298: Improved | O298: Basic | P298: Limited | Q298: Unimproved | R298: Open defecation | S298: Improved | T298: Basic | U298: Limited | V298: Unimproved | W298: Open defecation | X298: Improved | Y298: Basic | Z298: Limited | AA298: Unimproved | AB298: Open defecation
A299: Forecast period: | C299: 2000 | D299: =IF((D301+H301)>100,D301*100/(D301+H301),D301) -> 41.92666829 | E299: =D299*AVERAGEIF(E305:E316,">0")/100 -> 37.83521063 | F299: =D299*(100-AVERAGEIF(E305:E316,">0"))/100 -> 4.091457664 | G299: =100-(E299+F299+H299) -> 31.13183313 | H299: =IF((D301+H301)>100,H301*100/(D301+H301),H301) -> 26.94149858 | I299: =IF((I301+M301)>100,I301*100/(I301+M301),I301) -> 70.36772959 | J299: =I299*AVERAGEIF(J305:J316,">0")/100 -> 63.92867629 | K299: =I299*(100-AVERAGEIF(J305:J316,">0"))/100 -> 6.439053301 | L299: =100-(J299+K299+M299) -> 15.5110286 | M299: =IF((I301+M301)>100,M301*100/(I301+M301),M301) -> 14.12124181 | N299: =IF((N301+R301)>100,N301*100/(N301+R301),N301) -> 75.15098234 | O299: =N299*AVERAGEIF(O305:O316,">0")/100 -> 69.61822421 | P299: =N299*(100-AVERAGEIF(O305:O316,">0"))/100 -> 5.532758127 | Q299: =100-(O299+P299+R299) -> 13.36929567 | R299: =IF((N301+R301)>100,R301*100/(N301+R301),R301) -> 11.47972199 | S299: =IF((S301+W301)>100,S301*100/(S301+W301),S301) -> 79.63366965 | T299: =S299*AVERAGEIF(T305:T316,">0")/100 -> 74.18906021 | U299: =S299*(100-AVERAGEIF(T305:T316,">0"))/100 -> 5.444609439 | V299: =100-(T299+U299+W299) -> 11.36544197 | W299: =IF((S301+W301)>100,W301*100/(S301+W301),W301) -> 9.000888382 | X299: =IF((X301+AB301)>100,X301*100/(X301+AB301),X301) -> 79.87154008 | Y299: =X299*AVERAGEIF(Y305:Y316,">0")/100 -> 75.99252726 | Z299: =X299*(100-AVERAGEIF(Y305:Y316,">0"))/100 -> 3.879012821 | AA299: =100-(Y299+Z299+AB299) -> 8.671310254 | AB299: =IF((X301+AB301)>100,AB301*100/(X301+AB301),AB301) -> 11.45714967
C300: 2020 | D300: =IF((D302+H302)>100,D302*100/(D302+H302),D302) -> 99.49455997 | E300: =D300*AVERAGEIF(E305:E316,">0")/100 -> 89.78527954 | F300: =D300*(100-AVERAGEIF(E305:E316,">0"))/100 -> 9.709280429 | G300: =100-(E300+F300+H300) -> 0.5054400286 | H300: =IF((D302+H302)>100,H302*100/(D302+H302),H302) -> 0 | I300: =IF((I302+M302)>100,I302*100/(I302+M302),I302) -> 100 | J300: =I300*AVERAGEIF(J305:J316,">0")/100 -> 90.84942297 | K300: =I300*(100-AVERAGEIF(J305:J316,">0"))/100 -> 9.15057703 | L300: =100-(J300+K300+M300) -> 0 | M300: =IF((I302+M302)>100,M302*100/(I302+M302),M302) -> 0 | N300: =IF((N302+R302)>100,N302*100/(N302+R302),N302) -> 100 | O300: =N300*AVERAGEIF(O305:O316,">0")/100 -> 92.63780997 | P300: =N300*(100-AVERAGEIF(O305:O316,">0"))/100 -> 7.362190027 | Q300: =100-(O300+P300+R300) -> 0 | R300: =IF((N302+R302)>100,R302*100/(N302+R302),R302) -> 0 | S300: =IF((S302+W302)>100,S302*100/(S302+W302),S302) -> 100 | T300: =S300*AVERAGEIF(T305:T316,">0")/100 -> 93.16293037 | U300: =S300*(100-AVERAGEIF(T305:T316,">0"))/100 -> 6.837069625 | V300: =100-(T300+U300+W300) -> 0 | W300: =IF((S302+W302)>100,W302*100/(S302+W302),W302) -> 0 | X300: =IF((X302+AB302)>100,X302*100/(X302+AB302),X302) -> 100 | Y300: =X300*AVERAGEIF(Y305:Y316,">0")/100 -> 95.14343555 | Z300: =X300*(100-AVERAGEIF(Y305:Y316,">0"))/100 -> 4.85656445 | AA300: =100-(Y300+Z300+AB300) -> 0 | AB300: =IF((X302+AB302)>100,AB302*100/(X302+AB302),AB302) -> 0
A301: Regression period: | C301: =MinRegYear(C299,C305:C316) -> 2000 | D301: =IF(MAX(C305:C316)-MIN(C305:C316)<5,AVERAGEIF(C305:C316,">0",D305:D316), IF(FORECAST($C301,D$305:D$316,$C$305:$C$316)<0,0, IF(FORECAST($C301,D$305:D$316,$C$305:$C$316)>100,100, FORECAST($C301,D$305:D$316,$C$305:$C$316)))) -> 41.92666829 | H301: =IF(MAX(C305:C316)-MIN(C305:C316)<5,AVERAGEIF(C305:C316,">0",H305:H316), IF(FORECAST($C301,H$305:H$316,$C$305:$C$316)<0,0, IF(FORECAST($C301,H$305:H$316,$C$305:$C$316)>100,100, FORECAST($C301,H$305:H$316,$C$305:$C$316)))) -> 26.94149858 | I301: =IF(MAX(C305:C316)-MIN(C305:C316)<5,AVERAGEIF(C305:C316,">0",I305:I316), IF(FORECAST($C301,I$305:I$316,$C$305:$C$316)<0,0, IF(FORECAST($C301,I$305:I$316,$C$305:$C$316)>100,100, FORECAST($C301,I$305:I$316,$C$305:$C$316)))) -> 70.36772959 | M301: =IF(MAX(C305:C316)-MIN(C305:C316)<5,AVERAGEIF(C305:C316,">0",M305:M316), IF(FORECAST($C301,M$305:M$316,$C$305:$C$316)<0,0, IF(FORECAST($C301,M$305:M$316,$C$305:$C$316)>100,100, FORECAST($C301,M$305:M$316,$C$305:$C$316)))) -> 14.12124181 | N301: =IF(MAX(C305:C316)-MIN(C305:C316)<5,AVERAGEIF(C305:C316,">0",N305:N316), IF(FORECAST($C301,N$305:N$316,$C$305:$C$316)<0,0, IF(FORECAST($C301,N$305:N$316,$C$305:$C$316)>100,100, FORECAST($C301,N$305:N$316,$C$305:$C$316)))) -> 75.15098234 | R301: =IF(MAX(C305:C316)-MIN(C305:C316)<5,AVERAGEIF(C305:C316,">0",R305:R316), IF(FORECAST($C301,R$305:R$316,$C$305:$C$316)<0,0, IF(FORECAST($C301,R$305:R$316,$C$305:$C$316)>100,100, FORECAST($C301,R$305:R$316,$C$305:$C$316)))) -> 11.47972199 | S301: =IF(MAX(C305:C316)-MIN(C305:C316)<5,AVERAGEIF(C305:C316,">0",S305:S316), IF(FORECAST($C301,S$305:S$316,$C$305:$C$316)<0,0, IF(FORECAST($C301,S$305:S$316,$C$305:$C$316)>100,100, FORECAST($C301,S$305:S$316,$C$305:$C$316)))) -> 79.63366965 | W301: =IF(MAX(C305:C316)-MIN(C305:C316)<5,AVERAGEIF(C305:C316,">0",W305:W316), IF(FORECAST($C301,W$305:W$316,$C$305:$C$316)<0,0, IF(FORECAST($C301,W$305:W$316,$C$305:$C$316)>100,100, FORECAST($C301,W$305:W$316,$C$305:$C$316)))) -> 9.000888382 | X301: =IF(MAX(C305:C316)-MIN(C305:C316)<5,AVERAGEIF(C305:C316,">0",X305:X316), IF(FORECAST($C301,X$305:X$316,$C$305:$C$316)<0,0, IF(FORECAST($C301,X$305:X$316,$C$305:$C$316)>100,100, FORECAST($C301,X$305:X$316,$C$305:$C$316)))) -> 79.87154008 | AB301: =IF(MAX(C305:C316)-MIN(C305:C316)<5,AVERAGEIF(C305:C316,">0",AB305:AB316), IF(FORECAST($C301,AB$305:AB$316,$C$305:$C$316)<0,0, IF(FORECAST($C301,AB$305:AB$316,$C$305:$C$316)>100,100, FORECAST($C301,AB$305:AB$316,$C$305:$C$316)))) -> 11.45714967
C302: =MaxRegYear(C300,C305:C316) -> 2020 | D302: =IF(MAX(C305:C316)-MIN(C305:C316)<5,AVERAGEIF(C305:C316,">0",D305:D316), IF(FORECAST($C302,D$305:D$316,$C$305:$C$316)<0,0, IF(FORECAST($C302,D$305:D$316,$C$305:$C$316)>100,100, FORECAST($C302,D$305:D$316,$C$305:$C$316)))) -> 99.49455997 | H302: =IF(MAX(C305:C316)-MIN(C305:C316)<5,AVERAGEIF(C305:C316,">0",H305:H316), IF(FORECAST($C302,H$305:H$316,$C$305:$C$316)<0,0, IF(FORECAST($C302,H$305:H$316,$C$305:$C$316)>100,100, FORECAST($C302,H$305:H$316,$C$305:$C$316)))) -> 0 | I302: =IF(MAX(C305:C316)-MIN(C305:C316)<5,AVERAGEIF(C305:C316,">0",I305:I316), IF(FORECAST($C302,I$305:I$316,$C$305:$C$316)<0,0, IF(FORECAST($C302,I$305:I$316,$C$305:$C$316)>100,100, FORECAST($C302,I$305:I$316,$C$305:$C$316)))) -> 100 | M302: =IF(MAX(C305:C316)-MIN(C305:C316)<5,AVERAGEIF(C305:C316,">0",M305:M316), IF(FORECAST($C302,M$305:M$316,$C$305:$C$316)<0,0, IF(FORECAST($C302,M$305:M$316,$C$305:$C$316)>100,100, FORECAST($C302,M$305:M$316,$C$305:$C$316)))) -> 0 | N302: =IF(MAX(C305:C316)-MIN(C305:C316)<5,AVERAGEIF(C305:C316,">0",N305:N316), IF(FORECAST($C302,N$305:N$316,$C$305:$C$316)<0,0, IF(FORECAST($C302,N$305:N$316,$C$305:$C$316)>100,100, FORECAST($C302,N$305:N$316,$C$305:$C$316)))) -> 100 | R302: =IF(MAX(C305:C316)-MIN(C305:C316)<5,AVERAGEIF(C305:C316,">0",R305:R316), IF(FORECAST($C302,R$305:R$316,$C$305:$C$316)<0,0, IF(FORECAST($C302,R$305:R$316,$C$305:$C$316)>100,100, FORECAST($C302,R$305:R$316,$C$305:$C$316)))) -> 0 | S302: =IF(MAX(C305:C316)-MIN(C305:C316)<5,AVERAGEIF(C305:C316,">0",S305:S316), IF(FORECAST($C302,S$305:S$316,$C$305:$C$316)<0,0, IF(FORECAST($C302,S$305:S$316,$C$305:$C$316)>100,100, FORECAST($C302,S$305:S$316,$C$305:$C$316)))) -> 100 | W302: =IF(MAX(C305:C316)-MIN(C305:C316)<5,AVERAGEIF(C305:C316,">0",W305:W316), IF(FORECAST($C302,W$305:W$316,$C$305:$C$316)<0,0, IF(FORECAST($C302,W$305:W$316,$C$305:$C$316)>100,100, FORECAST($C302,W$305:W$316,$C$305:$C$316)))) -> 0 | X302: =IF(MAX(C305:C316)-MIN(C305:C316)<5,AVERAGEIF(C305:C316,">0",X305:X316), IF(FORECAST($C302,X$305:X$316,$C$305:$C$316)<0,0, IF(FORECAST($C302,X$305:X$316,$C$305:$C$316)>100,100, FORECAST($C302,X$305:X$316,$C$305:$C$316)))) -> 100 | AB302: =IF(MAX(C305:C316)-MIN(C305:C316)<5,AVERAGEIF(C305:C316,">0",AB305:AB316), IF(FORECAST($C302,AB$305:AB$316,$C$305:$C$316)<0,0, IF(FORECAST($C302,AB$305:AB$316,$C$305:$C$316)>100,100, FORECAST($C302,AB$305:AB$316,$C$305:$C$316)))) -> 0
B304: Survey | C304: Year | D304: Improved | E304: Not shared | H304: Open defecation | I304: Improved | J304: Not shared | M304: Open defecation | N304: Improved | O304: Not shared | R304: Open defecation | S304: Improved | T304: Not shared | W304: Open defecation | X304: Improved | Y304: Not shared | AB304: Open defecation
B305: MICS00 | C305: 2000 | D305: =IF(ISERROR(INDIRECT(CONCATENATE($B305,"!M122"))),"",INDIRECT(CONCATENATE($B305,"!M122"))) -> 39.56098151 | E305: =IF(ISERROR(INDIRECT(CONCATENATE($B305,"!M129"))),"",INDIRECT(CONCATENATE($B305,"!M129"))) -> N/A | H305: =IF(ISERROR(INDIRECT(CONCATENATE($B305,"!M127"))),"",INDIRECT(CONCATENATE($B305,"!M127"))) -> 25.86654278 | I305: =IF(ISERROR(INDIRECT(CONCATENATE($B305,"!N122"))),"",INDIRECT(CONCATENATE($B305,"!N122"))) -> 67.64432719 | J305: =IF(ISERROR(INDIRECT(CONCATENATE($B305,"!N129"))),"",INDIRECT(CONCATENATE($B305,"!N129"))) -> N/A | M305: =IF(ISERROR(INDIRECT(CONCATENATE($B305,"!N127"))),"",INDIRECT(CONCATENATE($B305,"!N127"))) -> 16.4341636 | N305: =IF(ISERROR(INDIRECT(CONCATENATE($B305,"!O122"))),"",INDIRECT(CONCATENATE($B305,"!O122"))) -> 73.21911489 | O305: =IF(ISERROR(INDIRECT(CONCATENATE($B305,"!O129"))),"",INDIRECT(CONCATENATE($B305,"!O129"))) -> N/A | R305: =IF(ISERROR(INDIRECT(CONCATENATE($B305,"!O127"))),"",INDIRECT(CONCATENATE($B305,"!O127"))) -> 13.99436712 | S305: =IF(ISERROR(INDIRECT(CONCATENATE($B305,"!P122"))),"",INDIRECT(CONCATENATE($B305,"!P122"))) -> 76.78698016 | T305: =IF(ISERROR(INDIRECT(CONCATENATE($B305,"!P129"))),"",INDIRECT(CONCATENATE($B305,"!P129"))) -> N/A | W305: =IF(ISERROR(INDIRECT(CONCATENATE($B305,"!P127"))),"",INDIRECT(CONCATENATE($B305,"!P127"))) -> 12.02728458 | X305: =IF(ISERROR(INDIRECT(CONCATENATE($B305,"!Q122"))),"",INDIRECT(CONCATENATE($B305,"!Q122"))) -> 74.13568222 | Y305: =IF(ISERROR(INDIRECT(CONCATENATE($B305,"!Q129"))),"",INDIRECT(CONCATENATE($B305,"!Q129"))) -> N/A | AB305: =IF(ISERROR(INDIRECT(CONCATENATE($B305,"!Q2127"))),"",INDIRECT(CONCATENATE($B305,"!Q127"))) -> 16.32168402
B306: MICS06 | C306: 2006 | D306: 61.23785879 | E306: 81.82421882 | H306: 20.11107101 | I306: 81.27529622 | J306: 78.92521172 | M306: 7.183665072 | N306: 84.01578026 | O306: 84.71181372 | R306: 4.640930551 | S306: 89.61072057 | T306: 86.39296683 | W306: 1.855254817 | X306: 93.67091027 | Y306: 88.75953466 | AB306: 0.582352778
B307: MICS11 | C307: 2011 | D307: 76.1736496 | E307: 94.3541624 | H307: 11.66696635 | I307: 92.46014219 | J307: 96.53347994 | M307: 0.4866685319 | N307: 94.0395118 | O307: 96.8848966 | R307: 0.7245709531 | S307: 95.72593163 | T307: 97.82598477 | W307: 0.1448676486 | X307: 98.98407691 | Y307: 97.26187011 | AB307: 0
B308: MICS18 | C308: 2018 | D308: 91.47799371 | E308: 94.54580581 | H308: 1.206903231 | I308: 95.64870683 | J308: 97.08957725 | M308: 0.1850877777 | N308: 97.20756503 | O308: 96.3167196 | R308: 0.2296369544 | S308: 98.95836969 | T308: 95.26983953 | W308: 0.06835069123 | X308: 98.76741408 | Y308: 99.40890189 | AB308: 0
B318: =CONCATENATE("Rural use of sanitation facilities, ",C299,"–",C300) -> Rural use of sanitation facilities, 2000–2020 | S318: Data points used for regression

Sheet Hygiene
B4: Access to hygiene facilities by wealth quintile (%)
B5: =IF(ISERROR(INDIRECT(CONCATENATE($E$32,"!A2"))),"",INDIRECT(CONCATENATE($E$32,"!A2"))) -> Iraq
B7: =CONCATENATE("National ",IF(ISERROR(INDIRECT(CONCATENATE($E$32,"!A2"))),"",INDIRECT(CONCATENATE($E$32,"!A210")))) -> National Access to hygiene facilities | K7: =CONCATENATE("Urban ",IF(ISERROR(INDIRECT(CONCATENATE($E$32,"!A2"))),"",INDIRECT(CONCATENATE($E$32,"!A210")))) -> Urban Access to hygiene facilities | S7: =CONCATENATE("Rural ",IF(ISERROR(INDIRECT(CONCATENATE($E$32,"!A2"))),"",INDIRECT(CONCATENATE($E$32,"!A210")))) -> Rural Access to hygiene facilities
E32: =INDEX(B88:B100,A88) -> MICS18 | G32: =IF(ISERROR(INDIRECT(CONCATENATE($E$32,"!A2"))),"",INDIRECT(CONCATENATE($E$32,"!A2"))) -> Iraq | K32: Poorest | N32: Poor | Q32: Middle | T32: Rich | W32: Richest
K33: Basic | L33: Limited | M33: No facility | N33: Basic | O33: Limited | P33: No facility | Q33: Basic | R33: Limited | S33: No facility | T33: Basic | U33: Limited | V33: No facility | W33: Basic | X33: Limited | Y33: No facility
B34: >>> Select Survey : | G34: NATIONAL | J34: =IF(ISERROR(INDIRECT(CONCATENATE(#REF!,"!A2"))),"",INDIRECT(CONCATENATE(#REF!,"!A210"))) ->  | K34: =IF(ISERROR(INDIRECT(CONCATENATE($E$32,"!C222"))),"",INDIRECT(CONCATENATE($E$32,"!C222"))) -> 87.76429309 | L34: =IF(ISERROR(INDIRECT(CONCATENATE($E$32,"!C223"))),"",INDIRECT(CONCATENATE($E$32,"!C223"))) -> 6.197604672 | M34: =IF(ISERROR(INDIRECT(CONCATENATE($E$32,"!C224"))),"",INDIRECT(CONCATENATE($E$32,"!C224"))) -> 6.038102242 | N34: =IF(ISERROR(INDIRECT(CONCATENATE($E$32,"!D222"))),"",INDIRECT(CONCATENATE($E$32,"!D222"))) -> 96.51761127 | O34: =IF(ISERROR(INDIRECT(CONCATENATE($E$32,"!D223"))),"",INDIRECT(CONCATENATE($E$32,"!D223"))) -> 2.165400767 | P34: =IF(ISERROR(INDIRECT(CONCATENATE($E$32,"!D224"))),"",INDIRECT(CONCATENATE($E$32,"!D224"))) -> 1.316987959 | Q34: =IF(ISERROR(INDIRECT(CONCATENATE($E$32,"!E222"))),"",INDIRECT(CONCATENATE($E$32,"!E222"))) -> 97.65481995 | R34: =IF(ISERROR(INDIRECT(CONCATENATE($E$32,"!E223"))),"",INDIRECT(CONCATENATE($E$32,"!E223"))) -> 1.763115415 | S34: =IF(ISERROR(INDIRECT(CONCATENATE($E$32,"!E224"))),"",INDIRECT(CONCATENATE($E$32,"!E224"))) -> 0.5820646331 | T34: =IF(ISERROR(INDIRECT(CONCATENATE($E$32,"!F222"))),"",INDIRECT(CONCATENATE($E$32,"!F222"))) -> 98.71177026 | U34: =IF(ISERROR(INDIRECT(CONCATENATE($E$32,"!F223"))),"",INDIRECT(CONCATENATE($E$32,"!F223"))) -> 1.171490497 | V34: =IF(ISERROR(INDIRECT(CONCATENATE($E$32,"!F224"))),"",INDIRECT(CONCATENATE($E$32,"!F224"))) -> 0.1167392457 | W34: =IF(ISERROR(INDIRECT(CONCATENATE($E$32,"!G222"))),"",INDIRECT(CONCATENATE($E$32,"!G222"))) -> 99.54696031 | X34: =IF(ISERROR(INDIRECT(CONCATENATE($E$32,"!G223"))),"",INDIRECT(CONCATENATE($E$32,"!G223"))) -> 0.4119530277 | Y34: =IF(ISERROR(INDIRECT(CONCATENATE($E$32,"!G224"))),"",INDIRECT(CONCATENATE($E$32,"!G224"))) -> 0.04108666622
G37: URBAN | J37: =IF(ISERROR(INDIRECT(CONCATENATE(#REF!,"!A2"))),"",INDIRECT(CONCATENATE(#REF!,"!A210"))) ->  | K37: =IF(ISERROR(INDIRECT(CONCATENATE($E$32,"!H222"))),"",INDIRECT(CONCATENATE($E$32,"!H222"))) -> 91.75014775 | L37: =IF(ISERROR(INDIRECT(CONCATENATE($E$32,"!H223"))),"",INDIRECT(CONCATENATE($E$32,"!H223"))) -> 4.357976758 | M37: =IF(ISERROR(INDIRECT(CONCATENATE($E$32,"!H224"))),"",INDIRECT(CONCATENATE($E$32,"!H224"))) -> 3.891875496 | N37: =IF(ISERROR(INDIRECT(CONCATENATE($E$32,"!I222"))),"",INDIRECT(CONCATENATE($E$32,"!I222"))) -> 97.29511422 | O37: =IF(ISERROR(INDIRECT(CONCATENATE($E$32,"!I223"))),"",INDIRECT(CONCATENATE($E$32,"!I223"))) -> 1.960161102 | P37: =IF(ISERROR(INDIRECT(CONCATENATE($E$32,"!I224"))),"",INDIRECT(CONCATENATE($E$32,"!I224"))) -> 0.7447246773 | Q37: =IF(ISERROR(INDIRECT(CONCATENATE($E$32,"!J222"))),"",INDIRECT(CONCATENATE($E$32,"!J222"))) -> 98.4333987 | R37: =IF(ISERROR(INDIRECT(CONCATENATE($E$32,"!J223"))),"",INDIRECT(CONCATENATE($E$32,"!J223"))) -> 1.122698553 | S37: =IF(ISERROR(INDIRECT(CONCATENATE($E$32,"!J224"))),"",INDIRECT(CONCATENATE($E$32,"!J224"))) -> 0.4439027502 | T37: =IF(ISERROR(INDIRECT(CONCATENATE($E$32,"!K222"))),"",INDIRECT(CONCATENATE($E$32,"!K222"))) -> 98.99196665 | U37: =IF(ISERROR(INDIRECT(CONCATENATE($E$32,"!K223"))),"",INDIRECT(CONCATENATE($E$32,"!K223"))) -> 0.9051211704 | V37: =IF(ISERROR(INDIRECT(CONCATENATE($E$32,"!K224"))),"",INDIRECT(CONCATENATE($E$32,"!K224"))) -> 0.1029121772 | W37: =IF(ISERROR(INDIRECT(CONCATENATE($E$32,"!L222"))),"",INDIRECT(CONCATENATE($E$32,"!L222"))) -> 99.66159816 | X37: =IF(ISERROR(INDIRECT(CONCATENATE($E$32,"!L223"))),"",INDIRECT(CONCATENATE($E$32,"!L223"))) -> 0.2994380886 | Y37: =IF(ISERROR(INDIRECT(CONCATENATE($E$32,"!L224"))),"",INDIRECT(CONCATENATE($E$32,"!L224"))) -> 0.0389637527
G40: RURAL | J40: =IF(ISERROR(INDIRECT(CONCATENATE(#REF!,"!A2"))),"",INDIRECT(CONCATENATE(#REF!,"!A210"))) ->  | K40: =IF(ISERROR(INDIRECT(CONCATENATE($E$32,"!M222"))),"",INDIRECT(CONCATENATE($E$32,"!M222"))) -> 82.04465928 | L40: =IF(ISERROR(INDIRECT(CONCATENATE($E$32,"!M223"))),"",INDIRECT(CONCATENATE($E$32,"!M223"))) -> 9.001229127 | M40: =IF(ISERROR(INDIRECT(CONCATENATE($E$32,"!M224"))),"",INDIRECT(CONCATENATE($E$32,"!M224"))) -> 8.954111589 | N40: =IF(ISERROR(INDIRECT(CONCATENATE($E$32,"!N222"))),"",INDIRECT(CONCATENATE($E$32,"!N222"))) -> 92.5723291 | O40: =IF(ISERROR(INDIRECT(CONCATENATE($E$32,"!N223"))),"",INDIRECT(CONCATENATE($E$32,"!N223"))) -> 4.350016262 | P40: =IF(ISERROR(INDIRECT(CONCATENATE($E$32,"!N224"))),"",INDIRECT(CONCATENATE($E$32,"!N224"))) -> 3.077654641 | Q40: =IF(ISERROR(INDIRECT(CONCATENATE($E$32,"!O222"))),"",INDIRECT(CONCATENATE($E$32,"!O222"))) -> 94.91641401 | R40: =IF(ISERROR(INDIRECT(CONCATENATE($E$32,"!O223"))),"",INDIRECT(CONCATENATE($E$32,"!O223"))) -> 2.599391746 | S40: =IF(ISERROR(INDIRECT(CONCATENATE($E$32,"!O224"))),"",INDIRECT(CONCATENATE($E$32,"!O224"))) -> 2.484194247 | T40: =IF(ISERROR(INDIRECT(CONCATENATE($E$32,"!P222"))),"",INDIRECT(CONCATENATE($E$32,"!P222"))) -> 98.25387718 | U40: =IF(ISERROR(INDIRECT(CONCATENATE($E$32,"!P223"))),"",INDIRECT(CONCATENATE($E$32,"!P223"))) -> 1.686833109 | V40: =IF(ISERROR(INDIRECT(CONCATENATE($E$32,"!P224"))),"",INDIRECT(CONCATENATE($E$32,"!P224"))) -> 0.05928970872 | W40: =IF(ISERROR(INDIRECT(CONCATENATE($E$32,"!Q222"))),"",INDIRECT(CONCATENATE($E$32,"!Q222"))) -> 99.01482249 | X40: =IF(ISERROR(INDIRECT(CONCATENATE($E$32,"!Q223"))),"",INDIRECT(CONCATENATE($E$32,"!Q223"))) -> 0.9851775059 | Y40: =IF(ISERROR(INDIRECT(CONCATENATE($E$32,"!Q224"))),"",INDIRECT(CONCATENATE($E$32,"!Q224"))) -> 0
A88: 4 | B88: MICS00
B89: MICS06
B90: MICS11
B91: MICS18
B92: Template

Sheet MICS00
A2: =A1026 -> Iraq
A3: =A1034 -> 2000
A4: Use of drinking water sources
A5: by wealth quintile and sub-national region
A6: Notes:
A7: WHO/UNICEF JMP customised wealth index excludes water,
A8: sanitation and hygiene assets.
A9: Survey used for analysis: | B9: =A1025 -> MICS00
A10: =B1028 -> 
A11: =B1027 -> 
A14: Use of drinking water sources | C14: NATIONAL wealth index quintile | H14: URBAN wealth index quintile | M14: RURAL wealth index quintile | R14: SUB-REGIONS: | BA14: Raw numbers of respondents: | BB14: Use of drinking water sources | BC14: NATIONAL wealth index quintile | BH14: URBAN wealth index quintile | BM14: RURAL wealth index quintile | BR14: SUB-REGIONS:
A15: Weighted percentage (used in graphs) | C15: Poorest | D15: Poor | E15: Middle | F15: Rich | G15: Richest | H15: Poorest | I15: Poor | J15: Middle | K15: Rich | L15: Richest | M15: Poorest | N15: Poor | O15: Middle | P15: Rich | Q15: Richest | R15: anbar | S15: babylon | T15: baghdad | U15: basra | V15: diala | W15: dohouk | X15: erbil | Y15: kerbela | Z15: maysan | AA15: muthanna | AB15: najaf | AC15: nenava | AD15: qadisiya | AE15: salaheldeen | AF15: suleimaniya | AG15: ta'amem | AH15: thi-qar | AI15: wasit | BA15: Water data, raw numbers (weighted) | BC15: Poorest | BD15: Poor | BE15: Middle | BF15: Rich | BG15: Richest | BH15: Poorest | BI15: Poor | BJ15: Middle | BK15: Rich | BL15: Richest | BM15: Poorest | BN15: Poor | BO15: Middle | BP15: Rich | BQ15: Richest | BR15: anbar | BS15: babylon | BT15: baghdad | BU15: basra | BV15: diala | BW15: dohouk | BX15: erbil | BY15: kerbela | BZ15: maysan | CA15: muthanna | CB15: najaf | CC15: nenava | CD15: qadisiya | CE15: salaheldeen | CF15: suleimaniya | CG15: ta'amem | CH15: thi-qar | CI15: wasit
A16: Water | B16: Improved | C16: 96.13051778 | D16: 74.62999899 | E16: 67.18034914 | F16: 98.88182859 | G16: 98.51499021 | H16: 98.27045502 | I16: 97.23578481 | J16: 98.80002239 | K16: 99.60727837 | L16: 99.66885644 | M16: 56.8775764 | N16: 57.85272603 | O16: 65.05242886 | P16: 63.01286489 | Q16: 61.69994832 | R16: 86.47681726 | S16: 74.03173531 | T16: 95.06049724 | U16: 95.81874983 | V16: 84.9776414 | W16: 96.02863081 | X16: 92.65725215 | Y16: 79.07248213 | Z16: 68.43330813 | AA16: 71.78046007 | AB16: 84.4840951 | AC16: 95.23570443 | AD16: 65.3583309 | AE16: 76.49684569 | AF16: 96.04193067 | AG16: 89.246414 | AH16: 62.20411648 | AI16: 66.3563278 | BA16: Water | BB16: Improved | BC16: N/A | BD16: N/A | BE16: N/A | BF16: N/A | BG16: N/A | BH16: N/A | BI16: N/A | BJ16: N/A | BK16: N/A | BL16: N/A | BM16: N/A | BN16: N/A | BO16: N/A | BP16: N/A | BQ16: N/A | BR16: N/A | BS16: N/A | BT16: N/A | BU16: N/A | BV16: N/A | BW16: N/A | BX16: N/A | BY16: N/A | BZ16: N/A | CA16: N/A | CB16: N/A | CC16: N/A | CD16: N/A | CE16: N/A | CF16: N/A | CG16: N/A | CH16: N/A | CI16: N/A
B17: Not Improved | C17: 3.86948222 | D17: 25.37000101 | E17: 32.81965086 | F17: 1.118171406 | G17: 1.485009791 | H17: 1.729544978 | I17: 2.764215186 | J17: 1.19997761 | K17: 0.3927216296 | L17: 0.3311435601 | M17: 43.1224236 | N17: 42.14727397 | O17: 34.94757114 | P17: 36.98713511 | Q17: 38.30005168 | R17: 13.52318274 | S17: 25.96826469 | T17: 4.939502765 | U17: 4.181250175 | V17: 15.0223586 | W17: 3.971369194 | X17: 7.342747848 | Y17: 20.92751787 | Z17: 31.56669187 | AA17: 28.21953993 | AB17: 15.5159049 | AC17: 4.764295573 | AD17: 34.6416691 | AE17: 23.50315431 | AF17: 3.958069328 | AG17: 10.753586 | AH17: 37.79588352 | AI17: 33.6436722 | BB17: Not Improved | BC17: N/A | BD17: N/A | BE17: N/A | BF17: N/A | BG17: N/A | BH17: N/A | BI17: N/A | BJ17: N/A | BK17: N/A | BL17: N/A | BM17: N/A | BN17: N/A | BO17: N/A | BP17: N/A | BQ17: N/A | BR17: N/A | BS17: N/A | BT17: N/A | BU17: N/A | BV17: N/A | BW17: N/A | BX17: N/A | BY17: N/A | BZ17: N/A | CA17: N/A | CB17: N/A | CC17: N/A | CD17: N/A | CE17: N/A | CF17: N/A | CG17: N/A | CH17: N/A | CI17: N/A
A18: Water ladder | B18: Basic | C18: 95.25821205 | D18: 73.0004252 | E18: 64.91908189 | F18: 98.35791912 | G18: 98.22195435 | H18: 97.32787117 | I18: 96.43255631 | J18: 98.066846 | K18: 99.50345254 | L18: 99.35473371 | M18: 52.76004296 | N18: 56.08759847 | O18: 62.66308491 | P18: 61.18871283 | Q18: 60.12698128 | R18: 85.80585314 | S18: 73.77956774 | T18: 94.33157673 | U18: 94.54579356 | V18: 83.57770404 | W18: 95.71262105 | X18: 90.94134213 | Y18: 77.96605573 | Z18: 67.43067484 | AA18: 70.33648302 | AB18: 84.4840951 | AC18: 94.5682695 | AD18: 65.3583309 | AE18: 75.13435902 | AF18: 92.72238551 | AG18: 85.26003234 | AH18: 61.16317807 | AI18: 64.95225657 | BA18: Water ladder | BB18: Basic | BC18: N/A | BD18: N/A | BE18: N/A | BF18: N/A | BG18: N/A | BH18: N/A | BI18: N/A | BJ18: N/A | BK18: N/A | BL18: N/A | BM18: N/A | BN18: N/A | BO18: N/A | BP18: N/A | BQ18: N/A | BR18: N/A | BS18: N/A | BT18: N/A | BU18: N/A | BV18: N/A | BW18: N/A | BX18: N/A | BY18: N/A | BZ18: N/A | CA18: N/A | CB18: N/A | CC18: N/A | CD18: N/A | CE18: N/A | CF18: N/A | CG18: N/A | CH18: N/A | CI18: N/A
B19: Limited | C19: 0.8723057295 | D19: 1.612790148 | E19: 2.241335756 | F19: 0.5236158846 | G19: 0.293035861 | H19: 0.9425838563 | I19: 0.8005266079 | J19: 0.7331763856 | K19: 0.1038258308 | L19: 0.314122726 | M19: 3.994910501 | N19: 1.765127553 | O19: 2.389343943 | P19: 1.82415206 | Q19: 1.572967035 | R19: 0.6339142801 | S19: 0.2521675666 | T19: 0.7289205075 | U19: 1.272956265 | V19: 1.399937351 | W19: 0.316009754 | X19: 1.71591002 | Y19: 1.106426391 | Z19: 1.002633296 | AA19: 1.443977056 | AB19: 0 | AC19: 0.659379847 | AD19: 0 | AE19: 1.362486668 | AF19: 3.319545163 | AG19: 3.986381656 | AH19: 1.040938414 | AI19: 1.404071222 | BB19: Limited | BC19: N/A | BD19: N/A | BE19: N/A | BF19: N/A | BG19: N/A | BH19: N/A | BI19: N/A | BJ19: N/A | BK19: N/A | BL19: N/A | BM19: N/A | BN19: N/A | BO19: N/A | BP19: N/A | BQ19: N/A | BR19: N/A | BS19: N/A | BT19: N/A | BU19: N/A | BV19: N/A | BW19: N/A | BX19: N/A | BY19: N/A | BZ19: N/A | CA19: N/A | CB19: N/A | CC19: N/A | CD19: N/A | CE19: N/A | CF19: N/A | CG19: N/A | CH19: N/A | CI19: N/A
B20: Unimproved | C20: 3.86948222 | D20: 25.38678465 | E20: 32.83958235 | F20: 1.118464991 | G20: 1.485009791 | H20: 1.729544978 | I20: 2.766917085 | J20: 1.19997761 | K20: 0.3927216296 | L20: 0.3311435601 | M20: 43.24504654 | N20: 42.14727397 | O20: 34.94757114 | P20: 36.98713511 | Q20: 38.30005168 | R20: 13.56023258 | S20: 25.96826469 | T20: 4.939502765 | U20: 4.181250175 | V20: 15.0223586 | W20: 3.971369194 | X20: 7.342747848 | Y20: 20.92751787 | Z20: 31.56669187 | AA20: 28.21953993 | AB20: 15.5159049 | AC20: 4.772350651 | AD20: 34.6416691 | AE20: 23.50315431 | AF20: 3.958069328 | AG20: 10.753586 | AH20: 37.79588352 | AI20: 33.6436722 | BB20: Unimproved | BC20: N/A | BD20: N/A | BE20: N/A | BF20: N/A | BG20: N/A | BH20: N/A | BI20: N/A | BJ20: N/A | BK20: N/A | BL20: N/A | BM20: N/A | BN20: N/A | BO20: N/A | BP20: N/A | BQ20: N/A | BR20: N/A | BS20: N/A | BT20: N/A | BU20: N/A | BV20: N/A | BW20: N/A | BX20: N/A | BY20: N/A | BZ20: N/A | CA20: N/A | CB20: N/A | CC20: N/A | CD20: N/A | CE20: N/A | CF20: N/A | CG20: N/A | CH20: N/A | CI20: N/A
B21: Surface water | C21: 0 | D21: 0 | E21: 0 | F21: 0 | G21: 0 | H21: 0 | I21: 0 | J21: 0 | K21: 0 | L21: 0 | M21: 0 | N21: 0 | O21: 0 | P21: 0 | Q21: 0 | R21: 0 | S21: 0 | T21: 0 | U21: 0 | V21: 0 | W21: 0 | X21: 0 | Y21: 0 | Z21: 0 | AA21: 0 | AB21: 0 | AC21: 0 | AD21: 0 | AE21: 0 | AF21: 0 | AG21: 0 | AH21: 0 | AI21: 0 | BB21: Surface water | BC21: N/A | BD21: N/A | BE21: N/A | BF21: N/A | BG21: N/A | BH21: N/A | BI21: N/A | BJ21: N/A | BK21: N/A | BL21: N/A | BM21: N/A | BN21: N/A | BO21: N/A | BP21: N/A | BQ21: N/A | BR21: N/A | BS21: N/A | BT21: N/A | BU21: N/A | BV21: N/A | BW21: N/A | BX21: N/A | BY21: N/A | BZ21: N/A | CA21: N/A | CB21: N/A | CC21: N/A | CD21: N/A | CE21: N/A | CF21: N/A | CG21: N/A | CH21: N/A | CI21: N/A
A22: Improved water point at more than 30 minutes | B22: Yes | C22: 0.907418112 | D22: 2.161534174 | E22: 3.337286805 | F22: 0.5295385883 | G22: 0.2974530682 | H22: 0.959173188 | I22: 0.8233068251 | J22: 0.7420811938 | K22: 0.104235185 | L22: 0.3151663792 | M22: 7.038875477 | N22: 3.051070666 | O22: 3.672951164 | P22: 2.89488831 | Q22: 2.549381447 | R22: 0.7333595392 | S22: 0.3406209047 | T22: 0.7667964388 | U22: 1.328504356 | V22: 1.64741846 | W22: 0.3290786834 | X22: 1.851889605 | Y22: 1.399255925 | Z22: 1.465124693 | AA22: 2.011657566 | AB22: 0 | AC22: 0.6924247857 | AD22: 0 | AE22: 1.781101764 | AF22: 3.456349888 | AG22: 4.466713538 | AH22: 1.673423679 | AI22: 2.115956787 | BA22: Improved water point at more than 30 minutes | BB22: Yes | BC22: N/A | BD22: N/A | BE22: N/A | BF22: N/A | BG22: N/A | BH22: N/A | BI22: N/A | BJ22: N/A | BK22: N/A | BL22: N/A | BM22: N/A | BN22: N/A | BO22: N/A | BP22: N/A | BQ22: N/A | BR22: N/A | BS22: N/A | BT22: N/A | BU22: N/A | BV22: N/A | BW22: N/A | BX22: N/A | BY22: N/A | BZ22: N/A | CA22: N/A | CB22: N/A | CC22: N/A | CD22: N/A | CE22: N/A | CF22: N/A | CG22: N/A | CH22: N/A | CI22: N/A
B23: No | C23: 99.09258189 | D23: 97.83846583 | E23: 96.6627132 | F23: 99.47046141 | G23: 99.70254693 | H23: 99.04082681 | I23: 99.17669317 | J23: 99.25791881 | K23: 99.89576482 | L23: 99.68483362 | M23: 92.96112452 | N23: 96.94892933 | O23: 96.32704884 | P23: 97.10511169 | Q23: 97.45061855 | R23: 99.26664046 | S23: 99.6593791 | T23: 99.23320356 | U23: 98.67149564 | V23: 98.35258154 | W23: 99.67092132 | X23: 98.1481104 | Y23: 98.60074408 | Z23: 98.53487531 | AA23: 97.98834243 | AB23: 100 | AC23: 99.30757521 | AD23: 100 | AE23: 98.21889824 | AF23: 96.54365011 | AG23: 95.53328646 | AH23: 98.32657632 | AI23: 97.88404321 | BB23: No | BC23: N/A | BD23: N/A | BE23: N/A | BF23: N/A | BG23: N/A | BH23: N/A | BI23: N/A | BJ23: N/A | BK23: N/A | BL23: N/A | BM23: N/A | BN23: N/A | BO23: N/A | BP23: N/A | BQ23: N/A | BR23: N/A | BS23: N/A | BT23: N/A | BU23: N/A | BV23: N/A | BW23: N/A | BX23: N/A | BY23: N/A | BZ23: N/A | CA23: N/A | CB23: N/A | CC23: N/A | CD23: N/A | CE23: N/A | CF23: N/A | CG23: N/A | CH23: N/A | CI23: N/A
A24: Manually calculated ratios | B24: Improved wells
B25: Improved springs
B26: Other
C27: NATIONAL wealth index quintile | H27: URBAN wealth index quintile | M27: RURAL wealth index quintile | R27: SUB-REGIONS: | BA27: Raw numbers of respondents: | BB27: Use of drinking water sources | BC27: NATIONAL wealth index quintile | BH27: URBAN wealth index quintile | BM27: RURAL wealth index quintile | BR27: SUB-REGIONS:
A28: Percentage based on weighted population | C28: Poorest | D28: Poor | E28: Middle | F28: Rich | G28: Richest | H28: Poorest | I28: Poor | J28: Middle | K28: Rich | L28: Richest | M28: Poorest | N28: Poor | O28: Middle | P28: Rich | Q28: Richest | R28: anbar | S28: babylon | T28: baghdad | U28: basra | V28: diala | W28: dohouk | X28: erbil | Y28: kerbela | Z28: maysan | AA28: muthanna | AB28: najaf | AC28: nenava | AD28: qadisiya | AE28: salaheldeen | AF28: suleimaniya | AG28: ta'amem | AH28: thi-qar | AI28: wasit | BA28: Water data, raw numbers (weighted) | BC28: Poorest | BD28: Poor | BE28: Middle | BF28: Rich | BG28: Richest | BH28: Poorest | BI28: Poor | BJ28: Middle | BK28: Rich | BL28: Richest | BM28: Poorest | BN28: Poor | BO28: Middle | BP28: Rich | BQ28: Richest | BR28: anbar | BS28: babylon | BT28: baghdad | BU28: basra | BV28: diala | BW28: dohouk | BX28: erbil | BY28: kerbela | BZ28: maysan | CA28: muthanna | CB28: najaf | CC28: nenava | CD28: qadisiya | CE28: salaheldeen | CF28: suleimaniya | CG28: ta'amem | CH28: thi-qar | CI28: wasit
A29: Piped water | B29: Yes | C29: 92.31398449 | D29: 62.55408531 | E29: 49.52496136 | F29: 97.23076763 | G29: 96.77402247 | H29: 95.63270048 | I29: 94.50010487 | J29: 97.49720102 | K29: 98.1843282 | L29: 98.7034958 | M29: 29.85638577 | N29: 39.12072999 | O29: 44.56614207 | P29: 45.07748888 | Q29: 46.20656569 | R29: 79.93785034 | S29: 59.79839911 | T29: 93.97645279 | U29: 90.1972085 | V29: 68.63332111 | W29: 89.70775867 | X29: 90.27774949 | Y29: 76.40578091 | Z29: 67.84995785 | AA29: 61.59239973 | AB29: 82.93646576 | AC29: 73.86734802 | AD29: 63.38507092 | AE29: 63.50780612 | AF29: 79.3294396 | AG29: 81.64335544 | AH29: 58.5838864 | AI29: 62.64787745 | BA29: Piped water | BB29: Yes | BC29: N/A | BD29: N/A | BE29: N/A | BF29: N/A | BG29: N/A | BH29: N/A | BI29: N/A | BJ29: N/A | BK29: N/A | BL29: N/A | BM29: N/A | BN29: N/A | BO29: N/A | BP29: N/A | BQ29: N/A | BR29: N/A | BS29: N/A | BT29: N/A | BU29: N/A | BV29: N/A | BW29: N/A | BX29: N/A | BY29: N/A | BZ29: N/A | CA29: N/A | CB29: N/A | CC29: N/A | CD29: N/A | CE29: N/A | CF29: N/A | CG29: N/A | CH29: N/A | CI29: N/A
B30: No | C30: 7.686015505 | D30: 37.44591469 | E30: 50.47503864 | F30: 2.769232373 | G30: 3.225977526 | H30: 4.367299519 | I30: 5.499895125 | J30: 2.502798975 | K30: 1.815671802 | L30: 1.296504196 | M30: 70.14361423 | N30: 60.87927001 | O30: 55.43385793 | P30: 54.92251112 | Q30: 53.79343431 | R30: 20.06214966 | S30: 40.20160089 | T30: 6.02354721 | U30: 9.802791497 | V30: 31.36667889 | W30: 10.29224133 | X30: 9.722250509 | Y30: 23.59421909 | Z30: 32.15004215 | AA30: 38.40760027 | AB30: 17.06353424 | AC30: 26.13265198 | AD30: 36.61492908 | AE30: 36.49219388 | AF30: 20.6705604 | AG30: 18.35664456 | AH30: 41.4161136 | AI30: 37.35212255 | BB30: No | BC30: N/A | BD30: N/A | BE30: N/A | BF30: N/A | BG30: N/A | BH30: N/A | BI30: N/A | BJ30: N/A | BK30: N/A | BL30: N/A | BM30: N/A | BN30: N/A | BO30: N/A | BP30: N/A | BQ30: N/A | BR30: N/A | BS30: N/A | BT30: N/A | BU30: N/A | BV30: N/A | BW30: N/A | BX30: N/A | BY30: N/A | BZ30: N/A | CA30: N/A | CB30: N/A | CC30: N/A | CD30: N/A | CE30: N/A | CF30: N/A | CG30: N/A | CH30: N/A | CI30: N/A
A31: Piped water on premises | B31: Yes | C31: 87.92245708 | D31: 56.55281653 | E31: 43.68422048 | F31: 95.65318257 | G31: 96.22213689 | H31: 90.95441356 | I31: 91.36756821 | J31: 95.50695965 | K31: 97.88700402 | L31: 98.39936826 | M31: 22.83470487 | N31: 32.41920804 | O31: 36.77711112 | P31: 38.55233665 | Q31: 37.8486321 | R31: 74.33282979 | S31: 56.56536709 | T31: 91.39765449 | U31: 85.85991784 | V31: 68.32424403 | W31: 83.80193441 | X31: 87.23488662 | Y31: 75.41269782 | Z31: 64.02172163 | AA31: 55.83133855 | AB31: 81.0072976 | AC31: 73.68650963 | AD31: 61.87793536 | AE31: 59.44889487 | AF31: 66.10371615 | AG31: 72.72221907 | AH31: 55.22726853 | AI31: 57.70492698 | BA31: Piped water on premises | BB31: Yes | BC31: N/A | BD31: N/A | BE31: N/A | BF31: N/A | BG31: N/A | BH31: N/A | BI31: N/A | BJ31: N/A | BK31: N/A | BL31: N/A | BM31: N/A | BN31: N/A | BO31: N/A | BP31: N/A | BQ31: N/A | BR31: N/A | BS31: N/A | BT31: N/A | BU31: N/A | BV31: N/A | BW31: N/A | BX31: N/A | BY31: N/A | BZ31: N/A | CA31: N/A | CB31: N/A | CC31: N/A | CD31: N/A | CE31: N/A | CF31: N/A | CG31: N/A | CH31: N/A | CI31: N/A
B32: No | C32: 12.07754292 | D32: 43.44718347 | E32: 56.31577952 | F32: 4.346817429 | G32: 3.777863109 | H32: 9.045586441 | I32: 8.632431786 | J32: 4.493040346 | K32: 2.11299598 | L32: 1.600631739 | M32: 77.16529513 | N32: 67.58079196 | O32: 63.22288888 | P32: 61.44766335 | Q32: 62.1513679 | R32: 25.66717021 | S32: 43.43463291 | T32: 8.602345511 | U32: 14.14008216 | V32: 31.67575597 | W32: 16.19806559 | X32: 12.76511338 | Y32: 24.58730218 | Z32: 35.97827837 | AA32: 44.16866145 | AB32: 18.9927024 | AC32: 26.31349037 | AD32: 38.12206464 | AE32: 40.55110513 | AF32: 33.89628385 | AG32: 27.27778093 | AH32: 44.77273147 | AI32: 42.29507302 | BB32: No | BC32: N/A | BD32: N/A | BE32: N/A | BF32: N/A | BG32: N/A | BH32: N/A | BI32: N/A | BJ32: N/A | BK32: N/A | BL32: N/A | BM32: N/A | BN32: N/A | BO32: N/A | BP32: N/A | BQ32: N/A | BR32: N/A | BS32: N/A | BT32: N/A | BU32: N/A | BV32: N/A | BW32: N/A | BX32: N/A | BY32: N/A | BZ32: N/A | CA32: N/A | CB32: N/A | CC32: N/A | CD32: N/A | CE32: N/A | CF32: N/A | CG32: N/A | CH32: N/A | CI32: N/A
A33: Piped water into dwelling | B33: Yes | C33: N/A | D33: N/A | E33: N/A | F33: N/A | G33: N/A | H33: N/A | I33: N/A | J33: N/A | K33: N/A | L33: N/A | M33: N/A | N33: N/A | O33: N/A | P33: N/A | Q33: N/A | R33: N/A | S33: N/A | T33: N/A | U33: N/A | V33: N/A | W33: N/A | X33: N/A | Y33: N/A | Z33: N/A | AA33: N/A | AB33: N/A | AC33: N/A | AD33: N/A | AE33: N/A | AF33: N/A | AG33: N/A | AH33: N/A | AI33: N/A | BA33: Piped water into dwelling | BB33: Yes | BC33: N/A | BD33: N/A | BE33: N/A | BF33: N/A | BG33: N/A | BH33: N/A | BI33: N/A | BJ33: N/A | BK33: N/A | BL33: N/A | BM33: N/A | BN33: N/A | BO33: N/A | BP33: N/A | BQ33: N/A | BR33: N/A | BS33: N/A | BT33: N/A | BU33: N/A | BV33: N/A | BW33: N/A | BX33: N/A | BY33: N/A | BZ33: N/A | CA33: N/A | CB33: N/A | CC33: N/A | CD33: N/A | CE33: N/A | CF33: N/A | CG33: N/A | CH33: N/A | CI33: N/A
B34: No | C34: N/A | D34: N/A | E34: N/A | F34: N/A | G34: N/A | H34: N/A | I34: N/A | J34: N/A | K34: N/A | L34: N/A | M34: N/A | N34: N/A | O34: N/A | P34: N/A | Q34: N/A | R34: N/A | S34: N/A | T34: N/A | U34: N/A | V34: N/A | W34: N/A | X34: N/A | Y34: N/A | Z34: N/A | AA34: N/A | AB34: N/A | AC34: N/A | AD34: N/A | AE34: N/A | AF34: N/A | AG34: N/A | AH34: N/A | AI34: N/A | BB34: No | BC34: N/A | BD34: N/A | BE34: N/A | BF34: N/A | BG34: N/A | BH34: N/A | BI34: N/A | BJ34: N/A | BK34: N/A | BL34: N/A | BM34: N/A | BN34: N/A | BO34: N/A | BP34: N/A | BQ34: N/A | BR34: N/A | BS34: N/A | BT34: N/A | BU34: N/A | BV34: N/A | BW34: N/A | BX34: N/A | BY34: N/A | BZ34: N/A | CA34: N/A | CB34: N/A | CC34: N/A | CD34: N/A | CE34: N/A | CF34: N/A | CG34: N/A | CH34: N/A | CI34: N/A
A35: Water source on premises | B35: Yes | C35: 91.52230219 | D35: 67.22673258 | E35: 58.92750385 | F35: 96.31187167 | G35: 96.78852802 | H35: 93.98375973 | I35: 93.34447912 | J35: 95.79081474 | K35: 98.30195889 | L35: 98.54164736 | M35: 43.72766942 | N35: 51.1255716 | O35: 53.10992266 | P35: 53.0878169 | Q35: 54.12629631 | R35: 88.18711882 | S35: 64.76478979 | T35: 93.20509988 | U35: 86.17405033 | V35: 72.45133206 | W35: 91.64542086 | X35: 89.61351122 | Y35: 77.65458473 | Z35: 64.17881771 | AA35: 56.44416489 | AB35: 81.94933285 | AC35: 90.9316516 | AD35: 62.65480936 | AE35: 77.59120623 | AF35: 81.74550494 | AG35: 81.65942956 | AH35: 58.86105718 | AI35: 57.80893226 | BA35: Water source on premises | BB35: Yes | BC35: N/A | BD35: N/A | BE35: N/A | BF35: N/A | BG35: N/A | BH35: N/A | BI35: N/A | BJ35: N/A | BK35: N/A | BL35: N/A | BM35: N/A | BN35: N/A | BO35: N/A | BP35: N/A | BQ35: N/A | BR35: N/A | BS35: N/A | BT35: N/A | BU35: N/A | BV35: N/A | BW35: N/A | BX35: N/A | BY35: N/A | BZ35: N/A | CA35: N/A | CB35: N/A | CC35: N/A | CD35: N/A | CE35: N/A | CF35: N/A | CG35: N/A | CH35: N/A | CI35: N/A
B36: No | C36: 8.477697815 | D36: 32.77326742 | E36: 41.07249615 | F36: 3.688128327 | G36: 3.211471978 | H36: 6.016240271 | I36: 6.655520882 | J36: 4.209185263 | K36: 1.698041114 | L36: 1.458352644 | M36: 56.27233058 | N36: 48.8744284 | O36: 46.89007734 | P36: 46.9121831 | Q36: 45.87370369 | R36: 11.81288118 | S36: 35.23521021 | T36: 6.794900121 | U36: 13.82594967 | V36: 27.54866794 | W36: 8.35457914 | X36: 10.38648878 | Y36: 22.34541527 | Z36: 35.82118229 | AA36: 43.55583511 | AB36: 18.05066715 | AC36: 9.068348404 | AD36: 37.34519064 | AE36: 22.40879377 | AF36: 18.25449506 | AG36: 18.34057044 | AH36: 41.13894282 | AI36: 42.19106774 | BB36: No | BC36: N/A | BD36: N/A | BE36: N/A | BF36: N/A | BG36: N/A | BH36: N/A | BI36: N/A | BJ36: N/A | BK36: N/A | BL36: N/A | BM36: N/A | BN36: N/A | BO36: N/A | BP36: N/A | BQ36: N/A | BR36: N/A | BS36: N/A | BT36: N/A | BU36: N/A | BV36: N/A | BW36: N/A | BX36: N/A | BY36: N/A | BZ36: N/A | CA36: N/A | CB36: N/A | CC36: N/A | CD36: N/A | CE36: N/A | CF36: N/A | CG36: N/A | CH36: N/A | CI36: N/A
A37: Improved Water source on premises | B37: Yes | C37: 94.59065064 | D37: 87.74660433 | E37: 83.13558872 | F37: 97.30103928 | G37: 98.11153509 | H37: 95.1001403 | I37: 95.53540108 | J37: 96.95424396 | K37: 98.65529238 | L37: 98.84369614 | M37: 70.32700613 | N37: 79.86893504 | O37: 78.13390269 | P37: 80.72181603 | Q37: 83.1432493 | R37: 96.90712219 | S37: 86.76115401 | T37: 97.29835968 | U37: 89.93443401 | V37: 85.25928806 | W37: 94.13828595 | X37: 94.83925158 | Y37: 97.14576629 | Z37: 93.55345135 | AA37: 78.6344429 | AB37: 96.99971664 | AC37: 93.42476129 | AD37: 95.50694809 | AE37: 91.90362212 | AF37: 84.30083788 | AG37: 91.49883552 | AH37: 94.49839009 | AI37: 87.06669846 | BA37: Improved water source on premises | BB37: Yes | BC37: N/A | BD37: N/A | BE37: N/A | BF37: N/A | BG37: N/A | BH37: N/A | BI37: N/A | BJ37: N/A | BK37: N/A | BL37: N/A | BM37: N/A | BN37: N/A | BO37: N/A | BP37: N/A | BQ37: N/A | BR37: N/A | BS37: N/A | BT37: N/A | BU37: N/A | BV37: N/A | BW37: N/A | BX37: N/A | BY37: N/A | BZ37: N/A | CA37: N/A | CB37: N/A | CC37: N/A | CD37: N/A | CE37: N/A | CF37: N/A | CG37: N/A | CH37: N/A | CI37: N/A
B38: No | C38: 5.409349358 | D38: 12.25339567 | E38: 16.86441128 | F38: 2.69896072 | G38: 1.888464911 | H38: 4.899859704 | I38: 4.46459892 | J38: 3.045756044 | K38: 1.344707619 | L38: 1.156303862 | M38: 29.67299387 | N38: 20.13106496 | O38: 21.86609731 | P38: 19.27818397 | Q38: 16.8567507 | R38: 3.09287781 | S38: 13.23884599 | T38: 2.701640319 | U38: 10.06556599 | V38: 14.74071194 | W38: 5.861714049 | X38: 5.160748423 | Y38: 2.854233707 | Z38: 6.44654865 | AA38: 21.3655571 | AB38: 3.000283364 | AC38: 6.57523871 | AD38: 4.493051914 | AE38: 8.096377882 | AF38: 15.69916212 | AG38: 8.501164476 | AH38: 5.501609907 | AI38: 12.93330154 | BB38: No | BC38: N/A | BD38: N/A | BE38: N/A | BF38: N/A | BG38: N/A | BH38: N/A | BI38: N/A | BJ38: N/A | BK38: N/A | BL38: N/A | BM38: N/A | BN38: N/A | BO38: N/A | BP38: N/A | BQ38: N/A | BR38: N/A | BS38: N/A | BT38: N/A | BU38: N/A | BV38: N/A | BW38: N/A | BX38: N/A | BY38: N/A | BZ38: N/A | CA38: N/A | CB38: N/A | CC38: N/A | CD38: N/A | CE38: N/A | CF38: N/A | CG38: N/A | CH38: N/A | CI38: N/A
A39: Piped water on premises available when needed | B39: Yes | C39: N/A | D39: N/A | E39: N/A | F39: N/A | G39: N/A | H39: N/A | I39: N/A | J39: N/A | K39: N/A | L39: N/A | M39: N/A | N39: N/A | O39: N/A | P39: N/A | Q39: N/A | R39: N/A | S39: N/A | T39: N/A | U39: N/A | V39: N/A | W39: N/A | X39: N/A | Y39: N/A | Z39: N/A | AA39: N/A | AB39: N/A | AC39: N/A | AD39: N/A | AE39: N/A | AF39: N/A | AG39: N/A | AH39: N/A | AI39: N/A | BA39: Piped water on premises available when needed | BB39: Yes | BC39: N/A | BD39: N/A | BE39: N/A | BF39: N/A | BG39: N/A | BH39: N/A | BI39: N/A | BJ39: N/A | BK39: N/A | BL39: N/A | BM39: N/A | BN39: N/A | BO39: N/A | BP39: N/A | BQ39: N/A | BR39: N/A | BS39: N/A | BT39: N/A | BU39: N/A | BV39: N/A | BW39: N/A | BX39: N/A | BY39: N/A | BZ39: N/A | CA39: N/A | CB39: N/A | CC39: N/A | CD39: N/A | CE39: N/A | CF39: N/A | CG39: N/A | CH39: N/A | CI39: N/A
B40: No | C40: N/A | D40: N/A | E40: N/A | F40: N/A | G40: N/A | H40: N/A | I40: N/A | J40: N/A | K40: N/A | L40: N/A | M40: N/A | N40: N/A | O40: N/A | P40: N/A | Q40: N/A | R40: N/A | S40: N/A | T40: N/A | U40: N/A | V40: N/A | W40: N/A | X40: N/A | Y40: N/A | Z40: N/A | AA40: N/A | AB40: N/A | AC40: N/A | AD40: N/A | AE40: N/A | AF40: N/A | AG40: N/A | AH40: N/A | AI40: N/A | BB40: No | BC40: N/A | BD40: N/A | BE40: N/A | BF40: N/A | BG40: N/A | BH40: N/A | BI40: N/A | BJ40: N/A | BK40: N/A | BL40: N/A | BM40: N/A | BN40: N/A | BO40: N/A | BP40: N/A | BQ40: N/A | BR40: N/A | BS40: N/A | BT40: N/A | BU40: N/A | BV40: N/A | BW40: N/A | BX40: N/A | BY40: N/A | BZ40: N/A | CA40: N/A | CB40: N/A | CC40: N/A | CD40: N/A | CE40: N/A | CF40: N/A | CG40: N/A | CH40: N/A | CI40: N/A
A41: Water point at more than 30 minutes | B41: Yes | C41: 1.549216071 | D41: 4.936952738 | E41: 7.935912826 | F41: 0.7347810322 | G41: 0.8282083499 | H41: 1.278805275 | I41: 1.869275282 | J41: 0.8649659203 | K41: 0.2569828788 | L41: 0.5493805622 | M41: 12.80223046 | N41: 9.078003221 | O41: 7.86645886 | P41: 5.558456606 | Q41: 5.878545524 | R41: 0.7957647345 | S41: 1.220107968 | T41: 1.689921402 | U41: 2.501770644 | V41: 5.81792146 | W41: 0.316009754 | X41: 5.810625423 | Y41: 5.490214973 | Z41: 11.74290002 | AA41: 4.829301042 | AB41: 1.357218186 | AC41: 2.309136119 | AD41: 0.7768740046 | AE41: 4.478131312 | AF41: 4.098461349 | AG41: 8.888988129 | AH41: 4.370520086 | AI41: 4.558897917 | BA41: Water point at more than 30 minutes | BB41: Yes | BC41: N/A | BD41: N/A | BE41: N/A | BF41: N/A | BG41: N/A | BH41: N/A | BI41: N/A | BJ41: N/A | BK41: N/A | BL41: N/A | BM41: N/A | BN41: N/A | BO41: N/A | BP41: N/A | BQ41: N/A | BR41: N/A | BS41: N/A | BT41: N/A | BU41: N/A | BV41: N/A | BW41: N/A | BX41: N/A | BY41: N/A | BZ41: N/A | CA41: N/A | CB41: N/A | CC41: N/A | CD41: N/A | CE41: N/A | CF41: N/A | CG41: N/A | CH41: N/A | CI41: N/A
B42: No | C42: 98.45078393 | D42: 95.06304726 | E42: 92.06408717 | F42: 99.26521897 | G42: 99.17179165 | H42: 98.72119472 | I42: 98.13072472 | J42: 99.13503408 | K42: 99.74301712 | L42: 99.45061944 | M42: 87.19776954 | N42: 90.92199678 | O42: 92.13354114 | P42: 94.44154339 | Q42: 94.12145448 | R42: 99.20423527 | S42: 98.77989203 | T42: 98.3100786 | U42: 97.49822936 | V42: 94.18207854 | W42: 99.68399025 | X42: 94.18937458 | Y42: 94.50978503 | Z42: 88.25709998 | AA42: 95.17069896 | AB42: 98.64278181 | AC42: 97.69086388 | AD42: 99.223126 | AE42: 95.52186869 | AF42: 95.90153865 | AG42: 91.11101187 | AH42: 95.62947991 | AI42: 95.44110208 | BB42: No | BC42: N/A | BD42: N/A | BE42: N/A | BF42: N/A | BG42: N/A | BH42: N/A | BI42: N/A | BJ42: N/A | BK42: N/A | BL42: N/A | BM42: N/A | BN42: N/A | BO42: N/A | BP42: N/A | BQ42: N/A | BR42: N/A | BS42: N/A | BT42: N/A | BU42: N/A | BV42: N/A | BW42: N/A | BX42: N/A | BY42: N/A | BZ42: N/A | CA42: N/A | CB42: N/A | CC42: N/A | CD42: N/A | CE42: N/A | CF42: N/A | CG42: N/A | CH42: N/A | CI42: N/A
A43: Water source available when needed | B43: Yes | C43: N/A | D43: N/A | E43: N/A | F43: N/A | G43: N/A | H43: N/A | I43: N/A | J43: N/A | K43: N/A | L43: N/A | M43: N/A | N43: N/A | O43: N/A | P43: N/A | Q43: N/A | R43: N/A | S43: N/A | T43: N/A | U43: N/A | V43: N/A | W43: N/A | X43: N/A | Y43: N/A | Z43: N/A | AA43: N/A | AB43: N/A | AC43: N/A | AD43: N/A | AE43: N/A | AF43: N/A | AG43: N/A | AH43: N/A | AI43: N/A | BA43: Water source available when needed | BB43: Yes | BC43: N/A | BD43: N/A | BE43: N/A | BF43: N/A | BG43: N/A | BH43: N/A | BI43: N/A | BJ43: N/A | BK43: N/A | BL43: N/A | BM43: N/A | BN43: N/A | BO43: N/A | BP43: N/A | BQ43: N/A | BR43: N/A | BS43: N/A | BT43: N/A | BU43: N/A | BV43: N/A | BW43: N/A | BX43: N/A | BY43: N/A | BZ43: N/A | CA43: N/A | CB43: N/A | CC43: N/A | CD43: N/A | CE43: N/A | CF43: N/A | CG43: N/A | CH43: N/A | CI43: N/A
B44: No | C44: N/A | D44: N/A | E44: N/A | F44: N/A | G44: N/A | H44: N/A | I44: N/A | J44: N/A | K44: N/A | L44: N/A | M44: N/A | N44: N/A | O44: N/A | P44: N/A | Q44: N/A | R44: N/A | S44: N/A | T44: N/A | U44: N/A | V44: N/A | W44: N/A | X44: N/A | Y44: N/A | Z44: N/A | AA44: N/A | AB44: N/A | AC44: N/A | AD44: N/A | AE44: N/A | AF44: N/A | AG44: N/A | AH44: N/A | AI44: N/A | BB44: No | BC44: N/A | BD44: N/A | BE44: N/A | BF44: N/A | BG44: N/A | BH44: N/A | BI44: N/A | BJ44: N/A | BK44: N/A | BL44: N/A | BM44: N/A | BN44: N/A | BO44: N/A | BP44: N/A | BQ44: N/A | BR44: N/A | BS44: N/A | BT44: N/A | BU44: N/A | BV44: N/A | BW44: N/A | BX44: N/A | BY44: N/A | BZ44: N/A | CA44: N/A | CB44: N/A | CC44: N/A | CD44: N/A | CE44: N/A | CF44: N/A | CG44: N/A | CH44: N/A | CI44: N/A
A45: Improved water source available when needed | B45: Yes | C45: N/A | D45: N/A | E45: N/A | F45: N/A | G45: N/A | H45: N/A | I45: N/A | J45: N/A | K45: N/A | L45: N/A | M45: N/A | N45: N/A | O45: N/A | P45: N/A | Q45: N/A | R45: N/A | S45: N/A | T45: N/A | U45: N/A | V45: N/A | W45: N/A | X45: N/A | Y45: N/A | Z45: N/A | AA45: N/A | AB45: N/A | AC45: N/A | AD45: N/A | AE45: N/A | AF45: N/A | AG45: N/A | AH45: N/A | AI45: N/A | BA45: Improved water source available when needed | BB45: Yes | BC45: N/A | BD45: N/A | BE45: N/A | BF45: N/A | BG45: N/A | BH45: N/A | BI45: N/A | BJ45: N/A | BK45: N/A | BL45: N/A | BM45: N/A | BN45: N/A | BO45: N/A | BP45: N/A | BQ45: N/A | BR45: N/A | BS45: N/A | BT45: N/A | BU45: N/A | BV45: N/A | BW45: N/A | BX45: N/A | BY45: N/A | BZ45: N/A | CA45: N/A | CB45: N/A | CC45: N/A | CD45: N/A | CE45: N/A | CF45: N/A | CG45: N/A | CH45: N/A | CI45: N/A
B46: No | C46: N/A | D46: N/A | E46: N/A | F46: N/A | G46: N/A | H46: N/A | I46: N/A | J46: N/A | K46: N/A | L46: N/A | M46: N/A | N46: N/A | O46: N/A | P46: N/A | Q46: N/A | R46: N/A | S46: N/A | T46: N/A | U46: N/A | V46: N/A | W46: N/A | X46: N/A | Y46: N/A | Z46: N/A | AA46: N/A | AB46: N/A | AC46: N/A | AD46: N/A | AE46: N/A | AF46: N/A | AG46: N/A | AH46: N/A | AI46: N/A | BB46: No | BC46: N/A | BD46: N/A | BE46: N/A | BF46: N/A | BG46: N/A | BH46: N/A | BI46: N/A | BJ46: N/A | BK46: N/A | BL46: N/A | BM46: N/A | BN46: N/A | BO46: N/A | BP46: N/A | BQ46: N/A | BR46: N/A | BS46: N/A | BT46: N/A | BU46: N/A | BV46: N/A | BW46: N/A | BX46: N/A | BY46: N/A | BZ46: N/A | CA46: N/A | CB46: N/A | CC46: N/A | CD46: N/A | CE46: N/A | CF46: N/A | CG46: N/A | CH46: N/A | CI46: N/A
A47: Microbiological quality at point of collection | B47: Not contaminated (No E. coli in 100 mL) | C47: N/A | D47: N/A | E47: N/A | F47: N/A | G47: N/A | H47: N/A | I47: N/A | J47: N/A | K47: N/A | L47: N/A | M47: N/A | N47: N/A | O47: N/A | P47: N/A | Q47: N/A | R47: N/A | S47: N/A | T47: N/A | U47: N/A | V47: N/A | W47: N/A | X47: N/A | Y47: N/A | Z47: N/A | AA47: N/A | AB47: N/A | AC47: N/A | AD47: N/A | AE47: N/A | AF47: N/A | AG47: N/A | AH47: N/A | AI47: N/A | BA47: Microbiological quality at point of collection | BB47: Not contaminated (No E. coli in 100 mL) | BC47: N/A | BD47: N/A | BE47: N/A | BF47: N/A | BG47: N/A | BH47: N/A | BI47: N/A | BJ47: N/A | BK47: N/A | BL47: N/A | BM47: N/A | BN47: N/A | BO47: N/A | BP47: N/A | BQ47: N/A | BR47: N/A | BS47: N/A | BT47: N/A | BU47: N/A | BV47: N/A | BW47: N/A | BX47: N/A | BY47: N/A | BZ47: N/A | CA47: N/A | CB47: N/A | CC47: N/A | CD47: N/A | CE47: N/A | CF47: N/A | CG47: N/A | CH47: N/A | CI47: N/A
B48: Contaminated (E. coli detected in 100 mL) | C48: N/A | D48: N/A | E48: N/A | F48: N/A | G48: N/A | H48: N/A | I48: N/A | J48: N/A | K48: N/A | L48: N/A | M48: N/A | N48: N/A | O48: N/A | P48: N/A | Q48: N/A | R48: N/A | S48: N/A | T48: N/A | U48: N/A | V48: N/A | W48: N/A | X48: N/A | Y48: N/A | Z48: N/A | AA48: N/A | AB48: N/A | AC48: N/A | AD48: N/A | AE48: N/A | AF48: N/A | AG48: N/A | AH48: N/A | AI48: N/A | BB48: Contaminated (E. coli detected in 100 mL) | BC48: N/A | BD48: N/A | BE48: N/A | BF48: N/A | BG48: N/A | BH48: N/A | BI48: N/A | BJ48: N/A | BK48: N/A | BL48: N/A | BM48: N/A | BN48: N/A | BO48: N/A | BP48: N/A | BQ48: N/A | BR48: N/A | BS48: N/A | BT48: N/A | BU48: N/A | BV48: N/A | BW48: N/A | BX48: N/A | BY48: N/A | BZ48: N/A | CA48: N/A | CB48: N/A | CC48: N/A | CD48: N/A | CE48: N/A | CF48: N/A | CG48: N/A | CH48: N/A | CI48: N/A
B49: Highly contaminated (>100 CFU/100 mL) | C49: N/A | D49: N/A | E49: N/A | F49: N/A | G49: N/A | H49: N/A | I49: N/A | J49: N/A | K49: N/A | L49: N/A | M49: N/A | N49: N/A | O49: N/A | P49: N/A | Q49: N/A | R49: N/A | S49: N/A | T49: N/A | U49: N/A | V49: N/A | W49: N/A | X49: N/A | Y49: N/A | Z49: N/A | AA49: N/A | AB49: N/A | AC49: N/A | AD49: N/A | AE49: N/A | AF49: N/A | AG49: N/A | AH49: N/A | AI49: N/A | BB49: Highly contaminated (>100 CFU/100 mL) | BC49: N/A | BD49: N/A | BE49: N/A | BF49: N/A | BG49: N/A | BH49: N/A | BI49: N/A | BJ49: N/A | BK49: N/A | BL49: N/A | BM49: N/A | BN49: N/A | BO49: N/A | BP49: N/A | BQ49: N/A | BR49: N/A | BS49: N/A | BT49: N/A | BU49: N/A | BV49: N/A | BW49: N/A | BX49: N/A | BY49: N/A | BZ49: N/A | CA49: N/A | CB49: N/A | CC49: N/A | CD49: N/A | CE49: N/A | CF49: N/A | CG49: N/A | CH49: N/A | CI49: N/A
A50: Microbiological quality of improved water sources at point of collection | B50: Not contaminated (No E. coli in 100 mL) | C50: N/A | D50: N/A | E50: N/A | F50: N/A | G50: N/A | H50: N/A | I50: N/A | J50: N/A | K50: N/A | L50: N/A | M50: N/A | N50: N/A | O50: N/A | P50: N/A | Q50: N/A | R50: N/A | S50: N/A | T50: N/A | U50: N/A | V50: N/A | W50: N/A | X50: N/A | Y50: N/A | Z50: N/A | AA50: N/A | AB50: N/A | AC50: N/A | AD50: N/A | AE50: N/A | AF50: N/A | AG50: N/A | AH50: N/A | AI50: N/A | BA50: Microbiological quality of improved water sources at point of collection | BB50: Not contaminated (No E. coli in 100 mL) | BC50: N/A | BD50: N/A | BE50: N/A | BF50: N/A | BG50: N/A | BH50: N/A | BI50: N/A | BJ50: N/A | BK50: N/A | BL50: N/A | BM50: N/A | BN50: N/A | BO50: N/A | BP50: N/A | BQ50: N/A | BR50: N/A | BS50: N/A | BT50: N/A | BU50: N/A | BV50: N/A | BW50: N/A | BX50: N/A | BY50: N/A | BZ50: N/A | CA50: N/A | CB50: N/A | CC50: N/A | CD50: N/A | CE50: N/A | CF50: N/A | CG50: N/A | CH50: N/A | CI50: N/A
B51: Contaminated (E. coli detected in 100 mL) | C51: N/A | D51: N/A | E51: N/A | F51: N/A | G51: N/A | H51: N/A | I51: N/A | J51: N/A | K51: N/A | L51: N/A | M51: N/A | N51: N/A | O51: N/A | P51: N/A | Q51: N/A | R51: N/A | S51: N/A | T51: N/A | U51: N/A | V51: N/A | W51: N/A | X51: N/A | Y51: N/A | Z51: N/A | AA51: N/A | AB51: N/A | AC51: N/A | AD51: N/A | AE51: N/A | AF51: N/A | AG51: N/A | AH51: N/A | AI51: N/A | BB51: Contaminated (E. coli detected in 100 mL) | BC51: N/A | BD51: N/A | BE51: N/A | BF51: N/A | BG51: N/A | BH51: N/A | BI51: N/A | BJ51: N/A | BK51: N/A | BL51: N/A | BM51: N/A | BN51: N/A | BO51: N/A | BP51: N/A | BQ51: N/A | BR51: N/A | BS51: N/A | BT51: N/A | BU51: N/A | BV51: N/A | BW51: N/A | BX51: N/A | BY51: N/A | BZ51: N/A | CA51: N/A | CB51: N/A | CC51: N/A | CD51: N/A | CE51: N/A | CF51: N/A | CG51: N/A | CH51: N/A | CI51: N/A
B52: Highly contaminated (>100 CFU/100 mL) | C52: N/A | D52: N/A | E52: N/A | F52: N/A | G52: N/A | H52: N/A | I52: N/A | J52: N/A | K52: N/A | L52: N/A | M52: N/A | N52: N/A | O52: N/A | P52: N/A | Q52: N/A | R52: N/A | S52: N/A | T52: N/A | U52: N/A | V52: N/A | W52: N/A | X52: N/A | Y52: N/A | Z52: N/A | AA52: N/A | AB52: N/A | AC52: N/A | AD52: N/A | AE52: N/A | AF52: N/A | AG52: N/A | AH52: N/A | AI52: N/A | BB52: Highly contaminated (>100 CFU/100 mL) | BC52: N/A | BD52: N/A | BE52: N/A | BF52: N/A | BG52: N/A | BH52: N/A | BI52: N/A | BJ52: N/A | BK52: N/A | BL52: N/A | BM52: N/A | BN52: N/A | BO52: N/A | BP52: N/A | BQ52: N/A | BR52: N/A | BS52: N/A | BT52: N/A | BU52: N/A | BV52: N/A | BW52: N/A | BX52: N/A | BY52: N/A | BZ52: N/A | CA52: N/A | CB52: N/A | CC52: N/A | CD52: N/A | CE52: N/A | CF52: N/A | CG52: N/A | CH52: N/A | CI52: N/A
A53: Microbiological quality of piped on premises at point of collection | B53: Not contaminated (No E. coli in 100 mL) | C53: N/A | D53: N/A | E53: N/A | F53: N/A | G53: N/A | H53: N/A | I53: N/A | J53: N/A | K53: N/A | L53: N/A | M53: N/A | N53: N/A | O53: N/A | P53: N/A | Q53: N/A | R53: N/A | S53: N/A | T53: N/A | U53: N/A | V53: N/A | W53: N/A | X53: N/A | Y53: N/A | Z53: N/A | AA53: N/A | AB53: N/A | AC53: N/A | AD53: N/A | AE53: N/A | AF53: N/A | AG53: N/A | AH53: N/A | AI53: N/A | BA53: Microbiological quality of piped on premises at point of collection | BB53: Not contaminated (No E. coli in 100 mL) | BC53: N/A | BD53: N/A | BE53: N/A | BF53: N/A | BG53: N/A | BH53: N/A | BI53: N/A | BJ53: N/A | BK53: N/A | BL53: N/A | BM53: N/A | BN53: N/A | BO53: N/A | BP53: N/A | BQ53: N/A | BR53: N/A | BS53: N/A | BT53: N/A | BU53: N/A | BV53: N/A | BW53: N/A | BX53: N/A | BY53: N/A | BZ53: N/A | CA53: N/A | CB53: N/A | CC53: N/A | CD53: N/A | CE53: N/A | CF53: N/A | CG53: N/A | CH53: N/A | CI53: N/A
B54: Contaminated (E. coli detected in 100 mL) | C54: N/A | D54: N/A | E54: N/A | F54: N/A | G54: N/A | H54: N/A | I54: N/A | J54: N/A | K54: N/A | L54: N/A | M54: N/A | N54: N/A | O54: N/A | P54: N/A | Q54: N/A | R54: N/A | S54: N/A | T54: N/A | U54: N/A | V54: N/A | W54: N/A | X54: N/A | Y54: N/A | Z54: N/A | AA54: N/A | AB54: N/A | AC54: N/A | AD54: N/A | AE54: N/A | AF54: N/A | AG54: N/A | AH54: N/A | AI54: N/A | BB54: Contaminated (E. coli detected in 100 mL) | BC54: N/A | BD54: N/A | BE54: N/A | BF54: N/A | BG54: N/A | BH54: N/A | BI54: N/A | BJ54: N/A | BK54: N/A | BL54: N/A | BM54: N/A | BN54: N/A | BO54: N/A | BP54: N/A | BQ54: N/A | BR54: N/A | BS54: N/A | BT54: N/A | BU54: N/A | BV54: N/A | BW54: N/A | BX54: N/A | BY54: N/A | BZ54: N/A | CA54: N/A | CB54: N/A | CC54: N/A | CD54: N/A | CE54: N/A | CF54: N/A | CG54: N/A | CH54: N/A | CI54: N/A
B55: Highly contaminated (>100 CFU/100 mL) | C55: N/A | D55: N/A | E55: N/A | F55: N/A | G55: N/A | H55: N/A | I55: N/A | J55: N/A | K55: N/A | L55: N/A | M55: N/A | N55: N/A | O55: N/A | P55: N/A | Q55: N/A | R55: N/A | S55: N/A | T55: N/A | U55: N/A | V55: N/A | W55: N/A | X55: N/A | Y55: N/A | Z55: N/A | AA55: N/A | AB55: N/A | AC55: N/A | AD55: N/A | AE55: N/A | AF55: N/A | AG55: N/A | AH55: N/A | AI55: N/A | BB55: Highly contaminated (>100 CFU/100 mL) | BC55: N/A | BD55: N/A | BE55: N/A | BF55: N/A | BG55: N/A | BH55: N/A | BI55: N/A | BJ55: N/A | BK55: N/A | BL55: N/A | BM55: N/A | BN55: N/A | BO55: N/A | BP55: N/A | BQ55: N/A | BR55: N/A | BS55: N/A | BT55: N/A | BU55: N/A | BV55: N/A | BW55: N/A | BX55: N/A | BY55: N/A | BZ55: N/A | CA55: N/A | CB55: N/A | CC55: N/A | CD55: N/A | CE55: N/A | CF55: N/A | CG55: N/A | CH55: N/A | CI55: N/A
C56: NATIONAL wealth index quintile | H56: URBAN wealth index quintile | M56: RURAL wealth index quintile | R56: SUB-REGIONS: | BA56: Raw numbers of respondents: | BB56: Use of drinking water sources | BC56: NATIONAL wealth index quintile | BH56: URBAN wealth index quintile | BM56: RURAL wealth index quintile | BR56: SUB-REGIONS:
A57: Percentage based on weighted population | C57: Poorest | D57: Poor | E57: Middle | F57: Rich | G57: Richest | H57: Poorest | I57: Poor | J57: Middle | K57: Rich | L57: Richest | M57: Poorest | N57: Poor | O57: Middle | P57: Rich | Q57: Richest | R57: anbar | S57: babylon | T57: baghdad | U57: basra | V57: diala | W57: dohouk | X57: erbil | Y57: kerbela | Z57: maysan | AA57: muthanna | AB57: najaf | AC57: nenava | AD57: qadisiya | AE57: salaheldeen | AF57: suleimaniya | AG57: ta'amem | AH57: thi-qar | AI57: wasit | BA57: Water data, raw numbers (weighted) | BC57: Poorest | BD57: Poor | BE57: Middle | BF57: Rich | BG57: Richest | BH57: Poorest | BI57: Poor | BJ57: Middle | BK57: Rich | BL57: Richest | BM57: Poorest | BN57: Poor | BO57: Middle | BP57: Rich | BQ57: Richest | BR57: anbar | BS57: babylon | BT57: baghdad | BU57: basra | BV57: diala | BW57: dohouk | BX57: erbil | BY57: kerbela | BZ57: maysan | CA57: muthanna | CB57: najaf | CC57: nenava | CD57: qadisiya | CE57: salaheldeen | CF57: suleimaniya | CG57: ta'amem | CH57: thi-qar | CI57: wasit
A58: main source of water | B58: piped into dwelling | C58: 77.23024403 | D58: 48.28165687 | E58: 37.56661632 | F58: 92.49290973 | G58: 94.00317947 | H58: 78.85638974 | I58: 83.58778701 | J58: 90.94510266 | K58: 95.44944415 | L58: 96.01792872 | M58: 16.54211129 | N58: 27.52354773 | O58: 31.64596797 | P58: 30.17357746 | Q58: 29.13164701 | R58: 74.2252243 | S58: 56.21846117 | T58: 88.8112182 | U58: 81.17050904 | V58: 67.35782257 | W58: 52.94935304 | X58: 74.63566524 | Y58: 61.144098 | Z58: 57.53773191 | AA58: 55.83133855 | AB58: 75.07495026 | AC58: 71.61074422 | AD58: 56.75144426 | AE58: 59.44889487 | AF58: 40.41058319 | AG58: 56.19031793 | AH58: 55.22726853 | AI58: 57.31795892
B59: piped into yard or plot | C59: 10.69221305 | D59: 8.271159655 | E59: 6.11760416 | F59: 3.160272844 | G59: 2.218957423 | H59: 12.09802381 | I59: 7.779781199 | J59: 4.56185699 | K59: 2.437559871 | L59: 2.381439544 | M59: 6.292593581 | N59: 4.895660307 | O59: 5.131143149 | P59: 8.378759193 | Q59: 8.716985081 | R59: 0.1076054932 | S59: 0.3469059226 | T59: 2.586436291 | U59: 4.689408797 | V59: 0.9664214564 | W59: 30.85258136 | X59: 12.59922137 | Y59: 14.26859983 | Z59: 6.483989721 | AA59: 0 | AB59: 5.932347334 | AC59: 2.075765408 | AD59: 5.126491096 | AE59: 0 | AF59: 25.69313296 | AG59: 16.53190114 | AH59: 0 | AI59: 0.3869680658
B60: public tap | C60: 4.391527418 | D60: 6.001268786 | E60: 5.840740876 | F60: 1.577585056 | G60: 0.5518855826 | H60: 4.678286923 | I60: 3.132536661 | J60: 1.990241371 | K60: 0.2973241779 | L60: 0.3041275424 | M60: 7.021680892 | N60: 6.70152195 | O60: 7.78903095 | P60: 6.525152233 | Q60: 8.357933592 | R60: 5.605020544 | S60: 3.233032014 | T60: 2.578798301 | U60: 4.337290663 | V60: 0.3090770775 | W60: 5.90582426 | X60: 3.042862875 | Y60: 0.9930830866 | Z60: 3.82823622 | AA60: 5.76106118 | AB60: 1.92916816 | AC60: 0.1808383887 | AD60: 1.507135569 | AE60: 4.058911247 | AF60: 13.22572345 | AG60: 8.921136368 | AH60: 3.356617869 | AI60: 4.942950465
B61: tubewell/borehole with pump | C61: 0.9634038443 | D61: 3.165032934 | E61: 4.362814841 | F61: 0.2504436195 | G61: 0.2185828911 | H61: 0.7710398788 | I61: 0.2927734328 | J61: 0.05277937852 | K61: 0.2941373747 | L61: 0 | M61: 5.169097202 | N61: 5.48133293 | O61: 6.299578961 | P61: 5.077860886 | Q61: 3.894508112 | R61: 0 | S61: 11.50743303 | T61: 0 | U61: 0 | V61: 5.672473423 | W61: 5.688175572 | X61: 0 | Y61: 1.659309624 | Z61: 0 | AA61: 0 | AB61: 1.059789658 | AC61: 2.464281229 | AD61: 1.258535887 | AE61: 3.466771634 | AF61: 2.514978893 | AG61: 0 | AH61: 2.036859516 | AI61: 0.6760342919
B62: protected dug well | C62: 1.113019389 | D62: 2.854808672 | E62: 3.175214063 | F62: 0.01911171055 | G62: 0.08810746493 | H62: 1.028746398 | I62: 0.6077520938 | J62: 0.06031928973 | K62: 0 | L62: 0 | M62: 5.555636695 | N62: 2.89001286 | O62: 3.43924466 | P62: 4.295391318 | Q62: 3.573149611 | R62: 0 | S62: 2.393913228 | T62: 0.4709540806 | U62: 0 | V62: 3.70892493 | W62: 0.2567579251 | X62: 0.1830386662 | Y62: 0.1810155953 | Z62: 0 | AA62: 2.422672616 | AB62: 0.487839684 | AC62: 5.080470204 | AD62: 0.5438118032 | AE62: 0.07569370379 | AF62: 4.948175377 | AG62: 3.600602786 | AH62: 0 | AI62: 0.1733421261
B63: protected spring | C63: 0.04616705227 | D63: 1.023802879 | E63: 1.259327689 | F63: 0 | G63: 0 | H63: 0 | I63: 0 | J63: 0 | K63: 0 | L63: 0 | M63: 1.864406811 | N63: 0.8875336791 | O63: 2.138973763 | P63: 1.630738234 | Q63: 1.05704305 | R63: 0 | S63: 0 | T63: 0 | U63: 0 | V63: 0 | W63: 0 | X63: 1.921905995 | Y63: 0 | Z63: 0 | AA63: 0 | AB63: 0 | AC63: 1.586592024 | AD63: 0 | AE63: 0 | AF63: 3.076611099 | AG63: 0 | AH63: 0 | AI63: 0
B64: bottled water | C64: 0 | D64: 0.03613589115 | E64: 0.122298795 | F64: 0 | G64: 0 | H64: 0 | I64: 0 | J64: 0 | K64: 0 | L64: 0 | M64: 0.0166648735 | N64: 0.2692623509 | O64: 0.1436256648 | P64: 0.08253300226 | Q64: 0 | R64: 0 | S64: 0 | T64: 0 | U64: 0 | V64: 0 | W64: 0 | X64: 0 | Y64: 0 | Z64: 0 | AA64: 0 | AB64: 0 | AC64: 0 | AD64: 0 | AE64: 0 | AF64: 0 | AG64: 0 | AH64: 0 | AI64: 1.074721182
B65: unprotected dug well | C65: 0.223215553 | D65: 2.472303531 | E65: 4.890251604 | F65: 0.2099212781 | G65: 0.306217593 | H65: 0.06758709711 | I65: 0 | J65: 0.06785920095 | K65: 0.05994879069 | L65: 0.02259484117 | M65: 9.607604995 | N65: 4.762914894 | O65: 3.460048904 | P65: 2.883423277 | Q65: 5.121409266 | R65: 0 | S65: 6.00596668 | T65: 0 | U65: 0 | V65: 0.3090770775 | W65: 0.05925182887 | X65: 0 | Y65: 1.961002282 | Z65: 2.181890044 | AA65: 1.909258551 | AB65: 0.8915690777 | AC65: 2.025436626 | AD65: 9.136038294 | AE65: 0 | AF65: 0 | AG65: 0.38577887 | AH65: 10.96106604 | AI65: 3.934866263
B66: unprotected spring | C66: 0.1265295335 | D66: 0.7725076955 | E66: 1.000601262 | F66: 0.03790868819 | G66: 0.01568059421 | H66: 0.03161216732 | I66: 0 | J66: 0 | K66: 0 | L66: 0 | M66: 1.858160069 | N66: 1.120766088 | O66: 1.030093945 | P66: 1.257205713 | Q66: 0.9999002384 | R66: 0 | S66: 0.1186670902 | T66: 0 | U66: 0 | V66: 0.1272670319 | W66: 2.11331523 | X66: 0.3660773324 | Y66: 0.1055924306 | Z66: 0.244371685 | AA66: 0.3208837901 | AB66: 0 | AC66: 0.3375727711 | AD66: 1.460523129 | AE66: 0.5814708785 | AF66: 2.153627769 | AG66: 0 | AH66: 0.3107073838 | AI66: 0.7453711424
B67: pond, river or stream | C67: 2.862834063 | D67: 20.51967241 | E67: 23.53751182 | F67: 0.6594349006 | G67: 1.041162157 | H67: 1.026280373 | I67: 2.339415929 | J67: 0.6428003011 | K67: 0.2404770774 | L67: 0.2643336512 | M67: 27.53729136 | N67: 32.72527283 | O67: 26.75647534 | P67: 30.30710943 | Q67: 30.32019813 | R67: 13.49103872 | S67: 19.68046367 | T67: 3.481241649 | U67: 3.895861581 | V67: 13.33152518 | W67: 0.5135158502 | X67: 4.07093169 | Y67: 17.50741924 | Z67: 28.99459257 | AA67: 19.36533673 | AB67: 13.68778675 | AC67: 0.9114464818 | AD67: 23.34350741 | AE67: 22.16301767 | AF67: 0.7789161853 | AG67: 8.744321053 | AH67: 26.38556517 | AI67: 28.34075946
B68: tanker truck vendor | C68: 1.693943 | D68: 4.996133295 | E68: 8.735732399 | F68: 1.381505637 | G68: 1.43427738 | H68: 0.8379682635 | I68: 1.835154413 | J68: 1.189722697 | K68: 1.128812798 | L68: 0.9653606364 | M68: 14.41538505 | N68: 9.203854219 | O68: 8.464863736 | P68: 6.848852565 | Q68: 6.968681853 | R68: 6.538966922 | S68: 0.3319899394 | T68: 0.6130903644 | U68: 5.621541322 | V68: 6.962921936 | W68: 0.3759386433 | X68: 0.2745579993 | Y68: 0.8263759962 | Z68: 0.5833502812 | AA68: 7.765387721 | AB68: 0 | AC68: 12.23701295 | AD68: 0.170912281 | AE68: 9.446574233 | AF68: 6.172725701 | AG68: 4.002455776 | AH68: 1.583370567 | AI68: 1.784352748
B69: other | C69: 0.656903071 | D69: 1.605517382 | E69: 3.391286175 | F69: 0.210906539 | G69: 0.1219494461 | H69: 0.6040653405 | I69: 0.4247992569 | J69: 0.4893181075 | K69: 0.09229576146 | L69: 0.04421506771 | M69: 4.119367183 | N69: 3.53832016 | O69: 3.700952949 | P69: 2.539396696 | Q69: 1.858544053 | R69: 0.03214402445 | S69: 0.163167249 | T69: 1.458261115 | U69: 0.285388594 | V69: 1.254489315 | W69: 1.285286285 | X69: 2.905738826 | Y69: 1.35350392 | Z69: 0.1458375703 | AA69: 6.624060852 | AB69: 0.9365490724 | AC69: 1.489839694 | AD69: 0.7016002707 | AE69: 0.7586657621 | AF69: 1.025525374 | AG69: 1.623486078 | AH69: 0.1385449246 | AI69: 0.6226753349
A108: =A1026 -> Iraq
A109: =A1034 -> 2000
A110: Use of sanitation facilities
A111: by wealth quintile and sub-national region
A112: Notes:
A113: WHO/UNICEF JMP customised wealth index excludes water,
A114: sanitation and hygiene assets.
A115: Survey used for analysis: | B115: =A1025 -> MICS00
A116: =B1030 -> Ratio of Improved latrines based on: | B116: MICS06
A117: =B1029 -> Ratio of Shared improved based on: | B117: MICS06
A120: Use of sanitation facilities | C120: NATIONAL wealth index quintile | H120: URBAN wealth index quintile | M120: RURAL wealth index quintile | R120: SUB-REGIONS: | BA120: Raw numbers of respondents: | BB120: Use of sanitation facilities | BC120: NATIONAL wealth index quintile | BH120: URBAN wealth index quintile | BM120: RURAL wealth index quintile | BR120: SUB-REGIONS:
A121: Weighted percentage (used in graphs) | C121: Poorest | D121: Poor | E121: Middle | F121: Rich | G121: Richest | H121: Poorest | I121: Poor | J121: Middle | K121: Rich | L121: Richest | M121: Poorest | N121: Poor | O121: Middle | P121: Rich | Q121: Richest | R121: anbar | S121: babylon | T121: baghdad | U121: basra | V121: diala | W121: dohouk | X121: erbil | Y121: kerbela | Z121: maysan | AA121: muthanna | AB121: najaf | AC121: nenava | AD121: qadisiya | AE121: salaheldeen | AF121: suleimaniya | AG121: ta'amem | AH121: thi-qar | AI121: wasit | BA121: Sanitation data, raw numbers (weighted) | BC121: Poorest | BD121: Poor | BE121: Middle | BF121: Rich | BG121: Richest | BH121: Poorest | BI121: Poor | BJ121: Middle | BK121: Rich | BL121: Richest | BM121: Poorest | BN121: Poor | BO121: Middle | BP121: Rich | BQ121: Richest | BR121: anbar | BS121: babylon | BT121: baghdad | BU121: basra | BV121: diala | BW121: dohouk | BX121: erbil | BY121: kerbela | BZ121: maysan | CA121: muthanna | CB121: najaf | CC121: nenava | CD121: qadisiya | CE121: salaheldeen | CF121: suleimaniya | CG121: ta'amem | CH121: thi-qar | CI121: wasit
A122: Sanitation | B122: Improved | C122: =C153+C154+C155+(C156+C157)*MICS06!C130/100 -> 91.01028637 | D122: =D153+D154+D155+(D156+D157)*MICS06!D130/100 -> 82.13192893 | E122: =E153+E154+E155+(E156+E157)*MICS06!E130/100 -> 77.76287962 | F122: =F153+F154+F155+(F156+F157)*MICS06!F130/100 -> 98.93949419 | G122: =G153+G154+G155+(G156+G157)*MICS06!G130/100 -> 99.10657601 | H122: =H153+H154+H155+(H156+H157)*MICS06!H130/100 -> 97.1848226 | I122: =I153+I154+I155+(I156+I157)*MICS06!I130/100 -> 98.75826993 | J122: =J153+J154+J155+(J156+J157)*MICS06!J130/100 -> 99.49188016 | K122: =K153+K154+K155+(K156+K157)*MICS06!K130/100 -> 99.83419425 | L122: =L153+L154+L155+(L156+L157)*MICS06!L130/100 -> 99.84697026 | M122: =M153+M154+M155+(M156+M157)*MICS06!M130/100 -> 39.56098151 | N122: =N153+N154+N155+(N156+N157)*MICS06!N130/100 -> 67.64432719 | O122: =O153+O154+O155+(O156+O157)*MICS06!O130/100 -> 73.21911489 | P122: =P153+P154+P155+(P156+P157)*MICS06!P130/100 -> 76.78698016 | Q122: =Q153+Q154+Q155+(Q156+Q157)*MICS06!Q130/100 -> 74.13568222 | R122: =R153+R154+R155+(R156+R157)*MICS06!T130/100 -> 96.02688515 | S122: =S153+S154+S155+(S156+S157)*MICS06!V130/100 -> 82.81120005 | T122: =T153+T154+T155+(T156+T157)*MICS06!W130/100 -> 98.92868929 | U122: =U153+U154+U155+(U156+U157)*MICS06!R130/100 -> 97.75210722 | V122: =V153+V154+V155+(V156+V157)*MICS06!X130/100 -> 97.90918448 | W122: =W153+W154+W155+(W156+W157)*MICS06!Y130/100 -> 93.5283595 | X122: =X153+X154+X155+(X156+X157)*MICS06!U130/100 -> 93.77793503 | Y122: =Y153+Y154+Y155+(Y156+Y157)*MICS06!AA130/100 -> 93.34438052 | Z122: =Z153+Z154+Z155+(Z156+Z157)*MICS06!AB130/100 -> 64.36822404 | AA122: =AA153+AA154+AA155+(AA156+AA157)*MICS06!S130/100 -> 60.12854901 | AB122: =AB153+AB154+AB155+(AB156+AB157)*MICS06!AD130/100 -> 89.56200426 | AC122: =AC153+AC154+AC155+(AC156+AC157)*MICS06!AC130/100 -> 93.76305051 | AD122: =AD153+AD154+AD155+(AD156+AD157)*MICS06!AE130/100 -> 62.4020486 | AE122: =AE153+AE154+AE155+(AE156+AE157)*MICS06!AF130/100 -> 78.50432305 | AF122: =AF153+AF154+AF155+(AF156+AF157)*MICS06!AG130/100 -> 95.03445266 | AG122: =AG153+AG154+AG155+(AG156+AG157)*MICS06!Z130/100 -> 95.23528208 | AH122: =AH153+AH154+AH155+(AH156+AH157)*MICS06!AH130/100 -> 74.09044586 | AI122: =AI153+AI154+AI155+(AI156+AI157)*MICS06!AI130/100 -> 64.41859628 | BA122: Sanitation | BB122: Improved | BC122: N/A | BD122: N/A | BE122: N/A | BF122: N/A | BG122: N/A | BH122: N/A | BI122: N/A | BJ122: N/A | BK122: N/A | BL122: N/A | BM122: N/A | BN122: N/A | BO122: N/A | BP122: N/A | BQ122: N/A | BR122: N/A | BS122: N/A | BT122: N/A | BU122: N/A | BV122: N/A | BW122: N/A | BX122: N/A | BY122: N/A | BZ122: N/A | CA122: N/A | CB122: N/A | CC122: N/A | CD122: N/A | CE122: N/A | CF122: N/A | CG122: N/A | CH122: N/A | CI122: N/A
B123: Not Improved | C123: =100-C122 -> 8.989713634 | D123: =100-D122 -> 17.86807107 | E123: 22.23712038 | F123: 1.060505809 | G123: 0.8934239852 | H123: 2.815177402 | I123: 1.241730069 | J123: 0.508119845 | K123: 0.1658057531 | L123: 0.15302974 | M123: 60.43901849 | N123: 32.35567281 | O123: 26.78088511 | P123: 23.21301984 | Q123: 25.86431778 | R123: 3.973114851 | S123: 17.18879995 | T123: 1.071310713 | U123: 2.247892781 | V123: 2.090815525 | W123: 6.471640501 | X123: 6.222064967 | Y123: 6.655619476 | Z123: 35.63177596 | AA123: 39.87145099 | AB123: 10.43799574 | AC123: 6.236949494 | AD123: 37.5979514 | AE123: 21.49567695 | AF123: 4.965547343 | AG123: 4.764717917 | AH123: 25.90955414 | AI123: 35.58140372 | BB123: Not Improved | BC123: N/A | BD123: N/A | BE123: N/A | BF123: N/A | BG123: N/A | BH123: N/A | BI123: N/A | BJ123: N/A | BK123: N/A | BL123: N/A | BM123: N/A | BN123: N/A | BO123: N/A | BP123: N/A | BQ123: N/A | BR123: N/A | BS123: N/A | BT123: N/A | BU123: N/A | BV123: N/A | BW123: N/A | BX123: N/A | BY123: N/A | BZ123: N/A | CA123: N/A | CB123: N/A | CC123: N/A | CD123: N/A | CE123: N/A | CF123: N/A | CG123: N/A | CH123: N/A | CI123: N/A
A124: Sanitation ladder | B124: Basic | C124: =C122*MICS06!C129/100 -> 71.17136768 | D124: =D122*MICS06!D129/100 -> 64.41458953 | E124: =E122*MICS06!E129/100 -> 62.12184722 | F124: =F122*MICS06!F129/100 -> 83.6126552 | G124: =G122*MICS06!G129/100 -> 85.35256057 | H124: =H122*MICS06!H129/100 -> 72.51183901 | I124: =I122*MICS06!I129/100 -> 75.71843658 | J124: =J122*MICS06!J129/100 -> 77.62624694 | K124: =K122*MICS06!K129/100 -> 85.35055177 | L124: =L122*MICS06!L129/100 -> 86.34005857 | M124: =M122*MICS06!M129/100 -> 32.37046408 | N124: =N122*MICS06!N129/100 -> 53.38842845 | O124: =O122*MICS06!O129/100 -> 62.02524022 | P124: =P122*MICS06!P129/100 -> 66.3385503 | Q124: =Q122*MICS06!Q129/100 -> 65.80248655 | R124: =R122*MICS06!T129/100 -> 94.3108315 | S124: =S122*MICS06!V129/100 -> 76.10732908 | T124: =T122*MICS06!W129/100 -> 73.84690796 | U124: =U122*MICS06!R129/100 -> 73.97180748 | V124: =V122*MICS06!X129/100 -> 85.94010499 | W124: =W122*MICS06!Y129/100 -> 60.52134085 | X124: =X122*MICS06!U129/100 -> 80.18134611 | Y124: =Y122*MICS06!AA129/100 -> 70.44621002 | Z124: =Z122*MICS06!AB129/100 -> 55.40527501 | AA124: =AA122*MICS06!S129/100 -> 55.24695719 | AB124: =AB122*MICS06!AD129/100 -> 72.60652283 | AC124: =AC122*MICS06!AC129/100 -> 70.66688452 | AD124: =AD122*MICS06!AE129/100 -> 50.93363809 | AE124: =AE122*MICS06!AF129/100 -> 70.52979456 | AF124: =AF122*MICS06!AG129/100 -> 82.50751318 | AG124: =AG122*MICS06!Z129/100 -> 82.39581413 | AH124: =AH122*MICS06!AH129/100 -> 63.63693322 | AI124: =AI122*MICS06!AI129/100 -> 52.10249039 | BA124: Sanitation ladder | BB124: Basic | BC124: N/A | BD124: N/A | BE124: N/A | BF124: N/A | BG124: N/A | BH124: N/A | BI124: N/A | BJ124: N/A | BK124: N/A | BL124: N/A | BM124: N/A | BN124: N/A | BO124: N/A | BP124: N/A | BQ124: N/A | BR124: N/A | BS124: N/A | BT124: N/A | BU124: N/A | BV124: N/A | BW124: N/A | BX124: N/A | BY124: N/A | BZ124: N/A | CA124: N/A | CB124: N/A | CC124: N/A | CD124: N/A | CE124: N/A | CF124: N/A | CG124: N/A | CH124: N/A | CI124: N/A
B125: Limited | C125: =C122*MICS06!C128/100 -> 19.83891869 | D125: =D122*MICS06!D128/100 -> 17.7173394 | E125: =E122*MICS06!E128/100 -> 15.6410324 | F125: =F122*MICS06!F128/100 -> 15.32683899 | G125: =G122*MICS06!G128/100 -> 13.75401545 | H125: =H122*MICS06!H128/100 -> 24.67298359 | I125: =I122*MICS06!I128/100 -> 23.03983335 | J125: =J122*MICS06!J128/100 -> 21.86563322 | K125: =K122*MICS06!K128/100 -> 14.48364248 | L125: =L122*MICS06!L128/100 -> 13.50691169 | M125: =M122*MICS06!M128/100 -> 7.190517431 | N125: =N122*MICS06!N128/100 -> 14.25589874 | O125: =O122*MICS06!O128/100 -> 11.19387468 | P125: =P122*MICS06!P128/100 -> 10.44842986 | Q125: =Q122*MICS06!Q128/100 -> 8.333195668 | R125: =R122*MICS06!T128/100 -> 1.716053651 | S125: =S122*MICS06!V128/100 -> 6.703870976 | T125: =T122*MICS06!W128/100 -> 25.08178132 | U125: =U122*MICS06!R128/100 -> 23.78029974 | V125: =V122*MICS06!X128/100 -> 11.96907948 | W125: =W122*MICS06!Y128/100 -> 33.00701865 | X125: =X122*MICS06!U128/100 -> 13.59658892 | Y125: =Y122*MICS06!AA128/100 -> 22.8981705 | Z125: =Z122*MICS06!AB128/100 -> 8.962949029 | AA125: =AA122*MICS06!S128/100 -> 4.881591815 | AB125: =AB122*MICS06!AD128/100 -> 16.95548143 | AC125: =AC122*MICS06!AC128/100 -> 23.09616599 | AD125: =AD122*MICS06!AE128/100 -> 11.46841051 | AE125: =AE122*MICS06!AF128/100 -> 7.97452849 | AF125: =AF122*MICS06!AG128/100 -> 12.52693947 | AG125: =AG122*MICS06!Z128/100 -> 12.83946795 | AH125: =AH122*MICS06!AH128/100 -> 10.45351264 | AI125: =AI122*MICS06!AI128/100 -> 12.31610588 | BB125: Limited | BC125: N/A | BD125: N/A | BE125: N/A | BF125: N/A | BG125: N/A | BH125: N/A | BI125: N/A | BJ125: N/A | BK125: N/A | BL125: N/A | BM125: N/A | BN125: N/A | BO125: N/A | BP125: N/A | BQ125: N/A | BR125: N/A | BS125: N/A | BT125: N/A | BU125: N/A | BV125: N/A | BW125: N/A | BX125: N/A | BY125: N/A | BZ125: N/A | CA125: N/A | CB125: N/A | CC125: N/A | CD125: N/A | CE125: N/A | CF125: N/A | CG125: N/A | CH125: N/A | CI125: N/A
B126: Unimproved | C126: =100-(C124+C125+C127) -> 7.27663471 | D126: =100-(D124+D125+D127) -> 9.001706436 | E126: 7.031650701 | F126: 0.7926343056 | G126: 0.1224820427 | H126: 2.246525739 | I126: 0.8923266596 | J126: 0.4403777345 | K126: 0.1290038551 | L126: 0.06483274644 | M126: 34.57247571 | N126: 15.92150921 | O126: 12.78651799 | P126: 11.18573526 | Q126: 9.54263376 | R126: 0.6776966206 | S126: 2.757717656 | T126: 0.1357667959 | U126: 2.15036783 | V126: 0 | W126: 1.81042536 | X126: 2.767468393 | Y126: 3.857628623 | Z126: 25.30227191 | AA126: 24.43694069 | AB126: 8.150195844 | AC126: 0.1470811116 | AD126: 18.11395136 | AE126: 6.837004688 | AF126: 2.119682076 | AG126: 3.848493101 | AH126: 12.8244964 | AI126: 20.2926282 | BB126: Unimproved | BC126: N/A | BD126: N/A | BE126: N/A | BF126: N/A | BG126: N/A | BH126: N/A | BI126: N/A | BJ126: N/A | BK126: N/A | BL126: N/A | BM126: N/A | BN126: N/A | BO126: N/A | BP126: N/A | BQ126: N/A | BR126: N/A | BS126: N/A | BT126: N/A | BU126: N/A | BV126: N/A | BW126: N/A | BX126: N/A | BY126: N/A | BZ126: N/A | CA126: N/A | CB126: N/A | CC126: N/A | CD126: N/A | CE126: N/A | CF126: N/A | CG126: N/A | CH126: N/A | CI126: N/A
B127: Open defecation | C127: =C160 -> 1.713078924 | D127: =D160 -> 8.866364632 | E127: 15.20546967 | F127: 0.2678715035 | G127: 0.7709419425 | H127: 0.5686516628 | I127: 0.3494034092 | J127: 0.0677421105 | K127: 0.03680189798 | L127: 0.08819699355 | M127: 25.86654278 | N127: 16.4341636 | O127: 13.99436712 | P127: 12.02728458 | Q127: 16.32168402 | R127: 3.29541823 | S127: 14.43108229 | T127: 0.9355439168 | U127: 0.09752495068 | V127: 2.090815525 | W127: 4.661215141 | X127: 3.454596574 | Y127: 2.797990853 | Z127: 10.32950405 | AA127: 15.43451031 | AB127: 2.287799898 | AC127: 6.089868383 | AD127: 19.48400004 | AE127: 14.65867226 | AF127: 2.845865266 | AG127: 0.9162248162 | AH127: 13.08505774 | AI127: 15.28877552 | BB127: Open defecation | BC127: N/A | BD127: N/A | BE127: N/A | BF127: N/A | BG127: N/A | BH127: N/A | BI127: N/A | BJ127: N/A | BK127: N/A | BL127: N/A | BM127: N/A | BN127: N/A | BO127: N/A | BP127: N/A | BQ127: N/A | BR127: N/A | BS127: N/A | BT127: N/A | BU127: N/A | BV127: N/A | BW127: N/A | BX127: N/A | BY127: N/A | BZ127: N/A | CA127: N/A | CB127: N/A | CC127: N/A | CD127: N/A | CE127: N/A | CF127: N/A | CG127: N/A | CH127: N/A | CI127: N/A
A128: Shared among Improved Sanitation | B128: Yes | C128: N/A | D128: N/A | E128: N/A | F128: N/A | G128: N/A | H128: N/A | I128: N/A | J128: N/A | K128: N/A | L128: N/A | M128: N/A | N128: N/A | O128: N/A | P128: N/A | Q128: N/A | R128: N/A | S128: N/A | T128: N/A | U128: N/A | V128: N/A | W128: N/A | X128: N/A | Y128: N/A | Z128: N/A | AA128: N/A | AB128: N/A | AC128: N/A | AD128: N/A | AE128: N/A | AF128: N/A | AG128: N/A | AH128: N/A | AI128: N/A | BA128: Shared among improved sanitation facilities | BB128: Yes | BC128: N/A | BD128: N/A | BE128: N/A | BF128: N/A | BG128: N/A | BH128: N/A | BI128: N/A | BJ128: N/A | BK128: N/A | BL128: N/A | BM128: N/A | BN128: N/A | BO128: N/A | BP128: N/A | BQ128: N/A | BR128: N/A | BS128: N/A | BT128: N/A | BU128: N/A | BV128: N/A | BW128: N/A | BX128: N/A | BY128: N/A | BZ128: N/A | CA128: N/A | CB128: N/A | CC128: N/A | CD128: N/A | CE128: N/A | CF128: N/A | CG128: N/A | CH128: N/A | CI128: N/A
B129: No | C129: N/A | D129: N/A | E129: N/A | F129: N/A | G129: N/A | H129: N/A | I129: N/A | J129: N/A | K129: N/A | L129: N/A | M129: N/A | N129: N/A | O129: N/A | P129: N/A | Q129: N/A | R129: N/A | S129: N/A | T129: N/A | U129: N/A | V129: N/A | W129: N/A | X129: N/A | Y129: N/A | Z129: N/A | AA129: N/A | AB129: N/A | AC129: N/A | AD129: N/A | AE129: N/A | AF129: N/A | AG129: N/A | AH129: N/A | AI129: N/A | BB129: No | BC129: N/A | BD129: N/A | BE129: N/A | BF129: N/A | BG129: N/A | BH129: N/A | BI129: N/A | BJ129: N/A | BK129: N/A | BL129: N/A | BM129: N/A | BN129: N/A | BO129: N/A | BP129: N/A | BQ129: N/A | BR129: N/A | BS129: N/A | BT129: N/A | BU129: N/A | BV129: N/A | BW129: N/A | BX129: N/A | BY129: N/A | BZ129: N/A | CA129: N/A | CB129: N/A | CC129: N/A | CD129: N/A | CE129: N/A | CF129: N/A | CG129: N/A | CH129: N/A | CI129: N/A
A130: Manually calculated ratios | B130: Improved latrines
B131: Other
B132: Other
C133: NATIONAL wealth index quintile | H133: URBAN wealth index quintile | M133: RURAL wealth index quintile | R133: SUB-REGIONS: | BA133: Raw numbers of respondents: | BB133: Use of sanitation facilities | BC133: NATIONAL wealth index quintile | BH133: URBAN wealth index quintile | BM133: RURAL wealth index quintile | BR133: SUB-REGIONS:
A134: Percentage based on weighted population | C134: Poorest | D134: Poor | E134: Middle | F134: Rich | G134: Richest | H134: Poorest | I134: Poor | J134: Middle | K134: Rich | L134: Richest | M134: Poorest | N134: Poor | O134: Middle | P134: Rich | Q134: Richest | R134: anbar | S134: babylon | T134: baghdad | U134: basra | V134: diala | W134: dohouk | X134: erbil | Y134: kerbela | Z134: maysan | AA134: muthanna | AB134: najaf | AC134: nenava | AD134: qadisiya | AE134: salaheldeen | AF134: suleimaniya | AG134: ta'amem | AH134: thi-qar | AI134: wasit | BA134: Sanitation data, raw numbers (weighted) | BC134: Poorest | BD134: Poor | BE134: Middle | BF134: Rich | BG134: Richest | BH134: Poorest | BI134: Poor | BJ134: Middle | BK134: Rich | BL134: Richest | BM134: Poorest | BN134: Poor | BO134: Middle | BP134: Rich | BQ134: Richest | BR134: anbar | BS134: babylon | BT134: baghdad | BU134: basra | BV134: diala | BW134: dohouk | BX134: erbil | BY134: kerbela | BZ134: maysan | CA134: muthanna | CB134: najaf | CC134: nenava | CD134: qadisiya | CE134: salaheldeen | CF134: suleimaniya | CG134: ta'amem | CH134: thi-qar | CI134: wasit
A135: Sanitation type | B135: Sewer connection | C135: N/A | D135: N/A | E135: N/A | F135: N/A | G135: N/A | H135: N/A | I135: N/A | J135: N/A | K135: N/A | L135: N/A | M135: N/A | N135: N/A | O135: N/A | P135: N/A | Q135: N/A | R135: N/A | S135: N/A | T135: N/A | U135: N/A | V135: N/A | W135: N/A | X135: N/A | Y135: N/A | Z135: N/A | AA135: N/A | AB135: N/A | AC135: N/A | AD135: N/A | AE135: N/A | AF135: N/A | AG135: N/A | AH135: N/A | AI135: N/A | BA135: Sanitation type | BB135: Sewer connection | BC135: N/A | BD135: N/A | BE135: N/A | BF135: N/A | BG135: N/A | BH135: N/A | BI135: N/A | BJ135: N/A | BK135: N/A | BL135: N/A | BM135: N/A | BN135: N/A | BO135: N/A | BP135: N/A | BQ135: N/A | BR135: N/A | BS135: N/A | BT135: N/A | BU135: N/A | BV135: N/A | BW135: N/A | BX135: N/A | BY135: N/A | BZ135: N/A | CA135: N/A | CB135: N/A | CC135: N/A | CD135: N/A | CE135: N/A | CF135: N/A | CG135: N/A | CH135: N/A | CI135: N/A
B136: Septic tank connection | C136: N/A | D136: N/A | E136: N/A | F136: N/A | G136: N/A | H136: N/A | I136: N/A | J136: N/A | K136: N/A | L136: N/A | M136: N/A | N136: N/A | O136: N/A | P136: N/A | Q136: N/A | R136: N/A | S136: N/A | T136: N/A | U136: N/A | V136: N/A | W136: N/A | X136: N/A | Y136: N/A | Z136: N/A | AA136: N/A | AB136: N/A | AC136: N/A | AD136: N/A | AE136: N/A | AF136: N/A | AG136: N/A | AH136: N/A | AI136: N/A | BB136: Septic tank connection | BC136: N/A | BD136: N/A | BE136: N/A | BF136: N/A | BG136: N/A | BH136: N/A | BI136: N/A | BJ136: N/A | BK136: N/A | BL136: N/A | BM136: N/A | BN136: N/A | BO136: N/A | BP136: N/A | BQ136: N/A | BR136: N/A | BS136: N/A | BT136: N/A | BU136: N/A | BV136: N/A | BW136: N/A | BX136: N/A | BY136: N/A | BZ136: N/A | CA136: N/A | CB136: N/A | CC136: N/A | CD136: N/A | CE136: N/A | CF136: N/A | CG136: N/A | CH136: N/A | CI136: N/A
B137: Improved latrines | C137: N/A | D137: N/A | E137: N/A | F137: N/A | G137: N/A | H137: N/A | I137: N/A | J137: N/A | K137: N/A | L137: N/A | M137: N/A | N137: N/A | O137: N/A | P137: N/A | Q137: N/A | R137: N/A | S137: N/A | T137: N/A | U137: N/A | V137: N/A | W137: N/A | X137: N/A | Y137: N/A | Z137: N/A | AA137: N/A | AB137: N/A | AC137: N/A | AD137: N/A | AE137: N/A | AF137: N/A | AG137: N/A | AH137: N/A | AI137: N/A | BB137: Improved latrines | BC137: N/A | BD137: N/A | BE137: N/A | BF137: N/A | BG137: N/A | BH137: N/A | BI137: N/A | BJ137: N/A | BK137: N/A | BL137: N/A | BM137: N/A | BN137: N/A | BO137: N/A | BP137: N/A | BQ137: N/A | BR137: N/A | BS137: N/A | BT137: N/A | BU137: N/A | BV137: N/A | BW137: N/A | BX137: N/A | BY137: N/A | BZ137: N/A | CA137: N/A | CB137: N/A | CC137: N/A | CD137: N/A | CE137: N/A | CF137: N/A | CG137: N/A | CH137: N/A | CI137: N/A
B138: Unimproved facilities | C138: N/A | D138: N/A | E138: N/A | F138: N/A | G138: N/A | H138: N/A | I138: N/A | J138: N/A | K138: N/A | L138: N/A | M138: N/A | N138: N/A | O138: N/A | P138: N/A | Q138: N/A | R138: N/A | S138: N/A | T138: N/A | U138: N/A | V138: N/A | W138: N/A | X138: N/A | Y138: N/A | Z138: N/A | AA138: N/A | AB138: N/A | AC138: N/A | AD138: N/A | AE138: N/A | AF138: N/A | AG138: N/A | AH138: N/A | AI138: N/A | BB138: Unimproved facilities | BC138: N/A | BD138: N/A | BE138: N/A | BF138: N/A | BG138: N/A | BH138: N/A | BI138: N/A | BJ138: N/A | BK138: N/A | BL138: N/A | BM138: N/A | BN138: N/A | BO138: N/A | BP138: N/A | BQ138: N/A | BR138: N/A | BS138: N/A | BT138: N/A | BU138: N/A | BV138: N/A | BW138: N/A | BX138: N/A | BY138: N/A | BZ138: N/A | CA138: N/A | CB138: N/A | CC138: N/A | CD138: N/A | CE138: N/A | CF138: N/A | CG138: N/A | CH138: N/A | CI138: N/A
B139: Open defecation | C139: =C160 -> 1.713078924 | D139: =D160 -> 8.866364632 | E139: 15.20546967 | F139: 0.2678715035 | G139: 0.7709419425 | H139: 0.5686516628 | I139: 0.3494034092 | J139: 0.0677421105 | K139: 0.03680189798 | L139: 0.08819699355 | M139: 25.86654278 | N139: 16.4341636 | O139: 13.99436712 | P139: 12.02728458 | Q139: 16.32168402 | R139: 3.29541823 | S139: 14.43108229 | T139: 0.9355439168 | U139: 0.09752495068 | V139: 2.090815525 | W139: 4.661215141 | X139: 3.454596574 | Y139: 2.797990853 | Z139: 10.32950405 | AA139: 15.43451031 | AB139: 2.287799898 | AC139: 6.089868383 | AD139: 19.48400004 | AE139: 14.65867226 | AF139: 2.845865266 | AG139: 0.9162248162 | AH139: 13.08505774 | AI139: 15.28877552 | BB139: Open defecation | BC139: N/A | BD139: N/A | BE139: N/A | BF139: N/A | BG139: N/A | BH139: N/A | BI139: N/A | BJ139: N/A | BK139: N/A | BL139: N/A | BM139: N/A | BN139: N/A | BO139: N/A | BP139: N/A | BQ139: N/A | BR139: N/A | BS139: N/A | BT139: N/A | BU139: N/A | BV139: N/A | BW139: N/A | BX139: N/A | BY139: N/A | BZ139: N/A | CA139: N/A | CB139: N/A | CC139: N/A | CD139: N/A | CE139: N/A | CF139: N/A | CG139: N/A | CH139: N/A | CI139: N/A
A140: Septic tank emptying practices | B140: Not emptied/treated and disposed in situ | C140: N/A | D140: N/A | E140: N/A | F140: N/A | G140: N/A | H140: N/A | I140: N/A | J140: N/A | K140: N/A | L140: N/A | M140: N/A | N140: N/A | O140: N/A | P140: N/A | Q140: N/A | R140: N/A | S140: N/A | T140: N/A | U140: N/A | V140: N/A | W140: N/A | X140: N/A | Y140: N/A | Z140: N/A | AA140: N/A | AB140: N/A | AC140: N/A | AD140: N/A | AE140: N/A | AF140: N/A | AG140: N/A | AH140: N/A | AI140: N/A | BA140: Septic tank emptying practices | BB140: Not emptied/treated and disposed in situ | BC140: N/A | BD140: N/A | BE140: N/A | BF140: N/A | BG140: N/A | BH140: N/A | BI140: N/A | BJ140: N/A | BK140: N/A | BL140: N/A | BM140: N/A | BN140: N/A | BO140: N/A | BP140: N/A | BQ140: N/A | BR140: N/A | BS140: N/A | BT140: N/A | BU140: N/A | BV140: N/A | BW140: N/A | BX140: N/A | BY140: N/A | BZ140: N/A | CA140: N/A | CB140: N/A | CC140: N/A | CD140: N/A | CE140: N/A | CF140: N/A | CG140: N/A | CH140: N/A | CI140: N/A
B141: Emptied and buried on site | C141: N/A | D141: N/A | E141: N/A | F141: N/A | G141: N/A | H141: N/A | I141: N/A | J141: N/A | K141: N/A | L141: N/A | M141: N/A | N141: N/A | O141: N/A | P141: N/A | Q141: N/A | R141: N/A | S141: N/A | T141: N/A | U141: N/A | V141: N/A | W141: N/A | X141: N/A | Y141: N/A | Z141: N/A | AA141: N/A | AB141: N/A | AC141: N/A | AD141: N/A | AE141: N/A | AF141: N/A | AG141: N/A | AH141: N/A | AI141: N/A | BB141: Emptied and buried on site | BC141: N/A | BD141: N/A | BE141: N/A | BF141: N/A | BG141: N/A | BH141: N/A | BI141: N/A | BJ141: N/A | BK141: N/A | BL141: N/A | BM141: N/A | BN141: N/A | BO141: N/A | BP141: N/A | BQ141: N/A | BR141: N/A | BS141: N/A | BT141: N/A | BU141: N/A | BV141: N/A | BW141: N/A | BX141: N/A | BY141: N/A | BZ141: N/A | CA141: N/A | CB141: N/A | CC141: N/A | CD141: N/A | CE141: N/A | CF141: N/A | CG141: N/A | CH141: N/A | CI141: N/A
B142: Emptied and discharged locally | C142: N/A | D142: N/A | E142: N/A | F142: N/A | G142: N/A | H142: N/A | I142: N/A | J142: N/A | K142: N/A | L142: N/A | M142: N/A | N142: N/A | O142: N/A | P142: N/A | Q142: N/A | R142: N/A | S142: N/A | T142: N/A | U142: N/A | V142: N/A | W142: N/A | X142: N/A | Y142: N/A | Z142: N/A | AA142: N/A | AB142: N/A | AC142: N/A | AD142: N/A | AE142: N/A | AF142: N/A | AG142: N/A | AH142: N/A | AI142: N/A | BB142: Emptied and discharged locally | BC142: N/A | BD142: N/A | BE142: N/A | BF142: N/A | BG142: N/A | BH142: N/A | BI142: N/A | BJ142: N/A | BK142: N/A | BL142: N/A | BM142: N/A | BN142: N/A | BO142: N/A | BP142: N/A | BQ142: N/A | BR142: N/A | BS142: N/A | BT142: N/A | BU142: N/A | BV142: N/A | BW142: N/A | BX142: N/A | BY142: N/A | BZ142: N/A | CA142: N/A | CB142: N/A | CC142: N/A | CD142: N/A | CE142: N/A | CF142: N/A | CG142: N/A | CH142: N/A | CI142: N/A
B143: Emptied and removed offsite | C143: N/A | D143: N/A | E143: N/A | F143: N/A | G143: N/A | H143: N/A | I143: N/A | J143: N/A | K143: N/A | L143: N/A | M143: N/A | N143: N/A | O143: N/A | P143: N/A | Q143: N/A | R143: N/A | S143: N/A | T143: N/A | U143: N/A | V143: N/A | W143: N/A | X143: N/A | Y143: N/A | Z143: N/A | AA143: N/A | AB143: N/A | AC143: N/A | AD143: N/A | AE143: N/A | AF143: N/A | AG143: N/A | AH143: N/A | AI143: N/A | BB143: Emptied and removed offsite | BC143: N/A | BD143: N/A | BE143: N/A | BF143: N/A | BG143: N/A | BH143: N/A | BI143: N/A | BJ143: N/A | BK143: N/A | BL143: N/A | BM143: N/A | BN143: N/A | BO143: N/A | BP143: N/A | BQ143: N/A | BR143: N/A | BS143: N/A | BT143: N/A | BU143: N/A | BV143: N/A | BW143: N/A | BX143: N/A | BY143: N/A | BZ143: N/A | CA143: N/A | CB143: N/A | CC143: N/A | CD143: N/A | CE143: N/A | CF143: N/A | CG143: N/A | CH143: N/A | CI143: N/A
A144: Latrine emptying practices | B144: Not emptied/treated and disposed in situ | C144: N/A | D144: N/A | E144: N/A | F144: N/A | G144: N/A | H144: N/A | I144: N/A | J144: N/A | K144: N/A | L144: N/A | M144: N/A | N144: N/A | O144: N/A | P144: N/A | Q144: N/A | R144: N/A | S144: N/A | T144: N/A | U144: N/A | V144: N/A | W144: N/A | X144: N/A | Y144: N/A | Z144: N/A | AA144: N/A | AB144: N/A | AC144: N/A | AD144: N/A | AE144: N/A | AF144: N/A | AG144: N/A | AH144: N/A | AI144: N/A | BA144: Latrine emptying practices | BB144: Not emptied/treated and disposed in situ | BC144: N/A | BD144: N/A | BE144: N/A | BF144: N/A | BG144: N/A | BH144: N/A | BI144: N/A | BJ144: N/A | BK144: N/A | BL144: N/A | BM144: N/A | BN144: N/A | BO144: N/A | BP144: N/A | BQ144: N/A | BR144: N/A | BS144: N/A | BT144: N/A | BU144: N/A | BV144: N/A | BW144: N/A | BX144: N/A | BY144: N/A | BZ144: N/A | CA144: N/A | CB144: N/A | CC144: N/A | CD144: N/A | CE144: N/A | CF144: N/A | CG144: N/A | CH144: N/A | CI144: N/A
B145: Emptied and buried on site | C145: N/A | D145: N/A | E145: N/A | F145: N/A | G145: N/A | H145: N/A | I145: N/A | J145: N/A | K145: N/A | L145: N/A | M145: N/A | N145: N/A | O145: N/A | P145: N/A | Q145: N/A | R145: N/A | S145: N/A | T145: N/A | U145: N/A | V145: N/A | W145: N/A | X145: N/A | Y145: N/A | Z145: N/A | AA145: N/A | AB145: N/A | AC145: N/A | AD145: N/A | AE145: N/A | AF145: N/A | AG145: N/A | AH145: N/A | AI145: N/A | BB145: Emptied and buried on site | BC145: N/A | BD145: N/A | BE145: N/A | BF145: N/A | BG145: N/A | BH145: N/A | BI145: N/A | BJ145: N/A | BK145: N/A | BL145: N/A | BM145: N/A | BN145: N/A | BO145: N/A | BP145: N/A | BQ145: N/A | BR145: N/A | BS145: N/A | BT145: N/A | BU145: N/A | BV145: N/A | BW145: N/A | BX145: N/A | BY145: N/A | BZ145: N/A | CA145: N/A | CB145: N/A | CC145: N/A | CD145: N/A | CE145: N/A | CF145: N/A | CG145: N/A | CH145: N/A | CI145: N/A
B146: Emptied and discharged locally | C146: N/A | D146: N/A | E146: N/A | F146: N/A | G146: N/A | H146: N/A | I146: N/A | J146: N/A | K146: N/A | L146: N/A | M146: N/A | N146: N/A | O146: N/A | P146: N/A | Q146: N/A | R146: N/A | S146: N/A | T146: N/A | U146: N/A | V146: N/A | W146: N/A | X146: N/A | Y146: N/A | Z146: N/A | AA146: N/A | AB146: N/A | AC146: N/A | AD146: N/A | AE146: N/A | AF146: N/A | AG146: N/A | AH146: N/A | AI146: N/A | BB146: Emptied and discharged locally | BC146: N/A | BD146: N/A | BE146: N/A | BF146: N/A | BG146: N/A | BH146: N/A | BI146: N/A | BJ146: N/A | BK146: N/A | BL146: N/A | BM146: N/A | BN146: N/A | BO146: N/A | BP146: N/A | BQ146: N/A | BR146: N/A | BS146: N/A | BT146: N/A | BU146: N/A | BV146: N/A | BW146: N/A | BX146: N/A | BY146: N/A | BZ146: N/A | CA146: N/A | CB146: N/A | CC146: N/A | CD146: N/A | CE146: N/A | CF146: N/A | CG146: N/A | CH146: N/A | CI146: N/A
B147: Emptied and removed offsite | C147: N/A | D147: N/A | E147: N/A | F147: N/A | G147: N/A | H147: N/A | I147: N/A | J147: N/A | K147: N/A | L147: N/A | M147: N/A | N147: N/A | O147: N/A | P147: N/A | Q147: N/A | R147: N/A | S147: N/A | T147: N/A | U147: N/A | V147: N/A | W147: N/A | X147: N/A | Y147: N/A | Z147: N/A | AA147: N/A | AB147: N/A | AC147: N/A | AD147: N/A | AE147: N/A | AF147: N/A | AG147: N/A | AH147: N/A | AI147: N/A | BB147: Emptied and removed offsite | BC147: N/A | BD147: N/A | BE147: N/A | BF147: N/A | BG147: N/A | BH147: N/A | BI147: N/A | BJ147: N/A | BK147: N/A | BL147: N/A | BM147: N/A | BN147: N/A | BO147: N/A | BP147: N/A | BQ147: N/A | BR147: N/A | BS147: N/A | BT147: N/A | BU147: N/A | BV147: N/A | BW147: N/A | BX147: N/A | BY147: N/A | BZ147: N/A | CA147: N/A | CB147: N/A | CC147: N/A | CD147: N/A | CE147: N/A | CF147: N/A | CG147: N/A | CH147: N/A | CI147: N/A
A148: Shared among improved sanitation facilities | B148: Yes | C148: N/A | D148: N/A | E148: N/A | F148: N/A | G148: N/A | H148: N/A | I148: N/A | J148: N/A | K148: N/A | L148: N/A | M148: N/A | N148: N/A | O148: N/A | P148: N/A | Q148: N/A | R148: N/A | S148: N/A | T148: N/A | U148: N/A | V148: N/A | W148: N/A | X148: N/A | Y148: N/A | Z148: N/A | AA148: N/A | AB148: N/A | AC148: N/A | AD148: N/A | AE148: N/A | AF148: N/A | AG148: N/A | AH148: N/A | AI148: N/A | BA148: Shared among improved sanitation facilities | BB148: Yes | BC148: N/A | BD148: N/A | BE148: N/A | BF148: N/A | BG148: N/A | BH148: N/A | BI148: N/A | BJ148: N/A | BK148: N/A | BL148: N/A | BM148: N/A | BN148: N/A | BO148: N/A | BP148: N/A | BQ148: N/A | BR148: N/A | BS148: N/A | BT148: N/A | BU148: N/A | BV148: N/A | BW148: N/A | BX148: N/A | BY148: N/A | BZ148: N/A | CA148: N/A | CB148: N/A | CC148: N/A | CD148: N/A | CE148: N/A | CF148: N/A | CG148: N/A | CH148: N/A | CI148: N/A
B149: No | C149: N/A | D149: N/A | E149: N/A | F149: N/A | G149: N/A | H149: N/A | I149: N/A | J149: N/A | K149: N/A | L149: N/A | M149: N/A | N149: N/A | O149: N/A | P149: N/A | Q149: N/A | R149: N/A | S149: N/A | T149: N/A | U149: N/A | V149: N/A | W149: N/A | X149: N/A | Y149: N/A | Z149: N/A | AA149: N/A | AB149: N/A | AC149: N/A | AD149: N/A | AE149: N/A | AF149: N/A | AG149: N/A | AH149: N/A | AI149: N/A | BB149: No | BC149: N/A | BD149: N/A | BE149: N/A | BF149: N/A | BG149: N/A | BH149: N/A | BI149: N/A | BJ149: N/A | BK149: N/A | BL149: N/A | BM149: N/A | BN149: N/A | BO149: N/A | BP149: N/A | BQ149: N/A | BR149: N/A | BS149: N/A | BT149: N/A | BU149: N/A | BV149: N/A | BW149: N/A | BX149: N/A | BY149: N/A | BZ149: N/A | CA149: N/A | CB149: N/A | CC149: N/A | CD149: N/A | CE149: N/A | CF149: N/A | CG149: N/A | CH149: N/A | CI149: N/A
B150: DK/missing | C150: N/A | D150: N/A | E150: N/A | F150: N/A | G150: N/A | H150: N/A | I150: N/A | J150: N/A | K150: N/A | L150: N/A | M150: N/A | N150: N/A | O150: N/A | P150: N/A | Q150: N/A | R150: N/A | S150: N/A | T150: N/A | U150: N/A | V150: N/A | W150: N/A | X150: N/A | Y150: N/A | Z150: N/A | AA150: N/A | AB150: N/A | AC150: N/A | AD150: N/A | AE150: N/A | AF150: N/A | AG150: N/A | AH150: N/A | AI150: N/A | BB150: DK/missing | BC150: N/A | BD150: N/A | BE150: N/A | BF150: N/A | BG150: N/A | BH150: N/A | BI150: N/A | BJ150: N/A | BK150: N/A | BL150: N/A | BM150: N/A | BN150: N/A | BO150: N/A | BP150: N/A | BQ150: N/A | BR150: N/A | BS150: N/A | BT150: N/A | BU150: N/A | BV150: N/A | BW150: N/A | BX150: N/A | BY150: N/A | BZ150: N/A | CA150: N/A | CB150: N/A | CC150: N/A | CD150: N/A | CE150: N/A | CF150: N/A | CG150: N/A | CH150: N/A | CI150: N/A
A151: Shared among all sanitation facilities | B151: Yes | C151: N/A | D151: N/A | E151: N/A | F151: N/A | G151: N/A | H151: N/A | I151: N/A | J151: N/A | K151: N/A | L151: N/A | M151: N/A | N151: N/A | O151: N/A | P151: N/A | Q151: N/A | R151: N/A | S151: N/A | T151: N/A | U151: N/A | V151: N/A | W151: N/A | X151: N/A | Y151: N/A | Z151: N/A | AA151: N/A | AB151: N/A | AC151: N/A | AD151: N/A | AE151: N/A | AF151: N/A | AG151: N/A | AH151: N/A | AI151: N/A | BA151: Shared among all sanitation facilities | BB151: Yes | BC151: N/A | BD151: N/A | BE151: N/A | BF151: N/A | BG151: N/A | BH151: N/A | BI151: N/A | BJ151: N/A | BK151: N/A | BL151: N/A | BM151: N/A | BN151: N/A | BO151: N/A | BP151: N/A | BQ151: N/A | BR151: N/A | BS151: N/A | BT151: N/A | BU151: N/A | BV151: N/A | BW151: N/A | BX151: N/A | BY151: N/A | BZ151: N/A | CA151: N/A | CB151: N/A | CC151: N/A | CD151: N/A | CE151: N/A | CF151: N/A | CG151: N/A | CH151: N/A | CI151: N/A
B152: No | C152: N/A | D152: N/A | E152: N/A | F152: N/A | G152: N/A | H152: N/A | I152: N/A | J152: N/A | K152: N/A | L152: N/A | M152: N/A | N152: N/A | O152: N/A | P152: N/A | Q152: N/A | R152: N/A | S152: N/A | T152: N/A | U152: N/A | V152: N/A | W152: N/A | X152: N/A | Y152: N/A | Z152: N/A | AA152: N/A | AB152: N/A | AC152: N/A | AD152: N/A | AE152: N/A | AF152: N/A | AG152: N/A | AH152: N/A | AI152: N/A | BB152: No | BC152: N/A | BD152: N/A | BE152: N/A | BF152: N/A | BG152: N/A | BH152: N/A | BI152: N/A | BJ152: N/A | BK152: N/A | BL152: N/A | BM152: N/A | BN152: N/A | BO152: N/A | BP152: N/A | BQ152: N/A | BR152: N/A | BS152: N/A | BT152: N/A | BU152: N/A | BV152: N/A | BW152: N/A | BX152: N/A | BY152: N/A | BZ152: N/A | CA152: N/A | CB152: N/A | CC152: N/A | CD152: N/A | CE152: N/A | CF152: N/A | CG152: N/A | CH152: N/A | CI152: N/A
A153: type of toilet facility | B153: flush to sewage system/septic tank | C153: 78.3844283 | D153: 56.36124104 | E153: 47.42465135 | F153: 94.21241932 | G153: 95.3994454 | H153: 78.82397961 | I153: 85.78497114 | J153: 94.33665602 | K153: 96.13121323 | L153: 97.25992951 | M153: 21.48373319 | N153: 42.69042327 | O153: 45.32963522 | P153: 43.39143389 | Q153: 37.39742435 | R153: 94.64585682 | S153: 61.36991208 | T153: 92.15881632 | U153: 83.45875027 | V153: 82.41735144 | W153: 54.18519601 | X153: 74.13783549 | Y153: 61.03778754 | Z153: 54.95448275 | AA153: 48.05733137 | AB153: 76.97286441 | AC153: 74.90576435 | AD153: 53.14314178 | AE153: 46.60985999 | AF153: 61.25197121 | AG153: 70.21292614 | AH153: 61.47106394 | AI153: 57.63694645 | BA153: type of toilet facility | BB153: flush to sewage system/septic tank | BC153: 14746.45294 | BD153: 10575.02132 | BE153: 9014.354726 | BF153: 17745.70483 | BG153: 17678.5248 | BH153: 10288.42297 | BI153: 10897.25732 | BJ153: 12263.82607 | BK153: 12574.3551 | BL153: 12657.7831 | BM153: 1248.674269 | BN153: 2533.845937 | BO153: 2598.427067 | BP153: 2546.172342 | BQ153: 2151.294436 | BR153: 4296.960728 | BS153: 2947.843649 | BT153: 20837.8337 | BU153: 5505.081741 | BV153: 3322.010558 | BW153: 1716.772523 | BX153: 4302.067119 | BY153: 1553.471435 | BZ153: 1324.297362 | CA153: 846.7423639 | CB153: 2534.716412 | CC153: 7313.960245 | CD153: 1675.641476 | CE153: 1714.53412 | CF153: 3458.337574 | CG153: 2246.345191 | CH153: 2553.136902 | CI153: 1610.305525
B154: pour flush latrine | C154: 7.024322821 | D154: 3.182282411 | E154: 2.029744354 | F154: 1.711449098 | G154: 1.806775861 | H154: 7.89891415 | I154: 3.971696661 | J154: 1.347028277 | K154: 2.033545267 | L154: 1.822234202 | M154: 1.27077705 | N154: 1.951041507 | O154: 3.396703013 | P154: 3.023679045 | Q154: 3.233022162 | R154: 0 | S154: 0.3060934611 | T154: 1.476085705 | U154: 5.072321774 | V154: 0.4343241437 | W154: 32.10481632 | X154: 10.67444879 | Y154: 6.026888837 | Z154: 6.246589219 | AA154: 4.498837657 | AB154: 0.5539354976 | AC154: 1.691432783 | AD154: 0.6432489964 | AE154: 0.1513874076 | AF154: 0 | AG154: 0.5687100365 | AH154: 0.2619061846 | AI154: 0.1040052757 | BB154: pour flush latrine | BC154: 1321.484996 | BD154: 597.0894843 | BE154: 385.8085423 | BF154: 322.3658912 | BG154: 334.8146494 | BH154: 1030.998056 | BI154: 504.5242767 | BJ154: 175.114544 | BK154: 265.996022 | BL154: 237.1526014 | BM154: 73.85991019 | BN154: 115.8020515 | BO154: 194.7089361 | BP154: 177.4269081 | BQ154: 185.9802569 | BR154: 0 | BS154: 14.70289975 | BT154: 333.7545953 | BU154: 334.5790093 | BV154: 17.50637901 | BW154: 1017.190498 | BX154: 619.4164535 | BY154: 153.3902199 | BZ154: 150.5307886 | CA154: 79.26691565 | CB154: 18.24109584 | CC154: 165.1551418 | CD154: 20.28210342 | CE154: 5.568754673 | CF154: 0 | CG154: 18.19492686 | CH154: 10.87800181 | CI154: 2.905779719
B155: improved pit latrine | C155: 1.967694679 | D155: 6.683436224 | E155: 7.420290858 | F155: 0.8034769306 | G155: 0.4391810339 | H155: 2.049934892 | I155: 1.15351251 | J155: 0.6362242376 | K155: 0.7225238579 | L155: 0.1514366882 | M155: 7.828471311 | N155: 10.71640489 | O155: 8.126614389 | P155: 10.20294504 | Q155: 8.704283539 | R155: 0.3221283621 | S155: 16.36246401 | T155: 1.400133753 | U155: 0.6837006956 | V155: 5.440565076 | W155: 1.483184364 | X155: 1.760972408 | Y155: 7.598969479 | Z155: 2.092182067 | AA155: 6.417675803 | AB155: 6.226669252 | AC155: 2.902818697 | AD155: 7.526517426 | AE155: 2.599294608 | AF155: 0.400445573 | AG155: 7.846946623 | AH155: 2.87987661 | AI155: 5.907087655 | BB155: improved pit latrine | BC155: 370.1821601 | BD155: 1254.008593 | BE155: 1410.429641 | BF155: 151.3416654 | BG155: 81.38488403 | BH155: 267.56575 | BI155: 146.5305925 | BJ155: 82.70956087 | BK155: 94.50906998 | BL155: 19.70855585 | BM155: 455.0052174 | BN155: 636.0611331 | BO155: 465.8412689 | BP155: 598.7001151 | BQ155: 500.7156796 | BR155: 14.62475979 | BS155: 785.9549407 | BT155: 316.5812612 | BU155: 45.09806585 | BV155: 219.2938054 | BW155: 46.99235862 | BX155: 102.1856309 | BY155: 193.4012109 | BZ155: 50.41756475 | CA155: 113.0757332 | CB155: 205.0442174 | CC155: 283.4374728 | CD155: 237.3165068 | CE155: 95.61451793 | CF155: 22.6094923 | CG155: 251.0499388 | CH155: 119.6126888 | CI155: 165.0367772
B156: traditional pit latrine | C156: 9.350522275 | D156: 20.3295821 | E156: 24.19274981 | F156: 2.824639663 | G156: 1.109944481 | H156: 9.392632589 | I156: 6.760622521 | J156: 3.429509345 | K156: 0.9409311661 | L156: 0.5930417051 | M156: 37.13708188 | N156: 23.71590053 | O156: 25.81604988 | P156: 25.1132133 | Q156: 28.84506828 | R156: 1.569945692 | S156: 5.685370221 | T156: 2.972530046 | U156: 10.06354263 | V156: 6.402945945 | W156: 6.795136214 | X156: 5.123920523 | Y156: 13.65046808 | Z156: 24.191479 | AA156: 22.03397419 | AB156: 9.689387787 | AC156: 14.06833065 | AD156: 16.05796558 | AE156: 34.47849415 | AF156: 32.33354937 | AG156: 15.82306968 | AH156: 19.78905249 | AI156: 18.57945546 | BB156: traditional pit latrine | BC156: 1759.112616 | BD156: 3814.425662 | BE156: 4598.495136 | BF156: 532.0447354 | BG156: 205.6844351 | BH156: 1225.964197 | BI156: 858.8012828 | BJ156: 445.8384249 | BK156: 123.0776374 | BL156: 77.1807394 | BM156: 2158.475818 | BN156: 1407.632757 | BO156: 1479.85137 | BP156: 1473.621943 | BQ156: 1659.318415 | BR156: 71.27617848 | BS156: 273.0911928 | BT156: 672.1124383 | BU156: 663.8084633 | BV156: 258.0846589 | BW156: 215.2931798 | BX156: 297.330639 | BY156: 347.4177733 | BZ156: 582.9681259 | CA156: 388.2258723 | CB156: 319.0715382 | CC156: 1373.66212 | CD156: 506.3192021 | CE156: 1268.284321 | CF156: 1825.579267 | CG156: 506.2326617 | CH156: 821.9177758 | CI156: 519.0871763
B157: open pit | C157: 1.279853414 | D157: 4.201747103 | E157: 3.297722631 | F157: 0.1125744722 | G157: 0.4737112852 | H157: 1.139446535 | I157: 1.584651011 | J157: 0.1604385263 | K157: 0.05994879069 | L157: 0.08516090147 | M157: 5.842473423 | N157: 4.034868117 | O157: 2.828768421 | P157: 5.668293475 | Q157: 5.238234718 | R157: 0.1345068666 | S157: 1.667077301 | T157: 1.056890261 | U157: 0.6241596844 | V157: 3.213997876 | W157: 0.7704519491 | X157: 3.315845541 | Y157: 7.249034612 | Z157: 2.094614443 | AA157: 3.557670671 | AB157: 4.269343155 | AC157: 0.1947040265 | AD157: 3.052765244 | AE157: 1.50229158 | AF157: 2.152400785 | AG157: 4.632122706 | AH157: 2.513043035 | AI157: 2.483729632 | BB157: open pit | BC157: 240.7786668 | BD157: 788.3709511 | BE157: 626.8225646 | BF157: 21.20435256 | BG157: 87.78370428 | BH157: 148.7251464 | BI157: 201.2980782 | BJ157: 20.85711181 | BK157: 7.841546535 | BL157: 11.08316883 | BM157: 339.5753506 | BN157: 239.4854256 | BO157: 162.1532667 | BP157: 332.6106279 | BQ157: 301.3305168 | BR157: 6.106666923 | BS157: 80.07642615 | BT157: 238.9712062 | BU157: 41.17063904 | BV157: 129.5471729 | BW157: 24.41055554 | BX157: 192.411742 | BY157: 184.495026 | BZ157: 50.47618032 | CA157: 62.68409809 | CB157: 140.5894694 | CC157: 19.01132071 | CD157: 96.2558834 | CE157: 55.26148701 | CF157: 121.5263503 | CG157: 148.1970221 | CH157: 104.3766367 | CI157: 69.39235675
B158: bucket | C158: 0 | D158: 0.02870283685 | E158: 0.01155583493 | F158: 0 | G158: 0 | H158: 0 | I158: 0.05968670511 | J158: 0 | K158: 0 | L158: 0 | M158: 0 | N158: 0 | O158: 0 | P158: 0 | Q158: 0 | R158: 0 | S158: 0 | T158: 0 | U158: 0 | V158: 0 | W158: 0 | X158: 0 | Y158: 0 | Z158: 0.09114848144 | AA158: 0 | AB158: 0 | AC158: 0.05515541685 | AD158: 0 | AE158: 0 | AF158: 0 | AG158: 0 | AH158: 0 | AI158: 0 | BB158: bucket | BC158: 0 | BD158: 5.385493755 | BE158: 2.196503133 | BF158: 0 | BG158: 0 | BH158: 0 | BI158: 7.581996888 | BJ158: 0 | BK158: 0 | BL158: 0 | BM158: 0 | BN158: 0 | BO158: 0 | BP158: 0 | BQ158: 0 | BR158: 0 | BS158: 0 | BT158: 0 | BU158: 0 | BV158: 0 | BW158: 0 | BX158: 0 | BY158: 0 | BZ158: 2.196503133 | CA158: 0 | CB158: 0 | CC158: 5.385493755 | CD158: 0 | CE158: 0 | CF158: 0 | CG158: 0 | CH158: 0 | CI158: 0
B159: other | C159: 0.2800995862 | D159: 0.3466436582 | E159: 0.4178154918 | F159: 0.06756901338 | G159: 0 | H159: 0.1264405584 | I159: 0.3354560431 | J159: 0.02240148086 | K159: 0.07503578794 | L159: 0 | M159: 0.5709203658 | N159: 0.4571980917 | O159: 0.5078619551 | P159: 0.5731506706 | Q159: 0.2602829264 | R159: 0.03214402445 | S159: 0.1780006352 | T159: 0 | U159: 0 | V159: 0 | W159: 0 | X159: 1.532380677 | Y159: 1.638860602 | Z159: 0 | AA159: 0 | AB159: 0 | AC159: 0.09192569475 | AD159: 0.09236094293 | AE159: 0 | AF159: 1.015767793 | AG159: 0 | AH159: 0 | AI159: 0 | BB159: other | BC159: 52.69510102 | BD159: 65.04051381 | BE159: 79.41728503 | BF159: 12.72719431 | BG159: 0 | BH159: 16.50353041 | BI159: 42.61295158 | BJ159: 2.912206948 | BK159: 9.814987361 | BL159: 0 | BM159: 33.18294656 | BN159: 27.13652006 | BO159: 29.11213037 | BP159: 33.63199264 | BQ159: 14.97282824 | BR159: 1.459351897 | BS159: 8.55008626 | BT159: 0 | BU159: 0 | BV159: 0 | BW159: 0 | BX159: 88.92091978 | BY159: 41.7106064 | BZ159: 0 | CA159: 0 | CB159: 0 | CC159: 8.975822926 | CD159: 2.912206948 | CE159: 0 | CF159: 57.35109997 | CG159: 0 | CH159: 0 | CI159: 0
B160: no facilities/bush/field | C160: 1.713078924 | D160: 8.866364632 | E160: 15.20546967 | F160: 0.2678715035 | G160: 0.7709419425 | H160: 0.5686516628 | I160: 0.3494034092 | J160: 0.0677421105 | K160: 0.03680189798 | L160: 0.08819699355 | M160: 25.86654278 | N160: 16.4341636 | O160: 13.99436712 | P160: 12.02728458 | Q160: 16.32168402 | R160: 3.29541823 | S160: 14.43108229 | T160: 0.9355439168 | U160: 0.09752495068 | V160: 2.090815525 | W160: 4.661215141 | X160: 3.454596574 | Y160: 2.797990853 | Z160: 10.32950405 | AA160: 15.43451031 | AB160: 2.287799898 | AC160: 6.089868383 | AD160: 19.48400004 | AE160: 14.65867226 | AF160: 2.845865266 | AG160: 0.9162248162 | AH160: 13.08505774 | AI160: 15.28877552 | BB160: no facilities/bush/field | BC160: 322.2813292 | BD160: 1663.589965 | BE160: 2890.216238 | BF160: 50.45585993 | BG160: 142.8636843 | BH160: 74.22270301 | BI160: 44.38468426 | BJ160: 8.806518018 | BK160: 4.813838482 | BL160: 11.47829759 | BM160: 1503.411261 | BN160: 975.4327899 | BO160: 802.1979908 | BP160: 705.7508037 | BQ160: 938.9081904 | BR160: 149.6133396 | BS160: 693.1829105 | BT160: 211.5338427 | BU160: 6.43291235 | BV160: 84.27486598 | BW160: 147.6832542 | BX160: 200.4631809 | BY160: 71.21160582 | BZ160: 248.9211848 | CA160: 271.9471383 | CB160: 75.33725023 | CC160: 594.6278719 | CD160: 614.3445321 | CE160: 539.2162464 | CF160: 160.6799355 | CG160: 29.31308126 | CH160: 543.4743055 | CI160: 427.1496187
BB161: Total | BC161: 18812.98781 | BD161: 18762.93199 | BE161: 19007.74064 | BF161: 18835.84453 | BG161: 18531.05616 | BH161: 13052.40235 | BI161: 12702.99118 | BJ161: 13000.06444 | BK161: 13080.4082 | BL161: 13014.38646 | BM161: 5812.184772 | BN161: 5935.396614 | BO161: 5732.292029 | BP161: 5867.914733 | BQ161: 5752.520324 | BR161: 4540.041025 | BS161: 4803.402105 | BT161: 22610.78704 | BU161: 6596.170831 | BV161: 4030.71744 | BW161: 3168.34237 | BX161: 5802.795685 | BY161: 2545.097877 | BZ161: 2409.807709 | CA161: 1761.942121 | CB161: 3292.999983 | CC161: 9764.215489 | CD161: 3153.07191 | CE161: 3678.479447 | CF161: 5646.083719 | CG161: 3199.332822 | CH161: 4153.39631 | CI161: 2793.877234
A208: =A1026 -> Iraq
A209: =A1034 -> 2000
A210: Access to hygiene facilities
A211: by wealth quintile and sub-national region
A212: Notes:
A213: WHO/UNICEF JMP customised wealth index excludes water,
A214: sanitation and hygiene assets.
A215: Survey used for analysis: | B215: =A1025 -> MICS00
A220: Access to handwashing | C220: NATIONAL wealth index quintile | H220: URBAN wealth index quintile | M220: RURAL wealth index quintile | R220: SUB-REGIONS: | BA220: Raw numbers of respondents: | BB220: Access to handwashing | BC220: NATIONAL wealth index quintile | BH220: URBAN wealth index quintile | BM220: RURAL wealth index quintile | BR220: SUB-REGIONS:
A221: Weighted percentage (used in graphs) | C221: Poorest | D221: Poor | E221: Middle | F221: Rich | G221: Richest | H221: Poorest | I221: Poor | J221: Middle | K221: Rich | L221: Richest | M221: Poorest | N221: Poor | O221: Middle | P221: Rich | Q221: Richest | R221: anbar | S221: babylon | T221: baghdad | U221: basra | V221: diala | W221: dohouk | X221: erbil | Y221: kerbela | Z221: maysan | AA221: muthanna | AB221: najaf | AC221: nenava | AD221: qadisiya | AE221: salaheldeen | AF221: suleimaniya | AG221: ta'amem | AH221: thi-qar | AI221: wasit | BA221: Hygiene data, raw numbers (weighted) | BC221: Poorest | BD221: Poor | BE221: Middle | BF221: Rich | BG221: Richest | BH221: Poorest | BI221: Poor | BJ221: Middle | BK221: Rich | BL221: Richest | BM221: Poorest | BN221: Poor | BO221: Middle | BP221: Rich | BQ221: Richest | BR221: anbar | BS221: babylon | BT221: baghdad | BU221: basra | BV221: diala | BW221: dohouk | BX221: erbil | BY221: kerbela | BZ221: maysan | CA221: muthanna | CB221: najaf | CC221: nenava | CD221: qadisiya | CE221: salaheldeen | CF221: suleimaniya | CG221: ta'amem | CH221: thi-qar | CI221: wasit
A222: Hygiene ladder | B222: Basic | C222: N/A | D222: N/A | E222: N/A | F222: N/A | G222: N/A | H222: N/A | I222: N/A | J222: N/A | K222: N/A | L222: N/A | M222: N/A | N222: N/A | O222: N/A | P222: N/A | Q222: N/A | R222: N/A | S222: N/A | T222: N/A | U222: N/A | V222: N/A | W222: N/A | X222: N/A | Y222: N/A | Z222: N/A | AA222: N/A | AB222: N/A | AC222: N/A | AD222: N/A | AE222: N/A | AF222: N/A | AG222: N/A | AH222: N/A | AI222: N/A | BA222: Hygiene ladder | BB222: Basic | BC222: N/A | BD222: N/A | BE222: N/A | BF222: N/A | BG222: N/A | BH222: N/A | BI222: N/A | BJ222: N/A | BK222: N/A | BL222: N/A | BM222: N/A | BN222: N/A | BO222: N/A | BP222: N/A | BQ222: N/A | BR222: N/A | BS222: N/A | BT222: N/A | BU222: N/A | BV222: N/A | BW222: N/A | BX222: N/A | BY222: N/A | BZ222: N/A | CA222: N/A | CB222: N/A | CC222: N/A | CD222: N/A | CE222: N/A | CF222: N/A | CG222: N/A | CH222: N/A | CI222: N/A
B223: Limited | C223: N/A | D223: N/A | E223: N/A | F223: N/A | G223: N/A | H223: N/A | I223: N/A | J223: N/A | K223: N/A | L223: N/A | M223: N/A | N223: N/A | O223: N/A | P223: N/A | Q223: N/A | R223: N/A | S223: N/A | T223: N/A | U223: N/A | V223: N/A | W223: N/A | X223: N/A | Y223: N/A | Z223: N/A | AA223: N/A | AB223: N/A | AC223: N/A | AD223: N/A | AE223: N/A | AF223: N/A | AG223: N/A | AH223: N/A | AI223: N/A | BB223: Limited | BC223: N/A | BD223: N/A | BE223: N/A | BF223: N/A | BG223: N/A | BH223: N/A | BI223: N/A | BJ223: N/A | BK223: N/A | BL223: N/A | BM223: N/A | BN223: N/A | BO223: N/A | BP223: N/A | BQ223: N/A | BR223: N/A | BS223: N/A | BT223: N/A | BU223: N/A | BV223: N/A | BW223: N/A | BX223: N/A | BY223: N/A | BZ223: N/A | CA223: N/A | CB223: N/A | CC223: N/A | CD223: N/A | CE223: N/A | CF223: N/A | CG223: N/A | CH223: N/A | CI223: N/A
B224: No facility | C224: N/A | D224: N/A | E224: N/A | F224: N/A | G224: N/A | H224: N/A | I224: N/A | J224: N/A | K224: N/A | L224: N/A | M224: N/A | N224: N/A | O224: N/A | P224: N/A | Q224: N/A | R224: N/A | S224: N/A | T224: N/A | U224: N/A | V224: N/A | W224: N/A | X224: N/A | Y224: N/A | Z224: N/A | AA224: N/A | AB224: N/A | AC224: N/A | AD224: N/A | AE224: N/A | AF224: N/A | AG224: N/A | AH224: N/A | AI224: N/A | BB224: No facility | BC224: N/A | BD224: N/A | BE224: N/A | BF224: N/A | BG224: N/A | BH224: N/A | BI224: N/A | BJ224: N/A | BK224: N/A | BL224: N/A | BM224: N/A | BN224: N/A | BO224: N/A | BP224: N/A | BQ224: N/A | BR224: N/A | BS224: N/A | BT224: N/A | BU224: N/A | BV224: N/A | BW224: N/A | BX224: N/A | BY224: N/A | BZ224: N/A | CA224: N/A | CB224: N/A | CC224: N/A | CD224: N/A | CE224: N/A | CF224: N/A | CG224: N/A | CH224: N/A | CI224: N/A
BA225: Observed handwashing place | BB225: Fixed | BC225: N/A | BD225: N/A | BE225: N/A | BF225: N/A | BG225: N/A | BH225: N/A | BI225: N/A | BJ225: N/A | BK225: N/A | BL225: N/A | BM225: N/A | BN225: N/A | BO225: N/A | BP225: N/A | BQ225: N/A | BR225: N/A | BS225: N/A | BT225: N/A | BU225: N/A | BV225: N/A | BW225: N/A | BX225: N/A | BY225: N/A | BZ225: N/A | CA225: N/A | CB225: N/A | CC225: N/A | CD225: N/A | CE225: N/A | CF225: N/A | CG225: N/A | CH225: N/A | CI225: N/A
BB226: Mobile | BC226: N/A | BD226: N/A | BE226: N/A | BF226: N/A | BG226: N/A | BH226: N/A | BI226: N/A | BJ226: N/A | BK226: N/A | BL226: N/A | BM226: N/A | BN226: N/A | BO226: N/A | BP226: N/A | BQ226: N/A | BR226: N/A | BS226: N/A | BT226: N/A | BU226: N/A | BV226: N/A | BW226: N/A | BX226: N/A | BY226: N/A | BZ226: N/A | CA226: N/A | CB226: N/A | CC226: N/A | CD226: N/A | CE226: N/A | CF226: N/A | CG226: N/A | CH226: N/A | CI226: N/A
BA227: Water / Soap | BB227: Water and soap | BC227: N/A | BD227: N/A | BE227: N/A | BF227: N/A | BG227: N/A | BH227: N/A | BI227: N/A | BJ227: N/A | BK227: N/A | BL227: N/A | BM227: N/A | BN227: N/A | BO227: N/A | BP227: N/A | BQ227: N/A | BR227: N/A | BS227: N/A | BT227: N/A | BU227: N/A | BV227: N/A | BW227: N/A | BX227: N/A | BY227: N/A | BZ227: N/A | CA227: N/A | CB227: N/A | CC227: N/A | CD227: N/A | CE227: N/A | CF227: N/A | CG227: N/A | CH227: N/A | CI227: N/A
BB228: Water only | BC228: N/A | BD228: N/A | BE228: N/A | BF228: N/A | BG228: N/A | BH228: N/A | BI228: N/A | BJ228: N/A | BK228: N/A | BL228: N/A | BM228: N/A | BN228: N/A | BO228: N/A | BP228: N/A | BQ228: N/A | BR228: N/A | BS228: N/A | BT228: N/A | BU228: N/A | BV228: N/A | BW228: N/A | BX228: N/A | BY228: N/A | BZ228: N/A | CA228: N/A | CB228: N/A | CC228: N/A | CD228: N/A | CE228: N/A | CF228: N/A | CG228: N/A | CH228: N/A | CI228: N/A
BB229: Soap only | BC229: N/A | BD229: N/A | BE229: N/A | BF229: N/A | BG229: N/A | BH229: N/A | BI229: N/A | BJ229: N/A | BK229: N/A | BL229: N/A | BM229: N/A | BN229: N/A | BO229: N/A | BP229: N/A | BQ229: N/A | BR229: N/A | BS229: N/A | BT229: N/A | BU229: N/A | BV229: N/A | BW229: N/A | BX229: N/A | BY229: N/A | BZ229: N/A | CA229: N/A | CB229: N/A | CC229: N/A | CD229: N/A | CE229: N/A | CF229: N/A | CG229: N/A | CH229: N/A | CI229: N/A
BB230: Neither | BC230: N/A | BD230: N/A | BE230: N/A | BF230: N/A | BG230: N/A | BH230: N/A | BI230: N/A | BJ230: N/A | BK230: N/A | BL230: N/A | BM230: N/A | BN230: N/A | BO230: N/A | BP230: N/A | BQ230: N/A | BR230: N/A | BS230: N/A | BT230: N/A | BU230: N/A | BV230: N/A | BW230: N/A | BX230: N/A | BY230: N/A | BZ230: N/A | CA230: N/A | CB230: N/A | CC230: N/A | CD230: N/A | CE230: N/A | CF230: N/A | CG230: N/A | CH230: N/A | CI230: N/A
BA259: Raw numbers of respondents: | BB259: Menstrual health and hygiene | BC259: NATIONAL wealth index quintile | BH259: URBAN wealth index quintile | BM259: RURAL wealth index quintile | BR259: SUB-REGIONS:
BA260: MHH data, raw numbers (weighted) | BC260: Poorest | BD260: Poor | BE260: Middle | BF260: Rich | BG260: Richest | BH260: Poorest | BI260: Poor | BJ260: Middle | BK260: Rich | BL260: Richest | BM260: Poorest | BN260: Poor | BO260: Middle | BP260: Rich | BQ260: Richest | BR260: anbar | BS260: babylon | BT260: baghdad | BU260: basra | BV260: diala | BW260: dohouk | BX260: erbil | BY260: kerbela | BZ260: maysan | CA260: muthanna | CB260: najaf | CC260: nenava | CD260: qadisiya | CE260: salaheldeen | CF260: suleimaniya | CG260: ta'amem | CH260: thi-qar | CI260: wasit
BA261: Private place to wash and change | BB261: Yes | BC261: N/A | BD261: N/A | BE261: N/A | BF261: N/A | BG261: N/A | BH261: N/A | BI261: N/A | BJ261: N/A | BK261: N/A | BL261: N/A | BM261: N/A | BN261: N/A | BO261: N/A | BP261: N/A | BQ261: N/A | BR261: N/A | BS261: N/A | BT261: N/A | BU261: N/A | BV261: N/A | BW261: N/A | BX261: N/A | BY261: N/A | BZ261: N/A | CA261: N/A | CB261: N/A | CC261: N/A | CD261: N/A | CE261: N/A | CF261: N/A | CG261: N/A | CH261: N/A | CI261: N/A
BB262: No | BC262: N/A | BD262: N/A | BE262: N/A | BF262: N/A | BG262: N/A | BH262: N/A | BI262: N/A | BJ262: N/A | BK262: N/A | BL262: N/A | BM262: N/A | BN262: N/A | BO262: N/A | BP262: N/A | BQ262: N/A | BR262: N/A | BS262: N/A | BT262: N/A | BU262: N/A | BV262: N/A | BW262: N/A | BX262: N/A | BY262: N/A | BZ262: N/A | CA262: N/A | CB262: N/A | CC262: N/A | CD262: N/A | CE262: N/A | CF262: N/A | CG262: N/A | CH262: N/A | CI262: N/A
BB263: DK/not sure/missing | BC263: N/A | BD263: N/A | BE263: N/A | BF263: N/A | BG263: N/A | BH263: N/A | BI263: N/A | BJ263: N/A | BK263: N/A | BL263: N/A | BM263: N/A | BN263: N/A | BO263: N/A | BP263: N/A | BQ263: N/A | BR263: N/A | BS263: N/A | BT263: N/A | BU263: N/A | BV263: N/A | BW263: N/A | BX263: N/A | BY263: N/A | BZ263: N/A | CA263: N/A | CB263: N/A | CC263: N/A | CD263: N/A | CE263: N/A | CF263: N/A | CG263: N/A | CH263: N/A | CI263: N/A
BA264: Use of menstrual materials | BB264: Materials reusable | BC264: N/A | BD264: N/A | BE264: N/A | BF264: N/A | BG264: N/A | BH264: N/A | BI264: N/A | BJ264: N/A | BK264: N/A | BL264: N/A | BM264: N/A | BN264: N/A | BO264: N/A | BP264: N/A | BQ264: N/A | BR264: N/A | BS264: N/A | BT264: N/A | BU264: N/A | BV264: N/A | BW264: N/A | BX264: N/A | BY264: N/A | BZ264: N/A | CA264: N/A | CB264: N/A | CC264: N/A | CD264: N/A | CE264: N/A | CF264: N/A | CG264: N/A | CH264: N/A | CI264: N/A
BB265: Materials not reusable | BC265: N/A | BD265: N/A | BE265: N/A | BF265: N/A | BG265: N/A | BH265: N/A | BI265: N/A | BJ265: N/A | BK265: N/A | BL265: N/A | BM265: N/A | BN265: N/A | BO265: N/A | BP265: N/A | BQ265: N/A | BR265: N/A | BS265: N/A | BT265: N/A | BU265: N/A | BV265: N/A | BW265: N/A | BX265: N/A | BY265: N/A | BZ265: N/A | CA265: N/A | CB265: N/A | CC265: N/A | CD265: N/A | CE265: N/A | CF265: N/A | CG265: N/A | CH265: N/A | CI265: N/A
BB266: No materials used | BC266: N/A | BD266: N/A | BE266: N/A | BF266: N/A | BG266: N/A | BH266: N/A | BI266: N/A | BJ266: N/A | BK266: N/A | BL266: N/A | BM266: N/A | BN266: N/A | BO266: N/A | BP266: N/A | BQ266: N/A | BR266: N/A | BS266: N/A | BT266: N/A | BU266: N/A | BV266: N/A | BW266: N/A | BX266: N/A | BY266: N/A | BZ266: N/A | CA266: N/A | CB266: N/A | CC266: N/A | CD266: N/A | CE266: N/A | CF266: N/A | CG266: N/A | CH266: N/A | CI266: N/A
BB267: DK/not sure/missing | BC267: N/A | BD267: N/A | BE267: N/A | BF267: N/A | BG267: N/A | BH267: N/A | BI267: N/A | BJ267: N/A | BK267: N/A | BL267: N/A | BM267: N/A | BN267: N/A | BO267: N/A | BP267: N/A | BQ267: N/A | BR267: N/A | BS267: N/A | BT267: N/A | BU267: N/A | BV267: N/A | BW267: N/A | BX267: N/A | BY267: N/A | BZ267: N/A | CA267: N/A | CB267: N/A | CC267: N/A | CD267: N/A | CE267: N/A | CF267: N/A | CG267: N/A | CH267: N/A | CI267: N/A
BA268: Use of menstrual materials with private place to wash and change | BB268: Materials reusable | BC268: N/A | BD268: N/A | BE268: N/A | BF268: N/A | BG268: N/A | BH268: N/A | BI268: N/A | BJ268: N/A | BK268: N/A | BL268: N/A | BM268: N/A | BN268: N/A | BO268: N/A | BP268: N/A | BQ268: N/A | BR268: N/A | BS268: N/A | BT268: N/A | BU268: N/A | BV268: N/A | BW268: N/A | BX268: N/A | BY268: N/A | BZ268: N/A | CA268: N/A | CB268: N/A | CC268: N/A | CD268: N/A | CE268: N/A | CF268: N/A | CG268: N/A | CH268: N/A | CI268: N/A
BB269: Materials not reusable | BC269: N/A | BD269: N/A | BE269: N/A | BF269: N/A | BG269: N/A | BH269: N/A | BI269: N/A | BJ269: N/A | BK269: N/A | BL269: N/A | BM269: N/A | BN269: N/A | BO269: N/A | BP269: N/A | BQ269: N/A | BR269: N/A | BS269: N/A | BT269: N/A | BU269: N/A | BV269: N/A | BW269: N/A | BX269: N/A | BY269: N/A | BZ269: N/A | CA269: N/A | CB269: N/A | CC269: N/A | CD269: N/A | CE269: N/A | CF269: N/A | CG269: N/A | CH269: N/A | CI269: N/A
BB270: No materials used | BC270: N/A | BD270: N/A | BE270: N/A | BF270: N/A | BG270: N/A | BH270: N/A | BI270: N/A | BJ270: N/A | BK270: N/A | BL270: N/A | BM270: N/A | BN270: N/A | BO270: N/A | BP270: N/A | BQ270: N/A | BR270: N/A | BS270: N/A | BT270: N/A | BU270: N/A | BV270: N/A | BW270: N/A | BX270: N/A | BY270: N/A | BZ270: N/A | CA270: N/A | CB270: N/A | CC270: N/A | CD270: N/A | CE270: N/A | CF270: N/A | CG270: N/A | CH270: N/A | CI270: N/A
BA271: Awareness of menstruation before menarche | BB271: Yes | BC271: N/A | BD271: N/A | BE271: N/A | BF271: N/A | BG271: N/A | BH271: N/A | BI271: N/A | BJ271: N/A | BK271: N/A | BL271: N/A | BM271: N/A | BN271: N/A | BO271: N/A | BP271: N/A | BQ271: N/A | BR271: N/A | BS271: N/A | BT271: N/A | BU271: N/A | BV271: N/A | BW271: N/A | BX271: N/A | BY271: N/A | BZ271: N/A | CA271: N/A | CB271: N/A | CC271: N/A | CD271: N/A | CE271: N/A | CF271: N/A | CG271: N/A | CH271: N/A | CI271: N/A
BB272: No | BC272: N/A | BD272: N/A | BE272: N/A | BF272: N/A | BG272: N/A | BH272: N/A | BI272: N/A | BJ272: N/A | BK272: N/A | BL272: N/A | BM272: N/A | BN272: N/A | BO272: N/A | BP272: N/A | BQ272: N/A | BR272: N/A | BS272: N/A | BT272: N/A | BU272: N/A | BV272: N/A | BW272: N/A | BX272: N/A | BY272: N/A | BZ272: N/A | CA272: N/A | CB272: N/A | CC272: N/A | CD272: N/A | CE272: N/A | CF272: N/A | CG272: N/A | CH272: N/A | CI272: N/A
BB273: DK/not sure/missing | BC273: N/A | BD273: N/A | BE273: N/A | BF273: N/A | BG273: N/A | BH273: N/A | BI273: N/A | BJ273: N/A | BK273: N/A | BL273: N/A | BM273: N/A | BN273: N/A | BO273: N/A | BP273: N/A | BQ273: N/A | BR273: N/A | BS273: N/A | BT273: N/A | BU273: N/A | BV273: N/A | BW273: N/A | BX273: N/A | BY273: N/A | BZ273: N/A | CA273: N/A | CB273: N/A | CC273: N/A | CD273: N/A | CE273: N/A | CF273: N/A | CG273: N/A | CH273: N/A | CI273: N/A
BA274: Participation in (all) activities during menstruation | BB274: Yes | BC274: N/A | BD274: N/A | BE274: N/A | BF274: N/A | BG274: N/A | BH274: N/A | BI274: N/A | BJ274: N/A | BK274: N/A | BL274: N/A | BM274: N/A | BN274: N/A | BO274: N/A | BP274: N/A | BQ274: N/A | BR274: N/A | BS274: N/A | BT274: N/A | BU274: N/A | BV274: N/A | BW274: N/A | BX274: N/A | BY274: N/A | BZ274: N/A | CA274: N/A | CB274: N/A | CC274: N/A | CD274: N/A | CE274: N/A | CF274: N/A | CG274: N/A | CH274: N/A | CI274: N/A
BB275: No | BC275: N/A | BD275: N/A | BE275: N/A | BF275: N/A | BG275: N/A | BH275: N/A | BI275: N/A | BJ275: N/A | BK275: N/A | BL275: N/A | BM275: N/A | BN275: N/A | BO275: N/A | BP275: N/A | BQ275: N/A | BR275: N/A | BS275: N/A | BT275: N/A | BU275: N/A | BV275: N/A | BW275: N/A | BX275: N/A | BY275: N/A | BZ275: N/A | CA275: N/A | CB275: N/A | CC275: N/A | CD275: N/A | CE275: N/A | CF275: N/A | CG275: N/A | CH275: N/A | CI275: N/A
BB276: DK/not sure/missing/no such activity | BC276: N/A | BD276: N/A | BE276: N/A | BF276: N/A | BG276: N/A | BH276: N/A | BI276: N/A | BJ276: N/A | BK276: N/A | BL276: N/A | BM276: N/A | BN276: N/A | BO276: N/A | BP276: N/A | BQ276: N/A | BR276: N/A | BS276: N/A | BT276: N/A | BU276: N/A | BV276: N/A | BW276: N/A | BX276: N/A | BY276: N/A | BZ276: N/A | CA276: N/A | CB276: N/A | CC276: N/A | CD276: N/A | CE276: N/A | CF276: N/A | CG276: N/A | CH276: N/A | CI276: N/A
BA277: Participation in specific activities during menstruation | BB277: Did not go to school (amongst those usually attending school) | BC277: N/A | BD277: N/A | BE277: N/A | BF277: N/A | BG277: N/A | BH277: N/A | BI277: N/A | BJ277: N/A | BK277: N/A | BL277: N/A | BM277: N/A | BN277: N/A | BO277: N/A | BP277: N/A | BQ277: N/A | BR277: N/A | BS277: N/A | BT277: N/A | BU277: N/A | BV277: N/A | BW277: N/A | BX277: N/A | BY277: N/A | BZ277: N/A | CA277: N/A | CB277: N/A | CC277: N/A | CD277: N/A | CE277: N/A | CF277: N/A | CG277: N/A | CH277: N/A | CI277: N/A
BB278: Did not go to work (amongst those who usually work) | BC278: N/A | BD278: N/A | BE278: N/A | BF278: N/A | BG278: N/A | BH278: N/A | BI278: N/A | BJ278: N/A | BK278: N/A | BL278: N/A | BM278: N/A | BN278: N/A | BO278: N/A | BP278: N/A | BQ278: N/A | BR278: N/A | BS278: N/A | BT278: N/A | BU278: N/A | BV278: N/A | BW278: N/A | BX278: N/A | BY278: N/A | BZ278: N/A | CA278: N/A | CB278: N/A | CC278: N/A | CD278: N/A | CE278: N/A | CF278: N/A | CG278: N/A | CH278: N/A | CI278: N/A
BB279: Did not participate in social activities | BC279: N/A | BD279: N/A | BE279: N/A | BF279: N/A | BG279: N/A | BH279: N/A | BI279: N/A | BJ279: N/A | BK279: N/A | BL279: N/A | BM279: N/A | BN279: N/A | BO279: N/A | BP279: N/A | BQ279: N/A | BR279: N/A | BS279: N/A | BT279: N/A | BU279: N/A | BV279: N/A | BW279: N/A | BX279: N/A | BY279: N/A | BZ279: N/A | CA279: N/A | CB279: N/A | CC279: N/A | CD279: N/A | CE279: N/A | CF279: N/A | CG279: N/A | CH279: N/A | CI279: N/A
BB280: Did not cook food | BC280: N/A | BD280: N/A | BE280: N/A | BF280: N/A | BG280: N/A | BH280: N/A | BI280: N/A | BJ280: N/A | BK280: N/A | BL280: N/A | BM280: N/A | BN280: N/A | BO280: N/A | BP280: N/A | BQ280: N/A | BR280: N/A | BS280: N/A | BT280: N/A | BU280: N/A | BV280: N/A | BW280: N/A | BX280: N/A | BY280: N/A | BZ280: N/A | CA280: N/A | CB280: N/A | CC280: N/A | CD280: N/A | CE280: N/A | CF280: N/A | CG280: N/A | CH280: N/A | CI280: N/A
BB281: Did not eat with others | BC281: N/A | BD281: N/A | BE281: N/A | BF281: N/A | BG281: N/A | BH281: N/A | BI281: N/A | BJ281: N/A | BK281: N/A | BL281: N/A | BM281: N/A | BN281: N/A | BO281: N/A | BP281: N/A | BQ281: N/A | BR281: N/A | BS281: N/A | BT281: N/A | BU281: N/A | BV281: N/A | BW281: N/A | BX281: N/A | BY281: N/A | BZ281: N/A | CA281: N/A | CB281: N/A | CC281: N/A | CD281: N/A | CE281: N/A | CF281: N/A | CG281: N/A | CH281: N/A | CI281: N/A
BB282: Did not bathe in regular place | BC282: N/A | BD282: N/A | BE282: N/A | BF282: N/A | BG282: N/A | BH282: N/A | BI282: N/A | BJ282: N/A | BK282: N/A | BL282: N/A | BM282: N/A | BN282: N/A | BO282: N/A | BP282: N/A | BQ282: N/A | BR282: N/A | BS282: N/A | BT282: N/A | BU282: N/A | BV282: N/A | BW282: N/A | BX282: N/A | BY282: N/A | BZ282: N/A | CA282: N/A | CB282: N/A | CC282: N/A | CD282: N/A | CE282: N/A | CF282: N/A | CG282: N/A | CH282: N/A | CI282: N/A
BB283: Did not participate in other activities | BC283: N/A | BD283: N/A | BE283: N/A | BF283: N/A | BG283: N/A | BH283: N/A | BI283: N/A | BJ283: N/A | BK283: N/A | BL283: N/A | BM283: N/A | BN283: N/A | BO283: N/A | BP283: N/A | BQ283: N/A | BR283: N/A | BS283: N/A | BT283: N/A | BU283: N/A | BV283: N/A | BW283: N/A | BX283: N/A | BY283: N/A | BZ283: N/A | CA283: N/A | CB283: N/A | CC283: N/A | CD283: N/A | CE283: N/A | CF283: N/A | CG283: N/A | CH283: N/A | CI283: N/A
BB284: DK/not sure/missing/no such activity | BC284: N/A | BD284: N/A | BE284: N/A | BF284: N/A | BG284: N/A | BH284: N/A | BI284: N/A | BJ284: N/A | BK284: N/A | BL284: N/A | BM284: N/A | BN284: N/A | BO284: N/A | BP284: N/A | BQ284: N/A | BR284: N/A | BS284: N/A | BT284: N/A | BU284: N/A | BV284: N/A | BW284: N/A | BX284: N/A | BY284: N/A | BZ284: N/A | CA284: N/A | CB284: N/A | CC284: N/A | CD284: N/A | CE284: N/A | CF284: N/A | CG284: N/A | CH284: N/A | CI284: N/A
BA339: Raw numbers of respondents: | BB339: Basic water, sanitation and hygiene | BC339: NATIONAL wealth index quintile | BH339: URBAN wealth index quintile | BM339: RURAL wealth index quintile | BR339: SUB-REGIONS:
BA340: WatSan data, raw numbers (weighted) | BC340: Poorest | BD340: Poor | BE340: Middle | BF340: Rich | BG340: Richest | BH340: Poorest | BI340: Poor | BJ340: Middle | BK340: Rich | BL340: Richest | BM340: Poorest | BN340: Poor | BO340: Middle | BP340: Rich | BQ340: Richest | BR340: anbar | BS340: babylon | BT340: baghdad | BU340: basra | BV340: diala | BW340: dohouk | BX340: erbil | BY340: kerbela | BZ340: maysan | CA340: muthanna | CB340: najaf | CC340: nenava | CD340: qadisiya | CE340: salaheldeen | CF340: suleimaniya | CG340: ta'amem | CH340: thi-qar | CI340: wasit
BA341: Use of Basic Water Sanitation and Hygiene | BB341: Yes | BC341: N/A | BD341: N/A | BE341: N/A | BF341: N/A | BG341: N/A | BH341: N/A | BI341: N/A | BJ341: N/A | BK341: N/A | BL341: N/A | BM341: N/A | BN341: N/A | BO341: N/A | BP341: N/A | BQ341: N/A | BR341: N/A | BS341: N/A | BT341: N/A | BU341: N/A | BV341: N/A | BW341: N/A | BX341: N/A | BY341: N/A | BZ341: N/A | CA341: N/A | CB341: N/A | CC341: N/A | CD341: N/A | CE341: N/A | CF341: N/A | CG341: N/A | CH341: N/A | CI341: N/A
BB342: No | BC342: N/A | BD342: N/A | BE342: N/A | BF342: N/A | BG342: N/A | BH342: N/A | BI342: N/A | BJ342: N/A | BK342: N/A | BL342: N/A | BM342: N/A | BN342: N/A | BO342: N/A | BP342: N/A | BQ342: N/A | BR342: N/A | BS342: N/A | BT342: N/A | BU342: N/A | BV342: N/A | BW342: N/A | BX342: N/A | BY342: N/A | BZ342: N/A | CA342: N/A | CB342: N/A | CC342: N/A | CD342: N/A | CE342: N/A | CF342: N/A | CG342: N/A | CH342: N/A | CI342: N/A
BA343: Use of Basic Water and Sanitation | BB343: Yes | BC343: N/A | BD343: N/A | BE343: N/A | BF343: N/A | BG343: N/A | BH343: N/A | BI343: N/A | BJ343: N/A | BK343: N/A | BL343: N/A | BM343: N/A | BN343: N/A | BO343: N/A | BP343: N/A | BQ343: N/A | BR343: N/A | BS343: N/A | BT343: N/A | BU343: N/A | BV343: N/A | BW343: N/A | BX343: N/A | BY343: N/A | BZ343: N/A | CA343: N/A | CB343: N/A | CC343: N/A | CD343: N/A | CE343: N/A | CF343: N/A | CG343: N/A | CH343: N/A | CI343: N/A
BB344: No | BC344: N/A | BD344: N/A | BE344: N/A | BF344: N/A | BG344: N/A | BH344: N/A | BI344: N/A | BJ344: N/A | BK344: N/A | BL344: N/A | BM344: N/A | BN344: N/A | BO344: N/A | BP344: N/A | BQ344: N/A | BR344: N/A | BS344: N/A | BT344: N/A | BU344: N/A | BV344: N/A | BW344: N/A | BX344: N/A | BY344: N/A | BZ344: N/A | CA344: N/A | CB344: N/A | CC344: N/A | CD344: N/A | CE344: N/A | CF344: N/A | CG344: N/A | CH344: N/A | CI344: N/A
BA345: Use of Basic Water and Hygiene | BB345: Yes | BC345: N/A | BD345: N/A | BE345: N/A | BF345: N/A | BG345: N/A | BH345: N/A | BI345: N/A | BJ345: N/A | BK345: N/A | BL345: N/A | BM345: N/A | BN345: N/A | BO345: N/A | BP345: N/A | BQ345: N/A | BR345: N/A | BS345: N/A | BT345: N/A | BU345: N/A | BV345: N/A | BW345: N/A | BX345: N/A | BY345: N/A | BZ345: N/A | CA345: N/A | CB345: N/A | CC345: N/A | CD345: N/A | CE345: N/A | CF345: N/A | CG345: N/A | CH345: N/A | CI345: N/A
BB346: No | BC346: N/A | BD346: N/A | BE346: N/A | BF346: N/A | BG346: N/A | BH346: N/A | BI346: N/A | BJ346: N/A | BK346: N/A | BL346: N/A | BM346: N/A | BN346: N/A | BO346: N/A | BP346: N/A | BQ346: N/A | BR346: N/A | BS346: N/A | BT346: N/A | BU346: N/A | BV346: N/A | BW346: N/A | BX346: N/A | BY346: N/A | BZ346: N/A | CA346: N/A | CB346: N/A | CC346: N/A | CD346: N/A | CE346: N/A | CF346: N/A | CG346: N/A | CH346: N/A | CI346: N/A
BA347: Use of Basic Sanitation and Hygiene | BB347: Yes | BC347: N/A | BD347: N/A | BE347: N/A | BF347: N/A | BG347: N/A | BH347: N/A | BI347: N/A | BJ347: N/A | BK347: N/A | BL347: N/A | BM347: N/A | BN347: N/A | BO347: N/A | BP347: N/A | BQ347: N/A | BR347: N/A | BS347: N/A | BT347: N/A | BU347: N/A | BV347: N/A | BW347: N/A | BX347: N/A | BY347: N/A | BZ347: N/A | CA347: N/A | CB347: N/A | CC347: N/A | CD347: N/A | CE347: N/A | CF347: N/A | CG347: N/A | CH347: N/A | CI347: N/A
BB348: No | BC348: N/A | BD348: N/A | BE348: N/A | BF348: N/A | BG348: N/A | BH348: N/A | BI348: N/A | BJ348: N/A | BK348: N/A | BL348: N/A | BM348: N/A | BN348: N/A | BO348: N/A | BP348: N/A | BQ348: N/A | BR348: N/A | BS348: N/A | BT348: N/A | BU348: N/A | BV348: N/A | BW348: N/A | BX348: N/A | BY348: N/A | BZ348: N/A | CA348: N/A | CB348: N/A | CC348: N/A | CD348: N/A | CE348: N/A | CF348: N/A | CG348: N/A | CH348: N/A | CI348: N/A
BA349: Use of Basic Water | BB349: Yes | BC349: N/A | BD349: N/A | BE349: N/A | BF349: N/A | BG349: N/A | BH349: N/A | BI349: N/A | BJ349: N/A | BK349: N/A | BL349: N/A | BM349: N/A | BN349: N/A | BO349: N/A | BP349: N/A | BQ349: N/A | BR349: N/A | BS349: N/A | BT349: N/A | BU349: N/A | BV349: N/A | BW349: N/A | BX349: N/A | BY349: N/A | BZ349: N/A | CA349: N/A | CB349: N/A | CC349: N/A | CD349: N/A | CE349: N/A | CF349: N/A | CG349: N/A | CH349: N/A | CI349: N/A
BB350: No | BC350: N/A | BD350: N/A | BE350: N/A | BF350: N/A | BG350: N/A | BH350: N/A | BI350: N/A | BJ350: N/A | BK350: N/A | BL350: N/A | BM350: N/A | BN350: N/A | BO350: N/A | BP350: N/A | BQ350: N/A | BR350: N/A | BS350: N/A | BT350: N/A | BU350: N/A | BV350: N/A | BW350: N/A | BX350: N/A | BY350: N/A | BZ350: N/A | CA350: N/A | CB350: N/A | CC350: N/A | CD350: N/A | CE350: N/A | CF350: N/A | CG350: N/A | CH350: N/A | CI350: N/A
BA351: Use of Basic Sanitation | BB351: Yes | BC351: N/A | BD351: N/A | BE351: N/A | BF351: N/A | BG351: N/A | BH351: N/A | BI351: N/A | BJ351: N/A | BK351: N/A | BL351: N/A | BM351: N/A | BN351: N/A | BO351: N/A | BP351: N/A | BQ351: N/A | BR351: N/A | BS351: N/A | BT351: N/A | BU351: N/A | BV351: N/A | BW351: N/A | BX351: N/A | BY351: N/A | BZ351: N/A | CA351: N/A | CB351: N/A | CC351: N/A | CD351: N/A | CE351: N/A | CF351: N/A | CG351: N/A | CH351: N/A | CI351: N/A
BB352: No | BC352: N/A | BD352: N/A | BE352: N/A | BF352: N/A | BG352: N/A | BH352: N/A | BI352: N/A | BJ352: N/A | BK352: N/A | BL352: N/A | BM352: N/A | BN352: N/A | BO352: N/A | BP352: N/A | BQ352: N/A | BR352: N/A | BS352: N/A | BT352: N/A | BU352: N/A | BV352: N/A | BW352: N/A | BX352: N/A | BY352: N/A | BZ352: N/A | CA352: N/A | CB352: N/A | CC352: N/A | CD352: N/A | CE352: N/A | CF352: N/A | CG352: N/A | CH352: N/A | CI352: N/A
BA353: Access to Basic Hygiene | BB353: Yes | BC353: N/A | BD353: N/A | BE353: N/A | BF353: N/A | BG353: N/A | BH353: N/A | BI353: N/A | BJ353: N/A | BK353: N/A | BL353: N/A | BM353: N/A | BN353: N/A | BO353: N/A | BP353: N/A | BQ353: N/A | BR353: N/A | BS353: N/A | BT353: N/A | BU353: N/A | BV353: N/A | BW353: N/A | BX353: N/A | BY353: N/A | BZ353: N/A | CA353: N/A | CB353: N/A | CC353: N/A | CD353: N/A | CE353: N/A | CF353: N/A | CG353: N/A | CH353: N/A | CI353: N/A
BB354: No | BC354: N/A | BD354: N/A | BE354: N/A | BF354: N/A | BG354: N/A | BH354: N/A | BI354: N/A | BJ354: N/A | BK354: N/A | BL354: N/A | BM354: N/A | BN354: N/A | BO354: N/A | BP354: N/A | BQ354: N/A | BR354: N/A | BS354: N/A | BT354: N/A | BU354: N/A | BV354: N/A | BW354: N/A | BX354: N/A | BY354: N/A | BZ354: N/A | CA354: N/A | CB354: N/A | CC354: N/A | CD354: N/A | CE354: N/A | CF354: N/A | CG354: N/A | CH354: N/A | CI354: N/A
C399: INITIAL (national) Wealth Index | H399: URBAN Wealth Index | M399: RURAL Wealth Index
C400: Component Matrix | H400: Component Matrix | M400: Component Matrix
E401: Component | J401: Component | O401: Component
B402: Note: The INITIAL (national) Wealth Index is based on the first component of the Principal Component Analysis (PCA) which has been obtained at national level. The final national-level (NATIONAL) Wealth Index is based on the URBAN and RURAL specific wealth indexes. Regression procedures are used to establish the relationships between the two sets of scores (urban and rural) and the initial (national) wealth factors. This allows best use of the available information for each area and a better precision of the FINAL (NATIONAL) Wealth Index. For dependency reasons, all WASH variables (contained in the generic MICS and DHS scripts) have been excluded from the sets of asset variables used in the PCAs. The PCA can extracts as many components as there are asset variables in the input. Only the first of the components is used to represent the Wealth Index. The scores represent the weights of the asset variables on the Wealth Index (correlations between the variables and the component). The communalities are the proportion of each variable's variance that can be explained by the component. Proportion of explained variance is the part of the model's total variance that is explained by the component. For more information on the procedure used: The DHS Wealth Index, DHS Comparative Reports No. 6, Shea Oscar Rutstein, Kiersten Johnson, ORC Macro International Inc., 2004. The DHS Wealth Index: Approaches for Rural and Urban Areas, Shea O. Rutstein, ORC Macro International Inc., 2008. MICS Methodological Paper No. 4, Review of options for reporting water, sanitation and hygiene coverage by wealth quintile, UNICEF, 2016. | E402: 1 | J402: 1 | O402: 1
C403: owner1 | E403: -0.9183534923 | H403: owner1 | J403: -0.935022018 | M403: owner1 | O403: -0.9114526004
C404: wall6 | E404: 0.6774541798 | H404: owner2 | J404: 0.7728784947 | M404: wall6 | O404: 0.8165875588
C405: owner5 | E405: 0.6600648027 | H405: wall6 | J405: 0.5363298335 | M405: owner5 | O405: 0.7932454381
C406: owner2 | E406: 0.6075461914 | H406: owner5 | J406: 0.5138811239 | M406: owner3 | O406: 0.4627734511
C407: owner3 | E407: 0.353072556 | H407: wall4 | J407: 0.443360096 | M407: owner2 | O407: 0.302789812
C408: wall4 | E408: 0.3498104882 | H408: owner3 | J408: 0.2639490567 | M408: wall4 | O408: 0.2042034526
C409: owner4 | E409: 0.1025821128 | H409: wall1 | J409: -0.1308589516 | M409: owner4 | O409: 0.1588917313
C410: wall3 | E410: -0.09693997481 | H410: wall3 | J410: -0.06134783275 | M410: wall3 | O410: -0.1211967478
C411: wall1 | E411: -0.09171371913 | H411: Persons per sleeping rooms | J411: -0.05697157686 | M411: wall1 | O411: -0.09461462726
C412: Persons per sleeping rooms | E412: -0.0495477598 | H412: wall2 | J412: -0.004687107895 | M412: wall5 | O412: 0.05781420824
C413: wall2 | E413: -0.01977779043 | H413: wall5 | J413: -0.002946876205 | M413: Persons per sleeping rooms | O413: -0.03605457841
C414: wall5 | E414: 0.01902921006 | M414: wall2 | O414: -0.03183991639
H417: Communalities
C418: Communalities | J418: Extraction | M418: Communalities
E419: Extraction | H419: Persons per sleeping rooms | J419: 0.00324576057 | O419: Extraction
C420: Persons per sleeping rooms | E420: 0.002454980501 | H420: wall1 | J420: 0.01712406522 | M420: Persons per sleeping rooms | O420: 0.001299932624
C421: wall1 | E421: 0.008411406277 | H421: wall2 | J421: 2.196898042e-05 | M421: wall1 | O421: 0.008951927691
... 84 more rows

Sheet MICS06
A2: =A1026 -> Iraq
A3: =A1034 -> 2006
A4: Use of drinking water sources
A5: by wealth quintile and sub-national region
A6: Notes:
A7: WHO/UNICEF JMP customised wealth index excludes water,
A8: sanitation and hygiene assets.
A9: Survey used for analysis: | B9: =A1025 -> MICS06
A10: =B1028 -> 
A11: =B1027 -> 
A14: Use of drinking water sources | C14: NATIONAL wealth index quintile | H14: URBAN wealth index quintile | M14: RURAL wealth index quintile | R14: SUB-REGIONS: | BA14: Raw numbers of respondents: | BB14: Use of drinking water sources | BC14: NATIONAL wealth index quintile | BH14: URBAN wealth index quintile | BM14: RURAL wealth index quintile | BR14: SUB-REGIONS:
A15: Weighted percentage (used in graphs) | C15: Poorest | D15: Poor | E15: Middle | F15: Rich | G15: Richest | H15: Poorest | I15: Poor | J15: Middle | K15: Rich | L15: Richest | M15: Poorest | N15: Poor | O15: Middle | P15: Rich | Q15: Richest | R15: Albasrah | S15: Almuthana | T15: Anbar | U15: Arbil | V15: Babil | W15: Baghdad | X15: Diala | Y15: Duhuk | Z15: Kakuk | AA15: Karbala | AB15: Misan | AC15: Nainwa | AD15: Najaf | AE15: Qadisya | AF15: Salahaladin | AG15: Sulimania | AH15: Thiqar | AI15: Wasit | BA15: Water data, raw numbers (weighted) | BC15: Poorest | BD15: Poor | BE15: Middle | BF15: Rich | BG15: Richest | BH15: Poorest | BI15: Poor | BJ15: Middle | BK15: Rich | BL15: Richest | BM15: Poorest | BN15: Poor | BO15: Middle | BP15: Rich | BQ15: Richest | BR15: Albasrah | BS15: Almuthana | BT15: Anbar | BU15: Arbil | BV15: Babil | BW15: Baghdad | BX15: Diala | BY15: Duhuk | BZ15: Kakuk | CA15: Karbala | CB15: Misan | CC15: Nainwa | CD15: Najaf | CE15: Qadisya | CF15: Salahaladin | CG15: Sulimania | CH15: Thiqar | CI15: Wasit
A16: Water | B16: Improved | C16: 62.18808747 | D16: 82.817639 | E16: 83.52308316 | F16: 85.55907036 | G16: 89.54876802 | H16: 94.30571166 | I16: 91.66155898 | J16: 91.43301757 | K16: 92.46490864 | L16: 90.47706503 | M16: 42.38283526 | N16: 60.60572373 | O16: 67.15393764 | P16: 67.78541261 | Q16: 66.67133426 | R16: 1.581108479 | S16: 54.60537777 | T16: 94.21732988 | U16: 98.79902574 | V16: 65.53092199 | W16: 95.58477289 | X16: 76.56719837 | Y16: 99.91307543 | Z16: 98.27903514 | AA16: 92.25879762 | AB16: 76.26340938 | AC16: 85.51376203 | AD16: 88.29100727 | AE16: 76.92042002 | AF16: 73.71474598 | AG16: 98.63217444 | AH16: 70.9545665 | AI16: 81.77626286 | BA16: Water | BB16: Improved | BC16: N/A | BD16: N/A | BE16: N/A | BF16: N/A | BG16: N/A | BH16: N/A | BI16: N/A | BJ16: N/A | BK16: N/A | BL16: N/A | BM16: N/A | BN16: N/A | BO16: N/A | BP16: N/A | BQ16: N/A | BR16: N/A | BS16: N/A | BT16: N/A | BU16: N/A | BV16: N/A | BW16: N/A | BX16: N/A | BY16: N/A | BZ16: N/A | CA16: N/A | CB16: N/A | CC16: N/A | CD16: N/A | CE16: N/A | CF16: N/A | CG16: N/A | CH16: N/A | CI16: N/A
B17: Not Improved | C17: 37.81191253 | D17: 17.182361 | E17: 16.47691684 | F17: 14.44092964 | G17: 10.45123198 | H17: 5.694288336 | I17: 8.338441016 | J17: 8.566982431 | K17: 7.535091357 | L17: 9.52293497 | M17: 57.61716474 | N17: 39.39427627 | O17: 32.84606236 | P17: 32.21458739 | Q17: 33.32866574 | R17: 98.41889152 | S17: 45.39462223 | T17: 5.782670121 | U17: 1.200974262 | V17: 34.46907801 | W17: 4.415227107 | X17: 23.43280163 | Y17: 0.08692456806 | Z17: 1.720964862 | AA17: 7.741202384 | AB17: 23.73659062 | AC17: 14.48623797 | AD17: 11.70899273 | AE17: 23.07957998 | AF17: 26.28525402 | AG17: 1.367825558 | AH17: 29.0454335 | AI17: 18.22373714 | BB17: Not Improved | BC17: N/A | BD17: N/A | BE17: N/A | BF17: N/A | BG17: N/A | BH17: N/A | BI17: N/A | BJ17: N/A | BK17: N/A | BL17: N/A | BM17: N/A | BN17: N/A | BO17: N/A | BP17: N/A | BQ17: N/A | BR17: N/A | BS17: N/A | BT17: N/A | BU17: N/A | BV17: N/A | BW17: N/A | BX17: N/A | BY17: N/A | BZ17: N/A | CA17: N/A | CB17: N/A | CC17: N/A | CD17: N/A | CE17: N/A | CF17: N/A | CG17: N/A | CH17: N/A | CI17: N/A
A18: Water ladder | B18: Basic | C18: 60.57481335 | D18: 82.09285722 | E18: 83.23180875 | F18: 85.39568785 | G18: 89.4925279 | H18: 94.18071239 | I18: 91.64052543 | J18: 91.40982239 | K18: 92.46490864 | L18: 90.38864439 | M18: 39.79241915 | N18: 58.8850129 | O18: 65.57398162 | P18: 66.89337659 | Q18: 66.07918623 | R18: 1.581108479 | S18: 51.31569418 | T18: 93.99491949 | U18: 98.64774641 | V18: 65.35045562 | W18: 95.35399798 | X18: 76.00674749 | Y18: 99.0443726 | Z18: 97.90693463 | AA18: 91.6256742 | AB18: 75.99280726 | AC18: 84.03287087 | AD18: 87.6994908 | AE18: 75.763864 | AF18: 73.17768818 | AG18: 98.18362789 | AH18: 70.73741912 | AI18: 80.99958953 | BA18: Water ladder | BB18: Basic | BC18: N/A | BD18: N/A | BE18: N/A | BF18: N/A | BG18: N/A | BH18: N/A | BI18: N/A | BJ18: N/A | BK18: N/A | BL18: N/A | BM18: N/A | BN18: N/A | BO18: N/A | BP18: N/A | BQ18: N/A | BR18: N/A | BS18: N/A | BT18: N/A | BU18: N/A | BV18: N/A | BW18: N/A | BX18: N/A | BY18: N/A | BZ18: N/A | CA18: N/A | CB18: N/A | CC18: N/A | CD18: N/A | CE18: N/A | CF18: N/A | CG18: N/A | CH18: N/A | CI18: N/A
B19: Limited | C19: 1.605654848 | D19: 0.7247817746 | E19: 0.2912744075 | F19: 0.1633825087 | G19: 0.05624011152 | H19: 0.1249992732 | I19: 0.02103355188 | J19: 0.02319518314 | K19: 0 | L19: 0.08842064292 | M19: 2.590416109 | N19: 1.698923315 | O19: 1.579956023 | P19: 0.8920360195 | Q19: 0.5921480286 | R19: 0 | S19: 3.289683589 | T19: 0.2224103893 | U19: 0.1501203143 | V19: 0.180466377 | W19: 0.2307749159 | X19: 0.5604508789 | Y19: 0.8687028331 | Z19: 0.3721005108 | AA19: 0.6331234201 | AB19: 0.2706021196 | AC19: 1.480891163 | AD19: 0.5915164721 | AE19: 1.15655602 | AF19: 0.5370577961 | AG19: 0.4485465551 | AH19: 0.2171473783 | AI19: 0.7766733282 | BB19: Limited | BC19: N/A | BD19: N/A | BE19: N/A | BF19: N/A | BG19: N/A | BH19: N/A | BI19: N/A | BJ19: N/A | BK19: N/A | BL19: N/A | BM19: N/A | BN19: N/A | BO19: N/A | BP19: N/A | BQ19: N/A | BR19: N/A | BS19: N/A | BT19: N/A | BU19: N/A | BV19: N/A | BW19: N/A | BX19: N/A | BY19: N/A | BZ19: N/A | CA19: N/A | CB19: N/A | CC19: N/A | CD19: N/A | CE19: N/A | CF19: N/A | CG19: N/A | CH19: N/A | CI19: N/A
B20: Unimproved | C20: 17.00697238 | D20: 10.43429171 | E20: 11.72864941 | F20: 10.87643675 | G20: 9.64774829 | H20: 5.132276842 | I20: 8.301294639 | J20: 8.538889751 | K20: 7.488575196 | L20: 9.48818643 | M20: 22.44068192 | N20: 19.11293568 | O20: 17.27148547 | P20: 16.85464455 | Q20: 20.24811814 | R20: 98.41889152 | S20: 42.61260586 | T20: 3.491843111 | U20: 1.202133273 | V20: 1.33093953 | W20: 3.865676841 | X20: 8.967214062 | Y20: 0 | Z20: 0.2790753831 | AA20: 2.171676312 | AB20: 0.5061046117 | AC20: 14.48623797 | AD20: 0.561182294 | AE20: 5.717314663 | AF20: 13.63282865 | AG20: 1.17753308 | AH20: 6.718466151 | AI20: 4.770993302 | BB20: Unimproved | BC20: N/A | BD20: N/A | BE20: N/A | BF20: N/A | BG20: N/A | BH20: N/A | BI20: N/A | BJ20: N/A | BK20: N/A | BL20: N/A | BM20: N/A | BN20: N/A | BO20: N/A | BP20: N/A | BQ20: N/A | BR20: N/A | BS20: N/A | BT20: N/A | BU20: N/A | BV20: N/A | BW20: N/A | BX20: N/A | BY20: N/A | BZ20: N/A | CA20: N/A | CB20: N/A | CC20: N/A | CD20: N/A | CE20: N/A | CF20: N/A | CG20: N/A | CH20: N/A | CI20: N/A
B21: Surface water | C21: 20.81255942 | D21: 6.748069299 | E21: 4.748267433 | F21: 3.564492888 | G21: 0.8034836946 | H21: 0.5620114946 | I21: 0.03714637751 | J21: 0.02809267991 | K21: 0.04651616098 | L21: 0.03474854072 | M21: 35.17648282 | N21: 20.30312811 | O21: 15.57457689 | P21: 15.35994284 | Q21: 13.0805476 | R21: 0 | S21: 2.782016368 | T21: 2.290827009 | U21: 0 | V21: 33.13813847 | W21: 0.5495502659 | X21: 14.46558757 | Y21: 0.08692456806 | Z21: 1.441889479 | AA21: 5.569526072 | AB21: 23.23048601 | AC21: 0 | AD21: 11.14781044 | AE21: 17.36226532 | AF21: 12.65242537 | AG21: 0.1902924779 | AH21: 22.32696735 | AI21: 13.45274384 | BB21: Surface water | BC21: N/A | BD21: N/A | BE21: N/A | BF21: N/A | BG21: N/A | BH21: N/A | BI21: N/A | BJ21: N/A | BK21: N/A | BL21: N/A | BM21: N/A | BN21: N/A | BO21: N/A | BP21: N/A | BQ21: N/A | BR21: N/A | BS21: N/A | BT21: N/A | BU21: N/A | BV21: N/A | BW21: N/A | BX21: N/A | BY21: N/A | BZ21: N/A | CA21: N/A | CB21: N/A | CC21: N/A | CD21: N/A | CE21: N/A | CF21: N/A | CG21: N/A | CH21: N/A | CI21: N/A
A22: Improved water point at more than 30 minutes | B22: Yes | C22: 2.58224953 | D22: 0.8751538723 | E22: 0.3487352197 | F22: 0.1909587236 | G22: 0.06280389197 | H22: 0.1325468744 | I22: 0.02294697157 | J22: 0.0253684979 | K22: 0 | L22: 0.09772713437 | M22: 6.111946248 | N22: 2.804247166 | O22: 2.352737722 | P22: 1.31597048 | Q22: 0.8881598594 | R22: 0 | S22: 6.024468144 | T22: 0.2360610193 | U22: 0.1519469187 | V22: 0.2753911764 | W22: 0.2414348112 | X22: 0.7319725559 | Y22: 0.8694586063 | Z22: 0.3786163654 | AA22: 0.6862472051 | AB22: 0.3548256258 | AC22: 1.731757705 | AD22: 0.6699623103 | AE22: 1.503574759 | AF22: 0.7285622286 | AG22: 0.454766974 | AH22: 0.3060372136 | AI22: 0.9497540008 | BA22: Improved water point at more than 30 minutes | BB22: Yes | BC22: N/A | BD22: N/A | BE22: N/A | BF22: N/A | BG22: N/A | BH22: N/A | BI22: N/A | BJ22: N/A | BK22: N/A | BL22: N/A | BM22: N/A | BN22: N/A | BO22: N/A | BP22: N/A | BQ22: N/A | BR22: N/A | BS22: N/A | BT22: N/A | BU22: N/A | BV22: N/A | BW22: N/A | BX22: N/A | BY22: N/A | BZ22: N/A | CA22: N/A | CB22: N/A | CC22: N/A | CD22: N/A | CE22: N/A | CF22: N/A | CG22: N/A | CH22: N/A | CI22: N/A
B23: No | C23: 97.41775047 | D23: 99.12484613 | E23: 99.65126478 | F23: 99.80904128 | G23: 99.93719611 | H23: 99.86745313 | I23: 99.97705303 | J23: 99.9746315 | K23: 100 | L23: 99.90227287 | M23: 93.88805375 | N23: 97.19575283 | O23: 97.64726228 | P23: 98.68402952 | Q23: 99.11184014 | R23: 100 | S23: 93.97553186 | T23: 99.76393898 | U23: 99.84805308 | V23: 99.72460882 | W23: 99.75856519 | X23: 99.26802744 | Y23: 99.13054139 | Z23: 99.62138363 | AA23: 99.31375279 | AB23: 99.64517437 | AC23: 98.26824229 | AD23: 99.33003769 | AE23: 98.49642524 | AF23: 99.27143777 | AG23: 99.54523303 | AH23: 99.69396279 | AI23: 99.050246 | BB23: No | BC23: N/A | BD23: N/A | BE23: N/A | BF23: N/A | BG23: N/A | BH23: N/A | BI23: N/A | BJ23: N/A | BK23: N/A | BL23: N/A | BM23: N/A | BN23: N/A | BO23: N/A | BP23: N/A | BQ23: N/A | BR23: N/A | BS23: N/A | BT23: N/A | BU23: N/A | BV23: N/A | BW23: N/A | BX23: N/A | BY23: N/A | BZ23: N/A | CA23: N/A | CB23: N/A | CC23: N/A | CD23: N/A | CE23: N/A | CF23: N/A | CG23: N/A | CH23: N/A | CI23: N/A
A24: Manually calculated ratios | B24: Improved wells
B25: Improved springs
B26: Other
C27: NATIONAL wealth index quintile | H27: URBAN wealth index quintile | M27: RURAL wealth index quintile | R27: SUB-REGIONS: | BA27: Raw numbers of respondents: | BB27: Use of drinking water sources | BC27: NATIONAL wealth index quintile | BH27: URBAN wealth index quintile | BM27: RURAL wealth index quintile | BR27: SUB-REGIONS:
A28: Percentage based on weighted population | C28: Poorest | D28: Poor | E28: Middle | F28: Rich | G28: Richest | H28: Poorest | I28: Poor | J28: Middle | K28: Rich | L28: Richest | M28: Poorest | N28: Poor | O28: Middle | P28: Rich | Q28: Richest | R28: Albasrah | S28: Almuthana | T28: Anbar | U28: Arbil | V28: Babil | W28: Baghdad | X28: Diala | Y28: Duhuk | Z28: Kakuk | AA28: Karbala | AB28: Misan | AC28: Nainwa | AD28: Najaf | AE28: Qadisya | AF28: Salahaladin | AG28: Sulimania | AH28: Thiqar | AI28: Wasit | BA28: Water data, raw numbers (weighted) | BC28: Poorest | BD28: Poor | BE28: Middle | BF28: Rich | BG28: Richest | BH28: Poorest | BI28: Poor | BJ28: Middle | BK28: Rich | BL28: Richest | BM28: Poorest | BN28: Poor | BO28: Middle | BP28: Rich | BQ28: Richest | BR28: Albasrah | BS28: Almuthana | BT28: Anbar | BU28: Arbil | BV28: Babil | BW28: Baghdad | BX28: Diala | BY28: Duhuk | BZ28: Kakuk | CA28: Karbala | CB28: Misan | CC28: Nainwa | CD28: Najaf | CE28: Qadisya | CF28: Salahaladin | CG28: Sulimania | CH28: Thiqar | CI28: Wasit
A29: Piped water | B29: Yes | C29: 48.97298979 | D29: 77.99282035 | E29: 80.69927559 | F29: 84.18687931 | G29: 89.23060818 | H29: 91.74010903 | I29: 90.66314978 | J29: 90.75512232 | K29: 92.158546 | L29: 90.35763741 | M29: 24.44344978 | N29: 45.7175561 | O29: 56.86699917 | P29: 61.06548402 | Q29: 62.71938742 | R29: 1.169569635 | S29: 49.81299921 | T29: 94.21732988 | U29: 94.32273969 | V29: 61.65089489 | W29: 95.3220733 | X29: 69.25020078 | Y29: 94.6629952 | Z29: 96.03092789 | AA29: 90.32893144 | AB29: 74.58612782 | AC29: 73.84551312 | AD29: 87.36581484 | AE29: 70.57027281 | AF29: 68.90943214 | AG29: 85.72174091 | AH29: 68.07174468 | AI29: 65.73967657 | BA29: Piped water | BB29: Yes | BC29: N/A | BD29: N/A | BE29: N/A | BF29: N/A | BG29: N/A | BH29: N/A | BI29: N/A | BJ29: N/A | BK29: N/A | BL29: N/A | BM29: N/A | BN29: N/A | BO29: N/A | BP29: N/A | BQ29: N/A | BR29: N/A | BS29: N/A | BT29: N/A | BU29: N/A | BV29: N/A | BW29: N/A | BX29: N/A | BY29: N/A | BZ29: N/A | CA29: N/A | CB29: N/A | CC29: N/A | CD29: N/A | CE29: N/A | CF29: N/A | CG29: N/A | CH29: N/A | CI29: N/A
B30: No | C30: 51.02701021 | D30: 22.00717965 | E30: 19.30072441 | F30: 15.81312069 | G30: 10.76939182 | H30: 8.259890971 | I30: 9.336850223 | J30: 9.24487768 | K30: 7.841453996 | L30: 9.64236259 | M30: 75.55655022 | N30: 54.2824439 | O30: 43.13300083 | P30: 38.93451598 | Q30: 37.28061258 | R30: 98.83043036 | S30: 50.18700079 | T30: 5.782670121 | U30: 5.677260313 | V30: 38.34910511 | W30: 4.677926704 | X30: 30.74979922 | Y30: 5.337004802 | Z30: 3.969072115 | AA30: 9.67106856 | AB30: 25.41387218 | AC30: 26.15448688 | AD30: 12.63418516 | AE30: 29.42972719 | AF30: 31.09056786 | AG30: 14.27825909 | AH30: 31.92825532 | AI30: 34.26032343 | BB30: No | BC30: N/A | BD30: N/A | BE30: N/A | BF30: N/A | BG30: N/A | BH30: N/A | BI30: N/A | BJ30: N/A | BK30: N/A | BL30: N/A | BM30: N/A | BN30: N/A | BO30: N/A | BP30: N/A | BQ30: N/A | BR30: N/A | BS30: N/A | BT30: N/A | BU30: N/A | BV30: N/A | BW30: N/A | BX30: N/A | BY30: N/A | BZ30: N/A | CA30: N/A | CB30: N/A | CC30: N/A | CD30: N/A | CE30: N/A | CF30: N/A | CG30: N/A | CH30: N/A | CI30: N/A
A31: Piped water on premises | B31: Yes | C31: 45.4090603 | D31: 76.96105596 | E31: 79.71836333 | F31: 83.62078984 | G31: 89.15829947 | H31: 91.41144426 | I31: 90.40018024 | J31: 90.53836441 | K31: 92.06644753 | L31: 90.26921677 | M31: 19.62112077 | N31: 41.31454953 | O31: 54.22919749 | P31: 59.3104429 | Q31: 60.99641836 | R31: 0.9953285331 | S31: 47.92447715 | T31: 92.66045715 | U31: 92.01666318 | V31: 59.53041496 | W31: 94.72332995 | X31: 68.77627498 | Y31: 93.99324852 | Z31: 96.01455072 | AA31: 89.44187826 | AB31: 73.87957719 | AC31: 73.08784787 | AD31: 83.75604765 | AE31: 69.01781174 | AF31: 68.45396814 | AG31: 79.94750435 | AH31: 67.7925552 | AI31: 64.91856532 | BA31: Piped water on premises | BB31: Yes | BC31: N/A | BD31: N/A | BE31: N/A | BF31: N/A | BG31: N/A | BH31: N/A | BI31: N/A | BJ31: N/A | BK31: N/A | BL31: N/A | BM31: N/A | BN31: N/A | BO31: N/A | BP31: N/A | BQ31: N/A | BR31: N/A | BS31: N/A | BT31: N/A | BU31: N/A | BV31: N/A | BW31: N/A | BX31: N/A | BY31: N/A | BZ31: N/A | CA31: N/A | CB31: N/A | CC31: N/A | CD31: N/A | CE31: N/A | CF31: N/A | CG31: N/A | CH31: N/A | CI31: N/A
B32: No | C32: 54.5909397 | D32: 23.03894404 | E32: 20.28163667 | F32: 16.37921016 | G32: 10.84170053 | H32: 8.588555743 | I32: 9.599819755 | J32: 9.461635594 | K32: 7.933552468 | L32: 9.730783233 | M32: 80.37887923 | N32: 58.68545047 | O32: 45.77080251 | P32: 40.6895571 | Q32: 39.00358164 | R32: 99.00467147 | S32: 52.07552285 | T32: 7.339542845 | U32: 7.983336825 | V32: 40.46958504 | W32: 5.276670053 | X32: 31.22372502 | Y32: 6.006751485 | Z32: 3.985449278 | AA32: 10.55812174 | AB32: 26.12042281 | AC32: 26.91215213 | AD32: 16.24395235 | AE32: 30.98218826 | AF32: 31.54603186 | AG32: 20.05249565 | AH32: 32.2074448 | AI32: 35.08143468 | BB32: No | BC32: N/A | BD32: N/A | BE32: N/A | BF32: N/A | BG32: N/A | BH32: N/A | BI32: N/A | BJ32: N/A | BK32: N/A | BL32: N/A | BM32: N/A | BN32: N/A | BO32: N/A | BP32: N/A | BQ32: N/A | BR32: N/A | BS32: N/A | BT32: N/A | BU32: N/A | BV32: N/A | BW32: N/A | BX32: N/A | BY32: N/A | BZ32: N/A | CA32: N/A | CB32: N/A | CC32: N/A | CD32: N/A | CE32: N/A | CF32: N/A | CG32: N/A | CH32: N/A | CI32: N/A
A33: Piped water into dwelling | B33: Yes | C33: N/A | D33: N/A | E33: N/A | F33: N/A | G33: N/A | H33: N/A | I33: N/A | J33: N/A | K33: N/A | L33: N/A | M33: N/A | N33: N/A | O33: N/A | P33: N/A | Q33: N/A | R33: N/A | S33: N/A | T33: N/A | U33: N/A | V33: N/A | W33: N/A | X33: N/A | Y33: N/A | Z33: N/A | AA33: N/A | AB33: N/A | AC33: N/A | AD33: N/A | AE33: N/A | AF33: N/A | AG33: N/A | AH33: N/A | AI33: N/A | BA33: Piped water into dwelling | BB33: Yes | BC33: N/A | BD33: N/A | BE33: N/A | BF33: N/A | BG33: N/A | BH33: N/A | BI33: N/A | BJ33: N/A | BK33: N/A | BL33: N/A | BM33: N/A | BN33: N/A | BO33: N/A | BP33: N/A | BQ33: N/A | BR33: N/A | BS33: N/A | BT33: N/A | BU33: N/A | BV33: N/A | BW33: N/A | BX33: N/A | BY33: N/A | BZ33: N/A | CA33: N/A | CB33: N/A | CC33: N/A | CD33: N/A | CE33: N/A | CF33: N/A | CG33: N/A | CH33: N/A | CI33: N/A
B34: No | C34: N/A | D34: N/A | E34: N/A | F34: N/A | G34: N/A | H34: N/A | I34: N/A | J34: N/A | K34: N/A | L34: N/A | M34: N/A | N34: N/A | O34: N/A | P34: N/A | Q34: N/A | R34: N/A | S34: N/A | T34: N/A | U34: N/A | V34: N/A | W34: N/A | X34: N/A | Y34: N/A | Z34: N/A | AA34: N/A | AB34: N/A | AC34: N/A | AD34: N/A | AE34: N/A | AF34: N/A | AG34: N/A | AH34: N/A | AI34: N/A | BB34: No | BC34: N/A | BD34: N/A | BE34: N/A | BF34: N/A | BG34: N/A | BH34: N/A | BI34: N/A | BJ34: N/A | BK34: N/A | BL34: N/A | BM34: N/A | BN34: N/A | BO34: N/A | BP34: N/A | BQ34: N/A | BR34: N/A | BS34: N/A | BT34: N/A | BU34: N/A | BV34: N/A | BW34: N/A | BX34: N/A | BY34: N/A | BZ34: N/A | CA34: N/A | CB34: N/A | CC34: N/A | CD34: N/A | CE34: N/A | CF34: N/A | CG34: N/A | CH34: N/A | CI34: N/A
A35: Water source on premises | B35: Yes | C35: 51.32173101 | D35: 80.2003888 | E35: 81.88150814 | F35: 85.14943867 | G35: 89.39104496 | H35: 93.08439742 | I35: 91.5311163 | J35: 91.05623998 | K35: 92.37176845 | L35: 90.48429721 | M35: 25.12447746 | N35: 50.00386702 | O35: 60.72392415 | P35: 63.8669266 | Q35: 64.9541268 | R35: 3.038562935 | S35: 49.16318517 | T35: 92.66045715 | U35: 95.38910787 | V35: 59.95902261 | W35: 94.87915386 | X35: 75.03808483 | Y35: 97.64251883 | Z35: 97.33327967 | AA35: 90.20366754 | AB35: 74.9472537 | AC35: 78.27096695 | AD35: 85.31825782 | AE35: 69.69855759 | AF35: 78.99664097 | AG35: 88.88459289 | AH35: 68.24237407 | AI35: 66.96010664 | BA35: Water source on premises | BB35: Yes | BC35: N/A | BD35: N/A | BE35: N/A | BF35: N/A | BG35: N/A | BH35: N/A | BI35: N/A | BJ35: N/A | BK35: N/A | BL35: N/A | BM35: N/A | BN35: N/A | BO35: N/A | BP35: N/A | BQ35: N/A | BR35: N/A | BS35: N/A | BT35: N/A | BU35: N/A | BV35: N/A | BW35: N/A | BX35: N/A | BY35: N/A | BZ35: N/A | CA35: N/A | CB35: N/A | CC35: N/A | CD35: N/A | CE35: N/A | CF35: N/A | CG35: N/A | CH35: N/A | CI35: N/A
B36: No | C36: 48.67826899 | D36: 19.7996112 | E36: 18.11849186 | F36: 14.85056133 | G36: 10.60895504 | H36: 6.915602583 | I36: 8.468883703 | J36: 8.943760019 | K36: 7.628231551 | L36: 9.51570279 | M36: 74.87552254 | N36: 49.99613298 | O36: 39.27607585 | P36: 36.1330734 | Q36: 35.0458732 | R36: 96.96143706 | S36: 50.83681483 | T36: 7.339542845 | U36: 4.610892133 | V36: 40.04097739 | W36: 5.120846137 | X36: 24.96191517 | Y36: 2.357481167 | Z36: 2.666720327 | AA36: 9.79633246 | AB36: 25.0527463 | AC36: 21.72903305 | AD36: 14.68174218 | AE36: 30.30144241 | AF36: 21.00335903 | AG36: 11.11540711 | AH36: 31.75762593 | AI36: 33.03989336 | BB36: No | BC36: N/A | BD36: N/A | BE36: N/A | BF36: N/A | BG36: N/A | BH36: N/A | BI36: N/A | BJ36: N/A | BK36: N/A | BL36: N/A | BM36: N/A | BN36: N/A | BO36: N/A | BP36: N/A | BQ36: N/A | BR36: N/A | BS36: N/A | BT36: N/A | BU36: N/A | BV36: N/A | BW36: N/A | BX36: N/A | BY36: N/A | BZ36: N/A | CA36: N/A | CB36: N/A | CC36: N/A | CD36: N/A | CE36: N/A | CF36: N/A | CG36: N/A | CH36: N/A | CI36: N/A
A37: Improved Water source on premises | B37: Yes | C37: 79.47734616 | D37: 94.98723574 | E37: 96.68630153 | F37: 98.28855691 | G37: 99.69239459 | H37: 98.66415958 | I37: 99.52145821 | J37: 99.51079249 | K37: 99.79805039 | L37: 99.83890892 | M37: 54.37526755 | N37: 77.47589831 | O37: 85.72852844 | P37: 89.3478827 | Q37: 92.9363992 | R37: 62.95131208 | S37: 88.09981601 | T37: 98.34757287 | U37: 96.42025025 | V37: 91.11863456 | W37: 99.2617872 | X37: 93.6110777 | Y37: 97.72746801 | Z37: 99.0376834 | AA37: 96.94672006 | AB37: 97.16244467 | AC37: 88.99303152 | AD37: 95.0354075 | AE37: 90.3500859 | AF37: 94.94437732 | AG37: 89.89415104 | AH37: 95.96624686 | AI37: 81.77353873 | BA37: Improved water source on premises | BB37: Yes | BC37: N/A | BD37: N/A | BE37: N/A | BF37: N/A | BG37: N/A | BH37: N/A | BI37: N/A | BJ37: N/A | BK37: N/A | BL37: N/A | BM37: N/A | BN37: N/A | BO37: N/A | BP37: N/A | BQ37: N/A | BR37: N/A | BS37: N/A | BT37: N/A | BU37: N/A | BV37: N/A | BW37: N/A | BX37: N/A | BY37: N/A | BZ37: N/A | CA37: N/A | CB37: N/A | CC37: N/A | CD37: N/A | CE37: N/A | CF37: N/A | CG37: N/A | CH37: N/A | CI37: N/A
B38: No | C38: 20.52265384 | D38: 5.012764261 | E38: 3.313698473 | F38: 1.711443093 | G38: 0.3076054142 | H38: 1.335840417 | I38: 0.4785417918 | J38: 0.4892075102 | K38: 0.2019496126 | L38: 0.1610910823 | M38: 45.62473245 | N38: 22.52410169 | O38: 14.27147156 | P38: 10.6521173 | Q38: 7.063600799 | R38: 37.04868792 | S38: 11.90018399 | T38: 1.652427135 | U38: 3.57974975 | V38: 8.881365439 | W38: 0.738212802 | X38: 6.388922302 | Y38: 2.272531987 | Z38: 0.9623165954 | AA38: 3.053279936 | AB38: 2.837555329 | AC38: 11.00696848 | AD38: 4.964592504 | AE38: 9.649914098 | AF38: 5.055622676 | AG38: 10.10584896 | AH38: 4.033753145 | AI38: 18.22646127 | BB38: No | BC38: N/A | BD38: N/A | BE38: N/A | BF38: N/A | BG38: N/A | BH38: N/A | BI38: N/A | BJ38: N/A | BK38: N/A | BL38: N/A | BM38: N/A | BN38: N/A | BO38: N/A | BP38: N/A | BQ38: N/A | BR38: N/A | BS38: N/A | BT38: N/A | BU38: N/A | BV38: N/A | BW38: N/A | BX38: N/A | BY38: N/A | BZ38: N/A | CA38: N/A | CB38: N/A | CC38: N/A | CD38: N/A | CE38: N/A | CF38: N/A | CG38: N/A | CH38: N/A | CI38: N/A
A39: Piped water on premises available when needed | B39: Yes | C39: N/A | D39: N/A | E39: N/A | F39: N/A | G39: N/A | H39: N/A | I39: N/A | J39: N/A | K39: N/A | L39: N/A | M39: N/A | N39: N/A | O39: N/A | P39: N/A | Q39: N/A | R39: N/A | S39: N/A | T39: N/A | U39: N/A | V39: N/A | W39: N/A | X39: N/A | Y39: N/A | Z39: N/A | AA39: N/A | AB39: N/A | AC39: N/A | AD39: N/A | AE39: N/A | AF39: N/A | AG39: N/A | AH39: N/A | AI39: N/A | BA39: Piped water on premises available when needed | BB39: Yes | BC39: N/A | BD39: N/A | BE39: N/A | BF39: N/A | BG39: N/A | BH39: N/A | BI39: N/A | BJ39: N/A | BK39: N/A | BL39: N/A | BM39: N/A | BN39: N/A | BO39: N/A | BP39: N/A | BQ39: N/A | BR39: N/A | BS39: N/A | BT39: N/A | BU39: N/A | BV39: N/A | BW39: N/A | BX39: N/A | BY39: N/A | BZ39: N/A | CA39: N/A | CB39: N/A | CC39: N/A | CD39: N/A | CE39: N/A | CF39: N/A | CG39: N/A | CH39: N/A | CI39: N/A
B40: No | C40: N/A | D40: N/A | E40: N/A | F40: N/A | G40: N/A | H40: N/A | I40: N/A | J40: N/A | K40: N/A | L40: N/A | M40: N/A | N40: N/A | O40: N/A | P40: N/A | Q40: N/A | R40: N/A | S40: N/A | T40: N/A | U40: N/A | V40: N/A | W40: N/A | X40: N/A | Y40: N/A | Z40: N/A | AA40: N/A | AB40: N/A | AC40: N/A | AD40: N/A | AE40: N/A | AF40: N/A | AG40: N/A | AH40: N/A | AI40: N/A | BB40: No | BC40: N/A | BD40: N/A | BE40: N/A | BF40: N/A | BG40: N/A | BH40: N/A | BI40: N/A | BJ40: N/A | BK40: N/A | BL40: N/A | BM40: N/A | BN40: N/A | BO40: N/A | BP40: N/A | BQ40: N/A | BR40: N/A | BS40: N/A | BT40: N/A | BU40: N/A | BV40: N/A | BW40: N/A | BX40: N/A | BY40: N/A | BZ40: N/A | CA40: N/A | CB40: N/A | CC40: N/A | CD40: N/A | CE40: N/A | CF40: N/A | CG40: N/A | CH40: N/A | CI40: N/A
A41: Water point at more than 30 minutes | B41: Yes | C41: 6.494670368 | D41: 2.65108842 | E41: 2.073254679 | F41: 1.203302893 | G41: 0.7150216672 | H41: 0.1525288419 | I41: 0.1652221911 | J41: 0.02319518314 | K41: 0 | L41: 0.08842064292 | M41: 10.38168349 | N41: 6.966352728 | O41: 6.42070329 | P41: 5.450469933 | Q41: 6.114071382 | R41: 0.6239031134 | S41: 5.538817822 | T41: 2.135139737 | U41: 0.182288953 | V41: 3.203278192 | W41: 1.472703258 | X41: 2.584301275 | Y41: 0.8687028331 | Z41: 0.5271423903 | AA41: 2.948462518 | AB41: 1.825013516 | AC41: 3.530031261 | AD41: 3.306425408 | AE41: 2.902300955 | AF41: 12.90321768 | AG41: 0.5165081543 | AH41: 0.5384465717 | AI41: 5.325759965 | BA41: Water point at more than 30 minutes | BB41: Yes | BC41: N/A | BD41: N/A | BE41: N/A | BF41: N/A | BG41: N/A | BH41: N/A | BI41: N/A | BJ41: N/A | BK41: N/A | BL41: N/A | BM41: N/A | BN41: N/A | BO41: N/A | BP41: N/A | BQ41: N/A | BR41: N/A | BS41: N/A | BT41: N/A | BU41: N/A | BV41: N/A | BW41: N/A | BX41: N/A | BY41: N/A | BZ41: N/A | CA41: N/A | CB41: N/A | CC41: N/A | CD41: N/A | CE41: N/A | CF41: N/A | CG41: N/A | CH41: N/A | CI41: N/A
B42: No | C42: 93.50532963 | D42: 97.34891158 | E42: 97.92674532 | F42: 98.79669711 | G42: 99.28497833 | H42: 99.84747116 | I42: 99.83477781 | J42: 99.97680482 | K42: 100 | L42: 99.91157936 | M42: 89.61831651 | N42: 93.03364727 | O42: 93.57929671 | P42: 94.54953007 | Q42: 93.88592862 | R42: 99.37609689 | S42: 94.46118218 | T42: 97.86486026 | U42: 99.81771105 | V42: 96.79672181 | W42: 98.52729674 | X42: 97.41569873 | Y42: 99.13129717 | Z42: 99.47285761 | AA42: 97.05153748 | AB42: 98.17498648 | AC42: 96.46996874 | AD42: 96.69357459 | AE42: 97.09769905 | AF42: 87.09678232 | AG42: 99.48349185 | AH42: 99.46155343 | AI42: 94.67424004 | BB42: No | BC42: N/A | BD42: N/A | BE42: N/A | BF42: N/A | BG42: N/A | BH42: N/A | BI42: N/A | BJ42: N/A | BK42: N/A | BL42: N/A | BM42: N/A | BN42: N/A | BO42: N/A | BP42: N/A | BQ42: N/A | BR42: N/A | BS42: N/A | BT42: N/A | BU42: N/A | BV42: N/A | BW42: N/A | BX42: N/A | BY42: N/A | BZ42: N/A | CA42: N/A | CB42: N/A | CC42: N/A | CD42: N/A | CE42: N/A | CF42: N/A | CG42: N/A | CH42: N/A | CI42: N/A
A43: Water source available when needed | B43: Yes | C43: N/A | D43: N/A | E43: N/A | F43: N/A | G43: N/A | H43: N/A | I43: N/A | J43: N/A | K43: N/A | L43: N/A | M43: N/A | N43: N/A | O43: N/A | P43: N/A | Q43: N/A | R43: N/A | S43: N/A | T43: N/A | U43: N/A | V43: N/A | W43: N/A | X43: N/A | Y43: N/A | Z43: N/A | AA43: N/A | AB43: N/A | AC43: N/A | AD43: N/A | AE43: N/A | AF43: N/A | AG43: N/A | AH43: N/A | AI43: N/A | BA43: Water source available when needed | BB43: Yes | BC43: N/A | BD43: N/A | BE43: N/A | BF43: N/A | BG43: N/A | BH43: N/A | BI43: N/A | BJ43: N/A | BK43: N/A | BL43: N/A | BM43: N/A | BN43: N/A | BO43: N/A | BP43: N/A | BQ43: N/A | BR43: N/A | BS43: N/A | BT43: N/A | BU43: N/A | BV43: N/A | BW43: N/A | BX43: N/A | BY43: N/A | BZ43: N/A | CA43: N/A | CB43: N/A | CC43: N/A | CD43: N/A | CE43: N/A | CF43: N/A | CG43: N/A | CH43: N/A | CI43: N/A
B44: No | C44: N/A | D44: N/A | E44: N/A | F44: N/A | G44: N/A | H44: N/A | I44: N/A | J44: N/A | K44: N/A | L44: N/A | M44: N/A | N44: N/A | O44: N/A | P44: N/A | Q44: N/A | R44: N/A | S44: N/A | T44: N/A | U44: N/A | V44: N/A | W44: N/A | X44: N/A | Y44: N/A | Z44: N/A | AA44: N/A | AB44: N/A | AC44: N/A | AD44: N/A | AE44: N/A | AF44: N/A | AG44: N/A | AH44: N/A | AI44: N/A | BB44: No | BC44: N/A | BD44: N/A | BE44: N/A | BF44: N/A | BG44: N/A | BH44: N/A | BI44: N/A | BJ44: N/A | BK44: N/A | BL44: N/A | BM44: N/A | BN44: N/A | BO44: N/A | BP44: N/A | BQ44: N/A | BR44: N/A | BS44: N/A | BT44: N/A | BU44: N/A | BV44: N/A | BW44: N/A | BX44: N/A | BY44: N/A | BZ44: N/A | CA44: N/A | CB44: N/A | CC44: N/A | CD44: N/A | CE44: N/A | CF44: N/A | CG44: N/A | CH44: N/A | CI44: N/A
A45: Improved water source available when needed | B45: Yes | C45: N/A | D45: N/A | E45: N/A | F45: N/A | G45: N/A | H45: N/A | I45: N/A | J45: N/A | K45: N/A | L45: N/A | M45: N/A | N45: N/A | O45: N/A | P45: N/A | Q45: N/A | R45: N/A | S45: N/A | T45: N/A | U45: N/A | V45: N/A | W45: N/A | X45: N/A | Y45: N/A | Z45: N/A | AA45: N/A | AB45: N/A | AC45: N/A | AD45: N/A | AE45: N/A | AF45: N/A | AG45: N/A | AH45: N/A | AI45: N/A | BA45: Improved water source available when needed | BB45: Yes | BC45: N/A | BD45: N/A | BE45: N/A | BF45: N/A | BG45: N/A | BH45: N/A | BI45: N/A | BJ45: N/A | BK45: N/A | BL45: N/A | BM45: N/A | BN45: N/A | BO45: N/A | BP45: N/A | BQ45: N/A | BR45: N/A | BS45: N/A | BT45: N/A | BU45: N/A | BV45: N/A | BW45: N/A | BX45: N/A | BY45: N/A | BZ45: N/A | CA45: N/A | CB45: N/A | CC45: N/A | CD45: N/A | CE45: N/A | CF45: N/A | CG45: N/A | CH45: N/A | CI45: N/A
B46: No | C46: N/A | D46: N/A | E46: N/A | F46: N/A | G46: N/A | H46: N/A | I46: N/A | J46: N/A | K46: N/A | L46: N/A | M46: N/A | N46: N/A | O46: N/A | P46: N/A | Q46: N/A | R46: N/A | S46: N/A | T46: N/A | U46: N/A | V46: N/A | W46: N/A | X46: N/A | Y46: N/A | Z46: N/A | AA46: N/A | AB46: N/A | AC46: N/A | AD46: N/A | AE46: N/A | AF46: N/A | AG46: N/A | AH46: N/A | AI46: N/A | BB46: No | BC46: N/A | BD46: N/A | BE46: N/A | BF46: N/A | BG46: N/A | BH46: N/A | BI46: N/A | BJ46: N/A | BK46: N/A | BL46: N/A | BM46: N/A | BN46: N/A | BO46: N/A | BP46: N/A | BQ46: N/A | BR46: N/A | BS46: N/A | BT46: N/A | BU46: N/A | BV46: N/A | BW46: N/A | BX46: N/A | BY46: N/A | BZ46: N/A | CA46: N/A | CB46: N/A | CC46: N/A | CD46: N/A | CE46: N/A | CF46: N/A | CG46: N/A | CH46: N/A | CI46: N/A
A47: Microbiological quality at point of collection | B47: Not contaminated (No E. coli in 100 mL) | C47: N/A | D47: N/A | E47: N/A | F47: N/A | G47: N/A | H47: N/A | I47: N/A | J47: N/A | K47: N/A | L47: N/A | M47: N/A | N47: N/A | O47: N/A | P47: N/A | Q47: N/A | R47: N/A | S47: N/A | T47: N/A | U47: N/A | V47: N/A | W47: N/A | X47: N/A | Y47: N/A | Z47: N/A | AA47: N/A | AB47: N/A | AC47: N/A | AD47: N/A | AE47: N/A | AF47: N/A | AG47: N/A | AH47: N/A | AI47: N/A | BA47: Microbiological quality at point of collection | BB47: Not contaminated (No E. coli in 100 mL) | BC47: N/A | BD47: N/A | BE47: N/A | BF47: N/A | BG47: N/A | BH47: N/A | BI47: N/A | BJ47: N/A | BK47: N/A | BL47: N/A | BM47: N/A | BN47: N/A | BO47: N/A | BP47: N/A | BQ47: N/A | BR47: N/A | BS47: N/A | BT47: N/A | BU47: N/A | BV47: N/A | BW47: N/A | BX47: N/A | BY47: N/A | BZ47: N/A | CA47: N/A | CB47: N/A | CC47: N/A | CD47: N/A | CE47: N/A | CF47: N/A | CG47: N/A | CH47: N/A | CI47: N/A
B48: Contaminated (E. coli detected in 100 mL) | C48: N/A | D48: N/A | E48: N/A | F48: N/A | G48: N/A | H48: N/A | I48: N/A | J48: N/A | K48: N/A | L48: N/A | M48: N/A | N48: N/A | O48: N/A | P48: N/A | Q48: N/A | R48: N/A | S48: N/A | T48: N/A | U48: N/A | V48: N/A | W48: N/A | X48: N/A | Y48: N/A | Z48: N/A | AA48: N/A | AB48: N/A | AC48: N/A | AD48: N/A | AE48: N/A | AF48: N/A | AG48: N/A | AH48: N/A | AI48: N/A | BB48: Contaminated (E. coli detected in 100 mL) | BC48: N/A | BD48: N/A | BE48: N/A | BF48: N/A | BG48: N/A | BH48: N/A | BI48: N/A | BJ48: N/A | BK48: N/A | BL48: N/A | BM48: N/A | BN48: N/A | BO48: N/A | BP48: N/A | BQ48: N/A | BR48: N/A | BS48: N/A | BT48: N/A | BU48: N/A | BV48: N/A | BW48: N/A | BX48: N/A | BY48: N/A | BZ48: N/A | CA48: N/A | CB48: N/A | CC48: N/A | CD48: N/A | CE48: N/A | CF48: N/A | CG48: N/A | CH48: N/A | CI48: N/A
B49: Highly contaminated (>100 CFU/100 mL) | C49: N/A | D49: N/A | E49: N/A | F49: N/A | G49: N/A | H49: N/A | I49: N/A | J49: N/A | K49: N/A | L49: N/A | M49: N/A | N49: N/A | O49: N/A | P49: N/A | Q49: N/A | R49: N/A | S49: N/A | T49: N/A | U49: N/A | V49: N/A | W49: N/A | X49: N/A | Y49: N/A | Z49: N/A | AA49: N/A | AB49: N/A | AC49: N/A | AD49: N/A | AE49: N/A | AF49: N/A | AG49: N/A | AH49: N/A | AI49: N/A | BB49: Highly contaminated (>100 CFU/100 mL) | BC49: N/A | BD49: N/A | BE49: N/A | BF49: N/A | BG49: N/A | BH49: N/A | BI49: N/A | BJ49: N/A | BK49: N/A | BL49: N/A | BM49: N/A | BN49: N/A | BO49: N/A | BP49: N/A | BQ49: N/A | BR49: N/A | BS49: N/A | BT49: N/A | BU49: N/A | BV49: N/A | BW49: N/A | BX49: N/A | BY49: N/A | BZ49: N/A | CA49: N/A | CB49: N/A | CC49: N/A | CD49: N/A | CE49: N/A | CF49: N/A | CG49: N/A | CH49: N/A | CI49: N/A
A50: Microbiological quality of improved water sources at point of collection | B50: Not contaminated (No E. coli in 100 mL) | C50: N/A | D50: N/A | E50: N/A | F50: N/A | G50: N/A | H50: N/A | I50: N/A | J50: N/A | K50: N/A | L50: N/A | M50: N/A | N50: N/A | O50: N/A | P50: N/A | Q50: N/A | R50: N/A | S50: N/A | T50: N/A | U50: N/A | V50: N/A | W50: N/A | X50: N/A | Y50: N/A | Z50: N/A | AA50: N/A | AB50: N/A | AC50: N/A | AD50: N/A | AE50: N/A | AF50: N/A | AG50: N/A | AH50: N/A | AI50: N/A | BA50: Microbiological quality of improved water sources at point of collection | BB50: Not contaminated (No E. coli in 100 mL) | BC50: N/A | BD50: N/A | BE50: N/A | BF50: N/A | BG50: N/A | BH50: N/A | BI50: N/A | BJ50: N/A | BK50: N/A | BL50: N/A | BM50: N/A | BN50: N/A | BO50: N/A | BP50: N/A | BQ50: N/A | BR50: N/A | BS50: N/A | BT50: N/A | BU50: N/A | BV50: N/A | BW50: N/A | BX50: N/A | BY50: N/A | BZ50: N/A | CA50: N/A | CB50: N/A | CC50: N/A | CD50: N/A | CE50: N/A | CF50: N/A | CG50: N/A | CH50: N/A | CI50: N/A
B51: Contaminated (E. coli detected in 100 mL) | C51: N/A | D51: N/A | E51: N/A | F51: N/A | G51: N/A | H51: N/A | I51: N/A | J51: N/A | K51: N/A | L51: N/A | M51: N/A | N51: N/A | O51: N/A | P51: N/A | Q51: N/A | R51: N/A | S51: N/A | T51: N/A | U51: N/A | V51: N/A | W51: N/A | X51: N/A | Y51: N/A | Z51: N/A | AA51: N/A | AB51: N/A | AC51: N/A | AD51: N/A | AE51: N/A | AF51: N/A | AG51: N/A | AH51: N/A | AI51: N/A | BB51: Contaminated (E. coli detected in 100 mL) | BC51: N/A | BD51: N/A | BE51: N/A | BF51: N/A | BG51: N/A | BH51: N/A | BI51: N/A | BJ51: N/A | BK51: N/A | BL51: N/A | BM51: N/A | BN51: N/A | BO51: N/A | BP51: N/A | BQ51: N/A | BR51: N/A | BS51: N/A | BT51: N/A | BU51: N/A | BV51: N/A | BW51: N/A | BX51: N/A | BY51: N/A | BZ51: N/A | CA51: N/A | CB51: N/A | CC51: N/A | CD51: N/A | CE51: N/A | CF51: N/A | CG51: N/A | CH51: N/A | CI51: N/A
B52: Highly contaminated (>100 CFU/100 mL) | C52: N/A | D52: N/A | E52: N/A | F52: N/A | G52: N/A | H52: N/A | I52: N/A | J52: N/A | K52: N/A | L52: N/A | M52: N/A | N52: N/A | O52: N/A | P52: N/A | Q52: N/A | R52: N/A | S52: N/A | T52: N/A | U52: N/A | V52: N/A | W52: N/A | X52: N/A | Y52: N/A | Z52: N/A | AA52: N/A | AB52: N/A | AC52: N/A | AD52: N/A | AE52: N/A | AF52: N/A | AG52: N/A | AH52: N/A | AI52: N/A | BB52: Highly contaminated (>100 CFU/100 mL) | BC52: N/A | BD52: N/A | BE52: N/A | BF52: N/A | BG52: N/A | BH52: N/A | BI52: N/A | BJ52: N/A | BK52: N/A | BL52: N/A | BM52: N/A | BN52: N/A | BO52: N/A | BP52: N/A | BQ52: N/A | BR52: N/A | BS52: N/A | BT52: N/A | BU52: N/A | BV52: N/A | BW52: N/A | BX52: N/A | BY52: N/A | BZ52: N/A | CA52: N/A | CB52: N/A | CC52: N/A | CD52: N/A | CE52: N/A | CF52: N/A | CG52: N/A | CH52: N/A | CI52: N/A
A53: Microbiological quality of piped on premises at point of collection | B53: Not contaminated (No E. coli in 100 mL) | C53: N/A | D53: N/A | E53: N/A | F53: N/A | G53: N/A | H53: N/A | I53: N/A | J53: N/A | K53: N/A | L53: N/A | M53: N/A | N53: N/A | O53: N/A | P53: N/A | Q53: N/A | R53: N/A | S53: N/A | T53: N/A | U53: N/A | V53: N/A | W53: N/A | X53: N/A | Y53: N/A | Z53: N/A | AA53: N/A | AB53: N/A | AC53: N/A | AD53: N/A | AE53: N/A | AF53: N/A | AG53: N/A | AH53: N/A | AI53: N/A | BA53: Microbiological quality of piped on premises at point of collection | BB53: Not contaminated (No E. coli in 100 mL) | BC53: N/A | BD53: N/A | BE53: N/A | BF53: N/A | BG53: N/A | BH53: N/A | BI53: N/A | BJ53: N/A | BK53: N/A | BL53: N/A | BM53: N/A | BN53: N/A | BO53: N/A | BP53: N/A | BQ53: N/A | BR53: N/A | BS53: N/A | BT53: N/A | BU53: N/A | BV53: N/A | BW53: N/A | BX53: N/A | BY53: N/A | BZ53: N/A | CA53: N/A | CB53: N/A | CC53: N/A | CD53: N/A | CE53: N/A | CF53: N/A | CG53: N/A | CH53: N/A | CI53: N/A
B54: Contaminated (E. coli detected in 100 mL) | C54: N/A | D54: N/A | E54: N/A | F54: N/A | G54: N/A | H54: N/A | I54: N/A | J54: N/A | K54: N/A | L54: N/A | M54: N/A | N54: N/A | O54: N/A | P54: N/A | Q54: N/A | R54: N/A | S54: N/A | T54: N/A | U54: N/A | V54: N/A | W54: N/A | X54: N/A | Y54: N/A | Z54: N/A | AA54: N/A | AB54: N/A | AC54: N/A | AD54: N/A | AE54: N/A | AF54: N/A | AG54: N/A | AH54: N/A | AI54: N/A | BB54: Contaminated (E. coli detected in 100 mL) | BC54: N/A | BD54: N/A | BE54: N/A | BF54: N/A | BG54: N/A | BH54: N/A | BI54: N/A | BJ54: N/A | BK54: N/A | BL54: N/A | BM54: N/A | BN54: N/A | BO54: N/A | BP54: N/A | BQ54: N/A | BR54: N/A | BS54: N/A | BT54: N/A | BU54: N/A | BV54: N/A | BW54: N/A | BX54: N/A | BY54: N/A | BZ54: N/A | CA54: N/A | CB54: N/A | CC54: N/A | CD54: N/A | CE54: N/A | CF54: N/A | CG54: N/A | CH54: N/A | CI54: N/A
B55: Highly contaminated (>100 CFU/100 mL) | C55: N/A | D55: N/A | E55: N/A | F55: N/A | G55: N/A | H55: N/A | I55: N/A | J55: N/A | K55: N/A | L55: N/A | M55: N/A | N55: N/A | O55: N/A | P55: N/A | Q55: N/A | R55: N/A | S55: N/A | T55: N/A | U55: N/A | V55: N/A | W55: N/A | X55: N/A | Y55: N/A | Z55: N/A | AA55: N/A | AB55: N/A | AC55: N/A | AD55: N/A | AE55: N/A | AF55: N/A | AG55: N/A | AH55: N/A | AI55: N/A | BB55: Highly contaminated (>100 CFU/100 mL) | BC55: N/A | BD55: N/A | BE55: N/A | BF55: N/A | BG55: N/A | BH55: N/A | BI55: N/A | BJ55: N/A | BK55: N/A | BL55: N/A | BM55: N/A | BN55: N/A | BO55: N/A | BP55: N/A | BQ55: N/A | BR55: N/A | BS55: N/A | BT55: N/A | BU55: N/A | BV55: N/A | BW55: N/A | BX55: N/A | BY55: N/A | BZ55: N/A | CA55: N/A | CB55: N/A | CC55: N/A | CD55: N/A | CE55: N/A | CF55: N/A | CG55: N/A | CH55: N/A | CI55: N/A
C56: NATIONAL wealth index quintile | H56: URBAN wealth index quintile | M56: RURAL wealth index quintile | R56: SUB-REGIONS: | BA56: Raw numbers of respondents: | BB56: Use of drinking water sources | BC56: NATIONAL wealth index quintile | BH56: URBAN wealth index quintile | BM56: RURAL wealth index quintile | BR56: SUB-REGIONS:
A57: Percentage based on weighted population | C57: Poorest | D57: Poor | E57: Middle | F57: Rich | G57: Richest | H57: Poorest | I57: Poor | J57: Middle | K57: Rich | L57: Richest | M57: Poorest | N57: Poor | O57: Middle | P57: Rich | Q57: Richest | R57: Albasrah | S57: Almuthana | T57: Anbar | U57: Arbil | V57: Babil | W57: Baghdad | X57: Diala | Y57: Duhuk | Z57: Kakuk | AA57: Karbala | AB57: Misan | AC57: Nainwa | AD57: Najaf | AE57: Qadisya | AF57: Salahaladin | AG57: Sulimania | AH57: Thiqar | AI57: Wasit | BA57: Water data, raw numbers (weighted) | BC57: Poorest | BD57: Poor | BE57: Middle | BF57: Rich | BG57: Richest | BH57: Poorest | BI57: Poor | BJ57: Middle | BK57: Rich | BL57: Richest | BM57: Poorest | BN57: Poor | BO57: Middle | BP57: Rich | BQ57: Richest | BR57: Albasrah | BS57: Almuthana | BT57: Anbar | BU57: Arbil | BV57: Babil | BW57: Baghdad | BX57: Diala | BY57: Duhuk | BZ57: Kakuk | CA57: Karbala | CB57: Misan | CC57: Nainwa | CD57: Najaf | CE57: Qadisya | CF57: Salahaladin | CG57: Sulimania | CH57: Thiqar | CI57: Wasit
A58: Main source of drinking water | B58: Piped into dwelling | C58: 26.01513311 | D58: 62.81649325 | E58: 71.74217561 | F58: 79.9782325 | G58: 85.53125136 | H58: 68.90374147 | I58: 82.96738145 | J58: 87.35785661 | K58: 90.17484812 | L58: 86.55829464 | M58: 8.75934046 | N58: 22.33403973 | O58: 38.207528 | P58: 47.71814947 | Q58: 52.1074741 | R58: 0.9953285331 | S58: 43.1600899 | T58: 78.67004523 | U58: 71.60703687 | V58: 53.0368284 | W58: 90.20134239 | X58: 59.28650009 | Y58: 64.47416209 | Z58: 75.02632013 | AA58: 80.4459244 | AB58: 56.67778392 | AC58: 63.72243401 | AD58: 80.17437443 | AE58: 60.60314227 | AF58: 63.5917872 | AG58: 48.76009896 | AH58: 61.02599904 | AI58: 62.02423553
B59: Piped into yard or plot | C59: 19.32826131 | D59: 13.89680216 | E59: 7.43463019 | F59: 3.039983589 | G59: 1.219368502 | H59: 22.21649184 | I59: 6.763845166 | J59: 2.657620187 | K59: 0.7963454492 | L59: 0.7782046771 | M59: 10.86178031 | N59: 18.9805098 | O59: 15.88185193 | P59: 11.44456875 | Q59: 8.184902537 | R59: 0 | S59: 2.145662528 | T59: 13.03207441 | U59: 20.4096263 | V59: 6.443693177 | W59: 3.103403607 | X59: 9.329795272 | Y59: 28.94238004 | Z59: 20.98823059 | AA59: 7.891583561 | AB59: 10.35018271 | AC59: 9.053510443 | AD59: 3.505837773 | AE59: 8.414669472 | AF59: 4.718282023 | AG59: 30.89846322 | AH59: 6.340536743 | AI59: 2.844588965
B60: Public tap/standpipe | C60: 3.563929487 | D60: 1.031764393 | E60: 0.9809122581 | F60: 0.5660894701 | G60: 0.05624011152 | H60: 0.3286647717 | I60: 0.2629695325 | J60: 0.2167579137 | K60: 0.06680761825 | L60: 0.08842064292 | M60: 4.822329004 | N60: 4.403006569 | O60: 2.637801684 | P60: 1.755041126 | Q60: 1.722969058 | R60: 0.1742411022 | S60: 1.88852206 | T60: 1.556872725 | U60: 2.306076511 | V60: 2.12047993 | W60: 0.598743349 | X60: 0.4739258027 | Y60: 0.6697466824 | Z60: 0.01637716297 | AA60: 0.8870531802 | AB60: 0.7065506349 | AC60: 0.7576652463 | AD60: 3.609767189 | AE60: 1.552461075 | AF60: 0.4554639985 | AG60: 5.774236563 | AH60: 0.2171473783 | AI60: 0.821111252
B61: Tubewell/borehole | C61: 1.064495098 | D61: 0.9554678155 | E61: 0.4559189687 | F61: 0.05316666638 | G61: 0.07264235313 | H61: 0.7082904495 | I61: 0.2515278646 | J61: 0.2194494555 | K61: 0.06038373636 | L61: 0.05389089811 | M61: 1.101142529 | N61: 1.232160962 | O61: 1.77147815 | P61: 0.6979241727 | Q61: 0.08292288434 | R61: 0.1558145804 | S61: 0 | T61: 0 | U61: 1.329050244 | V61: 0.1353497827 | W61: 0.04128196879 | X61: 0 | Y61: 3.116119385 | Z61: 1.302351788 | AA61: 0 | AB61: 0 | AC61: 0 | AD61: 0 | AE61: 0 | AF61: 0 | AG61: 2.492695966 | AH61: 1.392296505 | AI61: 2.330019985
B62: Protected well | C62: 5.339129294 | D62: 1.380166497 | E62: 1.408975146 | F62: 0.6464499696 | G62: 0.1012603822 | H62: 1.250652512 | I62: 0.5053841337 | J62: 0.4094989871 | K62: 0.0845372309 | L62: 0 | M62: 6.456716127 | N62: 6.154785577 | O62: 3.030216876 | P62: 3.008908492 | Q62: 1.793805753 | R62: 0 | S62: 1.462081595 | T62: 0 | U62: 0.5891897745 | V62: 2.143038227 | W62: 0.2214176281 | X62: 2.926799034 | Y62: 0.5463829992 | Z62: 0.1705460674 | AA62: 0 | AB62: 0.3768270053 | AC62: 6.0957613 | AD62: 0.6218506501 | AE62: 2.771370085 | AF62: 2.364924703 | AG62: 6.55325221 | AH62: 0.2998792472 | AI62: 2.840405315
B63: Unprotected well | C63: 1.473983381 | D63: 0.4163406262 | E63: 0.2533206876 | F63: 0.193135718 | G63: 0 | H63: 0.09086326573 | I63: 0.03619469735 | J63: 0 | K63: 0 | L63: 0 | M63: 2.626300209 | N63: 1.262646079 | O63: 1.144058441 | P63: 0.632200955 | Q63: 0.5310271478 | R63: 0 | S63: 0.1624535106 | T63: 0 | U63: 0.6193464782 | V63: 1.195589748 | W63: 0 | X63: 0 | Y63: 0 | Z63: 0 | AA63: 0.4401449175 | AB63: 0 | AC63: 1.635868145 | AD63: 0 | AE63: 4.189787845 | AF63: 0 | AG63: 0.3015909474 | AH63: 0 | AI63: 0.3328599978
B64: Protected spring | C64: 0.5898545355 | D64: 0.1067351386 | E64: 0.06246233522 | F64: 0 | G64: 0 | H64: 0.03205461837 | I64: 0.05680658499 | J64: 0 | K64: 0 | L64: 0 | M64: 0.9880435045 | N64: 0.5756596151 | O64: 0.1510014597 | P64: 0.2144516559 | Q64: 0 | R64: 0 | S64: 0 | T64: 0 | U64: 0.9762813234 | V64: 0 | W64: 0 | X64: 0.1868169596 | Y64: 0.3090877673 | Z64: 0 | AA64: 0 | AB64: 0 | AC64: 0.2066359763 | AD64: 0.1516708903 | AE64: 0 | AF64: 0.3783290279 | AG64: 0.7611699116 | AH64: 0 | AI64: 0.1109533326
B65: Unprotected spring | C65: 1.27292321 | D65: 0.2963077674 | E65: 0.2323053083 | F65: 0.1853919797 | G65: 0 | H65: 0.1079001281 | I65: 0.0128256955 | J65: 0 | K65: 0 | L65: 0 | M65: 2.693850286 | N65: 0.7128967802 | O65: 0.5979305298 | P65: 0.6707531128 | Q65: 0.5712707607 | R65: 0 | S65: 0.1015334441 | T65: 0 | U65: 1.58176471 | V65: 0 | W65: 0 | X65: 0 | Y65: 1.017716378 | Z65: 0 | AA65: 0 | AB65: 0 | AC65: 1.153717534 | AD65: 0 | AE65: 0.3491489871 | AF65: 0 | AG65: 2.963125727 | AH65: 0 | AI65: 0
B66: Rainwater collection | C66: 2.04124438 | D66: 0.4984014812 | E66: 0.1340482696 | F66: 0.05651562834 | G66: 0 | H66: 0.1742345757 | I66: 0.0461347591 | J66: 0 | K66: 0 | L66: 0 | M66: 2.990334051 | N66: 2.390470632 | O66: 0.8020856845 | P66: 0.7072008007 | Q66: 0.2219855198 | R66: 0.1890135862 | S66: 1.807295305 | T66: 0 | U66: 0 | V66: 0 | W66: 0 | X66: 0.1556807997 | Y66: 0 | Z66: 0.2015544433 | AA66: 0 | AB66: 0.09420675132 | AC66: 3.592226169 | AD66: 0 | AE66: 1.178377831 | AF66: 0.8901859481 | AG66: 0 | AH66: 0.1713595698 | AI66: 0
B67: 61 | C67: 0.2782726985 | D67: 0.03499095102 | E67: 0 | F67: 0 | G67: 0 | H67: 0 | I67: 0 | J67: 0 | K67: 0 | L67: 0 | M67: 0.2219413061 | N67: 0.5418377015 | O67: 0 | P67: 0.09602104381 | Q67: 0 | R67: 0 | S67: 0.2639869547 | T67: 0 | U67: 0 | V67: 0 | W67: 0 | X67: 0 | Y67: 0 | Z67: 0 | AA67: 0 | AB67: 0 | AC67: 0.5338096053 | AD67: 0 | AE67: 0 | AF67: 0 | AG67: 0 | AH67: 0 | AI67: 0
B68: Tanker-truck | C68: 12.07026479 | D68: 4.664993651 | E68: 3.388254702 | F68: 2.133613592 | G68: 0.2905714202 | H68: 0.6886994337 | I68: 0.6353844233 | J68: 0.2360148147 | K68: 0.1669972117 | L68: 0.2971741357 | M68: 16.79479227 | N68: 14.81100157 | O68: 10.52118589 | P68: 9.684821641 | Q68: 6.575487593 | R68: 6.676910447 | S68: 42.30800553 | T68: 3.491843111 | U68: 0.4606392782 | V68: 0 | W68: 0 | X68: 6.164959668 | Y68: 0 | Z68: 0.2790753831 | AA68: 0.7617892803 | AB68: 0.5061046117 | AC68: 12.55763553 | AD68: 0.06066835611 | AE68: 1.331130513 | AF68: 13.36577287 | AG68: 0 | AH68: 6.568526527 | AI68: 1.46458399
B69: Cart with small tank/drum | C69: 2.624439529 | D69: 1.476188222 | E69: 0.437267949 | F69: 0.4306668093 | G69: 0.0216257228 | H69: 0.2440328684 | I69: 0.1004641268 | J69: 0.02575162325 | K69: 0.02582145278 | L69: 0.008206881622 | M69: 3.487357677 | N69: 3.280356363 | O69: 3.825053093 | P69: 1.124929674 | Q69: 1.281961925 | R69: 0.06671067748 | S69: 0.4873605317 | T69: 0 | U69: 0 | V69: 1.601639096 | W69: 0 | X69: 4.047700792 | Y69: 0.2607737042 | Z69: 0.5736549541 | AA69: 1.929866177 | AB69: 0.2986516164 | AC69: 0.08609832344 | AD69: 0.1516708903 | AE69: 2.051250299 | AF69: 1.145180421 | AG69: 0.1401897164 | AH69: 0.7711180642 | AI69: 10.75520765
B70: Surface water | C70: 20.80836645 | D70: 6.748069299 | E70: 4.748267433 | F70: 3.564492888 | G70: 0.8034836946 | H70: 0.5620114946 | I70: 0.03714637751 | J70: 0.02809267991 | K70: 0.04651616098 | L70: 0.03474854072 | M70: 35.17648282 | N70: 20.29190541 | O70: 15.57457689 | P70: 15.35994284 | Q70: 13.0805476 | R70: 0 | S70: 2.782016368 | T70: 2.290827009 | U70: 0 | V70: 33.13813847 | W70: 0.5495502659 | X70: 14.46558757 | Y70: 0.08692456806 | Z70: 1.441889479 | AA70: 5.569526072 | AB70: 23.23048601 | AC70: 0 | AD70: 11.14781044 | AE70: 17.36226532 | AF70: 12.65242537 | AG70: 0.1902924779 | AH70: 22.32696735 | AI70: 13.45274384
B71: Bottled water | C71: 0.07040481537 | D71: 0.3243213185 | E71: 0.6343871204 | F71: 0.6025737515 | G71: 2.546379589 | H71: 0.3396484325 | I71: 0.6942196685 | J71: 0.5460827923 | K71: 1.256165031 | L71: 2.990047287 | M71: 0 | N71: 0 | O71: 0.2489902281 | P71: 0.3474643195 | Q71: 0.7040417249 | R71: 0 | S71: 3.288845452 | T71: 0.9583375147 | U71: 0 | V71: 0.04989338385 | W71: 1.418583946 | X71: 0.1599796163 | Y71: 0.5767063784 | Z71: 0 | AA71: 1.1043703 | AB71: 7.759206738 | AC71: 0.3119034196 | AD71: 0.07583544514 | AE71: 0 | AF71: 0.1705926493 | AG71: 0.2889421702 | AH71: 0.7362299539 | AI71: 0.04974082126
B72: Other | C72: 3.459297917 | D72: 5.352957429 | E72: 8.087074021 | F72: 8.54968744 | G72: 9.35717687 | H72: 4.352714142 | I72: 7.629715518 | J72: 8.302874937 | K72: 7.321577985 | L72: 9.191012294 | M72: 3.019589439 | N72: 3.028723214 | O72: 5.606241141 | P72: 6.537621956 | Q72: 13.1416034 | R72: 91.74198107 | S72: 0.1421468217 | T72: 0 | U72: 0.1209885053 | V72: 0.1353497827 | W72: 3.865676841 | X72: 2.802254394 | Y72: 0 | Z72: 0 | AA72: 0.9697421141 | AB72: 0 | AC72: 0.2927342997 | AD72: 0.5005139379 | AE72: 0.1963963052 | AF72: 0.2670557844 | AG72: 0.8759421327 | AH72: 0.1499396236 | AI72: 2.973549314
A108: =A1026 -> Iraq
A109: =A1034 -> 2006
A110: Use of sanitation facilities
A111: by wealth quintile and sub-national region
A112: Notes:
A113: WHO/UNICEF JMP customised wealth index excludes water,
A114: sanitation and hygiene assets.
A115: Survey used for analysis: | B115: =A1025 -> MICS06
A116: =B1030 -> 
A117: =B1029 -> 
A120: Use of sanitation facilities | C120: NATIONAL wealth index quintile | H120: URBAN wealth index quintile | M120: RURAL wealth index quintile | R120: SUB-REGIONS: | BA120: Raw numbers of respondents: | BB120: Use of sanitation facilities | BC120: NATIONAL wealth index quintile | BH120: URBAN wealth index quintile | BM120: RURAL wealth index quintile | BR120: SUB-REGIONS:
A121: Weighted percentage (used in graphs) | C121: Poorest | D121: Poor | E121: Middle | F121: Rich | G121: Richest | H121: Poorest | I121: Poor | J121: Middle | K121: Rich | L121: Richest | M121: Poorest | N121: Poor | O121: Middle | P121: Rich | Q121: Richest | R121: Albasrah | S121: Almuthana | T121: Anbar | U121: Arbil | V121: Babil | W121: Baghdad | X121: Diala | Y121: Duhuk | Z121: Kakuk | AA121: Karbala | AB121: Misan | AC121: Nainwa | AD121: Najaf | AE121: Qadisya | AF121: Salahaladin | AG121: Sulimania | AH121: Thiqar | AI121: Wasit | BA121: Sanitation data, raw numbers (weighted) | BC121: Poorest | BD121: Poor | BE121: Middle | BF121: Rich | BG121: Richest | BH121: Poorest | BI121: Poor | BJ121: Middle | BK121: Rich | BL121: Richest | BM121: Poorest | BN121: Poor | BO121: Middle | BP121: Rich | BQ121: Richest | BR121: Albasrah | BS121: Almuthana | BT121: Anbar | BU121: Arbil | BV121: Babil | BW121: Baghdad | BX121: Diala | BY121: Duhuk | BZ121: Kakuk | CA121: Karbala | CB121: Misan | CC121: Nainwa | CD121: Najaf | CE121: Qadisya | CF121: Salahaladin | CG121: Sulimania | CH121: Thiqar | CI121: Wasit
A122: Sanitation | B122: Improved | C122: 77.46181746 | D122: 92.35941094 | E122: 95.83182451 | F122: 97.33667523 | G122: 98.73045771 | H122: 96.85240813 | I122: 98.03907104 | J122: 98.90951143 | K122: 98.65455569 | L122: 98.98719119 | M122: 61.23785879 | N122: 81.27529622 | O122: 84.01578026 | P122: 89.61072057 | Q122: 93.67091027 | R122: 87.993384 | S122: 81.39387706 | T122: 99.3501038 | U122: 98.17769834 | V122: 83.35481087 | W122: 99.5110054 | X122: 96.35706929 | Y122: 98.22353935 | Z122: 93.57340941 | AA122: 91.83939415 | AB122: 83.05829182 | AC122: 93.34575681 | AD122: 93.17656666 | AE122: 63.57838777 | AF122: 92.8318009 | AG122: 97.12769346 | AH122: 80.81977585 | AI122: 94.12295068 | BA122: Sanitation | BB122: Improved | BC122: 17483.05647 | BD122: 20846.52301 | BE122: 21636.25569 | BF122: 21973.13941 | BG122: 22276.60871 | BH122: 13902.07404 | BI122: 14068.18396 | BJ122: 14217.61297 | BK122: 14142.6148 | BL122: 14205.92221 | BM122: 5031.100034 | BN122: 6685.757268 | BO122: 6901.030095 | BP122: 7370.581761 | BQ122: 7690.706154 | BR122: 6199.327499 | BS122: 2435.103871 | BT122: 5971.810335 | BU122: 4630.248587 | BV122: 5938.990848 | BW122: 23767.34008 | BX122: 5187.970291 | BY122: 3679.622921 | BZ122: 3160.792268 | CA122: 3125.788361 | CB122: 2828.99544 | CC122: 10982.68365 | CD122: 3807.739688 | CE122: 2550.901605 | CF122: 5266.238689 | CG122: 5997.351021 | CH122: 4722.882606 | CI122: 3961.795521
B123: Not Improved | C123: 22.53818254 | D123: 7.64058906 | E123: 4.168175487 | F123: 2.663324768 | G123: 1.269542285 | H123: 3.14759187 | I123: 1.960928958 | J123: 1.090488571 | K123: 1.34544431 | L123: 1.01280881 | M123: 38.76214121 | N123: 18.72470378 | O123: 15.98421974 | P123: 10.38927943 | Q123: 6.329089729 | R123: 12.006616 | S123: 18.60612294 | T123: 0.6498962034 | U123: 1.82230166 | V123: 16.64518913 | W123: 0.4889946013 | X123: 3.642930713 | Y123: 1.776460652 | Z123: 6.426590586 | AA123: 8.160605853 | AB123: 16.94170818 | AC123: 6.654243189 | AD123: 6.823433339 | AE123: 36.42161223 | AF123: 7.168199096 | AG123: 2.872306543 | AH123: 19.18022415 | AI123: 5.877049316 | BB123: Not Improved | BC123: 5086.845765 | BD123: 1724.564005 | BE123: 941.062231 | BF123: 601.228738 | BG123: 286.44754 | BH123: 451.801417 | BI123: 281.38485 | BJ123: 156.750794 | BK123: 192.876046 | BL123: 145.350959 | BM123: 3184.56938 | BN123: 1540.305975 | BO123: 1312.938845 | BP123: 854.529826 | BQ123: 519.640187 | BR123: 845.892513 | BS123: 556.649267 | BT123: 39.064447 | BU123: 85.943242 | BV123: 1185.961852 | BW123: 116.792117 | BX123: 196.139385 | BY123: 66.549275 | BZ123: 217.08216 | CA123: 277.749293 | CB123: 577.040704 | CC123: 782.911301 | CD123: 278.84541 | CE123: 1461.313386 | CF123: 406.643489 | CG123: 177.356529 | CH123: 1120.83888 | CI123: 247.375029
A124: Sanitation ladder | B124: Basic | C124: 60.57626793 | D124: 72.43581908 | E124: 76.55503565 | F124: 82.2575989 | G124: 85.02852583 | H124: 72.2638169 | I124: 75.16654839 | J124: 77.17155128 | K124: 84.3420516 | L124: 85.59644331 | M124: 50.10739957 | N124: 64.14669962 | O124: 71.17129127 | P124: 77.41184602 | Q124: 83.14186406 | R124: 66.5871033 | S124: 74.78583993 | T124: 97.57466239 | U124: 83.94320059 | V124: 76.6069326 | W124: 74.28158717 | X124: 84.57773084 | Y124: 63.55954853 | Z124: 80.95799247 | AA124: 69.3104096 | AB124: 71.46996985 | AC124: 70.35238061 | AD124: 75.53679231 | AE124: 51.89378659 | AF124: 83.39345841 | AG124: 84.32483404 | AH124: 69.40402773 | AI124: 76.12770872 | BA124: Sanitation ladder | BB124: Basic | BC124: 13672.00445 | BD124: 16349.55175 | BE124: 17276.73837 | BF124: 18564.74504 | BG124: 19183.0312 | BH124: 10372.65828 | BI124: 10782.66906 | BJ124: 11088.80266 | BK124: 12090.84709 | BL124: 12282.1631 | BM124: 4116.658301 | BN124: 5276.748079 | BO124: 5845.987759 | BP124: 6363.30148 | BQ124: 6826.234994 | BR124: 4691.207927 | BS124: 2237.407713 | BT124: 5865.090775 | BU124: 3958.922367 | BV124: 5458.207713 | BW124: 17741.51248 | BX124: 4553.75779 | BY124: 2381.050135 | BZ124: 2734.659325 | CA124: 2359.005889 | CB124: 2430.480328 | CC124: 8277.376145 | CD124: 3086.875298 | CE124: 2082.090285 | CF124: 4724.636934 | CG124: 5206.811894 | CH124: 4052.632718 | CI124: 3204.345096
B125: Limited | C125: 16.88554953 | D125: 19.92359186 | E125: 19.27501912 | F125: 15.0784468 | G125: 13.70179933 | H125: 24.58859123 | I125: 22.87190315 | J125: 21.73755529 | K125: 14.31250409 | L125: 13.39058162 | M125: 11.13045921 | N125: 17.1285966 | O125: 12.84448899 | P125: 12.192492 | Q125: 10.52904621 | R125: 21.4062807 | S125: 6.608037123 | T125: 1.77544141 | U125: 14.23449775 | V125: 6.74787827 | W125: 25.22941823 | X125: 11.77933845 | Y125: 34.66399082 | Z125: 12.61541695 | AA125: 22.52898454 | AB125: 11.56174564 | AC125: 22.9933762 | AD125: 17.63977435 | AE125: 11.68460118 | AF125: 9.428972737 | AG125: 12.80285942 | AH125: 11.4008618 | AI125: 17.99524196 | BB125: Limited | BC125: 3811.052021 | BD125: 4496.971255 | BE125: 4349.935437 | BF125: 3403.059709 | BG125: 3091.221934 | BH125: 3529.415762 | BI125: 3280.982934 | BJ125: 3123.475647 | BK125: 2051.767714 | BL125: 1921.40352 | BM125: 914.441733 | BN125: 1409.009189 | BO125: 1055.042336 | BP125: 1002.230361 | BQ125: 864.47116 | BR125: 1508.119572 | BS125: 197.696158 | BT125: 106.71956 | BU125: 671.32622 | BV125: 480.783135 | BW125: 6025.827602 | BX125: 634.212501 | BY125: 1298.572786 | BZ125: 426.132943 | CA125: 766.782472 | CB125: 393.180456 | CC125: 2705.30751 | CD125: 720.86439 | CE125: 468.81132 | CF125: 534.196251 | CG125: 790.539127 | CH125: 665.717928 | CI125: 757.450425
B126: Unimproved | C126: 12.46640409 | D126: 5.900940607 | E126: 3.548641121 | F126: 2.564664323 | G126: 1.223105116 | H126: 3.079860065 | I126: 1.94043747 | J126: 1.080354761 | K126: 1.34544431 | L126: 1.012975078 | M126: 18.6510702 | N126: 11.54103871 | O126: 11.34328919 | P126: 8.54040717 | Q126: 5.746736951 | R126: 12.006616 | S126: 8.940390656 | T126: 0.6498962034 | U126: 0.9652983519 | V126: 6.877446471 | W126: 0.4889946013 | X126: 2.397484315 | Y126: 1.043810721 | Z126: 5.449826745 | AA126: 7.161815463 | AB126: 13.99611673 | AC126: 1.436684788 | AD126: 6.125747244 | AE126: 25.5325282 | AF126: 3.6522933 | AG126: 2.27424447 | AH126: 17.52305794 | AI126: 2.615021337 | BB126: Unimproved | BC126: 2813.655216 | BD126: 1331.906439 | BE126: 800.847961 | BF126: 578.81995 | BG126: 275.941084 | BH126: 442.079278 | BI126: 278.35647 | BJ126: 155.23649 | BK126: 192.876046 | BL126: 145.350959 | BM126: 1532.31027 | BN126: 949.373143 | BO126: 931.734251 | BP126: 702.026736 | BQ126: 471.827007 | BR126: 845.892513 | BS126: 267.474418 | BT126: 39.064447 | BU126: 45.525322 | BV126: 490.014808 | BW126: 116.792117 | BX126: 129.083185 | BY126: 39.102947 | BZ126: 184.088304 | CA126: 243.755086 | CB126: 475.96615 | CC126: 169.034513 | CD126: 250.333874 | CE126: 1024.419924 | CF126: 206.919825 | CG126: 140.427945 | CH126: 1023.204564 | CI126: 110.070708
B127: Open defecation | C127: 10.07177845 | D127: 1.739648453 | E127: 0.6213041032 | F127: 0.09928997629 | G127: 0.04656972385 | H127: 0.06773180545 | I127: 0.02111099492 | J127: 0.01053866611 | K127: 0 | L127: 0 | M127: 20.11107101 | N127: 7.183665072 | O127: 4.640930551 | P127: 1.855254817 | Q127: 0.582352778 | R127: 0 | S127: 9.665732287 | T127: 0 | U127: 0.8570033083 | V127: 9.767742655 | W127: 0 | X127: 1.245446398 | Y127: 0.7326499308 | Z127: 0.9767638408 | AA127: 0.9987903898 | AB127: 2.972167782 | AC127: 5.217558401 | AD127: 0.6976860953 | AE127: 10.88908403 | AF127: 3.52527555 | AG127: 0.5980620734 | AH127: 1.672052527 | AI127: 3.262027978 | BB127: Open defecation | BC127: 2273.190549 | BD127: 392.657566 | BE127: 140.21427 | BF127: 22.408788 | BG127: 10.506456 | BH127: 9.722139 | BI127: 3.02838 | BJ127: 1.514304 | BK127: 0 | BL127: 0 | BM127: 1652.25911 | BN127: 590.932832 | BO127: 381.204594 | BP127: 152.50309 | BQ127: 47.81318 | BR127: 0 | BS127: 289.174849 | BT127: 0 | BU127: 40.41792 | BV127: 695.947044 | BW127: 0 | BX127: 67.0562 | BY127: 27.446328 | BZ127: 32.993856 | CA127: 33.994207 | CB127: 101.074554 | CC127: 613.876788 | CD127: 28.511536 | CE127: 436.893462 | CF127: 199.723664 | CG127: 36.928584 | CH127: 97.634316 | CI127: 137.304321
A128: Shared among Improved Sanitation | B128: Yes | C128: 21.79854551 | D128: 21.57180482 | E128: 20.11375155 | F128: 15.49112325 | G128: 13.87800487 | H128: 25.38769216 | I128: 23.32952305 | J128: 21.97730426 | K128: 14.50769707 | L128: 13.52761297 | M128: 18.17578118 | N128: 21.07478828 | O128: 15.28818628 | P128: 13.60703317 | Q128: 11.24046534 | R128: 24.32714794 | S128: 8.118592408 | T128: 1.787055416 | U128: 14.49870795 | V128: 8.095367501 | W128: 25.35339496 | X128: 12.22467488 | Y128: 35.29092013 | Z128: 13.48183958 | AA128: 24.53085057 | AB128: 13.92449328 | AC128: 24.63248141 | AD128: 18.93155649 | AE128: 18.37825963 | AF128: 10.15807561 | AG128: 13.18147169 | AH128: 14.10912367 | AI128: 19.11886722 | BA128: Shared among improved sanitation facilities | BB128: Yes | BC128: N/A | BD128: N/A | BE128: N/A | BF128: N/A | BG128: N/A | BH128: N/A | BI128: N/A | BJ128: N/A | BK128: N/A | BL128: N/A | BM128: N/A | BN128: N/A | BO128: N/A | BP128: N/A | BQ128: N/A | BR128: N/A | BS128: N/A | BT128: N/A | BU128: N/A | BV128: N/A | BW128: N/A | BX128: N/A | BY128: N/A | BZ128: N/A | CA128: N/A | CB128: N/A | CC128: N/A | CD128: N/A | CE128: N/A | CF128: N/A | CG128: N/A | CH128: N/A | CI128: N/A
B129: No | C129: 78.20145449 | D129: 78.42819518 | E129: 79.88624845 | F129: 84.50887675 | G129: 86.12199513 | H129: 74.61230784 | I129: 76.67047695 | J129: 78.02269574 | K129: 85.49230293 | L129: 86.47238703 | M129: 81.82421882 | N129: 78.92521172 | O129: 84.71181372 | P129: 86.39296683 | Q129: 88.75953466 | R129: 75.67285206 | S129: 91.88140759 | T129: 98.21294458 | U129: 85.50129205 | V129: 91.9046325 | W129: 74.64660504 | X129: 87.77532512 | Y129: 64.70907987 | Z129: 86.51816042 | AA129: 75.46914943 | AB129: 86.07550672 | AC129: 75.36751859 | AD129: 81.06844351 | AE129: 81.62174037 | AF129: 89.84192439 | AG129: 86.81852831 | AH129: 85.89087633 | AI129: 80.88113278 | BB129: No | BC129: N/A | BD129: N/A | BE129: N/A | BF129: N/A | BG129: N/A | BH129: N/A | BI129: N/A | BJ129: N/A | BK129: N/A | BL129: N/A | BM129: N/A | BN129: N/A | BO129: N/A | BP129: N/A | BQ129: N/A | BR129: N/A | BS129: N/A | BT129: N/A | BU129: N/A | BV129: N/A | BW129: N/A | BX129: N/A | BY129: N/A | BZ129: N/A | CA129: N/A | CB129: N/A | CC129: N/A | CD129: N/A | CE129: N/A | CF129: N/A | CG129: N/A | CH129: N/A | CI129: N/A
A130: Manually calculated ratios | B130: Improved latrines | C130: =C159/(C159+C160)*100 -> 34.1835573 | D130: =D159/(D159+D160)*100 -> 64.83533415 | E130: 75.98339065 | F130: 75.31452394 | G130: 92.26586703 | H130: 79.87021218 | I130: 94.04232936 | J130: 88.35703836 | K130: 94.60793807 | L130: 90.44050468 | M130: 20.88900152 | N130: 44.27429626 | O130: 57.13480915 | P130: 65.52285544 | Q130: 72.76569459 | R130: 79.87998012 | S130: 4.512035777 | T130: 62.1255169 | U130: 85.36585366 | V130: 64.91349291 | W130: 96.63061221 | X130: 100 | Y130: 76.07026287 | Z130: 81.1857399 | AA130: 89.38363245 | AB130: 4.089500833 | AC130: 100 | AD130: 41.61220044 | AE130: 5.69910389 | AF130: 80.99817848 | AG130: 96.79894485 | AH130: 42.49645113 | AI130: 3.658311355
B131: Other
B132: Other
C133: NATIONAL wealth index quintile | H133: URBAN wealth index quintile | M133: RURAL wealth index quintile | R133: SUB-REGIONS: | BA133: Raw numbers of respondents: | BB133: Use of sanitation facilities | BC133: NATIONAL wealth index quintile | BH133: URBAN wealth index quintile | BM133: RURAL wealth index quintile | BR133: SUB-REGIONS:
A134: Percentage based on weighted population | C134: Poorest | D134: Poor | E134: Middle | F134: Rich | G134: Richest | H134: Poorest | I134: Poor | J134: Middle | K134: Rich | L134: Richest | M134: Poorest | N134: Poor | O134: Middle | P134: Rich | Q134: Richest | R134: Albasrah | S134: Almuthana | T134: Anbar | U134: Arbil | V134: Babil | W134: Baghdad | X134: Diala | Y134: Duhuk | Z134: Kakuk | AA134: Karbala | AB134: Misan | AC134: Nainwa | AD134: Najaf | AE134: Qadisya | AF134: Salahaladin | AG134: Sulimania | AH134: Thiqar | AI134: Wasit | BA134: Sanitation data, raw numbers (weighted) | BC134: Poorest | BD134: Poor | BE134: Middle | BF134: Rich | BG134: Richest | BH134: Poorest | BI134: Poor | BJ134: Middle | BK134: Rich | BL134: Richest | BM134: Poorest | BN134: Poor | BO134: Middle | BP134: Rich | BQ134: Richest | BR134: Albasrah | BS134: Almuthana | BT134: Anbar | BU134: Arbil | BV134: Babil | BW134: Baghdad | BX134: Diala | BY134: Duhuk | BZ134: Kakuk | CA134: Karbala | CB134: Misan | CC134: Nainwa | CD134: Najaf | CE134: Qadisya | CF134: Salahaladin | CG134: Sulimania | CH134: Thiqar | CI134: Wasit
A135: Sanitation type | B135: Sewer connection | C135: 7.956349514 | D135: 17.31194423 | E135: 23.70527291 | F135: 26.85181458 | G135: 37.63448537 | H135: 28.38854742 | I135: 31.29661339 | J135: 35.50558388 | K135: 35.45046943 | L135: 42.23603128 | M135: 0.2417134015 | N135: 1.355840245 | O135: 1.230140468 | P135: 3.261813778 | Q135: 3.589985742 | R135: 37.56165883 | S135: 0.5640414908 | T135: 6.443868972 | U135: 9.907009552 | V135: 7.644532349 | W135: 55.90373563 | X135: 1.936642551 | Y135: 1.046541348 | Z135: 7.492717873 | AA135: 13.14854218 | AB135: 19.55281318 | AC135: 1.992321535 | AD135: 13.21699177 | AE135: 17.2772379 | AF135: 9.437848825 | AG135: 67.0852605 | AH135: 6.341625467 | AI135: 3.984981293 | BA135: Sanitation type | BB135: Sewer connection | BC135: N/A | BD135: N/A | BE135: N/A | BF135: N/A | BG135: N/A | BH135: N/A | BI135: N/A | BJ135: N/A | BK135: N/A | BL135: N/A | BM135: N/A | BN135: N/A | BO135: N/A | BP135: N/A | BQ135: N/A | BR135: N/A | BS135: N/A | BT135: N/A | BU135: N/A | BV135: N/A | BW135: N/A | BX135: N/A | BY135: N/A | BZ135: N/A | CA135: N/A | CB135: N/A | CC135: N/A | CD135: N/A | CE135: N/A | CF135: N/A | CG135: N/A | CH135: N/A | CI135: N/A
B136: Septic tank connection | C136: 19.7417507 | D136: 42.62836808 | E136: 48.35394371 | F136: 52.16522732 | G136: 50.86578059 | H136: 41.29872608 | I136: 48.09467576 | J136: 49.59305279 | K136: 48.70995409 | L136: 47.89668204 | M136: 7.49790353 | N136: 20.44959158 | O136: 35.89022084 | P136: 46.46792627 | Q136: 65.33673405 | R136: 38.82602009 | S136: 46.74035268 | T136: 78.92964337 | U136: 18.13694915 | V136: 47.78214908 | W136: 37.46528698 | X136: 70.62820457 | Y136: 79.22937996 | Z136: 61.85522989 | AA136: 48.6038512 | AB136: 16.14907126 | AC136: 57.00636955 | AD136: 58.9725704 | AE136: 25.18274963 | AF136: 40.16265675 | AG136: 0 | AH136: 5.253840532 | AI136: 56.63161218 | BB136: Septic tank connection | BC136: N/A | BD136: N/A | BE136: N/A | BF136: N/A | BG136: N/A | BH136: N/A | BI136: N/A | BJ136: N/A | BK136: N/A | BL136: N/A | BM136: N/A | BN136: N/A | BO136: N/A | BP136: N/A | BQ136: N/A | BR136: N/A | BS136: N/A | BT136: N/A | BU136: N/A | BV136: N/A | BW136: N/A | BX136: N/A | BY136: N/A | BZ136: N/A | CA136: N/A | CB136: N/A | CC136: N/A | CD136: N/A | CE136: N/A | CF136: N/A | CG136: N/A | CH136: N/A | CI136: N/A
B137: Improved latrines | C137: 49.76371725 | D137: 32.41909863 | E137: 23.77260789 | F137: 18.31963334 | G137: 10.23019175 | H137: 27.16513463 | I137: 18.64778189 | J137: 13.81087476 | K137: 14.49413217 | L137: 8.854477873 | M137: 53.49824185 | N137: 59.4698644 | O137: 46.89541895 | P137: 39.88098052 | Q137: 24.74419048 | R137: 11.60570508 | S137: 34.08948289 | T137: 13.97659145 | U137: 70.13373963 | V137: 27.92812945 | W137: 6.141982794 | X137: 23.79222217 | Y137: 17.94761804 | Z137: 24.22546165 | AA137: 30.08700077 | AB137: 47.35640738 | AC137: 34.34706573 | AD137: 20.98700449 | AE137: 21.11840023 | AF137: 43.23129533 | AG137: 30.04243296 | AH137: 69.22430985 | AI137: 33.50635721 | BB137: Improved latrines | BC137: N/A | BD137: N/A | BE137: N/A | BF137: N/A | BG137: N/A | BH137: N/A | BI137: N/A | BJ137: N/A | BK137: N/A | BL137: N/A | BM137: N/A | BN137: N/A | BO137: N/A | BP137: N/A | BQ137: N/A | BR137: N/A | BS137: N/A | BT137: N/A | BU137: N/A | BV137: N/A | BW137: N/A | BX137: N/A | BY137: N/A | BZ137: N/A | CA137: N/A | CB137: N/A | CC137: N/A | CD137: N/A | CE137: N/A | CF137: N/A | CG137: N/A | CH137: N/A | CI137: N/A
B138: Unimproved facilities | C138: 12.46640409 | D138: 5.900940607 | E138: 3.547135067 | F138: 2.564058255 | G138: 1.222977423 | H138: 3.079860065 | I138: 1.93982463 | J138: 1.079953816 | K138: 1.34544431 | L138: 1.01280881 | M138: 18.6510702 | N138: 11.54103871 | O138: 11.34328919 | P138: 8.53516367 | Q138: 5.746736951 | R138: 12.006616 | S138: 8.940390656 | T138: 0.6498962034 | U138: 0.9652983519 | V138: 6.877446471 | W138: 0.4889946013 | X138: 2.397484315 | Y138: 1.043810721 | Z138: 5.449826745 | AA138: 7.161815463 | AB138: 13.97419551 | AC138: 1.436684788 | AD138: 6.125747244 | AE138: 25.5325282 | AF138: 3.647525517 | AG138: 2.27424447 | AH138: 17.50946835 | AI138: 2.615021337 | BB138: Unimproved facilities | BC138: N/A | BD138: N/A | BE138: N/A | BF138: N/A | BG138: N/A | BH138: N/A | BI138: N/A | BJ138: N/A | BK138: N/A | BL138: N/A | BM138: N/A | BN138: N/A | BO138: N/A | BP138: N/A | BQ138: N/A | BR138: N/A | BS138: N/A | BT138: N/A | BU138: N/A | BV138: N/A | BW138: N/A | BX138: N/A | BY138: N/A | BZ138: N/A | CA138: N/A | CB138: N/A | CC138: N/A | CD138: N/A | CE138: N/A | CF138: N/A | CG138: N/A | CH138: N/A | CI138: N/A
B139: Open defecation | C139: 10.07177845 | D139: 1.739648453 | E139: 0.6210404199 | F139: 0.0992665126 | G139: 0.04656486197 | H139: 0.06773180545 | I139: 0.02110432753 | J139: 0.01053475497 | K139: 0 | L139: 0 | M139: 20.11107101 | N139: 7.183665072 | O139: 4.640930551 | P139: 1.854115757 | Q139: 0.582352778 | R139: 0 | S139: 9.665732287 | T139: 0 | U139: 0.8570033083 | V139: 9.767742655 | W139: 0 | X139: 1.245446398 | Y139: 0.7326499308 | Z139: 0.9767638408 | AA139: 0.9987903898 | AB139: 2.967512667 | AC139: 5.217558401 | AD139: 0.6976860953 | AE139: 10.88908403 | AF139: 3.520673579 | AG139: 0.5980620734 | AH139: 1.670755806 | AI139: 3.262027978 | BB139: Open defecation | BC139: N/A | BD139: N/A | BE139: N/A | BF139: N/A | BG139: N/A | BH139: N/A | BI139: N/A | BJ139: N/A | BK139: N/A | BL139: N/A | BM139: N/A | BN139: N/A | BO139: N/A | BP139: N/A | BQ139: N/A | BR139: N/A | BS139: N/A | BT139: N/A | BU139: N/A | BV139: N/A | BW139: N/A | BX139: N/A | BY139: N/A | BZ139: N/A | CA139: N/A | CB139: N/A | CC139: N/A | CD139: N/A | CE139: N/A | CF139: N/A | CG139: N/A | CH139: N/A | CI139: N/A
A140: Septic tank emptying practices | B140: Not emptied/treated and disposed in situ | C140: N/A | D140: N/A | E140: N/A | F140: N/A | G140: N/A | H140: N/A | I140: N/A | J140: N/A | K140: N/A | L140: N/A | M140: N/A | N140: N/A | O140: N/A | P140: N/A | Q140: N/A | R140: N/A | S140: N/A | T140: N/A | U140: N/A | V140: N/A | W140: N/A | X140: N/A | Y140: N/A | Z140: N/A | AA140: N/A | AB140: N/A | AC140: N/A | AD140: N/A | AE140: N/A | AF140: N/A | AG140: N/A | AH140: N/A | AI140: N/A | BA140: Septic tank emptying practices | BB140: Not emptied/treated and disposed in situ | BC140: N/A | BD140: N/A | BE140: N/A | BF140: N/A | BG140: N/A | BH140: N/A | BI140: N/A | BJ140: N/A | BK140: N/A | BL140: N/A | BM140: N/A | BN140: N/A | BO140: N/A | BP140: N/A | BQ140: N/A | BR140: N/A | BS140: N/A | BT140: N/A | BU140: N/A | BV140: N/A | BW140: N/A | BX140: N/A | BY140: N/A | BZ140: N/A | CA140: N/A | CB140: N/A | CC140: N/A | CD140: N/A | CE140: N/A | CF140: N/A | CG140: N/A | CH140: N/A | CI140: N/A
B141: Emptied and buried on site | C141: N/A | D141: N/A | E141: N/A | F141: N/A | G141: N/A | H141: N/A | I141: N/A | J141: N/A | K141: N/A | L141: N/A | M141: N/A | N141: N/A | O141: N/A | P141: N/A | Q141: N/A | R141: N/A | S141: N/A | T141: N/A | U141: N/A | V141: N/A | W141: N/A | X141: N/A | Y141: N/A | Z141: N/A | AA141: N/A | AB141: N/A | AC141: N/A | AD141: N/A | AE141: N/A | AF141: N/A | AG141: N/A | AH141: N/A | AI141: N/A | BB141: Emptied and buried on site | BC141: N/A | BD141: N/A | BE141: N/A | BF141: N/A | BG141: N/A | BH141: N/A | BI141: N/A | BJ141: N/A | BK141: N/A | BL141: N/A | BM141: N/A | BN141: N/A | BO141: N/A | BP141: N/A | BQ141: N/A | BR141: N/A | BS141: N/A | BT141: N/A | BU141: N/A | BV141: N/A | BW141: N/A | BX141: N/A | BY141: N/A | BZ141: N/A | CA141: N/A | CB141: N/A | CC141: N/A | CD141: N/A | CE141: N/A | CF141: N/A | CG141: N/A | CH141: N/A | CI141: N/A
B142: Emptied and discharged locally | C142: N/A | D142: N/A | E142: N/A | F142: N/A | G142: N/A | H142: N/A | I142: N/A | J142: N/A | K142: N/A | L142: N/A | M142: N/A | N142: N/A | O142: N/A | P142: N/A | Q142: N/A | R142: N/A | S142: N/A | T142: N/A | U142: N/A | V142: N/A | W142: N/A | X142: N/A | Y142: N/A | Z142: N/A | AA142: N/A | AB142: N/A | AC142: N/A | AD142: N/A | AE142: N/A | AF142: N/A | AG142: N/A | AH142: N/A | AI142: N/A | BB142: Emptied and discharged locally | BC142: N/A | BD142: N/A | BE142: N/A | BF142: N/A | BG142: N/A | BH142: N/A | BI142: N/A | BJ142: N/A | BK142: N/A | BL142: N/A | BM142: N/A | BN142: N/A | BO142: N/A | BP142: N/A | BQ142: N/A | BR142: N/A | BS142: N/A | BT142: N/A | BU142: N/A | BV142: N/A | BW142: N/A | BX142: N/A | BY142: N/A | BZ142: N/A | CA142: N/A | CB142: N/A | CC142: N/A | CD142: N/A | CE142: N/A | CF142: N/A | CG142: N/A | CH142: N/A | CI142: N/A
B143: Emptied and removed offsite | C143: N/A | D143: N/A | E143: N/A | F143: N/A | G143: N/A | H143: N/A | I143: N/A | J143: N/A | K143: N/A | L143: N/A | M143: N/A | N143: N/A | O143: N/A | P143: N/A | Q143: N/A | R143: N/A | S143: N/A | T143: N/A | U143: N/A | V143: N/A | W143: N/A | X143: N/A | Y143: N/A | Z143: N/A | AA143: N/A | AB143: N/A | AC143: N/A | AD143: N/A | AE143: N/A | AF143: N/A | AG143: N/A | AH143: N/A | AI143: N/A | BB143: Emptied and removed offsite | BC143: N/A | BD143: N/A | BE143: N/A | BF143: N/A | BG143: N/A | BH143: N/A | BI143: N/A | BJ143: N/A | BK143: N/A | BL143: N/A | BM143: N/A | BN143: N/A | BO143: N/A | BP143: N/A | BQ143: N/A | BR143: N/A | BS143: N/A | BT143: N/A | BU143: N/A | BV143: N/A | BW143: N/A | BX143: N/A | BY143: N/A | BZ143: N/A | CA143: N/A | CB143: N/A | CC143: N/A | CD143: N/A | CE143: N/A | CF143: N/A | CG143: N/A | CH143: N/A | CI143: N/A
A144: Latrine emptying practices | B144: Not emptied/treated and disposed in situ | C144: N/A | D144: N/A | E144: N/A | F144: N/A | G144: N/A | H144: N/A | I144: N/A | J144: N/A | K144: N/A | L144: N/A | M144: N/A | N144: N/A | O144: N/A | P144: N/A | Q144: N/A | R144: N/A | S144: N/A | T144: N/A | U144: N/A | V144: N/A | W144: N/A | X144: N/A | Y144: N/A | Z144: N/A | AA144: N/A | AB144: N/A | AC144: N/A | AD144: N/A | AE144: N/A | AF144: N/A | AG144: N/A | AH144: N/A | AI144: N/A | BA144: Latrine emptying practices | BB144: Not emptied/treated and disposed in situ | BC144: N/A | BD144: N/A | BE144: N/A | BF144: N/A | BG144: N/A | BH144: N/A | BI144: N/A | BJ144: N/A | BK144: N/A | BL144: N/A | BM144: N/A | BN144: N/A | BO144: N/A | BP144: N/A | BQ144: N/A | BR144: N/A | BS144: N/A | BT144: N/A | BU144: N/A | BV144: N/A | BW144: N/A | BX144: N/A | BY144: N/A | BZ144: N/A | CA144: N/A | CB144: N/A | CC144: N/A | CD144: N/A | CE144: N/A | CF144: N/A | CG144: N/A | CH144: N/A | CI144: N/A
B145: Emptied and buried on site | C145: N/A | D145: N/A | E145: N/A | F145: N/A | G145: N/A | H145: N/A | I145: N/A | J145: N/A | K145: N/A | L145: N/A | M145: N/A | N145: N/A | O145: N/A | P145: N/A | Q145: N/A | R145: N/A | S145: N/A | T145: N/A | U145: N/A | V145: N/A | W145: N/A | X145: N/A | Y145: N/A | Z145: N/A | AA145: N/A | AB145: N/A | AC145: N/A | AD145: N/A | AE145: N/A | AF145: N/A | AG145: N/A | AH145: N/A | AI145: N/A | BB145: Emptied and buried on site | BC145: N/A | BD145: N/A | BE145: N/A | BF145: N/A | BG145: N/A | BH145: N/A | BI145: N/A | BJ145: N/A | BK145: N/A | BL145: N/A | BM145: N/A | BN145: N/A | BO145: N/A | BP145: N/A | BQ145: N/A | BR145: N/A | BS145: N/A | BT145: N/A | BU145: N/A | BV145: N/A | BW145: N/A | BX145: N/A | BY145: N/A | BZ145: N/A | CA145: N/A | CB145: N/A | CC145: N/A | CD145: N/A | CE145: N/A | CF145: N/A | CG145: N/A | CH145: N/A | CI145: N/A
B146: Emptied and discharged locally | C146: N/A | D146: N/A | E146: N/A | F146: N/A | G146: N/A | H146: N/A | I146: N/A | J146: N/A | K146: N/A | L146: N/A | M146: N/A | N146: N/A | O146: N/A | P146: N/A | Q146: N/A | R146: N/A | S146: N/A | T146: N/A | U146: N/A | V146: N/A | W146: N/A | X146: N/A | Y146: N/A | Z146: N/A | AA146: N/A | AB146: N/A | AC146: N/A | AD146: N/A | AE146: N/A | AF146: N/A | AG146: N/A | AH146: N/A | AI146: N/A | BB146: Emptied and discharged locally | BC146: N/A | BD146: N/A | BE146: N/A | BF146: N/A | BG146: N/A | BH146: N/A | BI146: N/A | BJ146: N/A | BK146: N/A | BL146: N/A | BM146: N/A | BN146: N/A | BO146: N/A | BP146: N/A | BQ146: N/A | BR146: N/A | BS146: N/A | BT146: N/A | BU146: N/A | BV146: N/A | BW146: N/A | BX146: N/A | BY146: N/A | BZ146: N/A | CA146: N/A | CB146: N/A | CC146: N/A | CD146: N/A | CE146: N/A | CF146: N/A | CG146: N/A | CH146: N/A | CI146: N/A
B147: Emptied and removed offsite | C147: N/A | D147: N/A | E147: N/A | F147: N/A | G147: N/A | H147: N/A | I147: N/A | J147: N/A | K147: N/A | L147: N/A | M147: N/A | N147: N/A | O147: N/A | P147: N/A | Q147: N/A | R147: N/A | S147: N/A | T147: N/A | U147: N/A | V147: N/A | W147: N/A | X147: N/A | Y147: N/A | Z147: N/A | AA147: N/A | AB147: N/A | AC147: N/A | AD147: N/A | AE147: N/A | AF147: N/A | AG147: N/A | AH147: N/A | AI147: N/A | BB147: Emptied and removed offsite | BC147: N/A | BD147: N/A | BE147: N/A | BF147: N/A | BG147: N/A | BH147: N/A | BI147: N/A | BJ147: N/A | BK147: N/A | BL147: N/A | BM147: N/A | BN147: N/A | BO147: N/A | BP147: N/A | BQ147: N/A | BR147: N/A | BS147: N/A | BT147: N/A | BU147: N/A | BV147: N/A | BW147: N/A | BX147: N/A | BY147: N/A | BZ147: N/A | CA147: N/A | CB147: N/A | CC147: N/A | CD147: N/A | CE147: N/A | CF147: N/A | CG147: N/A | CH147: N/A | CI147: N/A
A148: Shared among improved sanitation facilities | B148: Yes | C148: 16.88554953 | D148: 19.92359186 | E148: 19.26683875 | F148: 15.07488355 | G148: 13.70036886 | H148: 24.58859123 | I148: 22.86467962 | J148: 21.72948799 | K148: 14.31250409 | L148: 13.38838372 | M148: 11.13045921 | N148: 17.1285966 | O148: 12.84448899 | P148: 12.18500625 | Q148: 10.52904621 | R148: 21.4062807 | S148: 6.608037123 | T148: 1.77544141 | U148: 14.23449775 | V148: 6.74787827 | W148: 25.22941823 | X148: 11.77933845 | Y148: 34.66399082 | Z148: 12.61541695 | AA148: 22.52898454 | AB148: 11.54363722 | AC148: 22.9933762 | AD148: 17.63977435 | AE148: 11.68460118 | AF148: 9.41666395 | AG148: 12.80285942 | AH148: 11.39202013 | AI148: 17.99524196 | BA148: Shared among improved sanitation facilities | BB148: Yes | BC148: N/A | BD148: N/A | BE148: N/A | BF148: N/A | BG148: N/A | BH148: N/A | BI148: N/A | BJ148: N/A | BK148: N/A | BL148: N/A | BM148: N/A | BN148: N/A | BO148: N/A | BP148: N/A | BQ148: N/A | BR148: N/A | BS148: N/A | BT148: N/A | BU148: N/A | BV148: N/A | BW148: N/A | BX148: N/A | BY148: N/A | BZ148: N/A | CA148: N/A | CB148: N/A | CC148: N/A | CD148: N/A | CE148: N/A | CF148: N/A | CG148: N/A | CH148: N/A | CI148: N/A
B149: No | C149: 60.57626793 | D149: 72.43581908 | E149: 76.52254547 | F149: 82.23816021 | G149: 85.01964885 | H149: 72.2638169 | I149: 75.14280887 | J149: 77.14291115 | K149: 84.3420516 | L149: 85.58239371 | M149: 50.10739957 | N149: 64.14669962 | O149: 71.17129127 | P149: 77.36431795 | Q149: 83.14186406 | R149: 66.5871033 | S149: 74.78583993 | T149: 97.57466239 | U149: 83.94320059 | V149: 76.6069326 | W149: 74.28158717 | X149: 84.57773084 | Y149: 63.55954853 | Z149: 80.95799247 | AA149: 69.3104096 | AB149: 71.35803101 | AC149: 70.35238061 | AD149: 75.53679231 | AE149: 51.89378659 | AF149: 83.28459477 | AG149: 84.32483404 | AH149: 69.35020308 | AI149: 76.12770872 | BB149: No | BC149: N/A | BD149: N/A | BE149: N/A | BF149: N/A | BG149: N/A | BH149: N/A | BI149: N/A | BJ149: N/A | BK149: N/A | BL149: N/A | BM149: N/A | BN149: N/A | BO149: N/A | BP149: N/A | BQ149: N/A | BR149: N/A | BS149: N/A | BT149: N/A | BU149: N/A | BV149: N/A | BW149: N/A | BX149: N/A | BY149: N/A | BZ149: N/A | CA149: N/A | CB149: N/A | CC149: N/A | CD149: N/A | CE149: N/A | CF149: N/A | CG149: N/A | CH149: N/A | CI149: N/A
B150: DK/missing | C150: 22.53818254 | D150: 7.64058906 | E150: 4.21061578 | F150: 2.686956242 | G150: 1.279982289 | H150: 3.14759187 | I150: 1.992511509 | J150: 1.127600864 | K150: 1.34544431 | L150: 1.029222573 | M150: 38.76214121 | N150: 18.72470378 | O150: 15.98421974 | P150: 10.4506758 | Q150: 6.329089729 | R150: 12.006616 | S150: 18.60612294 | T150: 0.6498962034 | U150: 1.82230166 | V150: 16.64518913 | W150: 0.4889946013 | X150: 3.642930713 | Y150: 1.776460652 | Z150: 6.426590586 | AA150: 8.160605853 | AB150: 17.09833177 | AC150: 6.654243189 | AD150: 6.823433339 | AE150: 36.42161223 | AF150: 7.298741275 | AG150: 2.872306543 | AH150: 19.25777679 | AI150: 5.877049316 | BB150: DK/missing | BC150: N/A | BD150: N/A | BE150: N/A | BF150: N/A | BG150: N/A | BH150: N/A | BI150: N/A | BJ150: N/A | BK150: N/A | BL150: N/A | BM150: N/A | BN150: N/A | BO150: N/A | BP150: N/A | BQ150: N/A | BR150: N/A | BS150: N/A | BT150: N/A | BU150: N/A | BV150: N/A | BW150: N/A | BX150: N/A | BY150: N/A | BZ150: N/A | CA150: N/A | CB150: N/A | CC150: N/A | CD150: N/A | CE150: N/A | CF150: N/A | CG150: N/A | CH150: N/A | CI150: N/A
